{"text_format":"2","workbook":"xlsx","n_sheets":2,"sheets":["Sheet1","Sheet2"],"not_rendered":{"charts":0,"images":0,"macros":0,"external_links":0,"defined_names":1,"comments":0,"pivot_tables":0},"unopened":[],"bounds":{"document_bytes":16777216,"sheet_cells":100000,"run_cost":"one","rows_first":2000,"rows_last":500,"rows_between":2000,"halvings":0,"cell_chars":16384,"cell_head_chars":4096},"cells_cut":0,"cells_raw":0,"read":"whole","date_system":"1900"}

{"sheet":"Sheet1","index":0,"n_rows":5395,"n_cols":2,"rows_kept":5395,"cut":false,"hidden":false,"merged":[]}
["OSC-URL","软件分类（国产/非国产）"]
["https://oschina.net/p/kubernetes","不详"]
["https://oschina.net/p/netdata","不详"]
["https://oschina.net/p/redis","不详"]
["https://oschina.net/p/ansible","不详"]
["https://oschina.net/p/nocode","不详"]
["https://oschina.net/p/echarts","国产"]
["https://oschina.net/p/grafana","不详"]
["https://oschina.net/p/superset","不详"]
["https://oschina.net/p/prometheus","不详"]
["https://oschina.net/p/etcd","不详"]
["https://oschina.net/p/traefik","不详"]
["https://oschina.net/p/dubbo","国产"]
["https://oschina.net/p/uni-app","国产"]
["https://oschina.net/p/grpc","国产"]
["https://oschina.net/p/minio","不详"]
["https://oschina.net/p/terraform","不详"]
["https://oschina.net/p/spark","不详"]
["https://oschina.net/p/kong","不详"]
["https://oschina.net/p/tidb","国产"]
["https://oschina.net/p/istio","不详"]
["https://oschina.net/p/arthas","国产"]
["https://oschina.net/p/airflow","不详"]
["https://oschina.net/p/apollo","不详"]
["https://oschina.net/p/compose","不详"]
["https://oschina.net/p/layui","国产"]
["https://oschina.net/p/vault","不详"]
["https://oschina.net/p/drone","不详"]
["https://oschina.net/p/rethinkdb","不详"]
["https://oschina.net/p/consul","不详"]
["https://oschina.net/p/OpenAPI-Specification","不详"]
["https://oschina.net/p/minikube","不详"]
["https://oschina.net/p/influxdb","不详"]
["https://oschina.net/p/nacos","国产"]
["https://oschina.net/p/hutool","国产"]
["https://oschina.net/p/kafka","不详"]
["https://oschina.net/p/portainer","不详"]
["https://oschina.net/p/gitlabhq","不详"]
["https://oschina.net/p/seata","国产"]
["https://oschina.net/p/helm","不详"]
["https://oschina.net/p/xxl-job","不详"]
["https://oschina.net/p/k3s","不详"]
["https://oschina.net/p/go-zero","国产"]
["https://oschina.net/p/envoy","不详"]
["https://oschina.net/p/skywalking","国产"]
["https://oschina.net/p/incubator-mxnet","不详"]
["https://oschina.net/p/generator-jhipster","不详"]
["https://oschina.net/p/Sentinel","国产"]
["https://oschina.net/p/rancher","不详"]
["https://oschina.net/p/flink","不详"]
["https://oschina.net/p/jenkins","不详"]
["https://oschina.net/p/firecracker","不详"]
["https://oschina.net/p/TDengine","国产"]
["https://oschina.net/p/kratos","国产"]
["https://oschina.net/p/Paddle","不详"]
["https://oschina.net/p/backstage","不详"]
["https://oschina.net/p/harbor","国产"]
["https://oschina.net/p/rocketmq","国产"]
["https://oschina.net/p/k6","不详"]
["https://oschina.net/p/shardingsphere","国产"]
["https://oschina.net/p/nginx","不详"]
["https://oschina.net/p/loki","不详"]
["https://oschina.net/p/jaeger","不详"]
["https://oschina.net/p/zipkin","不详"]
["https://oschina.net/p/podman","不详"]
["https://oschina.net/p/vitess","不详"]
["https://oschina.net/p/kops","不详"]
["https://oschina.net/p/trivy","不详"]
["https://oschina.net/p/packer","不详"]
["https://oschina.net/p/incubator-brpc","不详"]
["https://oschina.net/p/incubator-weex","不详"]
["https://oschina.net/p/gradle","不详"]
["https://oschina.net/p/pulumi","不详"]
["https://oschina.net/p/APIJSON","不详"]
["https://oschina.net/p/JustAuth","不详"]
["https://oschina.net/p/keycloak","不详"]
["https://oschina.net/p/mybatis-plus","国产"]
["https://oschina.net/p/skaffold","不详"]
["https://oschina.net/p/hydra","不详"]
["https://oschina.net/p/cilium","不详"]
["https://oschina.net/p/gvisor","不详"]
["https://oschina.net/p/logstash","不详"]
["https://oschina.net/p/hadoop","不详"]
["https://oschina.net/p/kubespray","不详"]
["https://oschina.net/p/salt","不详"]
["https://oschina.net/p/goproxy","不详"]
["https://oschina.net/p/teleport","国产"]
["https://oschina.net/p/arangodb","不详"]
["https://oschina.net/p/predictionio","不详"]
["https://oschina.net/p/akka","不详"]
["https://oschina.net/p/pinpoint","不详"]
["https://oschina.net/p/nomad","不详"]
["https://oschina.net/p/zuul","不详"]
["https://oschina.net/p/containerd","不详"]
["https://oschina.net/p/Luckysheet","国产"]
["https://oschina.net/p/druid","国产"]
["https://oschina.net/p/ip2region","国产"]
["https://oschina.net/p/amis","国产"]
["https://oschina.net/p/tikv","国产"]
["https://oschina.net/p/argo-workflows","不详"]
["https://oschina.net/p/foundationdb","不详"]
["https://oschina.net/p/tengine","国产"]
["https://oschina.net/p/pulsar","不详"]
["https://oschina.net/p/nats-server","不详"]
["https://oschina.net/p/fluentd","不详"]
["https://oschina.net/p/eureka","不详"]
["https://oschina.net/p/vector","不详"]
["https://oschina.net/p/beats","不详"]
["https://oschina.net/p/kaniko","不详"]
["https://oschina.net/p/kubesphere","国产"]
["https://oschina.net/p/ceph","不详"]
["https://oschina.net/p/postgres","不详"]
["https://oschina.net/p/thanos","不详"]
["https://oschina.net/p/openresty","国产"]
["https://oschina.net/p/zookeeper","不详"]
["https://oschina.net/p/argo-cd","不详"]
["https://oschina.net/p/webmagic","国产"]
["https://oschina.net/p/kind","不详"]
["https://oschina.net/p/neo4j","不详"]
["https://oschina.net/p/emqx","不详"]
["https://oschina.net/p/arrow","不详"]
["https://oschina.net/p/rook","不详"]
["https://oschina.net/p/Sa-Token","国产"]
["https://oschina.net/p/apisix","国产"]
["https://oschina.net/p/rabbitmq-server","不详"]
["https://oschina.net/p/coredns","不详"]
["https://oschina.net/p/runc","不详"]
["https://oschina.net/p/Tars","不详"]
["https://oschina.net/p/cert-manager","不详"]
["https://oschina.net/p/thrift","不详"]
["https://oschina.net/p/workflow","国产"]
["https://oschina.net/p/clair","不详"]
["https://oschina.net/p/chameleon","不详"]
["https://oschina.net/p/linkerd2","不详"]
["https://oschina.net/p/rkt","不详"]
["https://oschina.net/p/dolphinscheduler","国产"]
["https://oschina.net/p/spinnaker","不详"]
["https://oschina.net/p/tvm","不详"]
["https://oschina.net/p/kubeasz","不详"]
["https://oschina.net/p/landscape","不详"]
["https://oschina.net/p/scylladb","不详"]
["https://oschina.net/p/mysql-server","不详"]
["https://oschina.net/p/fastdfs","国产"]
["https://oschina.net/p/origin","不详"]
["https://oschina.net/p/gf","不详"]
["https://oschina.net/p/spug","国产"]
["https://oschina.net/p/jeesite","国产"]
["https://oschina.net/p/openebs","不详"]
["https://oschina.net/p/tyk","不详"]
["https://oschina.net/p/shardingsphere-elasticjob","不详"]
["https://oschina.net/p/QtScrcpy","不详"]
["https://oschina.net/p/ZLMediaKit","国产"]
["https://oschina.net/p/cassandra","不详"]
["https://oschina.net/p/linuxkit","不详"]
["https://oschina.net/p/WeiXinMPSDK","不详"]
["https://oschina.net/p/flannel","不详"]
["https://oschina.net/p/noms","不详"]
["https://oschina.net/p/kkFileView","不详"]
["https://oschina.net/p/rt-thread","国产"]
["https://oschina.net/p/dex","不详"]
["https://oschina.net/p/pipeline","不详"]
["https://oschina.net/p/shenyu","不详"]
["https://oschina.net/p/spider-flow","国产"]
["https://oschina.net/p/VictoriaMetrics","不详"]
["https://oschina.net/p/opa","不详"]
["https://oschina.net/p/yugabyte-db","不详"]
["https://oschina.net/p/deepstream.io","不详"]
["https://oschina.net/p/sysdig","不详"]
["https://oschina.net/p/chef","不详"]
["https://oschina.net/p/Yearning","国产"]
["https://oschina.net/p/falcon-plus","不详"]
["https://oschina.net/p/distribution","不详"]
["https://oschina.net/p/im-server","不详"]
["https://oschina.net/p/microk8s","不详"]
["https://oschina.net/p/QUANTAXIS","不详"]
["https://oschina.net/p/che","不详"]
["https://oschina.net/p/puppet","不详"]
["https://oschina.net/p/velero","不详"]
["https://oschina.net/p/gocd","不详"]
["https://oschina.net/p/concourse","不详"]
["https://oschina.net/p/jmeter","不详"]
["https://oschina.net/p/GuiLite","不详"]
["https://oschina.net/p/storm","不详"]
["https://oschina.net/p/weave","不详"]
["https://oschina.net/p/cadence","不详"]
["https://oschina.net/p/tomcat","不详"]
["https://oschina.net/p/trino","不详"]
["https://oschina.net/p/EasyPR","国产"]
["https://oschina.net/p/tilt","不详"]
["https://oschina.net/p/operator-sdk","不详"]
["https://oschina.net/p/doris","不详"]
["https://oschina.net/p/octant","不详"]
["https://oschina.net/p/alluxio","不详"]
["https://oschina.net/p/beam","不详"]
["https://oschina.net/p/Spring-Cloud-Platform","不详"]
["https://oschina.net/p/crossplane","不详"]
["https://oschina.net/p/zeppelin","不详"]
["https://oschina.net/p/openwhisk","不详"]
["https://oschina.net/p/oauth2-proxy","不详"]
["https://oschina.net/p/SpringBlade","国产"]
["https://oschina.net/p/bfe","不详"]
["https://oschina.net/p/TencentOS-tiny","不详"]
["https://oschina.net/p/xmake","国产"]
["https://oschina.net/p/scope","不详"]
["https://oschina.net/p/graphite-web","不详"]
["https://oschina.net/p/swoft","国产"]
["https://oschina.net/p/couchdb","不详"]
["https://oschina.net/p/nightingale","不详"]
["https://oschina.net/p/telepresence","不详"]
["https://oschina.net/p/dubbo-spring-boot-project","国产"]
["https://oschina.net/p/vxe-table","国产"]
["https://oschina.net/p/kubeedge","不详"]
["https://oschina.net/p/lura","不详"]
["https://oschina.net/p/falco","不详"]
["https://oschina.net/p/chaos-mesh","国产"]
["https://oschina.net/p/kraken","不详"]
["https://oschina.net/p/metallb","不详"]
["https://oschina.net/p/kube-bench","不详"]
["https://oschina.net/p/zinx","国产"]
["https://oschina.net/p/kitex","国产"]
["https://oschina.net/p/Discovery","不详"]
["https://oschina.net/p/chaosblade","国产"]
["https://oschina.net/p/mesos","不详"]
["https://oschina.net/p/st2","不详"]
["https://oschina.net/p/cortex","不详"]
["https://oschina.net/p/HP-Socket","国产"]
["https://oschina.net/p/easegress","不详"]
["https://oschina.net/p/hyperf","国产"]
["https://oschina.net/p/incubator-weex-ui","不详"]
["https://oschina.net/p/HyperLPR","不详"]
["https://oschina.net/p/opentsdb","不详"]
["https://oschina.net/p/checkov","不详"]
["https://oschina.net/p/rundeck","不详"]
["https://oschina.net/p/nutui","国产"]
["https://oschina.net/p/oceanbase","国产"]
["https://oschina.net/p/groovy","不详"]
["https://oschina.net/p/hbase","不详"]
["https://oschina.net/p/libhv","不详"]
["https://oschina.net/p/sofa-boot","不详"]
["https://oschina.net/p/LiteOS","国产"]
["https://oschina.net/p/camel","国产"]
["https://oschina.net/p/orientdb","不详"]
["https://oschina.net/p/openstack","不详"]
["https://oschina.net/p/server","国产"]
["https://oschina.net/p/hive","不详"]
["https://oschina.net/p/ant-design-blazor","国产"]
["https://oschina.net/p/KubeOperator","不详"]
["https://oschina.net/p/cni","不详"]
["https://oschina.net/p/cloud-custodian","不详"]
["https://oschina.net/p/pay","国产"]
["https://oschina.net/p/roncoo-pay","国产"]
["https://oschina.net/p/incubator-pagespeed-ngx","不详"]
["https://oschina.net/p/lucene-solr","不详"]
["https://oschina.net/p/ignite","不详"]
["https://oschina.net/p/rocketmq-externals","国产"]
["https://oschina.net/p/cri-o","不详"]
["https://oschina.net/p/m3","不详"]
["https://oschina.net/p/jx","国产"]
["https://oschina.net/p/Archery","不详"]
["https://oschina.net/p/kubevela","国产"]
["https://oschina.net/p/pinot","不详"]
["https://oschina.net/p/dubbo-go","不详"]
["https://oschina.net/p/tbox","不详"]
["https://oschina.net/p/SqlSugar","国产"]
["https://oschina.net/p/HandyControl","不详"]
["https://oschina.net/p/longhorn","国产"]
["https://oschina.net/p/tsuru","不详"]
["https://oschina.net/p/IJPay","不详"]
["https://oschina.net/p/curriculum","不详"]
["https://oschina.net/p/pig","不详"]
["https://oschina.net/p/kube-hunter","不详"]
["https://oschina.net/p/bigchaindb","不详"]
["https://oschina.net/p/shiro","不详"]
["https://oschina.net/p/mosn","国产"]
["https://oschina.net/p/calico","不详"]
["https://oschina.net/p/hmily","不详"]
["https://oschina.net/p/incubator-seatunnel","不详"]
["https://oschina.net/p/emissary","不详"]
["https://oschina.net/p/flux2","不详"]
["https://oschina.net/p/flagger","不详"]
["https://oschina.net/p/pixie","不详"]
["https://oschina.net/p/stolon","不详"]
["https://oschina.net/p/glusterfs","不详"]
["https://oschina.net/p/LCUI","不详"]
["https://oschina.net/p/WasmEdge","国产"]
["https://oschina.net/p/CRMEB","国产"]
["https://oschina.net/p/PowerJob","国产"]
["https://oschina.net/p/spec","不详"]
["https://oschina.net/p/dubbo-admin","不详"]
["https://oschina.net/p/incubator-heron","不详"]
["https://oschina.net/p/sofa-rpc","不详"]
["https://oschina.net/p/lin-ui","国产"]
["https://oschina.net/p/kubevirt","不详"]
["https://oschina.net/p/hudi","不详"]
["https://oschina.net/p/gloo","不详"]
["https://oschina.net/p/uView","不详"]
["https://oschina.net/p/ECommerceCrawlers","不详"]
["https://oschina.net/p/lxd","不详"]
["https://oschina.net/p/crate","不详"]
["https://oschina.net/p/Guns","国产"]
["https://oschina.net/p/mdui","国产"]
["https://oschina.net/p/strimzi-kafka-operator","不详"]
["https://oschina.net/p/nifi","不详"]
["https://oschina.net/p/rainbond","国产"]
["https://oschina.net/p/opentracing-go","不详"]
["https://oschina.net/p/md","不详"]
["https://oschina.net/p/cordova-android","不详"]
["https://oschina.net/p/kylin","不详"]
["https://oschina.net/p/calcite","不详"]
["https://oschina.net/p/HFish","不详"]
["https://oschina.net/p/kruise","不详"]
["https://oschina.net/p/iceberg","不详"]
["https://oschina.net/p/werf","不详"]
["https://oschina.net/p/talos","不详"]
["https://oschina.net/p/maven","不详"]
["https://oschina.net/p/terrascan","不详"]
["https://oschina.net/p/litmus","不详"]
["https://oschina.net/p/o2oa","不详"]
["https://oschina.net/p/DoraCMS","国产"]
["https://oschina.net/p/varlet","国产"]
["https://oschina.net/p/go-fastdfs","国产"]
["https://oschina.net/p/pomerium","不详"]
["https://oschina.net/p/contour","不详"]
["https://oschina.net/p/dgiot","不详"]
["https://oschina.net/p/cdk8s","不详"]
["https://oschina.net/p/nocobase","不详"]
["https://oschina.net/p/jfinal","不详"]
["https://oschina.net/p/haproxy","不详"]
["https://oschina.net/p/jetlinks-community","不详"]
["https://oschina.net/p/devspace","不详"]
["https://oschina.net/p/swagger-bootstrap-ui","不详"]
["https://oschina.net/p/httpd","不详"]
["https://oschina.net/p/ovs","不详"]
["https://oschina.net/p/postgres-operator","不详"]
["https://oschina.net/p/Portus","不详"]
["https://oschina.net/p/kyverno","不详"]
["https://oschina.net/p/sso","不详"]
["https://oschina.net/p/kiali","不详"]
["https://oschina.net/p/service-fabric","不详"]
["https://oschina.net/p/logging-log4j2","不详"]
["https://oschina.net/p/kuma","不详"]
["https://oschina.net/p/cubefs","不详"]
["https://oschina.net/p/rtty","不详"]
["https://oschina.net/p/BookStack","国产"]
["https://oschina.net/p/notary","不详"]
["https://oschina.net/p/CBoard","国产"]
["https://oschina.net/p/swarmkit","不详"]
["https://oschina.net/p/WePush","国产"]
["https://oschina.net/p/thinkphp","国产"]
["https://oschina.net/p/curator","不详"]
["https://oschina.net/p/L7","国产"]
["https://oschina.net/p/RuoYi","国产"]
["https://oschina.net/p/rke","不详"]
["https://oschina.net/p/weaviate","不详"]
["https://oschina.net/p/hippo4j","国产"]
["https://oschina.net/p/skipper","不详"]
["https://oschina.net/p/incubator-linkis","不详"]
["https://oschina.net/p/polaris","不详"]
["https://oschina.net/p/fastNLP","不详"]
["https://oschina.net/p/weixin-java-tools","不详"]
["https://oschina.net/p/singa","不详"]
["https://oschina.net/p/volcano","国产"]
["https://oschina.net/p/jeepay","国产"]
["https://oschina.net/p/spec","不详"]
["https://oschina.net/p/sonobuoy","不详"]
["https://oschina.net/p/ViewUI","国产"]
["https://oschina.net/p/awtk","国产"]
["https://oschina.net/p/gear-lib","不详"]
["https://oschina.net/p/inspec","不详"]
["https://oschina.net/p/karmada","不详"]
["https://oschina.net/p/iotdb","不详"]
["https://oschina.net/p/keywhiz","不详"]
["https://oschina.net/p/zabbix","不详"]
["https://oschina.net/p/arrow-datafusion","不详"]
["https://oschina.net/p/okteto","不详"]
["https://oschina.net/p/incubator-streampark","不详"]
["https://oschina.net/p/nutz","国产"]
["https://oschina.net/p/osm","不详"]
["https://oschina.net/p/jpress","国产"]
["https://oschina.net/p/nutch","不详"]
["https://oschina.net/p/habitat","不详"]
["https://oschina.net/p/singularity","不详"]
["https://oschina.net/p/NanUI","不详"]
["https://oschina.net/p/brigade","不详"]
["https://oschina.net/p/commons-lang","不详"]
["https://oschina.net/p/tempo","不详"]
["https://oschina.net/p/swift","不详"]
["https://oschina.net/p/flume","不详"]
["https://oschina.net/p/featurebase","不详"]
["https://oschina.net/p/kui","不详"]
["https://oschina.net/p/gardener","不详"]
["https://oschina.net/p/DataSphereStudio","国产"]
["https://oschina.net/p/acl","国产"]
["https://oschina.net/p/ApiManager","不详"]
["https://oschina.net/p/rio","不详"]
["https://oschina.net/p/nginx-http-flv-module","国产"]
["https://oschina.net/p/avro","不详"]
["https://oschina.net/p/GreaterWMS","国产"]
["https://oschina.net/p/foreman","不详"]
["https://oschina.net/p/guacamole-server","不详"]
["https://oschina.net/p/xzs","不详"]
["https://oschina.net/p/sofa-bolt","不详"]
["https://oschina.net/p/MrDoc","国产"]
["https://oschina.net/p/zvt","不详"]
["https://oschina.net/p/cskefu","不详"]
["https://oschina.net/p/geode","不详"]
["https://oschina.net/p/ThreatMapper","不详"]
["https://oschina.net/p/runtime","不详"]
["https://oschina.net/p/incubator-hugegraph","不详"]
["https://oschina.net/p/bbs-go","国产"]
["https://oschina.net/p/gobblin","不详"]
["https://oschina.net/p/activemq","不详"]
["https://oschina.net/p/cordova-ios","不详"]
["https://oschina.net/p/DWSurvey","国产"]
["https://oschina.net/p/maven-mvnd","不详"]
["https://oschina.net/p/quay","不详"]
["https://oschina.net/p/juju","不详"]
["https://oschina.net/p/thinkcmf","国产"]
["https://oschina.net/p/HQChart","国产"]
["https://oschina.net/p/netbeans","不详"]
["https://oschina.net/p/shopxo","国产"]
["https://oschina.net/p/mahout","不详"]
["https://oschina.net/p/xtdb","不详"]
["https://oschina.net/p/ThinkAdmin","国产"]
["https://oschina.net/p/bk-ci","国产"]
["https://oschina.net/p/bosh","不详"]
["https://oschina.net/p/vcluster","不详"]
["https://oschina.net/p/submariner","不详"]
["https://oschina.net/p/ledge","不详"]
["https://oschina.net/p/kube-router","不详"]
["https://oschina.net/p/AutoLoadCache","不详"]
["https://oschina.net/p/avue","国产"]
["https://oschina.net/p/renren-security","国产"]
["https://oschina.net/p/voltdb","不详"]
["https://oschina.net/p/GraphScope","国产"]
["https://oschina.net/p/servicecomb-pack","不详"]
["https://oschina.net/p/neditor","国产"]
["https://oschina.net/p/libcloud","不详"]
["https://oschina.net/p/lucenenet","不详"]
["https://oschina.net/p/php-ext-xlswriter","不详"]
["https://oschina.net/p/OpenMetrics","不详"]
["https://oschina.net/p/raincat","国产"]
["https://oschina.net/p/powerfulseal","不详"]
["https://oschina.net/p/servicecomb-java-chassis","不详"]
["https://oschina.net/p/mix","不详"]
["https://oschina.net/p/pravega","不详"]
["https://oschina.net/p/tanka","不详"]
["https://oschina.net/p/pdfbox","不详"]
["https://oschina.net/p/dubbo-samples","不详"]
["https://oschina.net/p/pack","不详"]
["https://oschina.net/p/trickster","不详"]
["https://oschina.net/p/icinga2","不详"]
["https://oschina.net/p/incubator-devlake","不详"]
["https://oschina.net/p/ambari","不详"]
["https://oschina.net/p/mesh","不详"]
["https://oschina.net/p/xxl-sso","国产"]
["https://oschina.net/p/incubator-kvrocks","不详"]
["https://oschina.net/p/drill","不详"]
["https://oschina.net/p/SMProxy","国产"]
["https://oschina.net/p/hertzbeat","不详"]
["https://oschina.net/p/typhoon","不详"]
["https://oschina.net/p/rocketmq-spring","国产"]
["https://oschina.net/p/Furion","国产"]
["https://oschina.net/p/parquet-mr","不详"]
["https://oschina.net/p/actionview","国产"]
["https://oschina.net/p/zadig","国产"]
["https://oschina.net/p/squash","不详"]
["https://oschina.net/p/mist-ce","不详"]
["https://oschina.net/p/cli","不详"]
["https://oschina.net/p/jshERP","国产"]
["https://oschina.net/p/GAAS","不详"]
["https://oschina.net/p/eks-anywhere","不详"]
["https://oschina.net/p/OpenMLDB","国产"]
["https://oschina.net/p/bookkeeper","不详"]
["https://oschina.net/p/spring-cloud-sleuth","不详"]
["https://oschina.net/p/kudu","不详"]
["https://oschina.net/p/paasta","不详"]
["https://oschina.net/p/Senta","不详"]
["https://oschina.net/p/tinkerpop","不详"]
["https://oschina.net/p/sysbox","不详"]
["https://oschina.net/p/chaostoolkit","不详"]
["https://oschina.net/p/multus-cni","不详"]
["https://oschina.net/p/incubator-pegasus","不详"]
["https://oschina.net/p/EasyFlash","国产"]
["https://oschina.net/p/chaoskube","不详"]
["https://oschina.net/p/kilo","不详"]
["https://oschina.net/p/curve","国产"]
["https://oschina.net/p/tika","不详"]
["https://oschina.net/p/trafficserver","不详"]
["https://oschina.net/p/kuberhealthy","不详"]
["https://oschina.net/p/meshery","不详"]
["https://oschina.net/p/keptn","不详"]
["https://oschina.net/p/anchore-engine","不详"]
["https://oschina.net/p/fastadmin","国产"]
["https://oschina.net/p/poi","不详"]
["https://oschina.net/p/woodpecker","不详"]
["https://oschina.net/p/gravitee-api-management","不详"]
["https://oschina.net/p/phalapi","国产"]
["https://oschina.net/p/smartos-live","不详"]
["https://oschina.net/p/tag-security","不详"]
["https://oschina.net/p/python-tuf","不详"]
["https://oschina.net/p/wg-serverless","不详"]
["https://oschina.net/p/goldilocks","不详"]
["https://oschina.net/p/nocalhost","国产"]
["https://oschina.net/p/kube-ovn","国产"]
["https://oschina.net/p/grafeas","不详"]
["https://oschina.net/p/siddhi","不详"]
["https://oschina.net/p/hikyuu","国产"]
["https://oschina.net/p/atlas","不详"]
["https://oschina.net/p/uni-ui","不详"]
["https://oschina.net/p/toc","不详"]
["https://oschina.net/p/antrea","不详"]
["https://oschina.net/p/mcms","国产"]
["https://oschina.net/p/community-edition","不详"]
["https://oschina.net/p/moosefs","不详"]
["https://oschina.net/p/carbondata","国产"]
["https://oschina.net/p/servicecomb-service-center","不详"]
["https://oschina.net/p/mentoring","不详"]
["https://oschina.net/p/Mycat2","国产"]
["https://oschina.net/p/openyurt","国产"]
["https://oschina.net/p/dlink","不详"]
["https://oschina.net/p/cloudstack","不详"]
["https://oschina.net/p/spire","不详"]
["https://oschina.net/p/httpcomponents-client","不详"]
["https://oschina.net/p/DDMQ","国产"]
["https://oschina.net/p/cetus","国产"]
["https://oschina.net/p/kubekey","国产"]
["https://oschina.net/p/incubator-kyuubi","不详"]
["https://oschina.net/p/carvel-ytt","不详"]
["https://oschina.net/p/lucene","不详"]
["https://oschina.net/p/manageiq","不详"]
["https://oschina.net/p/DuiLib_Ultimate","不详"]
["https://oschina.net/p/SunnyUI","不详"]
["https://oschina.net/p/yomo","国产"]
["https://oschina.net/p/opstrace","不详"]
["https://oschina.net/p/incubator-sedona","不详"]
["https://oschina.net/p/SeasLog","国产"]
["https://oschina.net/p/struts","不详"]
["https://oschina.net/p/pluto","不详"]
["https://oschina.net/p/MiniExcel","国产"]
["https://oschina.net/p/parquet-format","不详"]
["https://oschina.net/p/WeChatDeveloper","不详"]
["https://oschina.net/p/nagioscore","不详"]
["https://oschina.net/p/openelb","不详"]
["https://oschina.net/p/zstack","国产"]
["https://oschina.net/p/agola","不详"]
["https://oschina.net/p/fluid","不详"]
["https://oschina.net/p/BootstrapBlazor","国产"]
["https://oschina.net/p/opennlp","不详"]
["https://oschina.net/p/nano","不详"]
["https://oschina.net/p/servicebroker","不详"]
["https://oschina.net/p/rbac-manager","不详"]
["https://oschina.net/p/LarkMidTable","不详"]
["https://oschina.net/p/arrow-rs","不详"]
["https://oschina.net/p/spiffe","不详"]
["https://oschina.net/p/incubator-nuttx","不详"]
["https://oschina.net/p/spec","不详"]
["https://oschina.net/p/dronesploit","不详"]
["https://oschina.net/p/cordova-plugin-inappbrowser","不详"]
["https://oschina.net/p/fes.js","不详"]
["https://oschina.net/p/kudo","不详"]
["https://oschina.net/p/incubator-teaclave-sgx-sdk","不详"]
["https://oschina.net/p/fossa-cli","不详"]
["https://oschina.net/p/w5","不详"]
["https://oschina.net/p/incubator-eventmesh","不详"]
["https://oschina.net/p/liteFlow","国产"]
["https://oschina.net/p/apm-server","不详"]
["https://oschina.net/p/hub","不详"]
["https://oschina.net/p/guacamole-client","不详"]
["https://oschina.net/p/kubeone","不详"]
["https://oschina.net/p/sofa-tracer","不详"]
["https://oschina.net/p/infinispan","不详"]
["https://oschina.net/p/kodbox","不详"]
["https://oschina.net/p/linux-lab","国产"]
["https://oschina.net/p/nginxWebUI","国产"]
["https://oschina.net/p/roncoo-education","国产"]
["https://oschina.net/p/datart","国产"]
["https://oschina.net/p/FastTunnel","国产"]
["https://oschina.net/p/captcha","国产"]
["https://oschina.net/p/jcseg","国产"]
["https://oschina.net/p/OpenAuth.Cor","不详"]
["https://oschina.net/p/bootdo","国产"]
["https://oschina.net/p/MicroCommunity","不详"]
["https://oschina.net/p/jboot","国产"]
["https://oschina.net/p/NiceFish","国产"]
["https://oschina.net/p/datagear","国产"]
["https://oschina.net/p/LayX","国产"]
["https://oschina.net/p/mendmix","不详"]
["https://oschina.net/p/MaxKey","国产"]
["https://oschina.net/p/bootshiro","国产"]
["https://oschina.net/p/IoTSharp","国产"]
["https://oschina.net/p/Jpom","不详"]
["https://oschina.net/p/electron-egg","国产"]
["https://oschina.net/p/BootstrapAdmin","国产"]
["https://oschina.net/p/ApiAdmin","不详"]
["https://oschina.net/p/neural","不详"]
["https://oschina.net/p/LuckyFrameWeb","不详"]
["https://oschina.net/p/chemex","国产"]
["https://oschina.net/p/smart-socket","国产"]
["https://oschina.net/p/report","不详"]
["https://oschina.net/p/spring-boot-seckill","不详"]
["https://oschina.net/p/TLog","国产"]
["https://oschina.net/p/JeeSpringCloudV3.2","不详"]
["https://oschina.net/p/lepus","国产"]
["https://oschina.net/p/cim","国产"]
["https://oschina.net/p/kooder","国产"]
["https://oschina.net/p/cubic","不详"]
["https://oschina.net/p/thinglinks","不详"]
["https://oschina.net/p/tms","国产"]
["https://oschina.net/p/platform-wxshop","不详"]
["https://oschina.net/p/TouchSocket","国产"]
["https://oschina.net/p/LuatOS","国产"]
["https://oschina.net/p/kisso","国产"]
["https://oschina.net/p/iot-dc3","不详"]
["https://oschina.net/p/diboot","国产"]
["https://oschina.net/p/Roses","不详"]
["https://oschina.net/p/oasys","不详"]
["https://oschina.net/p/plumelog","不详"]
["https://oschina.net/p/SimpleDocker","不详"]
["https://oschina.net/p/jap","国产"]
["https://oschina.net/p/LuckyFrameClient","国产"]
["https://oschina.net/p/budwk","国产"]
["https://oschina.net/p/wookteam","国产"]
["https://oschina.net/p/koalas-rpc","国产"]
["https://oschina.net/p/OpenAuth.Net","不详"]
["https://oschina.net/p/agile-bpm-basic","不详"]
["https://oschina.net/p/zbus-server","不详"]
["https://oschina.net/p/lenosp","不详"]
["https://oschina.net/p/J2Cache","国产"]
["https://oschina.net/p/open-capacity-platform","不详"]
["https://oschina.net/p/asyncTool","国产"]
["https://oschina.net/p/IOTGate","不详"]
["https://oschina.net/p/eova","国产"]
["https://oschina.net/p/md_blockchain","国产"]
["https://oschina.net/p/CCFlow","国产"]
["https://oschina.net/p/go-view","不详"]
["https://oschina.net/p/openarkcompiler","不详"]
["https://oschina.net/p/tpflow","国产"]
["https://oschina.net/p/link-wechat","不详"]
["https://oschina.net/p/springrain","国产"]
["https://oschina.net/p/public-apis","不详"]
["https://oschina.net/p/vue","不详"]
["https://oschina.net/p/system-design-primer","不详"]
["https://oschina.net/p/react","不详"]
["https://oschina.net/p/tensorflow","不详"]
["https://oschina.net/p/build-your-own-x","不详"]
["https://oschina.net/p/bootstrap","不详"]
["https://oschina.net/p/You-Dont-Know-JS","不详"]
["https://oschina.net/p/CS-Notes","不详"]
["https://oschina.net/p/javascript-algorithms","不详"]
["https://oschina.net/p/ohmyzsh","不详"]
["https://oschina.net/p/Python","不详"]
["https://oschina.net/p/flutter","不详"]
["https://oschina.net/p/awesome-python","不详"]
["https://oschina.net/p/gitignore","不详"]
["https://oschina.net/p/linux","不详"]
["https://oschina.net/p/vscode","不详"]
["https://oschina.net/p/JavaGuide","不详"]
["https://oschina.net/p/javascript","不详"]
["https://oschina.net/p/Python-100-Days","不详"]
["https://oschina.net/p/computer-science","不详"]
["https://oschina.net/p/youtube-dl","不详"]
["https://oschina.net/p/the-art-of-command-line","不详"]
["https://oschina.net/p/fucking-algorithm","不详"]
["https://oschina.net/p/react-native","不详"]
["https://oschina.net/p/awesome-selfhosted","不详"]
["https://oschina.net/p/go","不详"]
["https://oschina.net/p/electron","不详"]
["https://oschina.net/p/30-seconds-of-code","不详"]
["https://oschina.net/p/d3","不详"]
["https://oschina.net/p/create-react-app","不详"]
["https://oschina.net/p/axios","不详"]
["https://oschina.net/p/free-programming-books-zh_CN","国产"]
["https://oschina.net/p/next.js","不详"]
["https://oschina.net/p/node","不详"]
["https://oschina.net/p/awesome-go","不详"]
["https://oschina.net/p/three.js","不详"]
["https://oschina.net/p/deno","不详"]
["https://oschina.net/p/terminal","不详"]
["https://oschina.net/p/TypeScript","不详"]
["https://oschina.net/p/angular","不详"]
["https://oschina.net/p/ant-design","不详"]
["https://oschina.net/p/nodebestpractices","不详"]
["https://oschina.net/p/material-ui","不详"]
["https://oschina.net/p/puppeteer","不详"]
["https://oschina.net/p/the-book-of-secret-knowledge","不详"]
["https://oschina.net/p/tech-interview-handbook","不详"]
["https://oschina.net/p/PowerToys","不详"]
["https://oschina.net/p/vue-element-admin","国产"]
["https://oschina.net/p/project-based-learning","不详"]
["https://oschina.net/p/java-design-patterns","不详"]
["https://oschina.net/p/animate.css","不详"]
["https://oschina.net/p/models","不详"]
["https://oschina.net/p/storybook","不详"]
["https://oschina.net/p/thefuck","不详"]
["https://oschina.net/p/clean-code-javascript","不详"]
["https://oschina.net/p/rust","不详"]
["https://oschina.net/p/LeetCodeAnimation","不详"]
["https://oschina.net/p/transformers","国产"]
["https://oschina.net/p/laravel","不详"]
["https://oschina.net/p/scrcpy","不详"]
["https://oschina.net/p/Font-Awesome","不详"]
["https://oschina.net/p/realworld","不详"]
["https://oschina.net/p/advanced-java","不详"]
["https://oschina.net/p/django","不详"]
["https://oschina.net/p/FiraCode","不详"]
["https://oschina.net/p/awesome-vue","不详"]
["https://oschina.net/p/bitcoin","不详"]
["https://oschina.net/p/papers-we-love","不详"]
["https://oschina.net/p/moby","不详"]
["https://oschina.net/p/opencv","不详"]
["https://oschina.net/p/json-server","不详"]
["https://oschina.net/p/spring-boot","不详"]
["https://oschina.net/p/gin","不详"]
["https://oschina.net/p/every-programmer-should-know","不详"]
["https://oschina.net/p/hugo","不详"]
["https://oschina.net/p/svelte","不详"]
["https://oschina.net/p/reveal.js","不详"]
["https://oschina.net/p/Front-End-Checklist","不详"]
["https://oschina.net/p/webpack","不详"]
["https://oschina.net/p/elasticsearch","不详"]
["https://oschina.net/p/mall","不详"]
["https://oschina.net/p/nvm","不详"]
["https://oschina.net/p/tailwindcss","不详"]
["https://oschina.net/p/swift","不详"]
["https://oschina.net/p/flask","不详"]
["https://oschina.net/p/frp","国产"]
["https://oschina.net/p/free-for-dev","不详"]
["https://oschina.net/p/HelloGitHub","不详"]
["https://oschina.net/p/angular.js","不详"]
["https://oschina.net/p/pytorch","不详"]
["https://oschina.net/p/redux","不详"]
["https://oschina.net/p/atom","国产"]
["https://oschina.net/p/resume.github.com","不详"]
["https://oschina.net/p/express","不详"]
["https://oschina.net/p/interviews","不详"]
["https://oschina.net/p/Chart.js","不详"]
["https://oschina.net/p/neovim","不详"]
["https://oschina.net/p/app-ideas","不详"]
["https://oschina.net/p/Web-Dev-For-Beginners","不详"]
["https://oschina.net/p/architect-awesome","不详"]
["https://oschina.net/p/code-server","不详"]
["https://oschina.net/p/markdown-here","不详"]
["https://oschina.net/p/jquery","不详"]
["https://oschina.net/p/socket.io","不详"]
["https://oschina.net/p/Awesome-Hacking","不详"]
["https://oschina.net/p/protobuf","不详"]
["https://oschina.net/p/keras","不详"]
["https://oschina.net/p/awesome-machine-learning","不详"]
["https://oschina.net/p/iptv","不详"]
["https://oschina.net/p/Front-end-Developer-Interview-Questions","不详"]
["https://oschina.net/p/shadowsocks-windows","不详"]
["https://oschina.net/p/core","不详"]
["https://oschina.net/p/lodash","不详"]
["https://oschina.net/p/godot","不详"]
["https://oschina.net/p/Apollo-11","不详"]
["https://oschina.net/p/gatsby","不详"]
["https://oschina.net/p/awesome-mac","不详"]
["https://oschina.net/p/html5-boilerplate","不详"]
["https://oschina.net/p/element","国产"]
["https://oschina.net/p/33-js-concepts","不详"]
["https://oschina.net/p/tauri","不详"]
["https://oschina.net/p/scikit-learn","不详"]
["https://oschina.net/p/rails","不详"]
["https://oschina.net/p/awesome-react","不详"]
["https://oschina.net/p/awesome-public-datasets","不详"]
["https://oschina.net/p/nest","不详"]
["https://oschina.net/p/mermaid","不详"]
["https://oschina.net/p/Semantic-UI","不详"]
["https://oschina.net/p/fastapi","不详"]
["https://oschina.net/p/awesome-interview-questions","不详"]
["https://oschina.net/p/leetcode","不详"]
["https://oschina.net/p/spring-framework","不详"]
["https://oschina.net/p/DeepLearning-500-questions","国产"]
["https://oschina.net/p/normalize.css","不详"]
["https://oschina.net/p/strapi","不详"]
["https://oschina.net/p/requests","不详"]
["https://oschina.net/p/GitHub-Chinese-Top-Charts","不详"]
["https://oschina.net/p/react-router","不详"]
["https://oschina.net/p/javascript-questions","不详"]
["https://oschina.net/p/Java","不详"]
["https://oschina.net/p/vite","国产"]
["https://oschina.net/p/ionic-framework","不详"]
["https://oschina.net/p/Best-websites-a-programmer-should-visit","不详"]
["https://oschina.net/p/cpython","不详"]
["https://oschina.net/p/HowToCook","不详"]
["https://oschina.net/p/fzf","不详"]
["https://oschina.net/p/manim","不详"]
["https://oschina.net/p/hoppscotch","不详"]
["https://oschina.net/p/awesome-nodejs","不详"]
["https://oschina.net/p/moment","不详"]
["https://oschina.net/p/syncthing","不详"]
["https://oschina.net/p/tesseract","不详"]
["https://oschina.net/p/material-design-icons","不详"]
["https://oschina.net/p/RxJava","不详"]
["https://oschina.net/p/github-readme-stats","不详"]
["https://oschina.net/p/bulma","不详"]
["https://oschina.net/p/face_recognition","不详"]
["https://oschina.net/p/guava","不详"]
["https://oschina.net/p/you-get","国产"]
["https://oschina.net/p/jekyll","不详"]
["https://oschina.net/p/hacker-scripts","不详"]
["https://oschina.net/p/scrapy","不详"]
["https://oschina.net/p/design-resources-for-developers","不详"]
["https://oschina.net/p/awesome-for-beginners","不详"]
["https://oschina.net/p/awesome-android-ui","不详"]
["https://oschina.net/p/prettier","不详"]
["https://oschina.net/p/cs-video-courses","不详"]
["https://oschina.net/p/localstack","不详"]
["https://oschina.net/p/git","不详"]
["https://oschina.net/p/big-list-of-naughty-strings","不详"]
["https://oschina.net/p/funNLP","不详"]
["https://oschina.net/p/serverless","不详"]
["https://oschina.net/p/caddy","不详"]
["https://oschina.net/p/anime","不详"]
["https://oschina.net/p/awesome-flutter","不详"]
["https://oschina.net/p/meteor","不详"]
["https://oschina.net/p/awesome-courses","不详"]
["https://oschina.net/p/okhttp","不详"]
["https://oschina.net/p/playwright","不详"]
["https://oschina.net/p/learn-regex","不详"]
["https://oschina.net/p/kotlin","不详"]
["https://oschina.net/p/ML-For-Beginners","不详"]
["https://oschina.net/p/faceswap","不详"]
["https://oschina.net/p/TensorFlow-Examples","不详"]
["https://oschina.net/p/alacritty","不详"]
["https://oschina.net/p/SecLists","不详"]
["https://oschina.net/p/obs-studio","不详"]
["https://oschina.net/p/imgui","不详"]
["https://oschina.net/p/AdminLTE","不详"]
["https://oschina.net/p/PayloadsAllTheThings","不详"]
["https://oschina.net/p/architecture-samples","不详"]
["https://oschina.net/p/babel","不详"]
["https://oschina.net/p/nuxt.js","不详"]
["https://oschina.net/p/parcel","不详"]
["https://oschina.net/p/Ghost","不详"]
["https://oschina.net/p/awesome-scalability","不详"]
["https://oschina.net/p/DefinitelyTyped","不详"]
["https://oschina.net/p/cypress","不详"]
["https://oschina.net/p/gogs","国产"]
["https://oschina.net/p/build-web-application-with-golang","国产"]
["https://oschina.net/p/yarn","不详"]
["https://oschina.net/p/tldr","不详"]
["https://oschina.net/p/awesome-ios","不详"]
["https://oschina.net/p/awesome-cpp","不详"]
["https://oschina.net/p/retrofit","不详"]
["https://oschina.net/p/julia","不详"]
["https://oschina.net/p/dayjs","国产"]
["https://oschina.net/p/v2ray-core","不详"]
["https://oschina.net/p/jest","不详"]
["https://oschina.net/p/Ventoy","国产"]
["https://oschina.net/p/pdf.js","不详"]
["https://oschina.net/p/Projects","不详"]
["https://oschina.net/p/rich","不详"]
["https://oschina.net/p/go-ethereum","不详"]
["https://oschina.net/p/hyper","不详"]
["https://oschina.net/p/supabase","不详"]
["https://oschina.net/p/git-flight-rules","不详"]
["https://oschina.net/p/algorithm-visualizer","不详"]
["https://oschina.net/p/x64dbg","不详"]
["https://oschina.net/p/nw.js","不详"]
["https://oschina.net/p/vue2-elm","国产"]
["https://oschina.net/p/awesome-wechat-weapp","不详"]
["https://oschina.net/p/pi-hole","不详"]
["https://oschina.net/p/materialize","国产"]
["https://oschina.net/p/nerd-fonts","不详"]
["https://oschina.net/p/100-Days-Of-ML-Code","不详"]
["https://oschina.net/p/docusaurus","不详"]
["https://oschina.net/p/Alamofire","不详"]
["https://oschina.net/p/tabby","不详"]
["https://oschina.net/p/pm2","不详"]
["https://oschina.net/p/chinese-poetry","国产"]
["https://oschina.net/p/pixijs","不详"]
["https://oschina.net/p/styled-components","不详"]
["https://oschina.net/p/bat","不详"]
["https://oschina.net/p/github-cheat-sheet","不详"]
["https://oschina.net/p/mkcert","不详"]
["https://oschina.net/p/new-pac","不详"]
["https://oschina.net/p/Real-Time-Voice-Cloning","不详"]
["https://oschina.net/p/impress.js","不详"]
["https://oschina.net/p/react","不详"]
["https://oschina.net/p/clash_for_windows_pkg","不详"]
["https://oschina.net/p/huginn","不详"]
["https://oschina.net/p/discourse","不详"]
["https://oschina.net/p/freecodecamp.cn","不详"]
["https://oschina.net/p/marktext","不详"]
["https://oschina.net/p/PythonDataScienceHandbook","不详"]
["https://oschina.net/p/edex-ui","不详"]
["https://oschina.net/p/openpilot","不详"]
["https://oschina.net/p/trackerslist","不详"]
["https://oschina.net/p/sherlock","不详"]
["https://oschina.net/p/fastlane","不详"]
["https://oschina.net/p/Leaflet","不详"]
["https://oschina.net/p/MPAndroidChart","不详"]
["https://oschina.net/p/CppCoreGuidelines","不详"]
["https://oschina.net/p/hexo","不详"]
["https://oschina.net/p/pandas","不详"]
["https://oschina.net/p/vuetify","不详"]
["https://oschina.net/p/d2l-zh","不详"]
["https://oschina.net/p/front-end-interview-handbook","不详"]
["https://oschina.net/p/frontend-dev-bookmarks","不详"]
["https://oschina.net/p/DeepFaceLab","不详"]
["https://oschina.net/p/PowerShell","不详"]
["https://oschina.net/p/python-patterns","不详"]
["https://oschina.net/p/what-happens-when","不详"]
["https://oschina.net/p/design-patterns-for-humans","不详"]
["https://oschina.net/p/project-layout","不详"]
["https://oschina.net/p/rclone","不详"]
["https://oschina.net/p/ghidra","不详"]
["https://oschina.net/p/node-v0.x-archive","不详"]
["https://oschina.net/p/bun","不详"]
["https://oschina.net/p/slate","不详"]
["https://oschina.net/p/php-src","不详"]
["https://oschina.net/p/zx","不详"]
["https://oschina.net/p/video.js","不详"]
["https://oschina.net/p/interview_internal_reference","不详"]
["https://oschina.net/p/fullPage.js","不详"]
["https://oschina.net/p/drawio-desktop","不详"]
["https://oschina.net/p/ailearning","不详"]
["https://oschina.net/p/dive","不详"]
["https://oschina.net/p/hackathon-starter","不详"]
["https://oschina.net/p/awesome-java","不详"]
["https://oschina.net/p/quill","不详"]
["https://oschina.net/p/Motrix","国产"]
["https://oschina.net/p/lerna","不详"]
["https://oschina.net/p/brew","不详"]
["https://oschina.net/p/brackets","不详"]
["https://oschina.net/p/Deep-Learning-Papers-Reading-Roadmap","不详"]
["https://oschina.net/p/Rocket.Chat","不详"]
["https://oschina.net/p/esbuild","不详"]
["https://oschina.net/p/ripgrep","不详"]
["https://oschina.net/p/excalidraw","不详"]
["https://oschina.net/p/AFNetworking","不详"]
["https://oschina.net/p/lottie-android","不详"]
["https://oschina.net/p/shadowsocks","不详"]
["https://oschina.net/p/koa","不详"]
["https://oschina.net/p/yt-dlp","不详"]
["https://oschina.net/p/preact","不详"]
["https://oschina.net/p/glide","不详"]
["https://oschina.net/p/wrk","不详"]
["https://oschina.net/p/deeplearningbook-chinese","不详"]
["https://oschina.net/p/ant-design-pro","国产"]
["https://oschina.net/p/shadowsocks-android","不详"]
["https://oschina.net/p/phaser","不详"]
["https://oschina.net/p/core","不详"]
["https://oschina.net/p/caffe","不详"]
["https://oschina.net/p/kubernetes-the-hard-way","不详"]
["https://oschina.net/p/swiper","不详"]
["https://oschina.net/p/gulp","不详"]
["https://oschina.net/p/uBlock","不详"]
["https://oschina.net/p/clipboard.js","不详"]
["https://oschina.net/p/og-aws","不详"]
["https://oschina.net/p/gitea","不详"]
["https://oschina.net/p/awesome-react-components","不详"]
["https://oschina.net/p/v2rayN","不详"]
["https://oschina.net/p/open-source-mac-os-apps","不详"]
["https://oschina.net/p/joplin","不详"]
["https://oschina.net/p/immutable-js","不详"]
["https://oschina.net/p/hiring-without-whiteboards","不详"]
["https://oschina.net/p/react-use","不详"]
["https://oschina.net/p/bert","不详"]
["https://oschina.net/p/sentry","不详"]
["https://oschina.net/p/leetcode-master","不详"]
["https://oschina.net/p/material-design-lite","不详"]
["https://oschina.net/p/tutorials","不详"]
["https://oschina.net/p/json","不详"]
["https://oschina.net/p/JavaFamily","不详"]
["https://oschina.net/p/FFmpeg","不详"]
["https://oschina.net/p/awesome-react-native","不详"]
["https://oschina.net/p/open-source-ios-apps","不详"]
["https://oschina.net/p/pure-bash-bible","不详"]
["https://oschina.net/p/jadx","不详"]
["https://oschina.net/p/nativefier","不详"]
["https://oschina.net/p/wtfpython","不详"]
["https://oschina.net/p/styleguide","不详"]
["https://oschina.net/p/taro","国产"]
["https://oschina.net/p/tabler","不详"]
["https://oschina.net/p/clash","不详"]
["https://oschina.net/p/powerlevel10k","不详"]
["https://oschina.net/p/drawio","不详"]
["https://oschina.net/p/AndroidUtilCode","国产"]
["https://oschina.net/p/hello-algorithm","不详"]
["https://oschina.net/p/955.WLB","不详"]
["https://oschina.net/p/sheetjs","不详"]
["https://oschina.net/p/XX-Net","不详"]
["https://oschina.net/p/gold-miner","不详"]
["https://oschina.net/p/iina","国产"]
["https://oschina.net/p/monaco-editor","不详"]
["https://oschina.net/p/carbon","不详"]
["https://oschina.net/p/yolov5","不详"]
["https://oschina.net/p/formik","不详"]
["https://oschina.net/p/the-way-to-go_ZH_CN","不详"]
["https://oschina.net/p/jQuery-File-Upload","不详"]
["https://oschina.net/p/android-open-project","不详"]
["https://oschina.net/p/Made-With-ML","不详"]
["https://oschina.net/p/jeecg-boot","国产"]
["https://oschina.net/p/react-hook-form","不详"]
["https://oschina.net/p/ijkplayer","国产"]
["https://oschina.net/p/leveldb","不详"]
["https://oschina.net/p/awesome-cheatsheets","不详"]
["https://oschina.net/p/ShadowsocksX-NG","不详"]
["https://oschina.net/p/12306","不详"]
["https://oschina.net/p/devops-exercises","不详"]
["https://oschina.net/p/cheat.sh","不详"]
["https://oschina.net/p/v","不详"]
["https://oschina.net/p/nocodb","不详"]
["https://oschina.net/p/rustlings","不详"]
["https://oschina.net/p/python-cheatsheet","不详"]
["https://oschina.net/p/zxing","不详"]
["https://oschina.net/p/query","不详"]
["https://oschina.net/p/lazygit","不详"]
["https://oschina.net/p/shellcheck","不详"]
["https://oschina.net/p/cli","不详"]
["https://oschina.net/p/netty","不详"]
["https://oschina.net/p/mastodon","不详"]
["https://oschina.net/p/date-fns","不详"]
["https://oschina.net/p/gorm","不详"]
["https://oschina.net/p/metabase","不详"]
["https://oschina.net/p/devdocs","不详"]
["https://oschina.net/p/meilisearch","不详"]
["https://oschina.net/p/aspnetcore","不详"]
["https://oschina.net/p/rustdesk","国产"]
["https://oschina.net/p/vue-cli","国产"]
["https://oschina.net/p/typeorm","不详"]
["https://oschina.net/p/awesome-awesomeness","不详"]
["https://oschina.net/p/Magisk","不详"]
["https://oschina.net/p/HEAD","不详"]
["https://oschina.net/p/certbot","不详"]
["https://oschina.net/p/foundation-sites","不详"]
["https://oschina.net/p/jieba","国产"]
["https://oschina.net/p/black","不详"]
["https://oschina.net/p/vim-plug","不详"]
["https://oschina.net/p/zju-icicles","不详"]
["https://oschina.net/p/bypass-paywalls-chrome","不详"]
["https://oschina.net/p/COVID-19","不详"]
["https://oschina.net/p/es6features","不详"]
["https://oschina.net/p/phantomjs","不详"]
["https://oschina.net/p/awesome-rust","不详"]
["https://oschina.net/p/pyenv","不详"]
["https://oschina.net/p/awesome-javascript","不详"]
["https://oschina.net/p/beego","国产"]
["https://oschina.net/p/starship","不详"]
["https://oschina.net/p/chakra-ui","不详"]
["https://oschina.net/p/mitmproxy","不详"]
["https://oschina.net/p/cobra","不详"]
["https://oschina.net/p/react-boilerplate","不详"]
["https://oschina.net/p/gym","不详"]
["https://oschina.net/p/vim","不详"]
["https://oschina.net/p/dbeaver","不详"]
["https://oschina.net/p/wtfjs","不详"]
["https://oschina.net/p/marked","不详"]
["https://oschina.net/p/metasploit-framework","不详"]
["https://oschina.net/p/dotfiles","不详"]
["https://oschina.net/p/acme.sh","不详"]
["https://oschina.net/p/p3c","国产"]
["https://oschina.net/p/act","不详"]
["https://oschina.net/p/react-beautiful-dnd","不详"]
["https://oschina.net/p/30-Days-Of-JavaScript","不详"]
["https://oschina.net/p/Blog","不详"]
["https://oschina.net/p/graphql-engine","不详"]
["https://oschina.net/p/tesseract.js","不详"]
["https://oschina.net/p/spring-boot-examples","不详"]
["https://oschina.net/p/AppFlowy","不详"]
["https://oschina.net/p/programmer-job-blacklist","不详"]
["https://oschina.net/p/framework","不详"]
["https://oschina.net/p/todomvc","不详"]
["https://oschina.net/p/carbon-lang","不详"]
["https://oschina.net/p/backbone","不详"]
["https://oschina.net/p/android_guides","不详"]
["https://oschina.net/p/googletest","不详"]
["https://oschina.net/p/leakcanary","国产"]
["https://oschina.net/p/first-contributions","不详"]
["https://oschina.net/p/500lines","不详"]
["https://oschina.net/p/vimrc","国产"]
["https://oschina.net/p/vuex","不详"]
["https://oschina.net/p/rxjs","不详"]
["https://oschina.net/p/husky","不详"]
["https://oschina.net/p/async","不详"]
["https://oschina.net/p/slick","不详"]
["https://oschina.net/p/aria2","不详"]
["https://oschina.net/p/libpku","国产"]
["https://oschina.net/p/lottie-web","不详"]
["https://oschina.net/p/standard","不详"]
["https://oschina.net/p/symfony","不详"]
["https://oschina.net/p/awesome-php","不详"]
["https://oschina.net/p/project-guidelines","不详"]
["https://oschina.net/p/legacy-homebrew","不详"]
["https://oschina.net/p/weekly","不详"]
["https://oschina.net/p/spring-boot-demo","不详"]
["https://oschina.net/p/linux-insides","不详"]
["https://oschina.net/p/HanLP","国产"]
["https://oschina.net/p/composer","不详"]
["https://oschina.net/p/stable-diffusion","不详"]
["https://oschina.net/p/swift-algorithm-club","不详"]
["https://oschina.net/p/webtorrent","不详"]
["https://oschina.net/p/fanqiang","不详"]
["https://oschina.net/p/JCSprout","不详"]
["https://oschina.net/p/curl","不详"]
["https://oschina.net/p/sequelize","不详"]
["https://oschina.net/p/html2canvas","不详"]
["https://oschina.net/p/postcss","不详"]
["https://oschina.net/p/LeetCode-Go","不详"]
["https://oschina.net/p/pandoc","不详"]
["https://oschina.net/p/underscore","不详"]
["https://oschina.net/p/Faker","不详"]
["https://oschina.net/p/weui","不详"]
["https://oschina.net/p/hangzhou_house_knowledge","不详"]
["https://oschina.net/p/Python","不详"]
["https://oschina.net/p/Hover","国产"]
["https://oschina.net/p/odoo","不详"]
["https://oschina.net/p/tmux","不详"]
["https://oschina.net/p/particles.js","不详"]
["https://oschina.net/p/awesome-macos-command-line","不详"]
["https://oschina.net/p/Awesome-Design-Tools","不详"]
["https://oschina.net/p/interactive-coding-challenges","不详"]
["https://oschina.net/p/Daily-Interview-Question","不详"]
["https://oschina.net/p/algo","不详"]
["https://oschina.net/p/machine-learning-for-software-engineers","不详"]
["https://oschina.net/p/Coursera-ML-AndrewNg-Notes","不详"]
["https://oschina.net/p/druid","国产"]
["https://oschina.net/p/interview","不详"]
["https://oschina.net/p/Charts","不详"]
["https://oschina.net/p/REKCARC-TSC-UHT","不详"]
["https://oschina.net/p/diagrams","不详"]
["https://oschina.net/p/prisma","不详"]
["https://oschina.net/p/gitflow","不详"]
["https://oschina.net/p/uppy","不详"]
["https://oschina.net/p/appwrite","不详"]
["https://oschina.net/p/ccxt","不详"]
["https://oschina.net/p/n8n","不详"]
["https://oschina.net/p/cockroach","不详"]
["https://oschina.net/p/mobx","不详"]
["https://oschina.net/p/calculator","不详"]
["https://oschina.net/p/learnGitBranching","不详"]
["https://oschina.net/p/NeteaseCloudMusicApi","不详"]
["https://oschina.net/p/butterknife","不详"]
["https://oschina.net/p/angular-cli","不详"]
["https://oschina.net/p/ClickHouse","不详"]
["https://oschina.net/p/Sortable","不详"]
["https://oschina.net/p/slate","不详"]
["https://oschina.net/p/request","不详"]
["https://oschina.net/p/cheerio","不详"]
["https://oschina.net/p/ResumeSample","不详"]
["https://oschina.net/p/miaosha","不详"]
["https://oschina.net/p/fetch","不详"]
["https://oschina.net/p/select2","国产"]
["https://oschina.net/p/python-guide","不详"]
["https://oschina.net/p/codemirror5","不详"]
["https://oschina.net/p/Detectron","不详"]
["https://oschina.net/p/Modernizr","不详"]
["https://oschina.net/p/lighthouse","不详"]
["https://oschina.net/p/google-research","不详"]
["https://oschina.net/p/easyexcel","国产"]
["https://oschina.net/p/English-level-up-tips","不详"]
["https://oschina.net/p/jsPDF","不详"]
["https://oschina.net/p/react-select","不详"]
["https://oschina.net/p/proxyee-down","国产"]
["https://oschina.net/p/PaddleOCR","国产"]
["https://oschina.net/p/fastify","不详"]
["https://oschina.net/p/yapi","国产"]
["https://oschina.net/p/gitbook","不详"]
["https://oschina.net/p/openpose","不详"]
["https://oschina.net/p/fastjson","国产"]
["https://oschina.net/p/awesome-python-cn","不详"]
["https://oschina.net/p/awesome-shell","不详"]
["https://oschina.net/p/vhr","不详"]
["https://oschina.net/p/ace","不详"]
["https://oschina.net/p/handson-ml","不详"]
["https://oschina.net/p/CPlusPlusThings","不详"]
["https://oschina.net/p/Probabilistic-Programming-and-Bayesian-Methods-for-Hackers","不详"]
["https://oschina.net/p/type-challenges","不详"]
["https://oschina.net/p/mongoose","不详"]
["https://oschina.net/p/pytorch-tutorial","不详"]
["https://oschina.net/p/waifu2x","不详"]
["https://oschina.net/p/sqlmap","不详"]
["https://oschina.net/p/selenium","不详"]
["https://oschina.net/p/fd","不详"]
["https://oschina.net/p/nprogress","不详"]
["https://oschina.net/p/nylas-mail","不详"]
["https://oschina.net/p/nodemon","不详"]
["https://oschina.net/p/Files","不详"]
["https://oschina.net/p/vagrant","不详"]
["https://oschina.net/p/reactjs-interview-questions","不详"]
["https://oschina.net/p/modern-unix","不详"]
["https://oschina.net/p/SpringAll","国产"]
["https://oschina.net/p/SDWebImage","不详"]
["https://oschina.net/p/spaCy","不详"]
["https://oschina.net/p/YouCompleteMe","不详"]
["https://oschina.net/p/MockingBird","不详"]
["https://oschina.net/p/hacker-laws","不详"]
["https://oschina.net/p/react-virtualized","不详"]
["https://oschina.net/p/django-rest-framework","不详"]
["https://oschina.net/p/reverse-interview","不详"]
["https://oschina.net/p/yew","不详"]
["https://oschina.net/p/free","不详"]
["https://oschina.net/p/canal","国产"]
["https://oschina.net/p/the_silver_searcher","不详"]
["https://oschina.net/p/react-spring","不详"]
["https://oschina.net/p/EventBus","不详"]
["https://oschina.net/p/swr","不详"]
["https://oschina.net/p/swc","不详"]
["https://oschina.net/p/cmder","不详"]
["https://oschina.net/p/angular-styleguide","不详"]
["https://oschina.net/p/Docker-OSX","不详"]
["https://oschina.net/p/awesome-deep-learning-papers","不详"]
["https://oschina.net/p/iview","国产"]
["https://oschina.net/p/httpie","不详"]
["https://oschina.net/p/mattermost-server","不详"]
["https://oschina.net/p/fonts","不详"]
["https://oschina.net/p/fastText","不详"]
["https://oschina.net/p/ngx-admin","不详"]
["https://oschina.net/p/kit","不详"]
["https://oschina.net/p/lazydocker","不详"]
["https://oschina.net/p/toBeTopJavaer","不详"]
["https://oschina.net/p/etcher","不详"]
["https://oschina.net/p/echo","不详"]
["https://oschina.net/p/os-tutorial","不详"]
["https://oschina.net/p/data-science-ipython-notebooks","不详"]
["https://oschina.net/p/SmartRefreshLayout","国产"]
["https://oschina.net/p/spring-cloud-alibaba","国产"]
["https://oschina.net/p/insomnia","不详"]
["https://oschina.net/p/halo","不详"]
["https://oschina.net/p/immer","不详"]
["https://oschina.net/p/dokku","不详"]
["https://oschina.net/p/rocksdb","不详"]
["https://oschina.net/p/the-super-tiny-compiler","不详"]
["https://oschina.net/p/zsh-autosuggestions","不详"]
["https://oschina.net/p/commander.js","不详"]
["https://oschina.net/p/modern-js-cheatsheet","不详"]
["https://oschina.net/p/sharp","不详"]
["https://oschina.net/p/awesome-electron","不详"]
["https://oschina.net/p/nvm-windows","不详"]
["https://oschina.net/p/pipenv","不详"]
["https://oschina.net/p/darknet","不详"]
["https://oschina.net/p/Vundle.vim","不详"]
["https://oschina.net/p/xgboost","不详"]
["https://oschina.net/p/folly","不详"]
["https://oschina.net/p/hammer.js","不详"]
["https://oschina.net/p/lede","不详"]
["https://oschina.net/p/jq","不详"]
["https://oschina.net/p/flutter-go","国产"]
["https://oschina.net/p/awesome-remote-job","不详"]
["https://oschina.net/p/lottie-ios","不详"]
["https://oschina.net/p/BaseRecyclerViewAdapterHelper","不详"]
["https://oschina.net/p/python-fire","不详"]
["https://oschina.net/p/CodeHub","不详"]
["https://oschina.net/p/handson-ml2","不详"]
["https://oschina.net/p/css-protips","不详"]
["https://oschina.net/p/floating-ui","不详"]
["https://oschina.net/p/tqdm","不详"]
["https://oschina.net/p/nps","国产"]
["https://oschina.net/p/awesome-docker","不详"]
["https://oschina.net/p/iris","不详"]
["https://oschina.net/p/components","不详"]
["https://oschina.net/p/JavaScript","不详"]
["https://oschina.net/p/devtools","不详"]
["https://oschina.net/p/Hystrix","不详"]
["https://oschina.net/p/GFPGAN","国产"]
["https://oschina.net/p/docz","不详"]
["https://oschina.net/p/nginxconfig.io","不详"]
["https://oschina.net/p/AnotherRedisDesktopManager","不详"]
["https://oschina.net/p/streisand","不详"]
["https://oschina.net/p/Signal-Android","不详"]
["https://oschina.net/p/react-native-elements","不详"]
["https://oschina.net/p/fabric.js","不详"]
["https://oschina.net/p/fastai","不详"]
["https://oschina.net/p/Depix","不详"]
["https://oschina.net/p/nsq","不详"]
["https://oschina.net/p/swagger-ui","不详"]
["https://oschina.net/p/emscripten","不详"]
["https://oschina.net/p/devise","不详"]
["https://oschina.net/p/RxSwift","不详"]
["https://oschina.net/p/slidev","不详"]
["https://oschina.net/p/plyr","不详"]
["https://oschina.net/p/photoprism","不详"]
["https://oschina.net/p/mdb-ui-kit","不详"]
["https://oschina.net/p/fiber","不详"]
["https://oschina.net/p/pure","不详"]
["https://oschina.net/p/mongo","不详"]
["https://oschina.net/p/spacemacs","不详"]
["https://oschina.net/p/TrafficMonitor","不详"]
["https://oschina.net/p/solid","不详"]
["https://oschina.net/p/awesome-swift","不详"]
["https://oschina.net/p/How-To-Ask-Questions-The-Smart-Way","不详"]
["https://oschina.net/p/ItChat","国产"]
["https://oschina.net/p/detectron2","不详"]
["https://oschina.net/p/ramda","不详"]
["https://oschina.net/p/react-redux","不详"]
["https://oschina.net/p/awesome-sysadmin","不详"]
["https://oschina.net/p/sails","不详"]
["https://oschina.net/p/redux-saga","不详"]
["https://oschina.net/p/ember.js","不详"]
["https://oschina.net/p/Wox","国产"]
["https://oschina.net/p/rollup","不详"]
["https://oschina.net/p/zustand","不详"]
["https://oschina.net/p/architecture-components-samples","不详"]
["https://oschina.net/p/PhotoSwipe","不详"]
["https://oschina.net/p/Mask_RCNN","不详"]
["https://oschina.net/p/engineering-blogs","不详"]
["https://oschina.net/p/feather","不详"]
["https://oschina.net/p/ray","不详"]
["https://oschina.net/p/iTerm2-Color-Schemes","不详"]
["https://oschina.net/p/octotree","不详"]
["https://oschina.net/p/blog","不详"]
["https://oschina.net/p/faas","不详"]
["https://oschina.net/p/ngrok","不详"]
["https://oschina.net/p/fe-interview","不详"]
["https://oschina.net/p/vapor","不详"]
["https://oschina.net/p/sweetalert","不详"]
["https://oschina.net/p/mostly-adequate-guide","不详"]
["https://oschina.net/p/guzzle","不详"]
["https://oschina.net/p/draft-js","不详"]
["https://oschina.net/p/hub","不详"]
["https://oschina.net/p/quasar","不详"]
["https://oschina.net/p/poetry","不详"]
["https://oschina.net/p/chosen","不详"]
["https://oschina.net/p/pkg","不详"]
["https://oschina.net/p/coder2gwy","不详"]
["https://oschina.net/p/yuzu","不详"]
["https://oschina.net/p/wepy","国产"]
["https://oschina.net/p/go","不详"]
["https://oschina.net/p/polymer","不详"]
["https://oschina.net/p/flow","不详"]
["https://oschina.net/p/redash","不详"]
["https://oschina.net/p/uptime-kuma","不详"]
["https://oschina.net/p/react-redux-links","不详"]
["https://oschina.net/p/ShareX","不详"]
["https://oschina.net/p/weekly","不详"]
["https://oschina.net/p/dnSpy","不详"]
["https://oschina.net/p/alpine","不详"]
["https://oschina.net/p/Complete-Python-3-Bootcamp","不详"]
["https://oschina.net/p/serenity","不详"]
["https://oschina.net/p/CheatSheetSeries","不详"]
["https://oschina.net/p/Web","不详"]
["https://oschina.net/p/docsify","国产"]
["https://oschina.net/p/react-navigation","不详"]
["https://oschina.net/p/mocha","不详"]
["https://oschina.net/p/eShopOnContainers","不详"]
["https://oschina.net/p/algorithms","不详"]
["https://oschina.net/p/apollo","不详"]
["https://oschina.net/p/NativeScript","不详"]
["https://oschina.net/p/iosched","不详"]
["https://oschina.net/p/Dress","不详"]
["https://oschina.net/p/servo","不详"]
["https://oschina.net/p/numpy","不详"]
["https://oschina.net/p/mmdetection","国产"]
["https://oschina.net/p/hosts","不详"]
["https://oschina.net/p/ML-From-Scratch","不详"]
["https://oschina.net/p/SwiftyJSON","国产"]
["https://oschina.net/p/aos","国产"]
["https://oschina.net/p/intro.js","不详"]
["https://oschina.net/p/AI-Expert-Roadmap","不详"]
["https://oschina.net/p/flv.js","不详"]
["https://oschina.net/p/glances","不详"]
["https://oschina.net/p/react-starter-kit","不详"]
["https://oschina.net/p/applied-ml","不详"]
["https://oschina.net/p/RSSHub","不详"]
["https://oschina.net/p/50projects50days","不详"]
["https://oschina.net/p/gson","不详"]
["https://oschina.net/p/appsmith","不详"]
["https://oschina.net/p/xstate","不详"]
["https://oschina.net/p/logrus","不详"]
["https://oschina.net/p/eslint","不详"]
["https://oschina.net/p/ImHex","不详"]
["https://oschina.net/p/copilot-docs","不详"]
["https://oschina.net/p/algo","不详"]
["https://oschina.net/p/dragula","不详"]
["https://oschina.net/p/C-Plus-Plus","不详"]
["https://oschina.net/p/ipfs","不详"]
["https://oschina.net/p/taichi","不详"]
["https://oschina.net/p/github1s","不详"]
["https://oschina.net/p/JavaScript30","不详"]
["https://oschina.net/p/coc.nvim","不详"]
["https://oschina.net/p/NewPipe","不详"]
["https://oschina.net/p/pytorch-image-models","不详"]
["https://oschina.net/p/docker_practice","国产"]
["https://oschina.net/p/react-motion","不详"]
["https://oschina.net/p/react-bootstrap","不详"]
["https://oschina.net/p/awesome-vscode","不详"]
["https://oschina.net/p/docker-cheat-sheet","不详"]
["https://oschina.net/p/cascadia-code","不详"]
["https://oschina.net/p/Clone-Wars","不详"]
["https://oschina.net/p/localForage","不详"]
["https://oschina.net/p/scrollreveal","不详"]
["https://oschina.net/p/Hero","不详"]
["https://oschina.net/p/lx-music-desktop","国产"]
["https://oschina.net/p/idiomatic.js","不详"]
["https://oschina.net/p/discord.js","不详"]
["https://oschina.net/p/nushell","不详"]
["https://oschina.net/p/pug","不详"]
["https://oschina.net/p/Python-programming-exercises","不详"]
["https://oschina.net/p/normalizr","不详"]
["https://oschina.net/p/NLP-progress","不详"]
["https://oschina.net/p/run","不详"]
["https://oschina.net/p/RedisDesktopManager","不详"]
["https://oschina.net/p/hosts","不详"]
["https://oschina.net/p/vuepress","国产"]
["https://oschina.net/p/croc","不详"]
["https://oschina.net/p/elixir","不详"]
["https://oschina.net/p/streamlit","不详"]
["https://oschina.net/p/DesignPatternsPHP","不详"]
["https://oschina.net/p/Telegram","不详"]
["https://oschina.net/p/astro","不详"]
["https://oschina.net/p/homebridge","不详"]
["https://oschina.net/p/viper","不详"]
["https://oschina.net/p/hackingtool","不详"]
["https://oschina.net/p/tornado","不详"]
["https://oschina.net/p/howler.js","不详"]
["https://oschina.net/p/react-admin","国产"]
["https://oschina.net/p/passport","不详"]
["https://oschina.net/p/professional-programming","不详"]
["https://oschina.net/p/Kingfisher","不详"]
["https://oschina.net/p/gentelella","国产"]
["https://oschina.net/p/the-swift-programming-language-in-chinese","不详"]
["https://oschina.net/p/autoprefixer","不详"]
["https://oschina.net/p/The-Art-Of-Programming-By-July","不详"]
["https://oschina.net/p/spleeter","不详"]
["https://oschina.net/p/libgdx","不详"]
["https://oschina.net/p/highlight.js","不详"]
["https://oschina.net/p/pumpkin-book","不详"]
["https://oschina.net/p/tips","不详"]
["https://oschina.net/p/bitcoinbook","不详"]
["https://oschina.net/p/jax","不详"]
["https://oschina.net/p/mpvue","不详"]
["https://oschina.net/p/micro","不详"]
["https://oschina.net/p/security-guide-for-developers","不详"]
["https://oschina.net/p/notable","不详"]
["https://oschina.net/p/SummaryOfLoanSuspension","不详"]
["https://oschina.net/p/editor.js","不详"]
["https://oschina.net/p/DeepSpeech","国产"]
["https://oschina.net/p/es6tutorial","国产"]
["https://oschina.net/p/Awesome","不详"]
["https://oschina.net/p/rufus","不详"]
["https://oschina.net/p/react-native-web","不详"]
["https://oschina.net/p/v8","不详"]
["https://oschina.net/p/vant","国产"]
["https://oschina.net/p/You-Dont-Need-jQuery","不详"]
["https://oschina.net/p/electron-react-boilerplate","不详"]
["https://oschina.net/p/server","国产"]
["https://oschina.net/p/vegeta","不详"]
["https://oschina.net/p/validator.js","不详"]
["https://oschina.net/p/lightning","不详"]
["https://oschina.net/p/Aerial","不详"]
["https://oschina.net/p/celery","不详"]
["https://oschina.net/p/homemade-machine-learning","不详"]
["https://oschina.net/p/gfwlist","不详"]
["https://oschina.net/p/libuv","不详"]
["https://oschina.net/p/android-best-practices","不详"]
["https://oschina.net/p/go-patterns","不详"]
["https://oschina.net/p/bluebird","不详"]
["https://oschina.net/p/mpv","不详"]
["https://oschina.net/p/IntelliJ-IDEA-Tutorial","不详"]
["https://oschina.net/p/autocomplete","不详"]
["https://oschina.net/p/games","不详"]
["https://oschina.net/p/netron","不详"]
["https://oschina.net/p/api-guidelines","不详"]
["https://oschina.net/p/openzeppelin-contracts","不详"]
["https://oschina.net/p/stb","不详"]
["https://oschina.net/p/GPUImage","不详"]
["https://oschina.net/p/WaveFunctionCollapse","不详"]
["https://oschina.net/p/ava","不详"]
["https://oschina.net/p/How-to-Make-a-Computer-Operating-System","不详"]
["https://oschina.net/p/ReactiveCocoa","不详"]
["https://oschina.net/p/enzyme","不详"]
["https://oschina.net/p/js-cookie","不详"]
["https://oschina.net/p/tdesktop","不详"]
["https://oschina.net/p/monolog","不详"]
["https://oschina.net/p/clashX","不详"]
["https://oschina.net/p/setup-ipsec-vpn","不详"]
["https://oschina.net/p/WeChatExtension-ForMac","国产"]
["https://oschina.net/p/redisson","不详"]
["https://oschina.net/p/awesome-piracy","不详"]
["https://oschina.net/p/linux-command","国产"]
["https://oschina.net/p/ExoPlayer","不详"]
["https://oschina.net/p/remote-jobs","不详"]
["https://oschina.net/p/locust","不详"]
["https://oschina.net/p/python-telegram-bot","不详"]
["https://oschina.net/p/ChromeAppHeroes","不详"]
["https://oschina.net/p/react-three-fiber","不详"]
["https://oschina.net/p/pop","不详"]
["https://oschina.net/p/parse-server","不详"]
["https://oschina.net/p/awesome-actions","不详"]
["https://oschina.net/p/snowpack","不详"]
["https://oschina.net/p/pnpm","不详"]
["https://oschina.net/p/forem","不详"]
["https://oschina.net/p/RxAndroid","不详"]
["https://oschina.net/p/windows95","不详"]
["https://oschina.net/p/fish-shell","不详"]
["https://oschina.net/p/masscan","不详"]
["https://oschina.net/p/profile-summary-for-github","不详"]
["https://oschina.net/p/stackedit","不详"]
["https://oschina.net/p/xi-editor","不详"]
["https://oschina.net/p/RxJS","不详"]
["https://oschina.net/p/awesome-datascience","不详"]
["https://oschina.net/p/macOS-Security-and-Privacy-Guide","不详"]
["https://oschina.net/p/dracula-theme","不详"]
["https://oschina.net/p/winston","不详"]
["https://oschina.net/p/wttr.in","不详"]
["https://oschina.net/p/ruby","不详"]
["https://oschina.net/p/lens","不详"]
["https://oschina.net/p/bazel","不详"]
["https://oschina.net/p/awesome-deep-learning","不详"]
["https://oschina.net/p/FileSaver.js","不详"]
["https://oschina.net/p/remix","不详"]
["https://oschina.net/p/homebrew-cask","不详"]
["https://oschina.net/p/openssl","不详"]
["https://oschina.net/p/HowToLiveLonger","不详"]
["https://oschina.net/p/exa","不详"]
["https://oschina.net/p/freqtrade","不详"]
["https://oschina.net/p/material-dialogs","不详"]
["https://oschina.net/p/YesPlayMusic","国产"]
["https://oschina.net/p/dapr","不详"]
["https://oschina.net/p/upterm","不详"]
["https://oschina.net/p/go-micro","不详"]
["https://oschina.net/p/tools","国产"]
["https://oschina.net/p/table","不详"]
["https://oschina.net/p/osquery","不详"]
["https://oschina.net/p/fairseq","不详"]
["https://oschina.net/p/blueprint","不详"]
["https://oschina.net/p/js-stack-from-scratch","不详"]
["https://oschina.net/p/vnpy","不详"]
["https://oschina.net/p/delve","不详"]
["https://oschina.net/p/nightmare","不详"]
["https://oschina.net/p/chinese-programmer-wrong-pronunciation","不详"]
["https://oschina.net/p/srs","国产"]
["https://oschina.net/p/postgrest","不详"]
["https://oschina.net/p/jumpserver","国产"]
["https://oschina.net/p/joi","不详"]
["https://oschina.net/p/ink","不详"]
["https://oschina.net/p/chalk","不详"]
["https://oschina.net/p/100-Days-Of-ML-Code","不详"]
["https://oschina.net/p/pytudes","不详"]
["https://oschina.net/p/architecture.of.internet-product","不详"]
["https://oschina.net/p/javascript-testing-best-practices","不详"]
["https://oschina.net/p/lux","不详"]
["https://oschina.net/p/graphql-js","不详"]
["https://oschina.net/p/DoKit","不详"]
["https://oschina.net/p/popmotion","不详"]
["https://oschina.net/p/cli","不详"]
["https://oschina.net/p/SpaceVim","国产"]
["https://oschina.net/p/skill-map","不详"]
["https://oschina.net/p/NES.css","不详"]
["https://oschina.net/p/Public-APIs","不详"]
["https://oschina.net/p/my-mac-os","不详"]
["https://oschina.net/p/examples","不详"]
["https://oschina.net/p/vaultwarden","不详"]
["https://oschina.net/p/refined-github","不详"]
["https://oschina.net/p/en.javascript.info","不详"]
["https://oschina.net/p/SpinKit","不详"]
["https://oschina.net/p/tachiyomi","不详"]
["https://oschina.net/p/bevy","不详"]
["https://oschina.net/p/CyberChef","不详"]
["https://oschina.net/p/awesome-falsehood","不详"]
["https://oschina.net/p/recharts","国产"]
["https://oschina.net/p/mediapipe","不详"]
["https://oschina.net/p/flameshot","不详"]
["https://oschina.net/p/vue-router","不详"]
["https://oschina.net/p/linkedin-skill-assessments-quizzes","不详"]
["https://oschina.net/p/SnapKit","不详"]
["https://oschina.net/p/ws","不详"]
["https://oschina.net/p/hyperapp","不详"]
["https://oschina.net/p/modern-cpp-tutorial","不详"]
["https://oschina.net/p/flatbuffers","不详"]
["https://oschina.net/p/aseprite","不详"]
["https://oschina.net/p/eng-practices","不详"]
["https://oschina.net/p/nanoid","不详"]
["https://oschina.net/p/fastclick","不详"]
["https://oschina.net/p/Rectangle","不详"]
["https://oschina.net/p/reselect","不详"]
["https://oschina.net/p/wiki","不详"]
["https://oschina.net/p/eladmin","不详"]
["https://oschina.net/p/vimium","不详"]
["https://oschina.net/p/PHPMailer","不详"]
["https://oschina.net/p/system-design-interview","不详"]
["https://oschina.net/p/Skeleton","不详"]
["https://oschina.net/p/jstraining","不详"]
["https://oschina.net/p/jitsi-meet","不详"]
["https://oschina.net/p/phpunit","不详"]
["https://oschina.net/p/phoenix","不详"]
["https://oschina.net/p/HarmonyOS","国产"]
["https://oschina.net/p/redoc","不详"]
["https://oschina.net/p/MonitorControl","不详"]
["https://oschina.net/p/skrollr","不详"]
["https://oschina.net/p/lapce","不详"]
["https://oschina.net/p/Rocket","不详"]
["https://oschina.net/p/SwitchyOmega","不详"]
["https://oschina.net/p/dgraph","不详"]
["https://oschina.net/p/wenyan","不详"]
["https://oschina.net/p/fasthttp","不详"]
["https://oschina.net/p/learn-go-with-tests","不详"]
["https://oschina.net/p/source-code-pro","不详"]
["https://oschina.net/p/Babylon.js","不详"]
["https://oschina.net/p/web-starter-kit","不详"]
["https://oschina.net/p/pytorch-CycleGAN-and-pix2pix","不详"]
["https://oschina.net/p/Tasmota","不详"]
["https://oschina.net/p/labelImg","不详"]
["https://oschina.net/p/yup","不详"]
["https://oschina.net/p/ScreenToGif","不详"]
["https://oschina.net/p/Mock","不详"]
["https://oschina.net/p/solidity","不详"]
["https://oschina.net/p/NativeBase","不详"]
["https://oschina.net/p/picasso","不详"]
["https://oschina.net/p/awesome-compose","不详"]
["https://oschina.net/p/PhotoView","不详"]
["https://oschina.net/p/fyne","不详"]
["https://oschina.net/p/zstd","不详"]
["https://oschina.net/p/90DaysOfDevOps","不详"]
["https://oschina.net/p/Proton","不详"]
["https://oschina.net/p/chinese-independent-developer","不详"]
["https://oschina.net/p/PicGo","国产"]
["https://oschina.net/p/reinforcement-learning","不详"]
["https://oschina.net/p/lowdb","不详"]
["https://oschina.net/p/svgo","不详"]
["https://oschina.net/p/react-dnd","不详"]
["https://oschina.net/p/v2ray-core","不详"]
["https://oschina.net/p/neural-style","不详"]
["https://oschina.net/p/typescript-book","不详"]
["https://oschina.net/p/wekan","不详"]
["https://oschina.net/p/CodeIgniter","不详"]
["https://oschina.net/p/egg","国产"]
["https://oschina.net/p/rxdb","不详"]
["https://oschina.net/p/restic","不详"]
["https://oschina.net/p/core","不详"]
["https://oschina.net/p/p5.js","不详"]
["https://oschina.net/p/apollo-client","不详"]
["https://oschina.net/p/websocket","不详"]
["https://oschina.net/p/k9s","不详"]
["https://oschina.net/p/faiss","不详"]
["https://oschina.net/p/SwitchHosts","国产"]
["https://oschina.net/p/cookiecutter","不详"]
["https://oschina.net/p/pydata-book","不详"]
["https://oschina.net/p/Masonry","不详"]
["https://oschina.net/p/penpot","不详"]
["https://oschina.net/p/awesome-spider","不详"]
["https://oschina.net/p/FizzBuzzEnterpriseEdition","不详"]
["https://oschina.net/p/shields","不详"]
["https://oschina.net/p/trilium","不详"]
["https://oschina.net/p/Vue.Draggable","不详"]
["https://oschina.net/p/weex","国产"]
["https://oschina.net/p/CS-Interview-Knowledge-Map","不详"]
["https://oschina.net/p/jsdom","不详"]
["https://oschina.net/p/Awesome-Linux-Software","不详"]
["https://oschina.net/p/magenta","不详"]
["https://oschina.net/p/API-Security-Checklist","不详"]
["https://oschina.net/p/vscodium","不详"]
["https://oschina.net/p/kibana","不详"]
["https://oschina.net/p/crystal","不详"]
["https://oschina.net/p/zig","不详"]
["https://oschina.net/p/winget-cli","不详"]
["https://oschina.net/p/corefx","不详"]
["https://oschina.net/p/colly","不详"]
["https://oschina.net/p/GSYVideoPlayer","国产"]
["https://oschina.net/p/functional-programming-jargon","不详"]
["https://oschina.net/p/directus","不详"]
["https://oschina.net/p/mybatis-3","不详"]
["https://oschina.net/p/responsively-app","不详"]
["https://oschina.net/p/pdf","不详"]
["https://oschina.net/p/testify","不详"]
["https://oschina.net/p/tokio","不详"]
["https://oschina.net/p/Recoil","不详"]
["https://oschina.net/p/leetcode","不详"]
["https://oschina.net/p/nerdtree","不详"]
["https://oschina.net/p/mojs","不详"]
["https://oschina.net/p/advanced-go-programming-book","国产"]
["https://oschina.net/p/uikit","不详"]
["https://oschina.net/p/expo","不详"]
["https://oschina.net/p/Micro8","不详"]
["https://oschina.net/p/vux","国产"]
["https://oschina.net/p/ZeroNet","不详"]
["https://oschina.net/p/fingerprintjs","不详"]
["https://oschina.net/p/flexbox-layout","不详"]
["https://oschina.net/p/shap","不详"]
["https://oschina.net/p/swoole-src","不详"]
["https://oschina.net/p/cool-retro-term","不详"]
["https://oschina.net/p/You-Dont-Need-JavaScript","不详"]
["https://oschina.net/p/graal","不详"]
["https://oschina.net/p/rough","不详"]
["https://oschina.net/p/squoosh","不详"]
["https://oschina.net/p/.tmux","不详"]
["https://oschina.net/p/cleave.js","不详"]
["https://oschina.net/p/toml","不详"]
["https://oschina.net/p/react-developer-roadmap","不详"]
["https://oschina.net/p/spaceship-prompt","不详"]
["https://oschina.net/p/FlutterExampleApps","不详"]
["https://oschina.net/p/mux","国产"]
["https://oschina.net/p/mysql","不详"]
["https://oschina.net/p/hhvm","不详"]
["https://oschina.net/p/theia","国产"]
["https://oschina.net/p/core-js","不详"]
["https://oschina.net/p/npm","不详"]
["https://oschina.net/p/dash","不详"]
["https://oschina.net/p/litemall","不详"]
["https://oschina.net/p/RevokeMsgPatcher","不详"]
["https://oschina.net/p/PlotNeuralNet","不详"]
["https://oschina.net/p/flux","不详"]
["https://oschina.net/p/awesome-design-patterns","不详"]
["https://oschina.net/p/Microsoft-Activation-Scripts","不详"]
["https://oschina.net/p/redux-thunk","不详"]
["https://oschina.net/p/HikariCP","不详"]
["https://oschina.net/p/ice","不详"]
["https://oschina.net/p/Awesome-CV","不详"]
["https://oschina.net/p/relay","不详"]
["https://oschina.net/p/qBittorrent","不详"]
["https://oschina.net/p/pytorch-handbook","不详"]
["https://oschina.net/p/element-plus","国产"]
["https://oschina.net/p/BoostNote-Legacy","不详"]
["https://oschina.net/p/monica","国产"]
["https://oschina.net/p/CNTK","不详"]
["https://oschina.net/p/cat","不详"]
["https://oschina.net/p/filebrowser","不详"]
["https://oschina.net/p/velocity","不详"]
["https://oschina.net/p/ant-design-vue","国产"]
["https://oschina.net/p/gotty","不详"]
["https://oschina.net/p/fks","不详"]
["https://oschina.net/p/athena","国产"]
["https://oschina.net/p/learnopencv","不详"]
["https://oschina.net/p/vue-admin-template","国产"]
["https://oschina.net/p/notepad-plus-plus","不详"]
["https://oschina.net/p/maui","不详"]
["https://oschina.net/p/zap","不详"]
["https://oschina.net/p/sqlitebrowser","不详"]
["https://oschina.net/p/handsontable","不详"]
["https://oschina.net/p/react-testing-library","不详"]
["https://oschina.net/p/awesome-computer-vision","不详"]
["https://oschina.net/p/trix","不详"]
["https://oschina.net/p/MagicMirror","不详"]
["https://oschina.net/p/saleor","不详"]
["https://oschina.net/p/logseq","不详"]
["https://oschina.net/p/radare2","不详"]
["https://oschina.net/p/react-native-guide","不详"]
["https://oschina.net/p/livewire","不详"]
["https://oschina.net/p/headlessui","不详"]
["https://oschina.net/p/awesome-pentest","不详"]
["https://oschina.net/p/SpringCloudLearning","不详"]
["https://oschina.net/p/framework7","不详"]
["https://oschina.net/p/awesome-dotnet-core","不详"]
["https://oschina.net/p/Inquirer.js","不详"]
["https://oschina.net/p/quick-look-plugins","不详"]
["https://oschina.net/p/fresco","不详"]
["https://oschina.net/p/grpc-go","不详"]
["https://oschina.net/p/awesome-blockchain-cn","不详"]
["https://oschina.net/p/matomo","不详"]
["https://oschina.net/p/less.js","不详"]
["https://oschina.net/p/dropzone","不详"]
["https://oschina.net/p/n","不详"]
["https://oschina.net/p/vcpkg","不详"]
["https://oschina.net/p/v2ray","不详"]
["https://oschina.net/p/jellyfin","不详"]
["https://oschina.net/p/GitHubDaily","不详"]
["https://oschina.net/p/vim-airline","不详"]
["https://oschina.net/p/jquery-pjax","不详"]
["https://oschina.net/p/Android-Universal-Image-Loader","不详"]
["https://oschina.net/p/prisma1","不详"]
["https://oschina.net/p/handlebars.js","不详"]
["https://oschina.net/p/MS-DOS","不详"]
["https://oschina.net/p/Gooey","不详"]
["https://oschina.net/p/heroicons","不详"]
["https://oschina.net/p/bokeh","不详"]
["https://oschina.net/p/outline","不详"]
["https://oschina.net/p/material","不详"]
["https://oschina.net/p/awesome-tensorflow","不详"]
["https://oschina.net/p/OpenBBTerminal","不详"]
["https://oschina.net/p/WordPress","不详"]
["https://oschina.net/p/statsd","不详"]
["https://oschina.net/p/v2rayNG","不详"]
["https://oschina.net/p/tfjs","不详"]
["https://oschina.net/p/ClashForAndroid","不详"]
["https://oschina.net/p/tiptap","不详"]
["https://oschina.net/p/SwiftLint","不详"]
["https://oschina.net/p/hosts","不详"]
["https://oschina.net/p/react-helmet","不详"]
["https://oschina.net/p/vim-fugitive","不详"]
["https://oschina.net/p/tinker","国产"]
["https://oschina.net/p/diem","不详"]
["https://oschina.net/p/mint-ui","国产"]
["https://oschina.net/p/knex","不详"]
["https://oschina.net/p/cocos2d-x","国产"]
["https://oschina.net/p/gun","不详"]
["https://oschina.net/p/sanic","不详"]
["https://oschina.net/p/grapesjs","不详"]
["https://oschina.net/p/zulip","不详"]
["https://oschina.net/p/semantic-release","不详"]
["https://oschina.net/p/OnJava8","不详"]
["https://oschina.net/p/roslyn","不详"]
["https://oschina.net/p/lazysizes","不详"]
["https://oschina.net/p/trojan","不详"]
["https://oschina.net/p/node-lessons","国产"]
["https://oschina.net/p/typeahead.js","不详"]
["https://oschina.net/p/UnblockNeteaseMusic","国产"]
["https://oschina.net/p/react-loadable","不详"]
["https://oschina.net/p/mars","国产"]
["https://oschina.net/p/nginx-proxy","不详"]
["https://oschina.net/p/react-grid-layout","不详"]
["https://oschina.net/p/wechat-app-mall","不详"]
["https://oschina.net/p/material-components-web","不详"]
["https://oschina.net/p/leetcode","不详"]
["https://oschina.net/p/websocketd","不详"]
["https://oschina.net/p/PythonRobotics","不详"]
["https://oschina.net/p/draggable","不详"]
["https://oschina.net/p/zheng","不详"]
["https://oschina.net/p/ionicons","不详"]
["https://oschina.net/p/open-source-cs","不详"]
["https://oschina.net/p/xbar","不详"]
["https://oschina.net/p/css-modules","不详"]
["https://oschina.net/p/Scoop","不详"]
["https://oschina.net/p/CnC_Remastered_Collection","不详"]
["https://oschina.net/p/ethereumbook","不详"]
["https://oschina.net/p/neofetch","不详"]
["https://oschina.net/p/proxy_pool","国产"]
["https://oschina.net/p/plugins","不详"]
["https://oschina.net/p/hubot","不详"]
["https://oschina.net/p/vant-weapp","国产"]
["https://oschina.net/p/30-Days-Of-React","不详"]
["https://oschina.net/p/kuboard-press","不详"]
["https://oschina.net/p/plaid","不详"]
["https://oschina.net/p/coffeescript","不详"]
["https://oschina.net/p/termux-app","不详"]
["https://oschina.net/p/jina","不详"]
["https://oschina.net/p/TensorFlow-Course","不详"]
["https://oschina.net/p/Data-Science-For-Beginners","不详"]
["https://oschina.net/p/iview-admin","国产"]
["https://oschina.net/p/goreplay","不详"]
["https://oschina.net/p/matplotlib","不详"]
["https://oschina.net/p/reddit","不详"]
["https://oschina.net/p/fastbook","不详"]
["https://oschina.net/p/kitty","不详"]
["https://oschina.net/p/llvm-project","不详"]
["https://oschina.net/p/sunflower","不详"]
["https://oschina.net/p/web3.js","不详"]
["https://oschina.net/p/superagent","不详"]
["https://oschina.net/p/jsoncrack.com","不详"]
["https://oschina.net/p/motion","不详"]
["https://oschina.net/p/react-native-vector-icons","不详"]
["https://oschina.net/p/download","不详"]
["https://oschina.net/p/simdjson","不详"]
["https://oschina.net/p/dotenv","不详"]
["https://oschina.net/p/lihang-code","不详"]
["https://oschina.net/p/mimikatz","不详"]
["https://oschina.net/p/dva","国产"]
["https://oschina.net/p/ruby-style-guide","不详"]
["https://oschina.net/p/Mindustry","不详"]
["https://oschina.net/p/ILSpy","不详"]
["https://oschina.net/p/luigi","不详"]
["https://oschina.net/p/react-demos","不详"]
["https://oschina.net/p/proposals","不详"]
["https://oschina.net/p/java8-tutorial","不详"]
["https://oschina.net/p/MBProgressHUD","不详"]
["https://oschina.net/p/anko","不详"]
["https://oschina.net/p/EasyOCR","国产"]
["https://oschina.net/p/Carbon","不详"]
["https://oschina.net/p/deep-learning-with-python-notebooks","不详"]
["https://oschina.net/p/parallax","不详"]
["https://oschina.net/p/visx","不详"]
["https://oschina.net/p/Cloudreve","国产"]
["https://oschina.net/p/classnames","不详"]
["https://oschina.net/p/diff-so-fancy","不详"]
["https://oschina.net/p/Best-App","不详"]
["https://oschina.net/p/nndl.github.io","不详"]
["https://oschina.net/p/git-extras","不详"]
["https://oschina.net/p/bit","不详"]
["https://oschina.net/p/desktop","不详"]
["https://oschina.net/p/KaTeX","不详"]
["https://oschina.net/p/openvpn-install","不详"]
["https://oschina.net/p/vue-manage-system","不详"]
["https://oschina.net/p/data","不详"]
["https://oschina.net/p/hexo-theme-next","不详"]
["https://oschina.net/p/ddia","不详"]
["https://oschina.net/p/Functional-Light-JS","不详"]
["https://oschina.net/p/IQKeyboardManager","不详"]
["https://oschina.net/p/masonry","不详"]
["https://oschina.net/p/better-scroll","不详"]
["https://oschina.net/p/interview","不详"]
["https://oschina.net/p/dotfiles","不详"]
["https://oschina.net/p/fonts","不详"]
["https://oschina.net/p/SwiftGuide","不详"]
["https://oschina.net/p/ToolsOfTheTrade","不详"]
["https://oschina.net/p/spdlog","不详"]
["https://oschina.net/p/netlify-cms","不详"]
["https://oschina.net/p/Best-Flutter-UI-Templates","不详"]
["https://oschina.net/p/Become-A-Full-Stack-Web-Developer","不详"]
["https://oschina.net/p/node-jsonwebtoken","不详"]
["https://oschina.net/p/pytorch_geometric","不详"]
["https://oschina.net/p/best-resume-ever","不详"]
["https://oschina.net/p/howto-make-more-money","不详"]
["https://oschina.net/p/30-seconds-of-css","不详"]
["https://oschina.net/p/asdf","不详"]
["https://oschina.net/p/PHP-Parser","不详"]
["https://oschina.net/p/BullshitGenerator","不详"]
["https://oschina.net/p/Kap","不详"]
["https://oschina.net/p/medium-editor","不详"]
["https://oschina.net/p/v86","不详"]
["https://oschina.net/p/UTM","国产"]
["https://oschina.net/p/ncnn","国产"]
["https://oschina.net/p/data-science","不详"]
["https://oschina.net/p/Catch2","不详"]
["https://oschina.net/p/AR.js","不详"]
["https://oschina.net/p/bcc","不详"]
["https://oschina.net/p/gpt-2","不详"]
["https://oschina.net/p/pyspider","不详"]
["https://oschina.net/p/appium","不详"]
["https://oschina.net/p/yoga","不详"]
["https://oschina.net/p/node-redis","不详"]
["https://oschina.net/p/inferno","不详"]
["https://oschina.net/p/mustache.js","不详"]
["https://oschina.net/p/ipython","不详"]
["https://oschina.net/p/realm-swift","不详"]
["https://oschina.net/p/Dive-into-DL-PyTorch","不详"]
["https://oschina.net/p/redis","不详"]
["https://oschina.net/p/pace","不详"]
["https://oschina.net/p/emotion","不详"]
["https://oschina.net/p/seaweedfs","国产"]
["https://oschina.net/p/hashcat","不详"]
["https://oschina.net/p/zsh-syntax-highlighting","不详"]
["https://oschina.net/p/iced","不详"]
["https://oschina.net/p/zipline","不详"]
["https://oschina.net/p/DeOldify","不详"]
["https://oschina.net/p/fullcalendar","不详"]
["https://oschina.net/p/charts","不详"]
["https://oschina.net/p/LeetcodeTop","不详"]
["https://oschina.net/p/jasmine","不详"]
["https://oschina.net/p/30-Days-Of-Python","不详"]
["https://oschina.net/p/awesome-dotnet","不详"]
["https://oschina.net/p/pwc","不详"]
["https://oschina.net/p/TeachYourselfCS-CN","不详"]
["https://oschina.net/p/Avalonia","不详"]
["https://oschina.net/p/spf13-vim","不详"]
["https://oschina.net/p/Dapper","不详"]
["https://oschina.net/p/lectures","不详"]
["https://oschina.net/p/lottie-react-native","不详"]
["https://oschina.net/p/node-red","不详"]
["https://oschina.net/p/golang-developer-roadmap","不详"]
["https://oschina.net/p/fmt","不详"]
["https://oschina.net/p/You-Dont-Need-Lodash-Underscore","不详"]
["https://oschina.net/p/Anime4K","不详"]
["https://oschina.net/p/ungoogled-chromium","不详"]
["https://oschina.net/p/actix-web","不详"]
["https://oschina.net/p/deeplearning-models","不详"]
["https://oschina.net/p/python-spider","不详"]
["https://oschina.net/p/solarized","不详"]
["https://oschina.net/p/Karabiner-Elements","不详"]
["https://oschina.net/p/spellbook-of-modern-webdev","不详"]
["https://oschina.net/p/lime","不详"]
["https://oschina.net/p/game-programmer","不详"]
["https://oschina.net/p/fx","国产"]
["https://oschina.net/p/delta","不详"]
["https://oschina.net/p/pouchdb","不详"]
["https://oschina.net/p/learngo","不详"]
["https://oschina.net/p/PySnooper","不详"]
["https://oschina.net/p/nvidia-docker","不详"]
["https://oschina.net/p/Front-End-Performance-Checklist","不详"]
["https://oschina.net/p/flatpickr","不详"]
["https://oschina.net/p/Android-CleanArchitecture","不详"]
["https://oschina.net/p/SpringBoot-Labs","不详"]
["https://oschina.net/p/disruptor","不详"]
["https://oschina.net/p/goaccess","不详"]
["https://oschina.net/p/interview_python","不详"]
["https://oschina.net/p/tui.editor","不详"]
["https://oschina.net/p/micropython","不详"]
["https://oschina.net/p/Real-ESRGAN","不详"]
["https://oschina.net/p/N-blog","不详"]
["https://oschina.net/p/avatarify-python","不详"]
["https://oschina.net/p/docker-slim","不详"]
["https://oschina.net/p/doomemacs","不详"]
["https://oschina.net/p/Hack","不详"]
["https://oschina.net/p/bubbletea","不详"]
["https://oschina.net/p/budibase","不详"]
["https://oschina.net/p/magic-wormhole","不详"]
["https://oschina.net/p/deeplearning_ai_books","不详"]
["https://oschina.net/p/style2paints","国产"]
["https://oschina.net/p/Windows10Debloater","不详"]
["https://oschina.net/p/browsh","不详"]
["https://oschina.net/p/springboot-learning-example","不详"]
["https://oschina.net/p/electron-vue","不详"]
["https://oschina.net/p/kivy","不详"]
["https://oschina.net/p/d2l-en","不详"]
["https://oschina.net/p/HowToBeAProgrammer","不详"]
["https://oschina.net/p/bower","不详"]
["https://oschina.net/p/nodemailer","不详"]
["https://oschina.net/p/vConsole","国产"]
["https://oschina.net/p/MMKV","国产"]
["https://oschina.net/p/sweetalert2","不详"]
["https://oschina.net/p/mkdocs","不详"]
["https://oschina.net/p/darkreader","不详"]
["https://oschina.net/p/plotly.js","不详"]
["https://oschina.net/p/CodeEdit","不详"]
["https://oschina.net/p/react-native-windows","不详"]
["https://oschina.net/p/prophet","不详"]
["https://oschina.net/p/zepto","不详"]
["https://oschina.net/p/nnn","不详"]
["https://oschina.net/p/modern-cpp-features","不详"]
["https://oschina.net/p/q","不详"]
["https://oschina.net/p/Flat-UI","不详"]
["https://oschina.net/p/GSAP","不详"]
["https://oschina.net/p/vim-go","不详"]
["https://oschina.net/p/blessed-contrib","不详"]
["https://oschina.net/p/react-sketchapp","不详"]
["https://oschina.net/p/redwood","不详"]
["https://oschina.net/p/Apktool","不详"]
["https://oschina.net/p/rasa","不详"]
["https://oschina.net/p/amphtml","不详"]
["https://oschina.net/p/Anime-Girls-Holding-Programming-Books","不详"]
["https://oschina.net/p/mantine","不详"]
["https://oschina.net/p/localtunnel","国产"]
["https://oschina.net/p/ultimate-go","不详"]
["https://oschina.net/p/Fuse","不详"]
["https://oschina.net/p/recompose","不详"]
["https://oschina.net/p/swagger-codegen","国产"]
["https://oschina.net/p/cloc","不详"]
["https://oschina.net/p/Bilibili-Evolved","国产"]
["https://oschina.net/p/faker","不详"]
["https://oschina.net/p/tinyrenderer","不详"]
["https://oschina.net/p/reverse-interview-zh","不详"]
["https://oschina.net/p/nx","不详"]
["https://oschina.net/p/SpringBoot-Learning","不详"]
["https://oschina.net/p/keystone-classic","不详"]
["https://oschina.net/p/riot","不详"]
["https://oschina.net/p/awesome-java-cn","不详"]
["https://oschina.net/p/twemoji","不详"]
["https://oschina.net/p/OSX-KVM","不详"]
["https://oschina.net/p/awesome-github-profile-readme","不详"]
["https://oschina.net/p/filament","不详"]
["https://oschina.net/p/z","不详"]
["https://oschina.net/p/Carthage","不详"]
["https://oschina.net/p/InstaPy","不详"]
["https://oschina.net/p/Iosevka","不详"]
["https://oschina.net/p/assemblyscript","不详"]
["https://oschina.net/p/TrackersListCollection","不详"]
["https://oschina.net/p/front-end-guide","不详"]
["https://oschina.net/p/pyscript","不详"]
["https://oschina.net/p/daisyui","不详"]
["https://oschina.net/p/aframe","不详"]
["https://oschina.net/p/wiki","不详"]
["https://oschina.net/p/awesome-python-login-model","不详"]
["https://oschina.net/p/vim-galore","不详"]
["https://oschina.net/p/gin-vue-admin","国产"]
["https://oschina.net/p/C","不详"]
["https://oschina.net/p/V2rayU","不详"]
["https://oschina.net/p/xbmc","不详"]
["https://oschina.net/p/A-to-Z-Resources-for-Students","不详"]
["https://oschina.net/p/ratchet","不详"]
["https://oschina.net/p/openface","不详"]
["https://oschina.net/p/httprouter","不详"]
["https://oschina.net/p/wangEditor","国产"]
["https://oschina.net/p/headless-recorder","不详"]
["https://oschina.net/p/charts","不详"]
["https://oschina.net/p/laravel-debugbar","不详"]
["https://oschina.net/p/ar-cutpaste","不详"]
["https://oschina.net/p/awesome-design-systems","不详"]
["https://oschina.net/p/bootstrap","不详"]
["https://oschina.net/p/CopyTranslator","国产"]
["https://oschina.net/p/inter","不详"]
["https://oschina.net/p/weui-wxss","国产"]
["https://oschina.net/p/rbenv","不详"]
["https://oschina.net/p/pocketbase","不详"]
["https://oschina.net/p/intellij-community","不详"]
["https://oschina.net/p/Arduino","不详"]
["https://oschina.net/p/learn-anything","不详"]
["https://oschina.net/p/vivus","不详"]
["https://oschina.net/p/mjml","不详"]
["https://oschina.net/p/prepack","不详"]
["https://oschina.net/p/cheatsheets-ai","不详"]
["https://oschina.net/p/elasticsearch-analysis-ik","不详"]
["https://oschina.net/p/awesome-cs-books","不详"]
["https://oschina.net/p/cayley","不详"]
["https://oschina.net/p/hey","不详"]
["https://oschina.net/p/authelia","不详"]
["https://oschina.net/p/CircleImageView","不详"]
["https://oschina.net/p/flash-linux0.11-talk","不详"]
["https://oschina.net/p/math-as-code","不详"]
["https://oschina.net/p/git-tips","不详"]
["https://oschina.net/p/spacedrive","不详"]
["https://oschina.net/p/git-recipes","不详"]
["https://oschina.net/p/OpenEmu","不详"]
["https://oschina.net/p/ignite","不详"]
["https://oschina.net/p/ArchiveBox","不详"]
["https://oschina.net/p/uWebSockets","不详"]
["https://oschina.net/p/markdown-it","不详"]
["https://oschina.net/p/parsedown","不详"]
["https://oschina.net/p/bulletproof-react","不详"]
["https://oschina.net/p/LightGBM","不详"]
["https://oschina.net/p/cz-cli","不详"]
["https://oschina.net/p/grpc-gateway","不详"]
["https://oschina.net/p/face-api.js","不详"]
["https://oschina.net/p/autojump","不详"]
["https://oschina.net/p/libphonenumber","不详"]
["https://oschina.net/p/jdk","不详"]
["https://oschina.net/p/browserify","不详"]
["https://oschina.net/p/Moya","不详"]
["https://oschina.net/p/kubo","不详"]
["https://oschina.net/p/simple-icons","不详"]
["https://oschina.net/p/datasets","不详"]
["https://oschina.net/p/sass","不详"]
["https://oschina.net/p/graphiql","不详"]
["https://oschina.net/p/dogecoin","不详"]
["https://oschina.net/p/Qv2ray","不详"]
["https://oschina.net/p/medusa","不详"]
["https://oschina.net/p/feathers","不详"]
["https://oschina.net/p/recommenders","不详"]
["https://oschina.net/p/redox","不详"]
["https://oschina.net/p/Administrative-divisions-of-China","不详"]
["https://oschina.net/p/vue-vben-admin","不详"]
["https://oschina.net/p/remotion","不详"]
["https://oschina.net/p/fluentui","不详"]
["https://oschina.net/p/bootstrap-vue","不详"]
["https://oschina.net/p/WebViewJavascriptBridge","不详"]
["https://oschina.net/p/Summer2023-Internships","不详"]
["https://oschina.net/p/driver.js","不详"]
["https://oschina.net/p/f8app","国产"]
["https://oschina.net/p/presto","不详"]
["https://oschina.net/p/koel","不详"]
["https://oschina.net/p/fabric","不详"]
["https://oschina.net/p/awesome-design","不详"]
["https://oschina.net/p/hapi","不详"]
["https://oschina.net/p/ScrollMagic","不详"]
["https://oschina.net/p/Spring","不详"]
["https://oschina.net/p/yii2","不详"]
["https://oschina.net/p/material-components-android","不详"]
["https://oschina.net/p/Qix","不详"]
["https://oschina.net/p/wtf","不详"]
["https://oschina.net/p/awesome-python-applications","不详"]
["https://oschina.net/p/ARouter","国产"]
["https://oschina.net/p/stanford-cs-229-machine-learning","不详"]
["https://oschina.net/p/docker-elk","不详"]
["https://oschina.net/p/PromiseKit","不详"]
["https://oschina.net/p/verdaccio","不详"]
["https://oschina.net/p/gpu.js","不详"]
["https://oschina.net/p/YYKit","国产"]
["https://oschina.net/p/cadvisor","不详"]
["https://oschina.net/p/Interview_Question_for_Beginner","不详"]
["https://oschina.net/p/mdx","不详"]
["https://oschina.net/p/automerge","不详"]
["https://oschina.net/p/textmate","不详"]
["https://oschina.net/p/graphql-spec","不详"]
["https://oschina.net/p/webpack-dashboard","不详"]
["https://oschina.net/p/distroless","不详"]
["https://oschina.net/p/scala","不详"]
["https://oschina.net/p/wechat_jump_game","不详"]
["https://oschina.net/p/Perfect","不详"]
["https://oschina.net/p/mypy","不详"]
["https://oschina.net/p/brave-browser","不详"]
["https://oschina.net/p/electronic-wechat","国产"]
["https://oschina.net/p/keepassxc","不详"]
["https://oschina.net/p/kubectx","不详"]
["https://oschina.net/p/CocoaPods","不详"]
["https://oschina.net/p/twint","不详"]
["https://oschina.net/p/milvus","国产"]
["https://oschina.net/p/books","不详"]
["https://oschina.net/p/Shadowrocket-ADBlock-Rules","不详"]
["https://oschina.net/p/store.js","不详"]
["https://oschina.net/p/cube.js","不详"]
["https://oschina.net/p/bootswatch","不详"]
["https://oschina.net/p/setup","不详"]
["https://oschina.net/p/iCSS","不详"]
["https://oschina.net/p/xterm.js","不详"]
["https://oschina.net/p/Marlin","不详"]
["https://oschina.net/p/QMUI_Android","不详"]
["https://oschina.net/p/timescaledb","不详"]
["https://oschina.net/p/Screenshot-to-code","不详"]
["https://oschina.net/p/3d-game-shaders-for-beginners","不详"]
["https://oschina.net/p/youmightnotneedjquery","不详"]
["https://oschina.net/p/jupyter","不详"]
["https://oschina.net/p/sonic","不详"]
["https://oschina.net/p/Design-Patterns-In-Swift","不详"]
["https://oschina.net/p/chatwoot","不详"]
["https://oschina.net/p/reactotron","不详"]
["https://oschina.net/p/matter-js","不详"]
["https://oschina.net/p/neural-networks-and-deep-learning","不详"]
["https://oschina.net/p/cal.com","不详"]
["https://oschina.net/p/VirtualXposed","不详"]
["https://oschina.net/p/awesome-nlp","不详"]
["https://oschina.net/p/algorithm-pattern","不详"]
["https://oschina.net/p/fmdb","不详"]
["https://oschina.net/p/swift-evolution","不详"]
["https://oschina.net/p/ui-router","不详"]
["https://oschina.net/p/textual","不详"]
["https://oschina.net/p/33-js-concepts","不详"]
["https://oschina.net/p/fabric","不详"]
["https://oschina.net/p/ToolJet","不详"]
["https://oschina.net/p/MJRefresh","不详"]
["https://oschina.net/p/forever","不详"]
["https://oschina.net/p/WSL","不详"]
["https://oschina.net/p/FlameGraph","不详"]
["https://oschina.net/p/ecma262","不详"]
["https://oschina.net/p/http-api-design","不详"]
["https://oschina.net/p/Nim","不详"]
["https://oschina.net/p/SuperTinyIcons","不详"]
["https://oschina.net/p/awesome-graphql","不详"]
["https://oschina.net/p/GNNPapers","不详"]
["https://oschina.net/p/openapi-generator","不详"]
["https://oschina.net/p/vanillawebprojects","不详"]
["https://oschina.net/p/trpc","不详"]
["https://oschina.net/p/Algorithms","不详"]
["https://oschina.net/p/Snap.svg","不详"]
["https://oschina.net/p/Material-Animations","不详"]
["https://oschina.net/p/gensim","不详"]
["https://oschina.net/p/truffle","不详"]
["https://oschina.net/p/ingress-nginx","不详"]
["https://oschina.net/p/samples","不详"]
["https://oschina.net/p/WebFundamentals","不详"]
["https://oschina.net/p/AirSim","不详"]
["https://oschina.net/p/infer","不详"]
["https://oschina.net/p/the-craft-of-selfteaching","不详"]
["https://oschina.net/p/powerline","不详"]
["https://oschina.net/p/wechaty","国产"]
["https://oschina.net/p/amazeui","国产"]
["https://oschina.net/p/react-native-maps","不详"]
["https://oschina.net/p/crypto-js","不详"]
["https://oschina.net/p/shelljs","不详"]
["https://oschina.net/p/AsyncDisplayKit","不详"]
["https://oschina.net/p/gsy_github_app_flutter","不详"]
["https://oschina.net/p/helix","不详"]
["https://oschina.net/p/nuklear","不详"]
["https://oschina.net/p/grav","不详"]
["https://oschina.net/p/deskreen","不详"]
["https://oschina.net/p/snapdrop","不详"]
["https://oschina.net/p/mithril.js","不详"]
["https://oschina.net/p/redux-devtools-extension","不详"]
["https://oschina.net/p/flexbugs","不详"]
["https://oschina.net/p/ctop","不详"]
["https://oschina.net/p/ml-agents","不详"]
["https://oschina.net/p/qiankun","不详"]
["https://oschina.net/p/spectacle","不详"]
["https://oschina.net/p/logger","国产"]
["https://oschina.net/p/Awesome-pytorch-list","不详"]
["https://oschina.net/p/design-blocks","不详"]
["https://oschina.net/p/qmk_firmware","不详"]
["https://oschina.net/p/formatjs","不详"]
["https://oschina.net/p/powerlevel9k","不详"]
["https://oschina.net/p/awesome-macOS","不详"]
["https://oschina.net/p/calibre","不详"]
["https://oschina.net/p/etherpad-lite","不详"]
["https://oschina.net/p/mui","国产"]
["https://oschina.net/p/onnx","不详"]
["https://oschina.net/p/wxpy","国产"]
["https://oschina.net/p/paper.js","不详"]
["https://oschina.net/p/flarum","不详"]
["https://oschina.net/p/Virgilio","不详"]
["https://oschina.net/p/zxcvbn","不详"]
["https://oschina.net/p/spotify-tui","不详"]
["https://oschina.net/p/mockito","不详"]
["https://oschina.net/p/umami","不详"]
["https://oschina.net/p/transfer.sh","不详"]
["https://oschina.net/p/DPlayer","国产"]
["https://oschina.net/p/loopback","不详"]
["https://oschina.net/p/bytecode-viewer","不详"]
["https://oschina.net/p/Mailspring","不详"]
["https://oschina.net/p/learn-python","不详"]
["https://oschina.net/p/brain.js","不详"]
["https://oschina.net/p/tomorrow-theme","不详"]
["https://oschina.net/p/Python","不详"]
["https://oschina.net/p/chromeless","不详"]
["https://oschina.net/p/FLEX","不详"]
["https://oschina.net/p/awesome-programming-books","不详"]
["https://oschina.net/p/compose-samples","不详"]
["https://oschina.net/p/Arduino","不详"]
["https://oschina.net/p/brook","不详"]
["https://oschina.net/p/Android-PickerView","国产"]
["https://oschina.net/p/bolt","不详"]
["https://oschina.net/p/nedb","不详"]
["https://oschina.net/p/jsdoc","不详"]
["https://oschina.net/p/send","不详"]
["https://oschina.net/p/vert.x","不详"]
["https://oschina.net/p/bash-it","不详"]
["https://oschina.net/p/cosmos","不详"]
["https://oschina.net/p/codelf","不详"]
["https://oschina.net/p/angular-seed","不详"]
["https://oschina.net/p/WeChatPlugin-MacOS","不详"]
["https://oschina.net/p/How-To-Secure-A-Linux-Server","不详"]
["https://oschina.net/p/diaspora","不详"]
["https://oschina.net/p/react-window","不详"]
["https://oschina.net/p/chromium","不详"]
["https://oschina.net/p/awesome-kubernetes","不详"]
["https://oschina.net/p/umi","国产"]
["https://oschina.net/p/deepdream","不详"]
["https://oschina.net/p/wasmer","不详"]
["https://oschina.net/p/annotated_deep_learning_paper_implementations","不详"]
["https://oschina.net/p/Luban","不详"]
["https://oschina.net/p/bull","不详"]
["https://oschina.net/p/luxon","不详"]
["https://oschina.net/p/antlr4","不详"]
["https://oschina.net/p/redux-devtools","不详"]
["https://oschina.net/p/git-history","不详"]
["https://oschina.net/p/dolt","不详"]
["https://oschina.net/p/dotnet","不详"]
["https://oschina.net/p/unlock-music","国产"]
["https://oschina.net/p/digital_video_introduction","不详"]
["https://oschina.net/p/loguru","不详"]
["https://oschina.net/p/AdGuardHome","不详"]
["https://oschina.net/p/create-react-native-app","不详"]
["https://oschina.net/p/GoBooks","不详"]
["https://oschina.net/p/core","不详"]
["https://oschina.net/p/prezto","不详"]
["https://oschina.net/p/difftastic","不详"]
["https://oschina.net/p/click","不详"]
["https://oschina.net/p/kcptun","不详"]
["https://oschina.net/p/dep","不详"]
["https://oschina.net/p/yabai","不详"]
["https://oschina.net/p/excelize","国产"]
["https://oschina.net/p/Back-End-Developer-Interview-Questions","不详"]
["https://oschina.net/p/searx","不详"]
["https://oschina.net/p/rubocop","不详"]
["https://oschina.net/p/learnVue","不详"]
["https://oschina.net/p/kaldi","不详"]
["https://oschina.net/p/webpack-bundle-analyzer","不详"]
["https://oschina.net/p/hls.js","不详"]
["https://oschina.net/p/react-dates","不详"]
["https://oschina.net/p/erpnext","不详"]
["https://oschina.net/p/tinymce","不详"]
["https://oschina.net/p/spree","不详"]
["https://oschina.net/p/Tone.js","不详"]
["https://oschina.net/p/PictureSelector","不详"]
["https://oschina.net/p/OI-wiki","不详"]
["https://oschina.net/p/Auto.js","不详"]
["https://oschina.net/p/YYeTsBot","不详"]
["https://oschina.net/p/react-native-gifted-chat","不详"]
["https://oschina.net/p/iCarousel","不详"]
["https://oschina.net/p/Material","不详"]
["https://oschina.net/p/vim-pathogen","不详"]
["https://oschina.net/p/wails","不详"]
["https://oschina.net/p/codesandbox-client","不详"]
["https://oschina.net/p/react-jsonschema-form","不详"]
["https://oschina.net/p/piggymetrics","不详"]
["https://oschina.net/p/sage","不详"]
["https://oschina.net/p/goquery","不详"]
["https://oschina.net/p/kubeflow","不详"]
["https://oschina.net/p/upptime","不详"]
["https://oschina.net/p/github-do-not-ban-us","不详"]
["https://oschina.net/p/Zappa","不详"]
["https://oschina.net/p/apexcharts.js","不详"]
["https://oschina.net/p/bettercap","不详"]
["https://oschina.net/p/qrcodejs","国产"]
["https://oschina.net/p/uuid","不详"]
["https://oschina.net/p/watchtower","不详"]
["https://oschina.net/p/OpenRA","不详"]
["https://oschina.net/p/reaction","不详"]
["https://oschina.net/p/ivideo","国产"]
["https://oschina.net/p/browser-sync","不详"]
["https://oschina.net/p/RxTool","不详"]
["https://oschina.net/p/evergreen","不详"]
["https://oschina.net/p/navi","不详"]
["https://oschina.net/p/lantern","国产"]
["https://oschina.net/p/next-auth","不详"]
["https://oschina.net/p/IT_book","不详"]
["https://oschina.net/p/smartknob","不详"]
["https://oschina.net/p/A-Programmers-Guide-to-English","不详"]
["https://oschina.net/p/hacker-laws-zh","不详"]
["https://oschina.net/p/reinforcement-learning-an-introduction","不详"]
["https://oschina.net/p/react-in-patterns","不详"]
["https://oschina.net/p/co","国产"]
["https://oschina.net/p/dataloader","不详"]
["https://oschina.net/p/efcore","不详"]
["https://oschina.net/p/nexe","不详"]
["https://oschina.net/p/pan-light","不详"]
["https://oschina.net/p/pell","不详"]
["https://oschina.net/p/tushare","国产"]
["https://oschina.net/p/karma","不详"]
["https://oschina.net/p/ZY-Player","不详"]
["https://oschina.net/p/kcp","国产"]
["https://oschina.net/p/d2-admin","不详"]
["https://oschina.net/p/deep-learning-for-image-processing","不详"]
["https://oschina.net/p/SwifterSwift","不详"]
["https://oschina.net/p/raspberry-pi-os","不详"]
["https://oschina.net/p/LightTable","不详"]
["https://oschina.net/p/marko","不详"]
["https://oschina.net/p/framework","不详"]
["https://oschina.net/p/ReLaXed","不详"]
["https://oschina.net/p/ent","不详"]
["https://oschina.net/p/nock","不详"]
["https://oschina.net/p/nsfw_data_scraper","不详"]
["https://oschina.net/p/groupcache","不详"]
["https://oschina.net/p/sinatra","不详"]
["https://oschina.net/p/py12306","不详"]
["https://oschina.net/p/homebrew-core","不详"]
["https://oschina.net/p/age","不详"]
["https://oschina.net/p/rpcs3","不详"]
["https://oschina.net/p/single-spa","不详"]
["https://oschina.net/p/dashboard","不详"]
["https://oschina.net/p/jd-gui","不详"]
["https://oschina.net/p/node-elm","不详"]
["https://oschina.net/p/compiler-explorer","不详"]
["https://oschina.net/p/paper-reading","不详"]
["https://oschina.net/p/python-machine-learning-book","不详"]
["https://oschina.net/p/ajv","不详"]
["https://oschina.net/p/xg2xg","不详"]
["https://oschina.net/p/Amethyst","不详"]
["https://oschina.net/p/best-of-ml-python","不详"]
["https://oschina.net/p/pure","不详"]
["https://oschina.net/p/tfjs-models","不详"]
["https://oschina.net/p/lexical","不详"]
["https://oschina.net/p/pybind11","不详"]
["https://oschina.net/p/awesome-zsh-plugins","不详"]
["https://oschina.net/p/networkx","不详"]
["https://oschina.net/p/neural-enhance","不详"]
["https://oschina.net/p/vit-pytorch","不详"]
["https://oschina.net/p/python-mini-projects","不详"]
["https://oschina.net/p/gpt-3","不详"]
["https://oschina.net/p/tinygo","不详"]
["https://oschina.net/p/VasSonic","国产"]
["https://oschina.net/p/beekeeper-studio","不详"]
["https://oschina.net/p/react-howto","不详"]
["https://oschina.net/p/tmuxinator","不详"]
["https://oschina.net/p/twemproxy","不详"]
["https://oschina.net/p/responsive-html-email-template","不详"]
["https://oschina.net/p/MaterialDrawer","不详"]
["https://oschina.net/p/DevToys","不详"]
["https://oschina.net/p/PhpSpreadsheet","不详"]
["https://oschina.net/p/pomelo","国产"]
["https://oschina.net/p/7days-golang","不详"]
["https://oschina.net/p/stimulus","不详"]
["https://oschina.net/p/discord.py","不详"]
["https://oschina.net/p/kkndme_tianya","不详"]
["https://oschina.net/p/postgraphile","不详"]
["https://oschina.net/p/Rust","不详"]
["https://oschina.net/p/skynet","国产"]
["https://oschina.net/p/Halfrost-Field","不详"]
["https://oschina.net/p/awesome-elixir","不详"]
["https://oschina.net/p/martini","不详"]
["https://oschina.net/p/walle-web","国产"]
["https://oschina.net/p/ColorUI","不详"]
["https://oschina.net/p/laradock","不详"]
["https://oschina.net/p/Eureka","不详"]
["https://oschina.net/p/nlp-tutorial","不详"]
["https://oschina.net/p/lombok","不详"]
["https://oschina.net/p/gopherjs","不详"]
["https://oschina.net/p/brotli","不详"]
["https://oschina.net/p/validator","不详"]
["https://oschina.net/p/reactos","不详"]
["https://oschina.net/p/guice","不详"]
["https://oschina.net/p/pix2code","不详"]
["https://oschina.net/p/PHPExcel","不详"]
["https://oschina.net/p/SkeletonView","不详"]
["https://oschina.net/p/manim","不详"]
["https://oschina.net/p/source-han-sans","不详"]
["https://oschina.net/p/docs","不详"]
["https://oschina.net/p/examples-of-web-crawlers","不详"]
["https://oschina.net/p/card","不详"]
["https://oschina.net/p/virtual-dom","不详"]
["https://oschina.net/p/Respond","不详"]
["https://oschina.net/p/oni","不详"]
["https://oschina.net/p/awesome-microservices","不详"]
["https://oschina.net/p/dlib","不详"]
["https://oschina.net/p/PHP-CS-Fixer","不详"]
["https://oschina.net/p/polybar","不详"]
["https://oschina.net/p/numpy-ml","不详"]
["https://oschina.net/p/awx","不详"]
["https://oschina.net/p/mailinabox","不详"]
["https://oschina.net/p/koreader","不详"]
["https://oschina.net/p/2048","不详"]
["https://oschina.net/p/mall-learning","不详"]
["https://oschina.net/p/micro","不详"]
["https://oschina.net/p/coreui-free-bootstrap-admin-template","不详"]
["https://oschina.net/p/awesome-github-vue","不详"]
["https://oschina.net/p/toastr","不详"]
["https://oschina.net/p/Slim","不详"]
["https://oschina.net/p/css","不详"]
["https://oschina.net/p/gron","不详"]
["https://oschina.net/p/G2","不详"]
["https://oschina.net/p/CycleGAN","不详"]
["https://oschina.net/p/bootstrap-table","国产"]
["https://oschina.net/p/30DaysofSwift","不详"]
["https://oschina.net/p/go","不详"]
["https://oschina.net/p/Mybatis-PageHelper","不详"]
["https://oschina.net/p/ioredis","国产"]
["https://oschina.net/p/phpstan","不详"]
["https://oschina.net/p/My-blog","不详"]
["https://oschina.net/p/JSPatch","国产"]
["https://oschina.net/p/eos","不详"]
["https://oschina.net/p/gruvbox","不详"]
["https://oschina.net/p/uCrop","不详"]
["https://oschina.net/p/MalwareSourceCode","不详"]
["https://oschina.net/p/badger","不详"]
["https://oschina.net/p/react-native-macos","不详"]
["https://oschina.net/p/realm-java","不详"]
["https://oschina.net/p/vim-surround","不详"]
["https://oschina.net/p/Mantle","不详"]
["https://oschina.net/p/simplefolio","不详"]
["https://oschina.net/p/rdpwrap","不详"]
["https://oschina.net/p/Spoon-Knife","不详"]
["https://oschina.net/p/kotlinx.coroutines","不详"]
["https://oschina.net/p/robotjs","不详"]
["https://oschina.net/p/awesome-laravel","不详"]
["https://oschina.net/p/opensource.guide","不详"]
["https://oschina.net/p/Magnific-Popup","不详"]
["https://oschina.net/p/blur-admin","不详"]
["https://oschina.net/p/stack-on-a-budget","不详"]
["https://oschina.net/p/awesome-bigdata","不详"]
["https://oschina.net/p/babel-handbook","不详"]
["https://oschina.net/p/syntastic","不详"]
["https://oschina.net/p/openage","不详"]
["https://oschina.net/p/tachyons","不详"]
["https://oschina.net/p/golangci-lint","不详"]
["https://oschina.net/p/react-pdf","不详"]
["https://oschina.net/p/mkdocs-material","不详"]
["https://oschina.net/p/spring-boot-admin","不详"]
["https://oschina.net/p/functions-samples","不详"]
["https://oschina.net/p/allennlp","不详"]
["https://oschina.net/p/libfacedetection","不详"]
["https://oschina.net/p/tig","不详"]
["https://oschina.net/p/browserslist","不详"]
["https://oschina.net/p/JSQMessagesViewController","不详"]
["https://oschina.net/p/pydantic","不详"]
["https://oschina.net/p/nightwatch","不详"]
["https://oschina.net/p/netbox","不详"]
["https://oschina.net/p/keeweb","不详"]
["https://oschina.net/p/mousetrap","不详"]
["https://oschina.net/p/ds-cheatsheets","不详"]
["https://oschina.net/p/leon","不详"]
["https://oschina.net/p/secguide","不详"]
["https://oschina.net/p/typesense","不详"]
["https://oschina.net/p/CleanArchitecture","不详"]
["https://oschina.net/p/httpbin","不详"]
["https://oschina.net/p/ai-edu","不详"]
["https://oschina.net/p/beets","不详"]
["https://oschina.net/p/interact.js","不详"]
["https://oschina.net/p/sway","不详"]
["https://oschina.net/p/androidannotations","不详"]
["https://oschina.net/p/watchman","不详"]
["https://oschina.net/p/rqlite","不详"]
["https://oschina.net/p/voyager","不详"]
["https://oschina.net/p/SlidingMenu","不详"]
["https://oschina.net/p/pelican","不详"]
["https://oschina.net/p/whistle","不详"]
["https://oschina.net/p/gjson","不详"]
["https://oschina.net/p/mosh","不详"]
["https://oschina.net/p/cropperjs","不详"]
["https://oschina.net/p/recyclerview-animators","不详"]
["https://oschina.net/p/wifiphisher","不详"]
["https://oschina.net/p/raphael","不详"]
["https://oschina.net/p/clean-code-php","不详"]
["https://oschina.net/p/IoT-For-Beginners","不详"]
["https://oschina.net/p/Polly","不详"]
["https://oschina.net/p/awesome-podcasts","不详"]
["https://oschina.net/p/explainshell","不详"]
["https://oschina.net/p/TimLiu-iOS","不详"]
["https://oschina.net/p/nltk","不详"]
["https://oschina.net/p/jquery-ui","不详"]
["https://oschina.net/p/Go","不详"]
["https://oschina.net/p/stencil","不详"]
["https://oschina.net/p/spectre","不详"]
["https://oschina.net/p/whisper","不详"]
["https://oschina.net/p/Laravel-Excel","不详"]
["https://oschina.net/p/dive-into-machine-learning","不详"]
["https://oschina.net/p/workbox","不详"]
["https://oschina.net/p/dashing","不详"]
["https://oschina.net/p/PermissionsDispatcher","不详"]
["https://oschina.net/p/CMAK","不详"]
["https://oschina.net/p/medis","国产"]
["https://oschina.net/p/color-thief","不详"]
["https://oschina.net/p/material-theme","不详"]
["https://oschina.net/p/firefox-ios","不详"]
["https://oschina.net/p/blurhash","不详"]
["https://oschina.net/p/leanote","不详"]
["https://oschina.net/p/dio","不详"]
["https://oschina.net/p/PeerTube","不详"]
["https://oschina.net/p/react-devtools","不详"]
["https://oschina.net/p/design","不详"]
["https://oschina.net/p/animated-tab-bar","不详"]
["https://oschina.net/p/abseil-cpp","不详"]
["https://oschina.net/p/Vim","不详"]
["https://oschina.net/p/Effeckt.css","不详"]
["https://oschina.net/p/TypeScript-React-Starter","不详"]
["https://oschina.net/p/dashboards","不详"]
["https://oschina.net/p/awesome-stock-resources","不详"]
["https://oschina.net/p/AspNetCore.Docs","不详"]
["https://oschina.net/p/stylus","不详"]
["https://oschina.net/p/vue-hackernews-2.0","不详"]
["https://oschina.net/p/awesome-ios-ui","不详"]
["https://oschina.net/p/lint-staged","不详"]
["https://oschina.net/p/source-code-hunter","不详"]
["https://oschina.net/p/char-rnn","不详"]
["https://oschina.net/p/labs","不详"]
["https://oschina.net/p/bash-guide","不详"]
["https://oschina.net/p/OpenRCT2","不详"]
["https://oschina.net/p/react-color","不详"]
["https://oschina.net/p/Cookbook","不详"]
["https://oschina.net/p/Grasscutter","不详"]
["https://oschina.net/p/Bringing-Old-Photos-Back-to-Life","不详"]
["https://oschina.net/p/albumentations","不详"]
["https://oschina.net/p/chia-blockchain","不详"]
["https://oschina.net/p/ts-node","不详"]
["https://oschina.net/p/proton-native","不详"]
["https://oschina.net/p/FastPhotoStyle","不详"]
["https://oschina.net/p/summernote","不详"]
["https://oschina.net/p/awesome-flask","不详"]
["https://oschina.net/p/WebRTC-Experiment","不详"]
["https://oschina.net/p/razzle","不详"]
["https://oschina.net/p/inflector","不详"]
["https://oschina.net/p/sops","不详"]
["https://oschina.net/p/MailHog","不详"]
["https://oschina.net/p/egui","不详"]
["https://oschina.net/p/headroom.js","不详"]
["https://oschina.net/p/MagicalRecord","不详"]
["https://oschina.net/p/HEU_KMS_Activator","不详"]
["https://oschina.net/p/HandBrake","不详"]
["https://oschina.net/p/deepmind-research","不详"]
["https://oschina.net/p/osu","不详"]
["https://oschina.net/p/gitleaks","不详"]
["https://oschina.net/p/mdx-deck","不详"]
["https://oschina.net/p/botkit","不详"]
["https://oschina.net/p/zhao","不详"]
["https://oschina.net/p/night","不详"]
["https://oschina.net/p/vlayout","国产"]
["https://oschina.net/p/frontend-challenges","不详"]
["https://oschina.net/p/list.js","不详"]
["https://oschina.net/p/EmailValidator","不详"]
["https://oschina.net/p/turicreate","不详"]
["https://oschina.net/p/redis-py","不详"]
["https://oschina.net/p/asciinema","不详"]
["https://oschina.net/p/deep_learning_object_detection","不详"]
["https://oschina.net/p/legado","不详"]
["https://oschina.net/p/october","不详"]
["https://oschina.net/p/downshift","不详"]
["https://oschina.net/p/raylib","不详"]
["https://oschina.net/p/terminals-are-sexy","不详"]
["https://oschina.net/p/fullstack-tutorial","不详"]
["https://oschina.net/p/gotraining","不详"]
["https://oschina.net/p/AngularJS-Learning","不详"]
["https://oschina.net/p/sampler","不详"]
["https://oschina.net/p/history.js","不详"]
["https://oschina.net/p/highcharts","不详"]
["https://oschina.net/p/leetcode","不详"]
["https://oschina.net/p/label-studio","不详"]
["https://oschina.net/p/TypeScript-Node-Starter","不详"]
["https://oschina.net/p/PapaParse","不详"]
["https://oschina.net/p/XSStrike","不详"]
["https://oschina.net/p/mdBook","不详"]
["https://oschina.net/p/clip-as-service","不详"]
["https://oschina.net/p/learn_python3_spider","不详"]
["https://oschina.net/p/ndb","不详"]
["https://oschina.net/p/chrome-extensions-samples","不详"]
["https://oschina.net/p/quarkus","不详"]
["https://oschina.net/p/til","不详"]
["https://oschina.net/p/Ciphey","不详"]
["https://oschina.net/p/awesome-aws","不详"]
["https://oschina.net/p/lexer","不详"]
["https://oschina.net/p/gitui","不详"]
["https://oschina.net/p/ruffle","不详"]
["https://oschina.net/p/30-seconds-of-interviews","不详"]
["https://oschina.net/p/FlycoTabLayout","国产"]
["https://oschina.net/p/PRML","不详"]
["https://oschina.net/p/laravel-permission","不详"]
["https://oschina.net/p/showdoc","不详"]
["https://oschina.net/p/git-lfs","不详"]
["https://oschina.net/p/goreleaser","不详"]
["https://oschina.net/p/isotope","不详"]
["https://oschina.net/p/frida","不详"]
["https://oschina.net/p/jedis","不详"]
["https://oschina.net/p/spectrum","不详"]
["https://oschina.net/p/node-postgres","不详"]
["https://oschina.net/p/from_coder_to_expert","不详"]
["https://oschina.net/p/naming-cheatsheet","不详"]
["https://oschina.net/p/ganhacks","不详"]
["https://oschina.net/p/blog_os","不详"]
["https://oschina.net/p/rust-course","不详"]
["https://oschina.net/p/server","国产"]
["https://oschina.net/p/LunarVim","不详"]
["https://oschina.net/p/instantiator","不详"]
["https://oschina.net/p/apachecn-algo-zh","不详"]
["https://oschina.net/p/pgcli","不详"]
["https://oschina.net/p/aspnetboilerplate","不详"]
["https://oschina.net/p/blockly","不详"]
["https://oschina.net/p/ChineseBQB","不详"]
["https://oschina.net/p/prism","不详"]
["https://oschina.net/p/peerjs","不详"]
["https://oschina.net/p/PySimpleGUI","不详"]
["https://oschina.net/p/android-async-http","不详"]
["https://oschina.net/p/jwt-auth","国产"]
["https://oschina.net/p/blessed","不详"]
["https://oschina.net/p/FileDownloader","不详"]
["https://oschina.net/p/cphalcon","不详"]
["https://oschina.net/p/frontend-bootcamp","不详"]
["https://oschina.net/p/ios-good-practices","不详"]
["https://oschina.net/p/kit","不详"]
["https://oschina.net/p/react-slick","不详"]
["https://oschina.net/p/rust-analyzer","不详"]
["https://oschina.net/p/_s","不详"]
["https://oschina.net/p/mycli","不详"]
["https://oschina.net/p/laravel-admin","不详"]
["https://oschina.net/p/distributions","不详"]
["https://oschina.net/p/deep-learning-drizzle","不详"]
["https://oschina.net/p/sql.js","不详"]
["https://oschina.net/p/shepherd","不详"]
["https://oschina.net/p/nebula","不详"]
["https://oschina.net/p/RAP","不详"]
["https://oschina.net/p/awesome-quant","不详"]
["https://oschina.net/p/playground","不详"]
["https://oschina.net/p/mit-deep-learning-book-pdf","不详"]
["https://oschina.net/p/mirai","不详"]
["https://oschina.net/p/android-training-course-in-chinese","不详"]
["https://oschina.net/p/fpm","不详"]
["https://oschina.net/p/fast-style-transfer","不详"]
["https://oschina.net/p/ant-design-mobile","国产"]
["https://oschina.net/p/interview","不详"]
["https://oschina.net/p/esp8266_deauther","不详"]
["https://oschina.net/p/snabbdom","不详"]
["https://oschina.net/p/gum","不详"]
["https://oschina.net/p/PENTESTING-BIBLE","不详"]
["https://oschina.net/p/openmct","不详"]
["https://oschina.net/p/grumpy","不详"]
["https://oschina.net/p/msw","不详"]
["https://oschina.net/p/hooks","不详"]
["https://oschina.net/p/ImmersionBar","不详"]
["https://oschina.net/p/routersploit","不详"]
["https://oschina.net/p/EIPs","不详"]
["https://oschina.net/p/openalpr","不详"]
["https://oschina.net/p/nivo","不详"]
["https://oschina.net/p/pyxel","不详"]
["https://oschina.net/p/webview","不详"]
["https://oschina.net/p/GitUp","不详"]
["https://oschina.net/p/node-restify","不详"]
["https://oschina.net/p/complete-javascript-course","不详"]
["https://oschina.net/p/react-styleguidist","不详"]
["https://oschina.net/p/daterangepicker","不详"]
["https://oschina.net/p/libsodium","不详"]
["https://oschina.net/p/nixpkgs","不详"]
["https://oschina.net/p/awesome-osint","不详"]
["https://oschina.net/p/git-secrets","不详"]
["https://oschina.net/p/data-engineer-roadmap","不详"]
["https://oschina.net/p/reactide","不详"]
["https://oschina.net/p/awesome-raspberry-pi","不详"]
["https://oschina.net/p/naive-ui","国产"]
["https://oschina.net/p/okhttp-OkGo","不详"]
["https://oschina.net/p/gh-ost","不详"]
["https://oschina.net/p/mindsdb","不详"]
["https://oschina.net/p/jwt-go","不详"]
["https://oschina.net/p/hyper","不详"]
["https://oschina.net/p/lvgl","不详"]
["https://oschina.net/p/examples","不详"]
["https://oschina.net/p/dvc","不详"]
["https://oschina.net/p/dgl","不详"]
["https://oschina.net/p/JiaoZiVideoPlayer","国产"]
["https://oschina.net/p/dev-sidecar","国产"]
["https://oschina.net/p/pdfmake","不详"]
["https://oschina.net/p/faker","不详"]
["https://oschina.net/p/debug","不详"]
["https://oschina.net/p/python3-cookbook","不详"]
["https://oschina.net/p/convnetjs","不详"]
["https://oschina.net/p/angular-starter","不详"]
["https://oschina.net/p/reactstrap","不详"]
["https://oschina.net/p/RxPermissions","不详"]
["https://oschina.net/p/ansible-examples","不详"]
["https://oschina.net/p/compromise","不详"]
["https://oschina.net/p/Java","不详"]
["https://oschina.net/p/dask","不详"]
["https://oschina.net/p/android-tech-frontier","不详"]
["https://oschina.net/p/waypoints","不详"]
["https://oschina.net/p/ktor","不详"]
["https://oschina.net/p/pytorch-book","不详"]
["https://oschina.net/p/react-native-firebase","不详"]
["https://oschina.net/p/mml-book.github.io","不详"]
["https://oschina.net/p/react-redux-starter-kit","不详"]
["https://oschina.net/p/annoy","不详"]
["https://oschina.net/p/libui","不详"]
["https://oschina.net/p/tippyjs","不详"]
["https://oschina.net/p/cron","国产"]
["https://oschina.net/p/overleaf","不详"]
["https://oschina.net/p/magictools","不详"]
["https://oschina.net/p/static-analysis","不详"]
["https://oschina.net/p/MaterialDesign","不详"]
["https://oschina.net/p/kubernetes-handbook","不详"]
["https://oschina.net/p/OpenDiablo2","不详"]
["https://oschina.net/p/material-dashboard","不详"]
["https://oschina.net/p/awesome-competitive-programming","不详"]
["https://oschina.net/p/os01","不详"]
["https://oschina.net/p/scipy","不详"]
["https://oschina.net/p/matrix","不详"]
["https://oschina.net/p/fashion-mnist","不详"]
["https://oschina.net/p/PEASS-ng","不详"]
["https://oschina.net/p/node-interview","不详"]
["https://oschina.net/p/darwin-xnu","不详"]
["https://oschina.net/p/Chinese-Word-Vectors","不详"]
["https://oschina.net/p/SteamTools","不详"]
["https://oschina.net/p/linguist","不详"]
["https://oschina.net/p/lua-nginx-module","不详"]
["https://oschina.net/p/html-webpack-plugin","不详"]
["https://oschina.net/p/magento2","不详"]
["https://oschina.net/p/mockery","不详"]
["https://oschina.net/p/CtCI-6th-Edition","不详"]
["https://oschina.net/p/sovereign","不详"]
["https://oschina.net/p/book","不详"]
["https://oschina.net/p/tutorials","不详"]
["https://oschina.net/p/jquery-validation","国产"]
["https://oschina.net/p/RestKit","不详"]
["https://oschina.net/p/knockout","不详"]
["https://oschina.net/p/google-webfonts-helper","不详"]
["https://oschina.net/p/jotai","不详"]
["https://oschina.net/p/dex2jar","国产"]
["https://oschina.net/p/deck.gl","不详"]
["https://oschina.net/p/qwik","不详"]
["https://oschina.net/p/SmarterStreaming","不详"]
["https://oschina.net/p/CS-Book","不详"]
["https://oschina.net/p/NVActivityIndicatorView","不详"]
["https://oschina.net/p/glow","不详"]
["https://oschina.net/p/react-sortable-hoc","不详"]
["https://oschina.net/p/runtime","不详"]
["https://oschina.net/p/AFFiNE","不详"]
["https://oschina.net/p/micro","不详"]
["https://oschina.net/p/ViewPagerIndicator","不详"]
["https://oschina.net/p/falcor","不详"]
["https://oschina.net/p/AppIntro","不详"]
["https://oschina.net/p/tui.calendar","不详"]
["https://oschina.net/p/community","不详"]
["https://oschina.net/p/google-api-nodejs-client","不详"]
["https://oschina.net/p/vue-storefront","不详"]
["https://oschina.net/p/webpack-howto","不详"]
["https://oschina.net/p/MVPArms","不详"]
["https://oschina.net/p/stanford-tensorflow-tutorials","不详"]
["https://oschina.net/p/Pillow","不详"]
["https://oschina.net/p/tsdx","不详"]
["https://oschina.net/p/OpenCorePkg","不详"]
["https://oschina.net/p/document-style-guide","不详"]
["https://oschina.net/p/chinese-independent-blogs","不详"]
["https://oschina.net/p/exceljs","不详"]
["https://oschina.net/p/FSCalendar","不详"]
["https://oschina.net/p/minimal-mistakes","不详"]
["https://oschina.net/p/Hitomi-Downloader","不详"]
["https://oschina.net/p/loaders.css","不详"]
["https://oschina.net/p/algorithm-base","不详"]
["https://oschina.net/p/sigma.js","不详"]
["https://oschina.net/p/cyclejs","不详"]
["https://oschina.net/p/multer","不详"]
["https://oschina.net/p/react-static","不详"]
["https://oschina.net/p/systemd","不详"]
["https://oschina.net/p/transferlearning","不详"]
["https://oschina.net/p/prefect","不详"]
["https://oschina.net/p/novu","不详"]
["https://oschina.net/p/h2o","不详"]
["https://oschina.net/p/vue-resource","不详"]
["https://oschina.net/p/awesome-cli-apps","不详"]
["https://oschina.net/p/pino","不详"]
["https://oschina.net/p/awesome-kotlin","不详"]
["https://oschina.net/p/return-youtube-dislike","不详"]
["https://oschina.net/p/wuzz","不详"]
["https://oschina.net/p/platform_frameworks_base","不详"]
["https://oschina.net/p/electron-api-demos","不详"]
["https://oschina.net/p/folding-cell","不详"]
["https://oschina.net/p/lime","不详"]
["https://oschina.net/p/BookStack","国产"]
["https://oschina.net/p/Mobile-Detect","不详"]
["https://oschina.net/p/lynis","不详"]
["https://oschina.net/p/mono","不详"]
["https://oschina.net/p/fancyss","不详"]
["https://oschina.net/p/how-web-works","不详"]
["https://oschina.net/p/muuri","不详"]
["https://oschina.net/p/learnxinyminutes-docs","不详"]
["https://oschina.net/p/workerman","国产"]
["https://oschina.net/p/nuclei","国产"]
["https://oschina.net/p/awesome-creative-coding","不详"]
["https://oschina.net/p/mall-admin-web","不详"]
["https://oschina.net/p/grpc-java","不详"]
["https://oschina.net/p/seafile","国产"]
["https://oschina.net/p/ungit","不详"]
["https://oschina.net/p/awesome-hyper","不详"]
["https://oschina.net/p/go-perfbook","不详"]
["https://oschina.net/p/webrtc","不详"]
["https://oschina.net/p/caire","不详"]
["https://oschina.net/p/support.996.ICU","不详"]
["https://oschina.net/p/yargs","不详"]
["https://oschina.net/p/leonsans","不详"]
["https://oschina.net/p/blog","不详"]
["https://oschina.net/p/electron-quick-start","不详"]
["https://oschina.net/p/awesome-deep-vision","不详"]
["https://oschina.net/p/tldraw","不详"]
["https://oschina.net/p/golang-open-source-projects","不详"]
["https://oschina.net/p/server-configs-nginx","不详"]
["https://oschina.net/p/otp","不详"]
["https://oschina.net/p/picturefill","不详"]
["https://oschina.net/p/upx","不详"]
["https://oschina.net/p/wifi-cracking","不详"]
["https://oschina.net/p/skyline","不详"]
["https://oschina.net/p/log","不详"]
["https://oschina.net/p/react-native-swiper","不详"]
["https://oschina.net/p/CLIP","不详"]
["https://oschina.net/p/linux-dash","不详"]
["https://oschina.net/p/cheat","不详"]
["https://oschina.net/p/CVPR2022-Paper-Code-Interpretation","不详"]
["https://oschina.net/p/vega","不详"]
["https://oschina.net/p/trianglify","不详"]
["https://oschina.net/p/synapse","不详"]
["https://oschina.net/p/Alcatraz","不详"]
["https://oschina.net/p/full-stack-fastapi-postgresql","不详"]
["https://oschina.net/p/wasmtime","不详"]
["https://oschina.net/p/barba","不详"]
["https://oschina.net/p/Command-line-text-processing","不详"]
["https://oschina.net/p/UITableView-FDTemplateLayoutCell","不详"]
["https://oschina.net/p/TranslucentTB","不详"]
["https://oschina.net/p/socket.io-client","不详"]
["https://oschina.net/p/ievms","不详"]
["https://oschina.net/p/awesome-lowcode","不详"]
["https://oschina.net/p/rofi","不详"]
["https://oschina.net/p/schedule","不详"]
["https://oschina.net/p/deep-photo-styletransfer","不详"]
["https://oschina.net/p/victory","不详"]
["https://oschina.net/p/duf","不详"]
["https://oschina.net/p/nodeppt","国产"]
["https://oschina.net/p/PowerSploit","不详"]
["https://oschina.net/p/stylelint","不详"]
["https://oschina.net/p/jsoneditor","不详"]
["https://oschina.net/p/dopamine","不详"]
["https://oschina.net/p/Detox","不详"]
["https://oschina.net/p/natural","不详"]
["https://oschina.net/p/easywechat","国产"]
["https://oschina.net/p/stylegan2","不详"]
["https://oschina.net/p/svg.js","不详"]
["https://oschina.net/p/500-AI-Machine-learning-Deep-learning-Computer-vision-NLP-Projects-with-code","不详"]
["https://oschina.net/p/zaproxy","不详"]
["https://oschina.net/p/gekko","不详"]
["https://oschina.net/p/a-picture-is-worth-a-1000-words","不详"]
["https://oschina.net/p/botpress","不详"]
["https://oschina.net/p/auto","不详"]
["https://oschina.net/p/yeoman","不详"]
["https://oschina.net/p/html5shiv","不详"]
["https://oschina.net/p/zeal","不详"]
["https://oschina.net/p/photon","不详"]
["https://oschina.net/p/purifycss","不详"]
["https://oschina.net/p/seaborn","不详"]
["https://oschina.net/p/Learning-SICP","不详"]
["https://oschina.net/p/bashtop","不详"]
["https://oschina.net/p/javapoet","不详"]
["https://oschina.net/p/vue2-happyfri","不详"]
["https://oschina.net/p/pock","不详"]
["https://oschina.net/p/liquid","不详"]
["https://oschina.net/p/readme-md-generator","不详"]
["https://oschina.net/p/migrate","不详"]
["https://oschina.net/p/hotel","不详"]
["https://oschina.net/p/CleanArchitecture","不详"]
["https://oschina.net/p/bullet3","不详"]
["https://oschina.net/p/neural-doodle","不详"]
["https://oschina.net/p/Xray-core","不详"]
["https://oschina.net/p/react-native-paper","不详"]
["https://oschina.net/p/detr","不详"]
["https://oschina.net/p/milligram","不详"]
["https://oschina.net/p/react-toastify","不详"]
["https://oschina.net/p/javascript-obfuscator","不详"]
["https://oschina.net/p/react-slingshot","不详"]
["https://oschina.net/p/spotify-downloader","不详"]
["https://oschina.net/p/jquery-mobile","不详"]
["https://oschina.net/p/cookiecutter-django","不详"]
["https://oschina.net/p/pollyjs","不详"]
["https://oschina.net/p/favicon-cheat-sheet","不详"]
["https://oschina.net/p/post-mortems","不详"]
["https://oschina.net/p/timber","不详"]
["https://oschina.net/p/faceai","不详"]
["https://oschina.net/p/vagas","不详"]
["https://oschina.net/p/jsoup","不详"]
["https://oschina.net/p/flowy","不详"]
["https://oschina.net/p/PNChart","不详"]
["https://oschina.net/p/alist","国产"]
["https://oschina.net/p/webpack","不详"]
["https://oschina.net/p/cas","不详"]
["https://oschina.net/p/Fragmentation","不详"]
["https://oschina.net/p/reason","不详"]
["https://oschina.net/p/rocky","不详"]
["https://oschina.net/p/hacker-roadmap","不详"]
["https://oschina.net/p/ant-design-vue-pro","不详"]
["https://oschina.net/p/PHP_CodeSniffer","不详"]
["https://oschina.net/p/impacket","不详"]
["https://oschina.net/p/DOMPurify","不详"]
["https://oschina.net/p/RxBinding","不详"]
["https://oschina.net/p/Atmosphere","不详"]
["https://oschina.net/p/ext-saladict","不详"]
["https://oschina.net/p/tree-sitter","不详"]
["https://oschina.net/p/WOW","不详"]
["https://oschina.net/p/glide-transformations","不详"]
["https://oschina.net/p/gost","不详"]
["https://oschina.net/p/comcast","不详"]
["https://oschina.net/p/turborepo","不详"]
["https://oschina.net/p/docker-mailserver","不详"]
["https://oschina.net/p/art-template","不详"]
["https://oschina.net/p/milewski-ctfp-pdf","不详"]
["https://oschina.net/p/vnote","国产"]
["https://oschina.net/p/howdoi","不详"]
["https://oschina.net/p/clojure","不详"]
["https://oschina.net/p/react-fiber-architecture","不详"]
["https://oschina.net/p/capybara","不详"]
["https://oschina.net/p/react-native-snap-carousel","不详"]
["https://oschina.net/p/Tailwind-Elements","不详"]
["https://oschina.net/p/onedev","不详"]
["https://oschina.net/p/Mos","不详"]
["https://oschina.net/p/N_m3u8DL-CLI","不详"]
["https://oschina.net/p/pandas-profiling","不详"]
["https://oschina.net/p/clap","不详"]
["https://oschina.net/p/vue-material","不详"]
["https://oschina.net/p/chinese-xinhua","不详"]
["https://oschina.net/p/cdnjs","不详"]
["https://oschina.net/p/AVLoadingIndicatorView","国产"]
["https://oschina.net/p/moviepy","不详"]
["https://oschina.net/p/sympy","不详"]
["https://oschina.net/p/hammerspoon","不详"]
["https://oschina.net/p/PaddleHub","国产"]
["https://oschina.net/p/android-Ultra-Pull-To-Refresh","国产"]
["https://oschina.net/p/qlib","不详"]
["https://oschina.net/p/glfw","不详"]
["https://oschina.net/p/bootstrap-select","不详"]
["https://oschina.net/p/bloc","不详"]
["https://oschina.net/p/Theano","不详"]
["https://oschina.net/p/vlc","不详"]
["https://oschina.net/p/Android-ObservableScrollView","不详"]
["https://oschina.net/p/q","不详"]
["https://oschina.net/p/renovate","不详"]
["https://oschina.net/p/Newtonsoft.Json","不详"]
["https://oschina.net/p/lets-chat","不详"]
["https://oschina.net/p/chineseocr_lite","国产"]
["https://oschina.net/p/direnv","不详"]
["https://oschina.net/p/eat_tensorflow2_in_30_days","不详"]
["https://oschina.net/p/pdf2htmlEX","国产"]
["https://oschina.net/p/grape","不详"]
["https://oschina.net/p/UnityCsReference","不详"]
["https://oschina.net/p/critical","不详"]
["https://oschina.net/p/partytown","不详"]
["https://oschina.net/p/react-native-debugger","不详"]
["https://oschina.net/p/awesome-tailwindcss","不详"]
["https://oschina.net/p/Lepton","不详"]
["https://oschina.net/p/react-native-camera","不详"]
["https://oschina.net/p/tflearn","不详"]
["https://oschina.net/p/awesome-modern-cpp","不详"]
["https://oschina.net/p/pyinstaller","不详"]
["https://oschina.net/p/container","不详"]
["https://oschina.net/p/linaria","不详"]
["https://oschina.net/p/sealos","国产"]
["https://oschina.net/p/WLED","不详"]
["https://oschina.net/p/easypermissions","不详"]
["https://oschina.net/p/swiftmailer","不详"]
["https://oschina.net/p/fantasy-land","不详"]
["https://oschina.net/p/ZeroTierOne","不详"]
["https://oschina.net/p/RetroPie-Setup","不详"]
["https://oschina.net/p/SpaceX-API","不详"]
["https://oschina.net/p/Gource","不详"]
["https://oschina.net/p/onepage-scroll","不详"]
["https://oschina.net/p/Awesome-Profile-README-templates","不详"]
["https://oschina.net/p/node-mongodb-native","不详"]
["https://oschina.net/p/webpack-demos","不详"]
["https://oschina.net/p/deployer","不详"]
["https://oschina.net/p/connect","不详"]
["https://oschina.net/p/vue-admin","不详"]
["https://oschina.net/p/vuls","不详"]
["https://oschina.net/p/Quick","不详"]
["https://oschina.net/p/BlackHole","不详"]
["https://oschina.net/p/awesome-semantic-segmentation","不详"]
["https://oschina.net/p/termtosvg","不详"]
["https://oschina.net/p/nginx-proxy-manager","不详"]
["https://oschina.net/p/FlappySwift","不详"]
["https://oschina.net/p/compose-jb","不详"]
["https://oschina.net/p/wcdb","国产"]
["https://oschina.net/p/ducks-modular-redux","不详"]
["https://oschina.net/p/TabNine","不详"]
["https://oschina.net/p/GitHub-Dark","不详"]
["https://oschina.net/p/peewee","不详"]
["https://oschina.net/p/zola","不详"]
["https://oschina.net/p/solana","不详"]
["https://oschina.net/p/quicklink","不详"]
["https://oschina.net/p/art-of-node","不详"]
["https://oschina.net/p/musicbox","不详"]
["https://oschina.net/p/gradio","不详"]
["https://oschina.net/p/pwntools","不详"]
["https://oschina.net/p/pageres","不详"]
["https://oschina.net/p/react-transition-group","不详"]
["https://oschina.net/p/Signal-iOS","不详"]
["https://oschina.net/p/sonic-pi","不详"]
["https://oschina.net/p/phpredis","不详"]
["https://oschina.net/p/qt","不详"]
["https://oschina.net/p/owasp-mastg","不详"]
["https://oschina.net/p/paascloud-master","国产"]
["https://oschina.net/p/ParlAI","不详"]
["https://oschina.net/p/posthog","不详"]
["https://oschina.net/p/material-design-for-bootstrap","不详"]
["https://oschina.net/p/httpx","不详"]
["https://oschina.net/p/Mars","国产"]
["https://oschina.net/p/Craft","不详"]
["https://oschina.net/p/apidoc","不详"]
["https://oschina.net/p/AndroidSlidingUpPanel","不详"]
["https://oschina.net/p/core","不详"]
["https://oschina.net/p/testcafe","不详"]
["https://oschina.net/p/awesome-adb","不详"]
["https://oschina.net/p/openlayers","不详"]
["https://oschina.net/p/awesome-android","国产"]
["https://oschina.net/p/notebook","不详"]
["https://oschina.net/p/CVPR2022-Papers-with-Code","不详"]
["https://oschina.net/p/http-proxy-middleware","不详"]
["https://oschina.net/p/PocketHub","不详"]
["https://oschina.net/p/backtrader","不详"]
["https://oschina.net/p/mall-swarm","不详"]
["https://oschina.net/p/arduino-esp32","不详"]
["https://oschina.net/p/how-to-secure-anything","不详"]
["https://oschina.net/p/zdog","不详"]
["https://oschina.net/p/API","不详"]
["https://oschina.net/p/Shimmer","不详"]
["https://oschina.net/p/react-desktop","不详"]
["https://oschina.net/p/sonnet","不详"]
["https://oschina.net/p/psysh","不详"]
["https://oschina.net/p/chokidar","不详"]
["https://oschina.net/p/spark","不详"]
["https://oschina.net/p/kue","不详"]
["https://oschina.net/p/SocketRocket","不详"]
["https://oschina.net/p/git-blame-someone-else","不详"]
["https://oschina.net/p/Open-IM-Server","国产"]
["https://oschina.net/p/orm","不详"]
["https://oschina.net/p/lifeRestart","不详"]
["https://oschina.net/p/not-paid","不详"]
["https://oschina.net/p/typecho","国产"]
["https://oschina.net/p/nuclear","不详"]
["https://oschina.net/p/octopress","不详"]
["https://oschina.net/p/AudioKit","不详"]
["https://oschina.net/p/blazor","不详"]
["https://oschina.net/p/AriaNg","不详"]
["https://oschina.net/p/DanmakuFlameMaster","国产"]
["https://oschina.net/p/edgedb","不详"]
["https://oschina.net/p/vercel","不详"]
["https://oschina.net/p/abu","国产"]
["https://oschina.net/p/habitica","不详"]
["https://oschina.net/p/Java-WebSocket","不详"]
["https://oschina.net/p/cosmopolitan","不详"]
["https://oschina.net/p/framework","不详"]
["https://oschina.net/p/spin.js","不详"]
["https://oschina.net/p/spectacle","不详"]
["https://oschina.net/p/backbone-fundamentals","不详"]
["https://oschina.net/p/flexboxgrid","不详"]
["https://oschina.net/p/react-native-animatable","不详"]
["https://oschina.net/p/aws-cdk","不详"]
["https://oschina.net/p/DeepLearningExamples","不详"]
["https://oschina.net/p/Mycat-Server","不详"]
["https://oschina.net/p/colour-schemes","不详"]
["https://oschina.net/p/visdom","不详"]
["https://oschina.net/p/social-analyzer","不详"]
["https://oschina.net/p/awesome-cheatsheets","不详"]
["https://oschina.net/p/hardseed","不详"]
["https://oschina.net/p/react-markdown","不详"]
["https://oschina.net/p/AssetStudio","不详"]
["https://oschina.net/p/amazing-qr","国产"]
["https://oschina.net/p/cesium","不详"]
["https://oschina.net/p/buefy","不详"]
["https://oschina.net/p/lima","不详"]
["https://oschina.net/p/caprover","不详"]
["https://oschina.net/p/android-interview-questions","不详"]
["https://oschina.net/p/vee-validate","不详"]
["https://oschina.net/p/dnscrypt-proxy","不详"]
["https://oschina.net/p/react-app-rewired","不详"]
["https://oschina.net/p/react-native-ui-kitten","不详"]
["https://oschina.net/p/carlo","不详"]
["https://oschina.net/p/newbee-mall","不详"]
["https://oschina.net/p/Numeral-js","不详"]
["https://oschina.net/p/memray","不详"]
["https://oschina.net/p/redigo","不详"]
["https://oschina.net/p/capnproto","不详"]
["https://oschina.net/p/trufflehog","不详"]
["https://oschina.net/p/pytest","不详"]
["https://oschina.net/p/vim-galore-zh_cn","不详"]
["https://oschina.net/p/InversifyJS","不详"]
["https://oschina.net/p/graphql-code-generator","不详"]
["https://oschina.net/p/startbootstrap-sb-admin-2","不详"]
["https://oschina.net/p/SoftEtherVPN","不详"]
["https://oschina.net/p/api","不详"]
["https://oschina.net/p/mit-deep-learning","不详"]
["https://oschina.net/p/linux","不详"]
["https://oschina.net/p/typescript-tutorial","不详"]
["https://oschina.net/p/questdb","不详"]
["https://oschina.net/p/numpy-100","不详"]
["https://oschina.net/p/console","不详"]
["https://oschina.net/p/jupyter-themes","不详"]
["https://oschina.net/p/uncss","不详"]
["https://oschina.net/p/MagicIndicator","国产"]
["https://oschina.net/p/lax.js","不详"]
["https://oschina.net/p/Swin-Transformer","不详"]
["https://oschina.net/p/boardgame.io","不详"]
["https://oschina.net/p/CryptoSwift","不详"]
["https://oschina.net/p/javascript-patterns","不详"]
["https://oschina.net/p/nodeclub","国产"]
["https://oschina.net/p/SingleFile","不详"]
["https://oschina.net/p/activeadmin","不详"]
["https://oschina.net/p/diesel","不详"]
["https://oschina.net/p/darling","不详"]
["https://oschina.net/p/peek","不详"]
["https://oschina.net/p/chat","不详"]
["https://oschina.net/p/sarama","不详"]
["https://oschina.net/p/Statistical-Learning-Method_Code","不详"]
["https://oschina.net/p/gtop","不详"]
["https://oschina.net/p/why-did-you-render","不详"]
["https://oschina.net/p/movies-for-hackers","不详"]
["https://oschina.net/p/react-dropzone","不详"]
["https://oschina.net/p/mas","不详"]
["https://oschina.net/p/chalice","不详"]
["https://oschina.net/p/wire","不详"]
["https://oschina.net/p/csharplang","不详"]
["https://oschina.net/p/Mind-Expanding-Books","不详"]
["https://oschina.net/p/WindTerm","不详"]
["https://oschina.net/p/libevent","不详"]
["https://oschina.net/p/personal-security-checklist","不详"]
["https://oschina.net/p/c3","不详"]
["https://oschina.net/p/tracking.js","不详"]
["https://oschina.net/p/tmux-resurrect","不详"]
["https://oschina.net/p/G6","国产"]
["https://oschina.net/p/alphafold","不详"]
["https://oschina.net/p/esp-idf","不详"]
["https://oschina.net/p/unmaintainable-code","不详"]
["https://oschina.net/p/ants","国产"]
["https://oschina.net/p/gitpod","不详"]
["https://oschina.net/p/EverydayWechat","不详"]
["https://oschina.net/p/android-gif-drawable","不详"]
["https://oschina.net/p/labelme","不详"]
["https://oschina.net/p/cmake-examples","不详"]
["https://oschina.net/p/use_vim_as_ide","不详"]
["https://oschina.net/p/tailscale","不详"]
["https://oschina.net/p/resque","不详"]
["https://oschina.net/p/helmet","不详"]
["https://oschina.net/p/ag-grid","不详"]
["https://oschina.net/p/spring-boot-api-project-seed","不详"]
["https://oschina.net/p/simplemde-markdown-editor","不详"]
["https://oschina.net/p/is.js","不详"]
["https://oschina.net/p/streama","不详"]
["https://oschina.net/p/instant-ngp","不详"]
["https://oschina.net/p/awesome-ddd","不详"]
["https://oschina.net/p/dogehouse","不详"]
["https://oschina.net/p/pyodide","不详"]
["https://oschina.net/p/keycastr","不详"]
["https://oschina.net/p/guides","不详"]
["https://oschina.net/p/Clash_Chinese_Patch","不详"]
["https://oschina.net/p/the-incredible-pytorch","不详"]
["https://oschina.net/p/code_snippets","不详"]
["https://oschina.net/p/thumbor","不详"]
["https://oschina.net/p/colors","不详"]
["https://oschina.net/p/signoz","不详"]
["https://oschina.net/p/tweepy","不详"]
["https://oschina.net/p/crawlab","国产"]
["https://oschina.net/p/pix2pix","不详"]
["https://oschina.net/p/eeeeeeeeeeeeeeeeeeeeeeeeeeeeeeeeeeeeeeeeeeeeeeeeeeeeeeeeeeeeeeeeeeeeeeeeeeeeeeeeeeeeeeeeeeeeeeeeeeee","不详"]
["https://oschina.net/p/wired-elements","不详"]
["https://oschina.net/p/test-your-sysadmin-skills","不详"]
["https://oschina.net/p/dompdf","不详"]
["https://oschina.net/p/m-cli","不详"]
["https://oschina.net/p/ReflectionDocBlock","不详"]
["https://oschina.net/p/sinon","不详"]
["https://oschina.net/p/py-spy","不详"]
["https://oschina.net/p/DSA-Bootcamp-Java","不详"]
["https://oschina.net/p/synergy-core","不详"]
["https://oschina.net/p/HackMyResume","不详"]
["https://oschina.net/p/macdown","不详"]
["https://oschina.net/p/Flutter-Course-Resources","不详"]
["https://oschina.net/p/tiled","不详"]
["https://oschina.net/p/bourbon","不详"]
["https://oschina.net/p/ndk-samples","不详"]
["https://oschina.net/p/noVNC","不详"]
["https://oschina.net/p/JsBridge","不详"]
["https://oschina.net/p/redis-3.0-annotated","国产"]
["https://oschina.net/p/dolphin","不详"]
["https://oschina.net/p/cs231n.github.io","不详"]
["https://oschina.net/p/jira_clone","不详"]
["https://oschina.net/p/openFrameworks","不详"]
["https://oschina.net/p/fresh","不详"]
["https://oschina.net/p/MaterialDesignLibrary","不详"]
["https://oschina.net/p/TensorFlow-Tutorials","不详"]
["https://oschina.net/p/DOOM","不详"]
["https://oschina.net/p/open-source-android-apps","不详"]
["https://oschina.net/p/chroma.js","不详"]
["https://oschina.net/p/svgr","不详"]
["https://oschina.net/p/antd-admin","国产"]
["https://oschina.net/p/awesome-malware-analysis","不详"]
["https://oschina.net/p/paperclip","不详"]
["https://oschina.net/p/Goutte","不详"]
["https://oschina.net/p/yjs","不详"]
["https://oschina.net/p/rust-raspberrypi-OS-tutorials","不详"]
["https://oschina.net/p/Tinyhttpd","不详"]
["https://oschina.net/p/sst","不详"]
["https://oschina.net/p/yolov3","不详"]
["https://oschina.net/p/basic-computer-games","不详"]
["https://oschina.net/p/fancyss_history_package","不详"]
["https://oschina.net/p/OpenRefine","不详"]
["https://oschina.net/p/1on1-questions","不详"]
["https://oschina.net/p/Parsley.js","不详"]
["https://oschina.net/p/awesome-architecture","不详"]
["https://oschina.net/p/piskel","不详"]
["https://oschina.net/p/fprime","不详"]
["https://oschina.net/p/MathJax","不详"]
["https://oschina.net/p/comlink","不详"]
["https://oschina.net/p/MLAlgorithms","不详"]
["https://oschina.net/p/iOSInterviewQuestions","不详"]
["https://oschina.net/p/cheat-engine","不详"]
["https://oschina.net/p/TranslationPlugin","国产"]
["https://oschina.net/p/mapbox-gl-js","不详"]
["https://oschina.net/p/robomongo","不详"]
["https://oschina.net/p/awesome-sre","不详"]
["https://oschina.net/p/the-practical-linux-hardening-guide","不详"]
["https://oschina.net/p/word_cloud","不详"]
["https://oschina.net/p/react-native-router-flux","不详"]
["https://oschina.net/p/webfontloader","不详"]
["https://oschina.net/p/Photon","不详"]
["https://oschina.net/p/state-of-the-art-result-for-machine-learning-problems","不详"]
["https://oschina.net/p/react-page","不详"]
["https://oschina.net/p/cube-ui","国产"]
["https://oschina.net/p/AutoMapper","不详"]
["https://oschina.net/p/ObjectMapper","不详"]
["https://oschina.net/p/firefly-iii","不详"]
["https://oschina.net/p/cargo","不详"]
["https://oschina.net/p/Activiti","不详"]
["https://oschina.net/p/full-blockchain-solidity-course-py","不详"]
["https://oschina.net/p/btop","不详"]
["https://oschina.net/p/be-a-professional-programmer","不详"]
["https://oschina.net/p/webtorrent-desktop","不详"]
["https://oschina.net/p/junior-recruit-scheduler","不详"]
["https://oschina.net/p/listen1_chrome_extension","不详"]
["https://oschina.net/p/theZoo","不详"]
["https://oschina.net/p/awesome-hacking","不详"]
["https://oschina.net/p/jvm","不详"]
["https://oschina.net/p/napajs","不详"]
["https://oschina.net/p/bfg-repo-cleaner","不详"]
["https://oschina.net/p/maskrcnn-benchmark","不详"]
["https://oschina.net/p/CefSharp","不详"]
["https://oschina.net/p/clojurescript","不详"]
["https://oschina.net/p/laverna","不详"]
["https://oschina.net/p/v2ray-rules-dat","不详"]
["https://oschina.net/p/BrowserQuest","不详"]
["https://oschina.net/p/type-fest","不详"]
["https://oschina.net/p/sshuttle","不详"]
["https://oschina.net/p/VirtualApp","国产"]
["https://oschina.net/p/amplify-js","不详"]
["https://oschina.net/p/sumatrapdf","不详"]
["https://oschina.net/p/swift-package-manager","不详"]
["https://oschina.net/p/webui-aria2","不详"]
["https://oschina.net/p/pre-commit","不详"]
["https://oschina.net/p/mal","不详"]
["https://oschina.net/p/TypeResolver","不详"]
["https://oschina.net/p/flag-icons","不详"]
["https://oschina.net/p/og-equity-compensation","不详"]
["https://oschina.net/p/vuestic-admin","不详"]
["https://oschina.net/p/uvloop","不详"]
["https://oschina.net/p/django-cms","不详"]
["https://oschina.net/p/kepler.gl","不详"]
["https://oschina.net/p/typer","不详"]
["https://oschina.net/p/storm","不详"]
["https://oschina.net/p/gremlins.js","不详"]
["https://oschina.net/p/kustomize","不详"]
["https://oschina.net/p/elasticsearch-head","不详"]
["https://oschina.net/p/termux-packages","不详"]
["https://oschina.net/p/coursera-dl","不详"]
["https://oschina.net/p/falcon","国产"]
["https://oschina.net/p/flexsearch","不详"]
["https://oschina.net/p/Bash-Snippets","不详"]
["https://oschina.net/p/The-Golang-Standard-Library-by-Example","不详"]
["https://oschina.net/p/gdb-dashboard","不详"]
["https://oschina.net/p/chisel","不详"]
["https://oschina.net/p/pinia","不详"]
["https://oschina.net/p/DALL-E","不详"]
["https://oschina.net/p/vscode-tips-and-tricks","不详"]
["https://oschina.net/p/mold","不详"]
["https://oschina.net/p/awesome-security","不详"]
["https://oschina.net/p/textql","不详"]
["https://oschina.net/p/dom-to-image","不详"]
["https://oschina.net/p/IdentityServer4","不详"]
["https://oschina.net/p/tween.js","不详"]
["https://oschina.net/p/sshuttle","不详"]
["https://oschina.net/p/element-web","不详"]
["https://oschina.net/p/fnm","不详"]
["https://oschina.net/p/Windows-universal-samples","不详"]
["https://oschina.net/p/gdbgui","不详"]
["https://oschina.net/p/go-github","不详"]
["https://oschina.net/p/node-canvas","不详"]
["https://oschina.net/p/bocker","不详"]
["https://oschina.net/p/R.swift","不详"]
["https://oschina.net/p/orleans","不详"]
["https://oschina.net/p/ReflectionCommon","不详"]
["https://oschina.net/p/oh-my-fish","不详"]
["https://oschina.net/p/dbal","不详"]
["https://oschina.net/p/TimelineJS","不详"]
["https://oschina.net/p/jsproxy","国产"]
["https://oschina.net/p/MonoGame","不详"]
["https://oschina.net/p/easy-mock","国产"]
["https://oschina.net/p/gridea","国产"]
["https://oschina.net/p/gridstudio","不详"]
["https://oschina.net/p/warriorjs","不详"]
["https://oschina.net/p/prettymaps","不详"]
["https://oschina.net/p/protractor","不详"]
["https://oschina.net/p/graphql","不详"]
["https://oschina.net/p/jshint","不详"]
["https://oschina.net/p/jinja","不详"]
["https://oschina.net/p/webamp","不详"]
["https://oschina.net/p/qrcp","不详"]
["https://oschina.net/p/AutoEq","不详"]
["https://oschina.net/p/StatusBarUtil","不详"]
["https://oschina.net/p/DearPyGui","不详"]
["https://oschina.net/p/mongoose","不详"]
["https://oschina.net/p/Keras-GAN","不详"]
["https://oschina.net/p/sanitizers","不详"]
["https://oschina.net/p/acorn","不详"]
["https://oschina.net/p/language-server-protocol","不详"]
["https://oschina.net/p/metamask-extension","不详"]
["https://oschina.net/p/MWPhotoBrowser","不详"]
["https://oschina.net/p/Crash-Course-Computer-Science-Chinese","不详"]
["https://oschina.net/p/bpytop","不详"]
["https://oschina.net/p/fuzzywuzzy","不详"]
["https://oschina.net/p/tpot","不详"]
["https://oschina.net/p/LaTeX-Workshop","不详"]
["https://oschina.net/p/YYText","不详"]
["https://oschina.net/p/gitbucket","不详"]
["https://oschina.net/p/serverless-application-model","不详"]
["https://oschina.net/p/Android-PullToRefresh","不详"]
["https://oschina.net/p/imagesloaded","不详"]
["https://oschina.net/p/VirtualAPK","国产"]
["https://oschina.net/p/openvpn-install","不详"]
["https://oschina.net/p/hello-world","不详"]
["https://oschina.net/p/SignalR","不详"]
["https://oschina.net/p/psutil","不详"]
["https://oschina.net/p/torch7","不详"]
["https://oschina.net/p/TTTAttributedLabel","不详"]
["https://oschina.net/p/sequelpro","不详"]
["https://oschina.net/p/ChakraCore","不详"]
["https://oschina.net/p/awesome-web-security","不详"]
["https://oschina.net/p/favico.js","不详"]
["https://oschina.net/p/AndroidNote","不详"]
["https://oschina.net/p/carrierwave","不详"]
["https://oschina.net/p/terraformer","不详"]
["https://oschina.net/p/protobuf","不详"]
["https://oschina.net/p/numerical-linear-algebra","不详"]
["https://oschina.net/p/xsv","不详"]
["https://oschina.net/p/libgit2","不详"]
["https://oschina.net/p/signale","不详"]
["https://oschina.net/p/amplication","不详"]
["https://oschina.net/p/node-fs-extra","不详"]
["https://oschina.net/p/lazyload","不详"]
["https://oschina.net/p/cytoscape.js","不详"]
["https://oschina.net/p/regexr","不详"]
["https://oschina.net/p/css.gg","不详"]
["https://oschina.net/p/SS-Rule-Snippet","不详"]
["https://oschina.net/p/react-toolbox","不详"]
["https://oschina.net/p/flutter-in-action","不详"]
["https://oschina.net/p/sqlmodel","不详"]
["https://oschina.net/p/borg","不详"]
["https://oschina.net/p/babun","不详"]
["https://oschina.net/p/toxcore","不详"]
["https://oschina.net/p/beautify-github-profile","不详"]
["https://oschina.net/p/urh","不详"]
["https://oschina.net/p/offline","不详"]
["https://oschina.net/p/FastGithub","不详"]
["https://oschina.net/p/computervision-recipes","不详"]
["https://oschina.net/p/EffectiveTensorflow","不详"]
["https://oschina.net/p/abp","不详"]
["https://oschina.net/p/CLRS","不详"]
["https://oschina.net/p/quicktype","不详"]
["https://oschina.net/p/react-360","不详"]
["https://oschina.net/p/lively","不详"]
["https://oschina.net/p/Winds","不详"]
["https://oschina.net/p/AgentWeb","不详"]
["https://oschina.net/p/CoreNLP","不详"]
["https://oschina.net/p/tui-rs","不详"]
["https://oschina.net/p/listmonk","不详"]
["https://oschina.net/p/Mailpile","不详"]
["https://oschina.net/p/jquery-cookie","不详"]
["https://oschina.net/p/bleve","不详"]
["https://oschina.net/p/testing-samples","不详"]
["https://oschina.net/p/perf-tools","不详"]
["https://oschina.net/p/Learn-Vim","不详"]
["https://oschina.net/p/OnsenUI","不详"]
["https://oschina.net/p/whenever","不详"]
["https://oschina.net/p/IBAnimatable","不详"]
["https://oschina.net/p/node-gyp","不详"]
["https://oschina.net/p/RestSharp","不详"]
["https://oschina.net/p/SMSBoom","不详"]
["https://oschina.net/p/pretrained-models.pytorch","不详"]
["https://oschina.net/p/bloomrpc","不详"]
["https://oschina.net/p/ieaseMusic","不详"]
["https://oschina.net/p/portia","不详"]
["https://oschina.net/p/or-tools","不详"]
["https://oschina.net/p/autokeras","不详"]
["https://oschina.net/p/up","不详"]
["https://oschina.net/p/Calligraphy","不详"]
["https://oschina.net/p/dirsearch","不详"]
["https://oschina.net/p/WatermelonDB","不详"]
["https://oschina.net/p/php-the-right-way","国产"]
["https://oschina.net/p/Server","国产"]
["https://oschina.net/p/system-design-resources","不详"]
["https://oschina.net/p/awesomo","不详"]
["https://oschina.net/p/neovide","不详"]
["https://oschina.net/p/awesome-mlops","不详"]
["https://oschina.net/p/aliyunpan","不详"]
["https://oschina.net/p/ffmpeg.wasm","不详"]
["https://oschina.net/p/computer-science-in-javascript","不详"]
["https://oschina.net/p/push.js","不详"]
["https://oschina.net/p/japronto","不详"]
["https://oschina.net/p/go-cloud","不详"]
["https://oschina.net/p/jjwt","不详"]
["https://oschina.net/p/laravel-best-practices","不详"]
["https://oschina.net/p/BaiduNetdiskPlugin-macOS","不详"]
["https://oschina.net/p/ML-YouTube-Courses","不详"]
["https://oschina.net/p/rust-learning","不详"]
["https://oschina.net/p/CodeGuide","不详"]
["https://oschina.net/p/choco","不详"]
["https://oschina.net/p/coil","不详"]
["https://oschina.net/p/zigbee2mqtt","不详"]
["https://oschina.net/p/http-prompt","不详"]
["https://oschina.net/p/ArchiSteamFarm","不详"]
["https://oschina.net/p/ninja","不详"]
["https://oschina.net/p/binwalk","不详"]
["https://oschina.net/p/istanbul","不详"]
["https://oschina.net/p/awesome-react-hooks","不详"]
["https://oschina.net/p/toxiproxy","不详"]
["https://oschina.net/p/formily","不详"]
["https://oschina.net/p/protobuf.js","不详"]
["https://oschina.net/p/xray","不详"]
["https://oschina.net/p/cim","国产"]
["https://oschina.net/p/MediatR","不详"]
["https://oschina.net/p/gunicorn","不详"]
["https://oschina.net/p/taskbook","不详"]
["https://oschina.net/p/avbook","不详"]
["https://oschina.net/p/daily","不详"]
["https://oschina.net/p/PaddleDetection","国产"]
["https://oschina.net/p/redux-toolkit","不详"]
["https://oschina.net/p/Android_Data","不详"]
["https://oschina.net/p/baseimage-docker","不详"]
["https://oschina.net/p/cakephp","不详"]
["https://oschina.net/p/CMWTAT_Digital_Edition","不详"]
["https://oschina.net/p/gdrive","不详"]
["https://oschina.net/p/sentence-transformers","不详"]
["https://oschina.net/p/golearn","不详"]
["https://oschina.net/p/awesome-scala","不详"]
["https://oschina.net/p/spiderfoot","不详"]
["https://oschina.net/p/rq","不详"]
["https://oschina.net/p/ludwig","不详"]
["https://oschina.net/p/moshi","不详"]
["https://oschina.net/p/gocui","不详"]
["https://oschina.net/p/JSON-js","不详"]
["https://oschina.net/p/czkawka","不详"]
["https://oschina.net/p/react-icons","不详"]
["https://oschina.net/p/android-gpuimage","不详"]
["https://oschina.net/p/node-schedule","不详"]
["https://oschina.net/p/awesome-angular","不详"]
["https://oschina.net/p/CS-Books","不详"]
["https://oschina.net/p/semantic","不详"]
["https://oschina.net/p/SQLite.swift","不详"]
["https://oschina.net/p/youtube-dl-gui","不详"]
["https://oschina.net/p/frontend-stuff","不详"]
["https://oschina.net/p/tfjs-core","不详"]
["https://oschina.net/p/sdk","不详"]
["https://oschina.net/p/signature_pad","不详"]
["https://oschina.net/p/pose-animator","不详"]
["https://oschina.net/p/prophecy","不详"]
["https://oschina.net/p/dxvk","不详"]
["https://oschina.net/p/YubiKey-Guide","不详"]
["https://oschina.net/p/30-seconds-of-python","不详"]
["https://oschina.net/p/tether","不详"]
["https://oschina.net/p/MJExtension","不详"]
["https://oschina.net/p/COLA","国产"]
["https://oschina.net/p/tpm","不详"]
["https://oschina.net/p/pyright","不详"]
["https://oschina.net/p/emoji-cheat-sheet","不详"]
["https://oschina.net/p/GolangTraining","不详"]
["https://oschina.net/p/go-fundamental-programming","不详"]
["https://oschina.net/p/metrics","不详"]
["https://oschina.net/p/DeepLearning","不详"]
["https://oschina.net/p/agenda","不详"]
["https://oschina.net/p/Dexie.js","不详"]
["https://oschina.net/p/pencil","不详"]
["https://oschina.net/p/lsd","不详"]
["https://oschina.net/p/js-the-right-way","不详"]
["https://oschina.net/p/YOURLS","不详"]
["https://oschina.net/p/devhub","不详"]
["https://oschina.net/p/MahApps.Metro","不详"]
["https://oschina.net/p/invidious","不详"]
["https://oschina.net/p/api-blueprint","不详"]
["https://oschina.net/p/awesome-java-leetcode","不详"]
["https://oschina.net/p/FluentTerminal","不详"]
["https://oschina.net/p/fp-ts","不详"]
["https://oschina.net/p/BottomBar","不详"]
["https://oschina.net/p/CalendarView","不详"]
["https://oschina.net/p/Dummy-Robot","国产"]
["https://oschina.net/p/webshell","国产"]
["https://oschina.net/p/lists","不详"]
["https://oschina.net/p/fullstack-course4","不详"]
["https://oschina.net/p/ExplorerPatcher","不详"]
["https://oschina.net/p/speedtest","不详"]
["https://oschina.net/p/devilution","不详"]
["https://oschina.net/p/reactphp","不详"]
["https://oschina.net/p/Meshroom","不详"]
["https://oschina.net/p/caffe2","不详"]
["https://oschina.net/p/scientific-visualization-book","不详"]
["https://oschina.net/p/itsy-bitsy-data-structures","不详"]
["https://oschina.net/p/mlcourse.ai","不详"]
["https://oschina.net/p/buck","不详"]
["https://oschina.net/p/Hazel","不详"]
["https://oschina.net/p/Google-Play-Music-Desktop-Player-UNOFFICIAL-","不详"]
["https://oschina.net/p/boot2docker","不详"]
["https://oschina.net/p/zellij","不详"]
["https://oschina.net/p/php-code-coverage","不详"]
["https://oschina.net/p/kakoune","不详"]
["https://oschina.net/p/SlackTextViewController","不详"]
["https://oschina.net/p/Awsome-Front-End-learning-resource","不详"]
["https://oschina.net/p/vscode-drawio","不详"]
["https://oschina.net/p/awesome-distributed-systems","不详"]
["https://oschina.net/p/3D-Machine-Learning","不详"]
["https://oschina.net/p/junit4","不详"]
["https://oschina.net/p/tech-interview-for-developer","不详"]
["https://oschina.net/p/VVDocumenter-Xcode","国产"]
["https://oschina.net/p/eva-icons","不详"]
["https://oschina.net/p/class-validator","不详"]
["https://oschina.net/p/yay","不详"]
["https://oschina.net/p/vue-native-core","不详"]
["https://oschina.net/p/pdfkit","不详"]
["https://oschina.net/p/howtographql","不详"]
["https://oschina.net/p/fzf.vim","不详"]
["https://oschina.net/p/arc-theme","不详"]
["https://oschina.net/p/feign","不详"]
["https://oschina.net/p/javascript-state-machine","不详"]
["https://oschina.net/p/finagle","不详"]
["https://oschina.net/p/PySyft","不详"]
["https://oschina.net/p/metersphere","国产"]
["https://oschina.net/p/react-vis","不详"]
["https://oschina.net/p/reactxp","不详"]
["https://oschina.net/p/DeepCopy","不详"]
["https://oschina.net/p/minGPT","不详"]
["https://oschina.net/p/gridsome","不详"]
["https://oschina.net/p/jszip","不详"]
["https://oschina.net/p/cow","国产"]
["https://oschina.net/p/Aspects","不详"]
["https://oschina.net/p/muse-ui","不详"]
["https://oschina.net/p/carla","不详"]
["https://oschina.net/p/pattern","不详"]
["https://oschina.net/p/ACL4SSR","不详"]
["https://oschina.net/p/CSS-Inspiration","不详"]
["https://oschina.net/p/resilience4j","不详"]
["https://oschina.net/p/code-guide","不详"]
["https://oschina.net/p/hexo-theme-yilia","不详"]
["https://oschina.net/p/Android-SpinKit","国产"]
["https://oschina.net/p/dropwizard","不详"]
["https://oschina.net/p/Mac-CLI","不详"]
["https://oschina.net/p/travis-ci","不详"]
["https://oschina.net/p/TextBlob","不详"]
["https://oschina.net/p/kaminari","不详"]
["https://oschina.net/p/tile38","不详"]
["https://oschina.net/p/google-api-php-client","不详"]
["https://oschina.net/p/gop","国产"]
["https://oschina.net/p/livego","不详"]
["https://oschina.net/p/laptop","不详"]
["https://oschina.net/p/assimp","不详"]
["https://oschina.net/p/pip","不详"]
["https://oschina.net/p/cryptomator","不详"]
["https://oschina.net/p/http-foundation","不详"]
["https://oschina.net/p/coturn","不详"]
["https://oschina.net/p/ng-zorro-antd","不详"]
["https://oschina.net/p/hint.css","不详"]
["https://oschina.net/p/layer","不详"]
["https://oschina.net/p/super-linter","不详"]
["https://oschina.net/p/relax","不详"]
["https://oschina.net/p/seajs","国产"]
["https://oschina.net/p/TinyWebServer","不详"]
["https://oschina.net/p/gopsutil","不详"]
["https://oschina.net/p/webhook","国产"]
["https://oschina.net/p/rust-clippy","不详"]
["https://oschina.net/p/The-Complete-FAANG-Preparation","不详"]
["https://oschina.net/p/WWDC","不详"]
["https://oschina.net/p/quickstart-android","不详"]
["https://oschina.net/p/client","不详"]
["https://oschina.net/p/node-sass","不详"]
["https://oschina.net/p/rawgraphs-app","不详"]
["https://oschina.net/p/rematch","不详"]
["https://oschina.net/p/dat","不详"]
["https://oschina.net/p/react-native-code-push","不详"]
["https://oschina.net/p/SwiftGen","不详"]
["https://oschina.net/p/MaterialViewPager","不详"]
["https://oschina.net/p/chromedp","不详"]
["https://oschina.net/p/headscale","不详"]
["https://oschina.net/p/lunr.js","不详"]
["https://oschina.net/p/graphql-playground","不详"]
["https://oschina.net/p/proxychains-ng","不详"]
["https://oschina.net/p/air","不详"]
["https://oschina.net/p/pandas_exercises","不详"]
["https://oschina.net/p/fine-uploader","不详"]
["https://oschina.net/p/zenbot","不详"]
["https://oschina.net/p/crouton","不详"]
["https://oschina.net/p/woocommerce","不详"]
["https://oschina.net/p/distsys-class","不详"]
["https://oschina.net/p/ui","不详"]
["https://oschina.net/p/gutenberg","不详"]
["https://oschina.net/p/shadowsocks-iOS","不详"]
["https://oschina.net/p/traceur-compiler","不详"]
["https://oschina.net/p/audacity","不详"]
["https://oschina.net/p/glide","不详"]
["https://oschina.net/p/LxgwWenKai","不详"]
["https://oschina.net/p/serve","不详"]
["https://oschina.net/p/STL","不详"]
["https://oschina.net/p/browser-2020","不详"]
["https://oschina.net/p/FastImageCache","不详"]
["https://oschina.net/p/gqlgen","不详"]
["https://oschina.net/p/qutebrowser","不详"]
["https://oschina.net/p/konva","不详"]
["https://oschina.net/p/BenchmarkDotNet","不详"]
["https://oschina.net/p/Sandboxie","不详"]
["https://oschina.net/p/ffmpeg-libav-tutorial","不详"]
["https://oschina.net/p/pifuhd","不详"]
["https://oschina.net/p/text-mask","不详"]
["https://oschina.net/p/english-words","不详"]
["https://oschina.net/p/zfs","不详"]
["https://oschina.net/p/airbyte","不详"]
["https://oschina.net/p/event-dispatcher","不详"]
["https://oschina.net/p/polars","不详"]
["https://oschina.net/p/Fuck-XueXiQiangGuo","不详"]
["https://oschina.net/p/solid","不详"]
["https://oschina.net/p/nlp_course","不详"]
["https://oschina.net/p/gophish","不详"]
["https://oschina.net/p/machinelearning","不详"]
["https://oschina.net/p/flutter_architecture_samples","不详"]
["https://oschina.net/p/Waking-Up","不详"]
["https://oschina.net/p/okio","不详"]
["https://oschina.net/p/google-images-download","不详"]
["https://oschina.net/p/awesome-github-wechat-weapp","不详"]
["https://oschina.net/p/codimd","不详"]
["https://oschina.net/p/gitolite","不详"]
["https://oschina.net/p/downkyi","不详"]
["https://oschina.net/p/guiadevbrasil","不详"]
["https://oschina.net/p/AndResGuard","不详"]
["https://oschina.net/p/mvt","不详"]
["https://oschina.net/p/frontend-guidelines","不详"]
["https://oschina.net/p/mitt","不详"]
["https://oschina.net/p/plex","不详"]
["https://oschina.net/p/uBlock","不详"]
["https://oschina.net/p/awesome-postgres","不详"]
["https://oschina.net/p/electron-packager","不详"]
["https://oschina.net/p/Resources-for-Beginner-Bug-Bounty-Hunters","不详"]
["https://oschina.net/p/atlas","不详"]
["https://oschina.net/p/wait-for-it","不详"]
["https://oschina.net/p/arrow","不详"]
["https://oschina.net/p/soar","不详"]
["https://oschina.net/p/awesome-guidelines","不详"]
["https://oschina.net/p/remote-working","不详"]
["https://oschina.net/p/vid2vid","不详"]
["https://oschina.net/p/Android-Debug-Database","不详"]
["https://oschina.net/p/eslint-plugin-react","不详"]
["https://oschina.net/p/vowpal_wabbit","不详"]
["https://oschina.net/p/finder","不详"]
["https://oschina.net/p/SFML","不详"]
["https://oschina.net/p/z3","不详"]
["https://oschina.net/p/talent-plan","不详"]
["https://oschina.net/p/minetest","不详"]
["https://oschina.net/p/WeChatTweak-macOS","国产"]
["https://oschina.net/p/lowcode-engine","不详"]
["https://oschina.net/p/libzmq","不详"]
["https://oschina.net/p/grommet","不详"]
["https://oschina.net/p/grammars-v4","不详"]
["https://oschina.net/p/capacitor","不详"]
["https://oschina.net/p/Awesome_APIs","不详"]
["https://oschina.net/p/drogon","不详"]
["https://oschina.net/p/react-native-calendars","不详"]
["https://oschina.net/p/github","不详"]
["https://oschina.net/p/mini-vue","不详"]
["https://oschina.net/p/monkeytype","不详"]
["https://oschina.net/p/JetBrainsMono","不详"]
["https://oschina.net/p/sockjs-client","不详"]
["https://oschina.net/p/social-engineer-toolkit","不详"]
["https://oschina.net/p/epoxy","不详"]
["https://oschina.net/p/flowchart.js","不详"]
["https://oschina.net/p/random_compat","不详"]
["https://oschina.net/p/Vulcan","不详"]
["https://oschina.net/p/eShopOnWeb","不详"]
["https://oschina.net/p/oh-my-posh","不详"]
["https://oschina.net/p/Jackett","不详"]
["https://oschina.net/p/go-swagger","不详"]
["https://oschina.net/p/simple_form","不详"]
["https://oschina.net/p/earthly","不详"]
["https://oschina.net/p/analyze","不详"]
["https://oschina.net/p/brain","不详"]
["https://oschina.net/p/eul","不详"]
["https://oschina.net/p/browser-laptop","不详"]
["https://oschina.net/p/scapy","不详"]
["https://oschina.net/p/nebula","不详"]
["https://oschina.net/p/mock","不详"]
["https://oschina.net/p/ky","不详"]
["https://oschina.net/p/baseweb","不详"]
["https://oschina.net/p/kompose","不详"]
["https://oschina.net/p/ios-oss","不详"]
["https://oschina.net/p/ng-bootstrap","不详"]
["https://oschina.net/p/html-css","不详"]
["https://oschina.net/p/systeminformer","不详"]
["https://oschina.net/p/nextui","不详"]
["https://oschina.net/p/anbox","不详"]
["https://oschina.net/p/infracost","不详"]
["https://oschina.net/p/slideout","不详"]
["https://oschina.net/p/Stacer","不详"]
["https://oschina.net/p/UglifyJS-old","不详"]
["https://oschina.net/p/cJSON","不详"]
["https://oschina.net/p/ImageOptim","不详"]
["https://oschina.net/p/w3-goto-world","不详"]
["https://oschina.net/p/fsociety","不详"]
["https://oschina.net/p/practical-python","不详"]
["https://oschina.net/p/docker-bench-security","不详"]
["https://oschina.net/p/htmx","不详"]
["https://oschina.net/p/cvat","不详"]
["https://oschina.net/p/theatre","不详"]
["https://oschina.net/p/evil-huawei","不详"]
["https://oschina.net/p/lo","不详"]
["https://oschina.net/p/probot","不详"]
["https://oschina.net/p/revery","不详"]
["https://oschina.net/p/xLua","国产"]
["https://oschina.net/p/restangular","不详"]
["https://oschina.net/p/async-validator","不详"]
["https://oschina.net/p/ora","不详"]
["https://oschina.net/p/EaselJS","不详"]
["https://oschina.net/p/nodegui","不详"]
["https://oschina.net/p/node_exporter","不详"]
["https://oschina.net/p/awesome-indie","不详"]
["https://oschina.net/p/python-prompt-toolkit","不详"]
["https://oschina.net/p/marp","不详"]
["https://oschina.net/p/ssdb","国产"]
["https://oschina.net/p/wslg","不详"]
["https://oschina.net/p/reactjs.org","不详"]
["https://oschina.net/p/ng-file-upload","国产"]
["https://oschina.net/p/Best-README-Template","不详"]
["https://oschina.net/p/history","不详"]
["https://oschina.net/p/aria2gui","不详"]
["https://oschina.net/p/streamlink","不详"]
["https://oschina.net/p/gobot","不详"]
["https://oschina.net/p/Locale-Emulator","不详"]
["https://oschina.net/p/Linux-Tutorial","不详"]
["https://oschina.net/p/simple-cache","国产"]
["https://oschina.net/p/mediaelement","不详"]
["https://oschina.net/p/Douyin-Bot","国产"]
["https://oschina.net/p/satellizer","不详"]
["https://oschina.net/p/Warp","不详"]
["https://oschina.net/p/awesome-nextjs","不详"]
["https://oschina.net/p/dejavu","不详"]
["https://oschina.net/p/mailcheck","不详"]
["https://oschina.net/p/byob","不详"]
["https://oschina.net/p/blog","不详"]
["https://oschina.net/p/Xray_onekey","不详"]
["https://oschina.net/p/paramiko","不详"]
["https://oschina.net/p/duplicati","不详"]
["https://oschina.net/p/hsweb-framework","不详"]
["https://oschina.net/p/tinacms","不详"]
["https://oschina.net/p/confd","不详"]
["https://oschina.net/p/material-theme-jetbrains","不详"]
["https://oschina.net/p/htm","不详"]
["https://oschina.net/p/winsw","不详"]
["https://oschina.net/p/errors","不详"]
["https://oschina.net/p/chisel","不详"]
["https://oschina.net/p/Jetpack-MVVM-Best-Practice","不详"]
["https://oschina.net/p/aws-sdk-go","不详"]
["https://oschina.net/p/shadowsocks-qt5","不详"]
["https://oschina.net/p/vis","不详"]
["https://oschina.net/p/scaffold-eth","不详"]
["https://oschina.net/p/oss-fuzz","不详"]
["https://oschina.net/p/grokking_algorithms","不详"]
["https://oschina.net/p/janus","不详"]
["https://oschina.net/p/SimianArmy","不详"]
["https://oschina.net/p/react-router-redux","不详"]
["https://oschina.net/p/system_design","不详"]
["https://oschina.net/p/LitePal","不详"]
["https://oschina.net/p/stats.js","不详"]
["https://oschina.net/p/flasky","不详"]
["https://oschina.net/p/AndroidInterview-Q-A","不详"]
["https://oschina.net/p/HomeMirror","不详"]
["https://oschina.net/p/disque","不详"]
["https://oschina.net/p/modin","不详"]
["https://oschina.net/p/DeepSpeed","不详"]
["https://oschina.net/p/react-draggable","不详"]
["https://oschina.net/p/node-fetch","不详"]
["https://oschina.net/p/Python","不详"]
["https://oschina.net/p/Ladda","不详"]
["https://oschina.net/p/c4","不详"]
["https://oschina.net/p/nyxt","不详"]
["https://oschina.net/p/robotgo","不详"]
["https://oschina.net/p/nunjucks","不详"]
["https://oschina.net/p/Pikaday","不详"]
["https://oschina.net/p/LearnOpenGL","不详"]
["https://oschina.net/p/immudb","不详"]
["https://oschina.net/p/awesome-rl","不详"]
["https://oschina.net/p/flynn","不详"]
["https://oschina.net/p/numba","不详"]
["https://oschina.net/p/engineer-manager","不详"]
["https://oschina.net/p/TZImagePickerController","国产"]
["https://oschina.net/p/sql-server-samples","不详"]
["https://oschina.net/p/nuclide","不详"]
["https://oschina.net/p/cpp-httplib","不详"]
["https://oschina.net/p/paperwork","不详"]
["https://oschina.net/p/Amass","不详"]
["https://oschina.net/p/js-beautify","不详"]
["https://oschina.net/p/ffuf","不详"]
["https://oschina.net/p/trip-to-iOS","不详"]
["https://oschina.net/p/FlatUIKit","不详"]
["https://oschina.net/p/DALLE2-pytorch","不详"]
["https://oschina.net/p/purescript","不详"]
["https://oschina.net/p/core","不详"]
["https://oschina.net/p/amethyst","不详"]
["https://oschina.net/p/PathFinding.js","不详"]
["https://oschina.net/p/iOS-Runtime-Headers","不详"]
["https://oschina.net/p/macintosh.js","不详"]
["https://oschina.net/p/LTMorphingLabel","不详"]
["https://oschina.net/p/Signal-Server","不详"]
["https://oschina.net/p/ConEmu","不详"]
["https://oschina.net/p/hugo","不详"]
["https://oschina.net/p/lowlevelprogramming-university","不详"]
["https://oschina.net/p/jekyll-now","不详"]
["https://oschina.net/p/beautiful-docs","不详"]
["https://oschina.net/p/elastalert","不详"]
["https://oschina.net/p/two.js","不详"]
["https://oschina.net/p/ppsspp","不详"]
["https://oschina.net/p/server","国产"]
["https://oschina.net/p/redux-observable","不详"]
["https://oschina.net/p/vim-gitgutter","不详"]
["https://oschina.net/p/Vulkan","不详"]
["https://oschina.net/p/jscodeshift","不详"]
["https://oschina.net/p/gvm","不详"]
["https://oschina.net/p/swagger-editor","不详"]
["https://oschina.net/p/cortex","不详"]
["https://oschina.net/p/opensnitch","不详"]
["https://oschina.net/p/tini","不详"]
["https://oschina.net/p/unstated","不详"]
["https://oschina.net/p/rebass","不详"]
["https://oschina.net/p/Best-websites-a-programmer-should-visit-zh","不详"]
["https://oschina.net/p/cropper","不详"]
["https://oschina.net/p/Waifu2x-Extension-GUI","国产"]
["https://oschina.net/p/zoxide","不详"]
["https://oschina.net/p/rax","国产"]
["https://oschina.net/p/vim-multiple-cursors","不详"]
["https://oschina.net/p/cheesesquare","不详"]
["https://oschina.net/p/FLAnimatedImage","不详"]
["https://oschina.net/p/Hangfire","不详"]
["https://oschina.net/p/azure-docs","不详"]
["https://oschina.net/p/statsmodels","不详"]
["https://oschina.net/p/rete","不详"]
["https://oschina.net/p/cash","不详"]
["https://oschina.net/p/up","不详"]
["https://oschina.net/p/magic","国产"]
["https://oschina.net/p/qinglong","国产"]
["https://oschina.net/p/engine","不详"]
["https://oschina.net/p/ImageMagick","不详"]
["https://oschina.net/p/opencv_contrib","不详"]
["https://oschina.net/p/Sonarr","不详"]
["https://oschina.net/p/architecture-decision-record","不详"]
["https://oschina.net/p/altair","不详"]
["https://oschina.net/p/terraform-provider-aws","不详"]
["https://oschina.net/p/pcl","不详"]
["https://oschina.net/p/AltStore","不详"]
["https://oschina.net/p/bottle","不详"]
["https://oschina.net/p/whatsapp-web.js","不详"]
["https://oschina.net/p/py-faster-rcnn","不详"]
["https://oschina.net/p/pundit","不详"]
["https://oschina.net/p/metalsmith","不详"]
["https://oschina.net/p/F2","不详"]
["https://oschina.net/p/wappalyzer","不详"]
["https://oschina.net/p/docker-openvpn","不详"]
["https://oschina.net/p/Reactive-Resume","不详"]
["https://oschina.net/p/react-native-image-picker","不详"]
["https://oschina.net/p/oclif","不详"]
["https://oschina.net/p/thanks","不详"]
["https://oschina.net/p/hexo-theme-next","不详"]
["https://oschina.net/p/paperless","不详"]
["https://oschina.net/p/http-kernel","不详"]
["https://oschina.net/p/pickadate.js","不详"]
["https://oschina.net/p/MySQLTuner-perl","不详"]
["https://oschina.net/p/slate","不详"]
["https://oschina.net/p/citra","不详"]
["https://oschina.net/p/webdriverio","不详"]
["https://oschina.net/p/DeepFaceLive","不详"]
["https://oschina.net/p/webogram","不详"]
["https://oschina.net/p/Interview","不详"]
["https://oschina.net/p/think","不详"]
["https://oschina.net/p/jackson","不详"]
["https://oschina.net/p/OwlCarousel2","不详"]
["https://oschina.net/p/react-i18next","不详"]
["https://oschina.net/p/yfinance","不详"]
["https://oschina.net/p/vue-lazyload","不详"]
["https://oschina.net/p/chai","不详"]
["https://oschina.net/p/node-glob","不详"]
["https://oschina.net/p/RxLifecycle","不详"]
["https://oschina.net/p/primeng","不详"]
["https://oschina.net/p/Awesome-GitHub-Repo","不详"]
["https://oschina.net/p/beef","不详"]
["https://oschina.net/p/purecss-francine","不详"]
["https://oschina.net/p/Probable-Wordlists","不详"]
["https://oschina.net/p/mactype","不详"]
["https://oschina.net/p/howtheysre","不详"]
["https://oschina.net/p/SpringCloud","不详"]
["https://oschina.net/p/jQuery-menu-aim","不详"]
["https://oschina.net/p/ardupilot","不详"]
["https://oschina.net/p/docopt","不详"]
["https://oschina.net/p/bigbluebutton","不详"]
["https://oschina.net/p/fast","不详"]
["https://oschina.net/p/rails_admin","不详"]
["https://oschina.net/p/thejsway","不详"]
["https://oschina.net/p/learnhaskell","不详"]
["https://oschina.net/p/wxParse","不详"]
["https://oschina.net/p/broot","不详"]
["https://oschina.net/p/Reachability.swift","不详"]
["https://oschina.net/p/tsunami-security-scanner","不详"]
["https://oschina.net/p/osxfuse","不详"]
["https://oschina.net/p/kedro","不详"]
["https://oschina.net/p/SoftwareArchitect","不详"]
["https://oschina.net/p/foundation-emails","不详"]
["https://oschina.net/p/BGAQRCode-Android","不详"]
["https://oschina.net/p/dashy","不详"]
["https://oschina.net/p/koin","不详"]
["https://oschina.net/p/webuploader","国产"]
["https://oschina.net/p/Captura","不详"]
["https://oschina.net/p/codecombat","不详"]
["https://oschina.net/p/Texture","不详"]
["https://oschina.net/p/markdown-js","不详"]
["https://oschina.net/p/nebular","不详"]
["https://oschina.net/p/metrics","不详"]
["https://oschina.net/p/awesome-wpo","不详"]
["https://oschina.net/p/proxygen","不详"]
["https://oschina.net/p/js-sequence-diagrams","不详"]
["https://oschina.net/p/pyro","不详"]
["https://oschina.net/p/awesome-java","不详"]
["https://oschina.net/p/pq","不详"]
["https://oschina.net/p/VancedManager","不详"]
["https://oschina.net/p/react-cosmos","不详"]
["https://oschina.net/p/FluentValidation","不详"]
["https://oschina.net/p/factory_bot","不详"]
["https://oschina.net/p/kratos","国产"]
["https://oschina.net/p/screenity","不详"]
["https://oschina.net/p/vimwiki","不详"]
["https://oschina.net/p/pytube","不详"]
["https://oschina.net/p/druid","国产"]
["https://oschina.net/p/chezmoi","不详"]
["https://oschina.net/p/algorithms","不详"]
["https://oschina.net/p/dtm","国产"]
["https://oschina.net/p/Twig","不详"]
["https://oschina.net/p/lz4","不详"]
["https://oschina.net/p/Sarasa-Gothic","不详"]
["https://oschina.net/p/article","不详"]
["https://oschina.net/p/progressbar.js","不详"]
["https://oschina.net/p/grpcurl","不详"]
["https://oschina.net/p/phoneinfoga","不详"]
["https://oschina.net/p/GoodbyeDPI","不详"]
["https://oschina.net/p/languagetool","不详"]
["https://oschina.net/p/Zettlr","不详"]
["https://oschina.net/p/pysc2","不详"]
["https://oschina.net/p/Xin-Yue","不详"]
["https://oschina.net/p/usql","不详"]
["https://oschina.net/p/Cataclysm-DDA","不详"]
["https://oschina.net/p/omniauth","不详"]
["https://oschina.net/p/PureLayout","不详"]
["https://oschina.net/p/boto3","不详"]
["https://oschina.net/p/Sublist3r","不详"]
["https://oschina.net/p/api-platform","不详"]
["https://oschina.net/p/patch-package","不详"]
["https://oschina.net/p/dataease","国产"]
["https://oschina.net/p/PokemonGo-Map","不详"]
["https://oschina.net/p/vue-enterprise-boilerplate","不详"]
["https://oschina.net/p/openvpn","不详"]
["https://oschina.net/p/debezium","不详"]
["https://oschina.net/p/ORB_SLAM2","不详"]
["https://oschina.net/p/UltimateAndroidReference","不详"]
["https://oschina.net/p/shadowsocks_install","不详"]
["https://oschina.net/p/npm-check-updates","不详"]
["https://oschina.net/p/DAIN","不详"]
["https://oschina.net/p/NoiseTorch","不详"]
["https://oschina.net/p/payload","不详"]
["https://oschina.net/p/calibre-web","不详"]
["https://oschina.net/p/nopCommerce","不详"]
["https://oschina.net/p/faker","不详"]
["https://oschina.net/p/lumen","不详"]
["https://oschina.net/p/Reinforcement-learning-with-tensorflow","不详"]
["https://oschina.net/p/node-cron","不详"]
["https://oschina.net/p/single_file_libs","不详"]
["https://oschina.net/p/LaZagne","不详"]
["https://oschina.net/p/Learn_Machine_Learning_in_3_Months","不详"]
["https://oschina.net/p/vue-echarts","不详"]
["https://oschina.net/p/psr7","不详"]
["https://oschina.net/p/create-t3-app","不详"]
["https://oschina.net/p/TrinityCore","不详"]
["https://oschina.net/p/RxJava-Android-Samples","不详"]
["https://oschina.net/p/Kitura","不详"]
["https://oschina.net/p/onnxruntime","不详"]
["https://oschina.net/p/Nuitka","不详"]
["https://oschina.net/p/android-ktx","不详"]
["https://oschina.net/p/i3","不详"]
["https://oschina.net/p/growth-ebook","不详"]
["https://oschina.net/p/chromeos-apk","不详"]
["https://oschina.net/p/prompts","不详"]
["https://oschina.net/p/page.js","不详"]
["https://oschina.net/p/tensorflow2_tutorials_chinese","不详"]
["https://oschina.net/p/javascript-algorithms","不详"]
["https://oschina.net/p/hadolint","不详"]
["https://oschina.net/p/vscode-leetcode","不详"]
["https://oschina.net/p/what-happens-when-zh_CN","不详"]
["https://oschina.net/p/monoid","不详"]
["https://oschina.net/p/polyfill-mbstring","不详"]
["https://oschina.net/p/popcorn-desktop","不详"]
["https://oschina.net/p/cache","不详"]
["https://oschina.net/p/MuseScore","不详"]
["https://oschina.net/p/Mirai-Source-Code","不详"]
["https://oschina.net/p/pgweb","不详"]
["https://oschina.net/p/cerebro","不详"]
["https://oschina.net/p/urql","不详"]
["https://oschina.net/p/termshark","不详"]
["https://oschina.net/p/getx","国产"]
["https://oschina.net/p/hermes","不详"]
["https://oschina.net/p/spark-joy","不详"]
["https://oschina.net/p/TrumpScript","不详"]
["https://oschina.net/p/Lona","不详"]
["https://oschina.net/p/dynamics.js","不详"]
["https://oschina.net/p/mopidy","不详"]
["https://oschina.net/p/anyproxy","不详"]
["https://oschina.net/p/supervisor","不详"]
["https://oschina.net/p/django-allauth","不详"]
["https://oschina.net/p/fail2ban","不详"]
["https://oschina.net/p/tailblocks","不详"]
["https://oschina.net/p/domain-driven-hexagon","不详"]
["https://oschina.net/p/dillinger","不详"]
["https://oschina.net/p/lorca","不详"]
["https://oschina.net/p/litestream","不详"]
["https://oschina.net/p/exploitdb","不详"]
["https://oschina.net/p/metrics-graphics","不详"]
["https://oschina.net/p/Open3D","不详"]
["https://oschina.net/p/Starscream","不详"]
["https://oschina.net/p/my-arsenal-of-aws-security-tools","不详"]
["https://oschina.net/p/c9-python-getting-started","不详"]
["https://oschina.net/p/substrate","不详"]
["https://oschina.net/p/webpack-dev-server","不详"]
["https://oschina.net/p/tview","不详"]
["https://oschina.net/p/AppImageKit","不详"]
["https://oschina.net/p/octicons","不详"]
["https://oschina.net/p/gixy","不详"]
["https://oschina.net/p/styled-system","不详"]
["https://oschina.net/p/goconvey","不详"]
["https://oschina.net/p/icheck","不详"]
["https://oschina.net/p/go-ibax","不详"]
["https://oschina.net/p/tensorboardX","不详"]
["https://oschina.net/p/awesome-vite","不详"]
["https://oschina.net/p/radium","不详"]
["https://oschina.net/p/jemalloc","不详"]
["https://oschina.net/p/type-graphql","不详"]
["https://oschina.net/p/litho","不详"]
["https://oschina.net/p/wallabag","不详"]
["https://oschina.net/p/starlette","不详"]
["https://oschina.net/p/AndroidDevTools","不详"]
["https://oschina.net/p/jna","不详"]
["https://oschina.net/p/Awesome-ARKit","不详"]
["https://oschina.net/p/high-speed-downloader","不详"]
["https://oschina.net/p/docker-gitlab","不详"]
["https://oschina.net/p/Chinese-BERT-wwm","不详"]
["https://oschina.net/p/SJTU-Courses","不详"]
["https://oschina.net/p/prometheus-operator","不详"]
["https://oschina.net/p/text_classification","不详"]
["https://oschina.net/p/modular-monolith-with-ddd","不详"]
["https://oschina.net/p/FreeRDP","不详"]
["https://oschina.net/p/God-Of-BigData","不详"]
["https://oschina.net/p/mist","不详"]
["https://oschina.net/p/ml-visuals","不详"]
["https://oschina.net/p/theHarvester","不详"]
["https://oschina.net/p/dotfiles","不详"]
["https://oschina.net/p/nowinandroid","不详"]
["https://oschina.net/p/BloodHound","不详"]
["https://oschina.net/p/graphene","不详"]
["https://oschina.net/p/gopher-reading-list","不详"]
["https://oschina.net/p/terser","不详"]
["https://oschina.net/p/AndroidLibs","不详"]
["https://oschina.net/p/turf","不详"]
["https://oschina.net/p/YOLOX","不详"]
["https://oschina.net/p/react-pxq","不详"]
["https://oschina.net/p/majestic","不详"]
["https://oschina.net/p/rr","不详"]
["https://oschina.net/p/actix","不详"]
["https://oschina.net/p/open-source-flash","不详"]
["https://oschina.net/p/machine-learning-systems-design","不详"]
["https://oschina.net/p/amazon-sagemaker-examples","不详"]
["https://oschina.net/p/subsampling-scale-image-view","不详"]
["https://oschina.net/p/bundlephobia","不详"]
["https://oschina.net/p/vscode-debug-visualizer","不详"]
["https://oschina.net/p/db_tutorial","不详"]
["https://oschina.net/p/docker-node","不详"]
["https://oschina.net/p/otter","国产"]
["https://oschina.net/p/pysheeet","不详"]
["https://oschina.net/p/rap2-delos","不详"]
["https://oschina.net/p/fsnotify","不详"]
["https://oschina.net/p/easy-application","不详"]
["https://oschina.net/p/Reverse-Engineering","不详"]
["https://oschina.net/p/Swift-30-Projects","不详"]
["https://oschina.net/p/OCRmyPDF","不详"]
["https://oschina.net/p/GTFOBins.github.io","不详"]
["https://oschina.net/p/citus","不详"]
["https://oschina.net/p/FlutterDouBan","不详"]
["https://oschina.net/p/xray","不详"]
["https://oschina.net/p/AndroidPdfViewer","不详"]
["https://oschina.net/p/cython","不详"]
["https://oschina.net/p/jquery.transit","不详"]
["https://oschina.net/p/JsonPath","不详"]
["https://oschina.net/p/polished","不详"]
["https://oschina.net/p/KVOController","不详"]
["https://oschina.net/p/dc.js","不详"]
["https://oschina.net/p/telescope.nvim","不详"]
["https://oschina.net/p/awesome-ctf","不详"]
["https://oschina.net/p/qs","不详"]
["https://oschina.net/p/monero","不详"]
["https://oschina.net/p/hellocharts-android","不详"]
["https://oschina.net/p/uPlot","不详"]
["https://oschina.net/p/vscode-gitlens","不详"]
["https://oschina.net/p/awesome-javascript-cn","不详"]
["https://oschina.net/p/countUp.js","不详"]
["https://oschina.net/p/robotframework","不详"]
["https://oschina.net/p/quic-go","不详"]
["https://oschina.net/p/bandwhich","不详"]
["https://oschina.net/p/awesome-emacs","不详"]
["https://oschina.net/p/vjtools","国产"]
["https://oschina.net/p/cfssl","不详"]
["https://oschina.net/p/vaex","不详"]
["https://oschina.net/p/Cartography","不详"]
["https://oschina.net/p/oni2","不详"]
["https://oschina.net/p/hyperblog","不详"]
["https://oschina.net/p/universe","不详"]
["https://oschina.net/p/machine-learning-yearning-cn","不详"]
["https://oschina.net/p/taskflow","不详"]
["https://oschina.net/p/debug","不详"]
["https://oschina.net/p/ffmpeg-python","不详"]
["https://oschina.net/p/nideshop-mini-program","不详"]
["https://oschina.net/p/DeFi-Developer-Road-Map","不详"]
["https://oschina.net/p/Game-Programmer-Study-Notes","不详"]
["https://oschina.net/p/checkstyle","不详"]
["https://oschina.net/p/zh.javascript.info","不详"]
["https://oschina.net/p/SmartTubeNext","不详"]
["https://oschina.net/p/transmission","不详"]
["https://oschina.net/p/deep-image-prior","不详"]
["https://oschina.net/p/platform","不详"]
["https://oschina.net/p/php-timer","国产"]
["https://oschina.net/p/Blog","不详"]
["https://oschina.net/p/gitsome","不详"]
["https://oschina.net/p/MyBookshelf","不详"]
["https://oschina.net/p/nlp_chinese_corpus","不详"]
["https://oschina.net/p/pcsx2","不详"]
["https://oschina.net/p/fish-redux","不详"]
["https://oschina.net/p/TrustedProxy","不详"]
["https://oschina.net/p/AndroidAsync","不详"]
["https://oschina.net/p/dagger","国产"]
["https://oschina.net/p/antigen","不详"]
["https://oschina.net/p/three20","不详"]
["https://oschina.net/p/es6-promise","不详"]
["https://oschina.net/p/rayon","国产"]
["https://oschina.net/p/EhViewer","不详"]
["https://oschina.net/p/gitignore.io","不详"]
["https://oschina.net/p/go-admin","不详"]
["https://oschina.net/p/leiningen","不详"]
["https://oschina.net/p/ReSwift","不详"]
["https://oschina.net/p/activitywatch","不详"]
["https://oschina.net/p/libco","国产"]
["https://oschina.net/p/microbundle","不详"]
["https://oschina.net/p/Bash-Oneliner","不详"]
["https://oschina.net/p/agera","不详"]
["https://oschina.net/p/readthedocs.org","不详"]
["https://oschina.net/p/Android-Bootstrap","不详"]
["https://oschina.net/p/angularfire","不详"]
["https://oschina.net/p/opendrop","不详"]
["https://oschina.net/p/Spacegray","不详"]
["https://oschina.net/p/ImageAI","不详"]
["https://oschina.net/p/gotop","不详"]
["https://oschina.net/p/casperjs","不详"]
["https://oschina.net/p/cockpit","不详"]
["https://oschina.net/p/negroni","不详"]
["https://oschina.net/p/MQTT.js","不详"]
["https://oschina.net/p/windows-rs","不详"]
["https://oschina.net/p/Gogh","不详"]
["https://oschina.net/p/JTAppleCalendar","不详"]
["https://oschina.net/p/sweet-alert-dialog","不详"]
["https://oschina.net/p/water.css","不详"]
["https://oschina.net/p/shoelace","不详"]
["https://oschina.net/p/my-git","不详"]
["https://oschina.net/p/spinningup","不详"]
["https://oschina.net/p/react-diagrams","不详"]
["https://oschina.net/p/re2","不详"]
["https://oschina.net/p/routing","不详"]
["https://oschina.net/p/entt","不详"]
["https://oschina.net/p/Ocelot","不详"]
["https://oschina.net/p/koodo-reader","国产"]
["https://oschina.net/p/promises","不详"]
["https://oschina.net/p/juice-shop","不详"]
["https://oschina.net/p/moveable","不详"]
["https://oschina.net/p/awesome-dotfiles","不详"]
["https://oschina.net/p/rpcx","国产"]
["https://oschina.net/p/UltimateRecyclerView","国产"]
["https://oschina.net/p/great_expectations","不详"]
["https://oschina.net/p/supertokens-core","不详"]
["https://oschina.net/p/path-to-regexp","不详"]
["https://oschina.net/p/RustScan","不详"]
["https://oschina.net/p/xournalpp","不详"]
["https://oschina.net/p/bips","不详"]
["https://oschina.net/p/waifu2x-caffe","不详"]
["https://oschina.net/p/react-spectrum","不详"]
["https://oschina.net/p/iOS-DeviceSupport","不详"]
["https://oschina.net/p/misbrands","不详"]
["https://oschina.net/p/chart.xkcd","不详"]
["https://oschina.net/p/orbit-db","不详"]
["https://oschina.net/p/git-standup","不详"]
["https://oschina.net/p/pupy","不详"]
["https://oschina.net/p/MyTinySTL","不详"]
["https://oschina.net/p/mimalloc","不详"]
["https://oschina.net/p/leetcode-patterns","不详"]
["https://oschina.net/p/k-9","不详"]
["https://oschina.net/p/tenacity","不详"]
["https://oschina.net/p/mps-youtube","不详"]
["https://oschina.net/p/pyautogui","不详"]
["https://oschina.net/p/fancybox","不详"]
["https://oschina.net/p/libvips","不详"]
["https://oschina.net/p/ShortcutBadger","不详"]
["https://oschina.net/p/SPADE","不详"]
["https://oschina.net/p/fission","不详"]
["https://oschina.net/p/SpaceshipGenerator","不详"]
["https://oschina.net/p/prerender-spa-plugin","不详"]
["https://oschina.net/p/ua-parser-js","不详"]
["https://oschina.net/p/predis","不详"]
["https://oschina.net/p/facebook-ios-sdk","不详"]
["https://oschina.net/p/wego","国产"]
["https://oschina.net/p/trape","不详"]
["https://oschina.net/p/Terminal.Gui","不详"]
["https://oschina.net/p/SWTableViewCell","不详"]
["https://oschina.net/p/DateTools","不详"]
["https://oschina.net/p/vue-virtual-scroller","不详"]
["https://oschina.net/p/TakePhoto","不详"]
["https://oschina.net/p/awesome-wasm","不详"]
["https://oschina.net/p/data-science-from-scratch","不详"]
["https://oschina.net/p/django-debug-toolbar","不详"]
["https://oschina.net/p/instagram-scraper","不详"]
["https://oschina.net/p/sonarqube","不详"]
["https://oschina.net/p/spyder","不详"]
["https://oschina.net/p/morgan","不详"]
["https://oschina.net/p/styled-jsx","不详"]
["https://oschina.net/p/xmrig","不详"]
["https://oschina.net/p/Hackintosh","不详"]
["https://oschina.net/p/Cpp-Primer","不详"]
["https://oschina.net/p/electerm","不详"]
["https://oschina.net/p/vue-analysis","不详"]
["https://oschina.net/p/just","不详"]
["https://oschina.net/p/odometer","不详"]
["https://oschina.net/p/ReactiveUI","不详"]
["https://oschina.net/p/bilibili-API-collect","不详"]
["https://oschina.net/p/flickity","不详"]
["https://oschina.net/p/nvd3","不详"]
["https://oschina.net/p/Nancy","不详"]
["https://oschina.net/p/pholcus","国产"]
["https://oschina.net/p/python-small-examples","不详"]
["https://oschina.net/p/puma","不详"]
["https://oschina.net/p/wiki","不详"]
["https://oschina.net/p/jazzy","不详"]
["https://oschina.net/p/motioneyeos","不详"]
["https://oschina.net/p/android-classyshark","不详"]
["https://oschina.net/p/concurrentqueue","不详"]
["https://oschina.net/p/citybound","不详"]
["https://oschina.net/p/nodemcu-firmware","不详"]
["https://oschina.net/p/ebiten","不详"]
["https://oschina.net/p/startbootstrap","不详"]
["https://oschina.net/p/RESideMenu","不详"]
["https://oschina.net/p/infinite-scroll","不详"]
["https://oschina.net/p/semgrep","不详"]
["https://oschina.net/p/assert","不详"]
["https://oschina.net/p/react-tetris","国产"]
["https://oschina.net/p/beautiful-web-type","不详"]
["https://oschina.net/p/buffalo","国产"]
["https://oschina.net/p/vue-quill-editor","不详"]
["https://oschina.net/p/diff","不详"]
["https://oschina.net/p/WeChatLuckyMoney","国产"]
["https://oschina.net/p/deep-learning-models","不详"]
["https://oschina.net/p/graphql-yoga","不详"]
["https://oschina.net/p/aws-sdk-js","不详"]
["https://oschina.net/p/JVFloatLabeledTextField","不详"]
["https://oschina.net/p/ctrlp.vim","不详"]
["https://oschina.net/p/kornia","不详"]
["https://oschina.net/p/lbry-sdk","不详"]
["https://oschina.net/p/EfficientNet-PyTorch","不详"]
["https://oschina.net/p/umd","不详"]
["https://oschina.net/p/outline-client","不详"]
["https://oschina.net/p/blockchain","不详"]
["https://oschina.net/p/sapper","不详"]
["https://oschina.net/p/fathom","不详"]
["https://oschina.net/p/rsschool-app","不详"]
["https://oschina.net/p/go-internals","不详"]
["https://oschina.net/p/jsplumb","不详"]
["https://oschina.net/p/ActionBarSherlock","不详"]
["https://oschina.net/p/flutterfire","不详"]
["https://oschina.net/p/OpenClash","不详"]
["https://oschina.net/p/ncc","不详"]
["https://oschina.net/p/ailab","不详"]
["https://oschina.net/p/awesome-developer-streams","不详"]
["https://oschina.net/p/python-for-android","不详"]
["https://oschina.net/p/spring-security","不详"]
["https://oschina.net/p/react-native-fast-image","不详"]
["https://oschina.net/p/peco","不详"]
["https://oschina.net/p/gperftools","不详"]
["https://oschina.net/p/purgecss","不详"]
["https://oschina.net/p/Humanizer","不详"]
["https://oschina.net/p/lozad.js","不详"]
["https://oschina.net/p/siyuan","不详"]
["https://oschina.net/p/snowflake","不详"]
["https://oschina.net/p/CppTemplateTutorial","不详"]
["https://oschina.net/p/awesome-compilers","不详"]
["https://oschina.net/p/cachecloud","不详"]
["https://oschina.net/p/machine-learning-notes","不详"]
["https://oschina.net/p/trax","不详"]
["https://oschina.net/p/52-technologies-in-2016","不详"]
["https://oschina.net/p/swift-nio","不详"]
["https://oschina.net/p/warp","不详"]
["https://oschina.net/p/tokei","不详"]
["https://oschina.net/p/css-selector","不详"]
["https://oschina.net/p/rsuite","不详"]
["https://oschina.net/p/RIBs","不详"]
["https://oschina.net/p/SSPanel-Uim","不详"]
["https://oschina.net/p/es5-shim","不详"]
["https://oschina.net/p/MVVMHabit","不详"]
["https://oschina.net/p/hexyl","不详"]
["https://oschina.net/p/react-final-form","不详"]
["https://oschina.net/p/Dash-iOS","不详"]
["https://oschina.net/p/WordPress-Plugin-Boilerplate","不详"]
["https://oschina.net/p/gitfiti","不详"]
["https://oschina.net/p/gmaps","不详"]
["https://oschina.net/p/backbone.marionette","不详"]
["https://oschina.net/p/open-source-rover","不详"]
["https://oschina.net/p/Eve","不详"]
["https://oschina.net/p/computer-science-flash-cards","不详"]
["https://oschina.net/p/process","不详"]
["https://oschina.net/p/manifest","不详"]
["https://oschina.net/p/jsfuck","不详"]
["https://oschina.net/p/DataTables","不详"]
["https://oschina.net/p/personal-website","不详"]
["https://oschina.net/p/swift-composable-architecture","不详"]
["https://oschina.net/p/nom","不详"]
["https://oschina.net/p/php-file-iterator","不详"]
["https://oschina.net/p/algs4","不详"]
["https://oschina.net/p/tinker","国产"]
["https://oschina.net/p/utterances","不详"]
["https://oschina.net/p/leeml-notes","不详"]
["https://oschina.net/p/Dism-Multi-language","不详"]
["https://oschina.net/p/practical-aspnetcore","不详"]
["https://oschina.net/p/bats","不详"]
["https://oschina.net/p/PyMySQL","不详"]
["https://oschina.net/p/Clusterize.js","不详"]
["https://oschina.net/p/kotlin-native","不详"]
["https://oschina.net/p/js-ipfs","不详"]
["https://oschina.net/p/TensorLayer","国产"]
["https://oschina.net/p/RetroArch","不详"]
["https://oschina.net/p/learnyounode","不详"]
["https://oschina.net/p/machinelearning","不详"]
["https://oschina.net/p/version","不详"]
["https://oschina.net/p/swagger-core","不详"]
["https://oschina.net/p/SwiftDate","不详"]
["https://oschina.net/p/flutter-desktop-embedding","不详"]
["https://oschina.net/p/KeychainAccess","不详"]
["https://oschina.net/p/cpprestsdk","不详"]
["https://oschina.net/p/keras-yolo3","不详"]
["https://oschina.net/p/awesome-blazor","不详"]
["https://oschina.net/p/react-modal","不详"]
["https://oschina.net/p/DCGAN-tensorflow","不详"]
["https://oschina.net/p/LuLu","不详"]
["https://oschina.net/p/hidden","不详"]
["https://oschina.net/p/awesome-artificial-intelligence","不详"]
["https://oschina.net/p/PyTorch-Tutorial","不详"]
["https://oschina.net/p/spy-debugger","国产"]
["https://oschina.net/p/tantivy","不详"]
["https://oschina.net/p/ta-lib","不详"]
["https://oschina.net/p/Anti-Anti-Spider","不详"]
["https://oschina.net/p/var-dumper","不详"]
["https://oschina.net/p/MNN","国产"]
["https://oschina.net/p/php-text-template","不详"]
["https://oschina.net/p/fabio","不详"]
["https://oschina.net/p/pymc","不详"]
["https://oschina.net/p/RePlugin","国产"]
["https://oschina.net/p/cors-anywhere","不详"]
["https://oschina.net/p/uno","不详"]
["https://oschina.net/p/Google-Chinese-Results-Blocklist","不详"]
["https://oschina.net/p/macvim","不详"]
["https://oschina.net/p/darktable","不详"]
["https://oschina.net/p/shotcut","不详"]
["https://oschina.net/p/DataV","不详"]
["https://oschina.net/p/psst","不详"]
["https://oschina.net/p/awesome-neovim","不详"]
["https://oschina.net/p/zerolog","不详"]
["https://oschina.net/p/tempus-dominus","不详"]
["https://oschina.net/p/SpringCloud-Learning","不详"]
["https://oschina.net/p/follow-me-install-kubernetes-cluster","不详"]
["https://oschina.net/p/easy_rust","不详"]
["https://oschina.net/p/kubescape","不详"]
["https://oschina.net/p/awesome-privacy","不详"]
["https://oschina.net/p/Sylius","不详"]
["https://oschina.net/p/faster-rcnn.pytorch","不详"]
["https://oschina.net/p/facets","不详"]
["https://oschina.net/p/elastic","不详"]
["https://oschina.net/p/machine_learning_examples","不详"]
["https://oschina.net/p/keystone","国产"]
["https://oschina.net/p/vanilla-lazyload","不详"]
["https://oschina.net/p/how-to-contribute-to-open-source","不详"]
["https://oschina.net/p/SmartTabLayout","不详"]
["https://oschina.net/p/ruoyi-vue-pro","不详"]
["https://oschina.net/p/SmartTabLayout","不详"]
["https://oschina.net/p/ruoyi-vue-pro","不详"]
["https://oschina.net/p/form-generator","不详"]
["https://oschina.net/p/reverse-engineering","不详"]
["https://oschina.net/p/wpscan","不详"]
["https://oschina.net/p/json-api","不详"]
["https://oschina.net/p/Awesome-Chinese-NLP","不详"]
["https://oschina.net/p/xctool","不详"]
["https://oschina.net/p/liteide","不详"]
["https://oschina.net/p/use-gesture","不详"]
["https://oschina.net/p/subconverter","不详"]
["https://oschina.net/p/unocss","国产"]
["https://oschina.net/p/optuna","不详"]
["https://oschina.net/p/db-readings","不详"]
["https://oschina.net/p/morris.js","不详"]
["https://oschina.net/p/crow","不详"]
["https://oschina.net/p/grpc-web","不详"]
["https://oschina.net/p/flame","不详"]
["https://oschina.net/p/chinese-dos-games","国产"]
["https://oschina.net/p/sketch-measure","不详"]
["https://oschina.net/p/Mapper","不详"]
["https://oschina.net/p/fuzzdb","不详"]
["https://oschina.net/p/gnet","国产"]
["https://oschina.net/p/TiddlyWiki5","不详"]
["https://oschina.net/p/golang-cheat-sheet","不详"]
["https://oschina.net/p/WeixinBot","不详"]
["https://oschina.net/p/Flutter-Notebook","不详"]
["https://oschina.net/p/TheFatRat","不详"]
["https://oschina.net/p/sjcl","不详"]
["https://oschina.net/p/mongo-go-driver","不详"]
["https://oschina.net/p/Telethon","不详"]
["https://oschina.net/p/compiler","不详"]
["https://oschina.net/p/google-cloud-4-words","不详"]
["https://oschina.net/p/Reachability","不详"]
["https://oschina.net/p/awesome-object-detection","不详"]
["https://oschina.net/p/graphql-voyager","不详"]
["https://oschina.net/p/sqlx","不详"]
["https://oschina.net/p/AndFix","国产"]
["https://oschina.net/p/Metro-UI-CSS","不详"]
["https://oschina.net/p/pup","不详"]
["https://oschina.net/p/roadmap","不详"]
["https://oschina.net/p/seastar","不详"]
["https://oschina.net/p/react-player","不详"]
["https://oschina.net/p/BlocksKit","不详"]
["https://oschina.net/p/deep-learning-coursera","不详"]
["https://oschina.net/p/generative-models","不详"]
["https://oschina.net/p/flux","不详"]
["https://oschina.net/p/MGSwipeTableCell","不详"]
["https://oschina.net/p/software-architecture-books","不详"]
["https://oschina.net/p/router","不详"]
["https://oschina.net/p/playwright-python","不详"]
["https://oschina.net/p/vex","不详"]
["https://oschina.net/p/Share-SSR-V2ray","不详"]
["https://oschina.net/p/programming-talks","不详"]
["https://oschina.net/p/blog","不详"]
["https://oschina.net/p/css-loaders","不详"]
["https://oschina.net/p/V2RayX","不详"]
["https://oschina.net/p/isomorphic-fetch","不详"]
["https://oschina.net/p/react-apollo","不详"]
["https://oschina.net/p/lemonade-stand","不详"]
["https://oschina.net/p/github-changelog-generator","不详"]
["https://oschina.net/p/filestash","不详"]
["https://oschina.net/p/awesome-serverless","不详"]
["https://oschina.net/p/98.css","不详"]
["https://oschina.net/p/togetherjs","不详"]
["https://oschina.net/p/azuredatastudio","不详"]
["https://oschina.net/p/timesheet.js","不详"]
["https://oschina.net/p/records","不详"]
["https://oschina.net/p/kittenTricks","不详"]
["https://oschina.net/p/chrome-plugin-demo","不详"]
["https://oschina.net/p/node-bunyan","不详"]
["https://oschina.net/p/botframework-sdk","不详"]
["https://oschina.net/p/covid19india-react","不详"]
["https://oschina.net/p/LeetCode","不详"]
["https://oschina.net/p/email-blueprints","不详"]
["https://oschina.net/p/ideavim","不详"]
["https://oschina.net/p/OctoPrint","不详"]
["https://oschina.net/p/middleman","不详"]
["https://oschina.net/p/RxKotlin","不详"]
["https://oschina.net/p/exercism","不详"]
["https://oschina.net/p/swag","不详"]
["https://oschina.net/p/ctf-tools","不详"]
["https://oschina.net/p/awesomplete","不详"]
["https://oschina.net/p/petite-vue","不详"]
["https://oschina.net/p/benchmark","不详"]
["https://oschina.net/p/covid-19-data","不详"]
["https://oschina.net/p/h5-Dooring","国产"]
["https://oschina.net/p/Nuke","不详"]
["https://oschina.net/p/docker-stacks","不详"]
["https://oschina.net/p/one-key-hidpi","不详"]
["https://oschina.net/p/EZFN-Lobbybot","不详"]
["https://oschina.net/p/attention-is-all-you-need-pytorch","不详"]
["https://oschina.net/p/ajenti","不详"]
["https://oschina.net/p/tinygrad","不详"]
["https://oschina.net/p/30min_guides","不详"]
["https://oschina.net/p/ccv","不详"]
["https://oschina.net/p/dotfiles","不详"]
["https://oschina.net/p/nishang","不详"]
["https://oschina.net/p/pytorch-cnn-visualizations","不详"]
["https://oschina.net/p/100days","不详"]
["https://oschina.net/p/otto","不详"]
["https://oschina.net/p/takeover.sh","不详"]
["https://oschina.net/p/Learn-Algorithms","不详"]
["https://oschina.net/p/TaskbarX","不详"]
["https://oschina.net/p/ultisnips","不详"]
["https://oschina.net/p/okhttputils","国产"]
["https://oschina.net/p/xo","不详"]
["https://oschina.net/p/guess","不详"]
["https://oschina.net/p/machine-learning-course","不详"]
["https://oschina.net/p/kubeless","不详"]
["https://oschina.net/p/LSPosed","不详"]
["https://oschina.net/p/nmap","不详"]
["https://oschina.net/p/acwj","不详"]
["https://oschina.net/p/binance-trade-bot","不详"]
["https://oschina.net/p/synaptic","不详"]
["https://oschina.net/p/snipe-it","不详"]
["https://oschina.net/p/hamcrest-php","不详"]
["https://oschina.net/p/jsonmodel","不详"]
["https://oschina.net/p/Stockfish","不详"]
["https://oschina.net/p/react-datepicker","不详"]
["https://oschina.net/p/art-of-readme","不详"]
["https://oschina.net/p/skia","不详"]
["https://oschina.net/p/Data-Science-Notes","不详"]
["https://oschina.net/p/External-Attention-pytorch","不详"]
["https://oschina.net/p/react-native-scrollable-tab-view","不详"]
["https://oschina.net/p/brunch","不详"]
["https://oschina.net/p/Swipe","不详"]
["https://oschina.net/p/ViewAnimator","国产"]
["https://oschina.net/p/neon","不详"]
["https://oschina.net/p/Hippy","国产"]
["https://oschina.net/p/nix","不详"]
["https://oschina.net/p/golang-design-pattern","不详"]
["https://oschina.net/p/jss","不详"]
["https://oschina.net/p/aws-vault","不详"]
["https://oschina.net/p/Sourcery","不详"]
["https://oschina.net/p/unilm","不详"]
["https://oschina.net/p/lovefield","不详"]
["https://oschina.net/p/bup","不详"]
["https://oschina.net/p/gcc","不详"]
["https://oschina.net/p/jupyterhub","不详"]
["https://oschina.net/p/ZFPlayer","不详"]
["https://oschina.net/p/loadable-components","不详"]
["https://oschina.net/p/horizon","不详"]
["https://oschina.net/p/Xiaomi_Kernel_OpenSource","不详"]
["https://oschina.net/p/any-rule","国产"]
["https://oschina.net/p/plantuml","不详"]
["https://oschina.net/p/objection.js","不详"]
["https://oschina.net/p/PyTorch-YOLOv3","不详"]
["https://oschina.net/p/vue-i18n","不详"]
["https://oschina.net/p/compass","不详"]
["https://oschina.net/p/HumanSystemOptimization","不详"]
["https://oschina.net/p/fontello","不详"]
["https://oschina.net/p/john","不详"]
["https://oschina.net/p/better_errors","不详"]
["https://oschina.net/p/XLPagerTabStrip","不详"]
["https://oschina.net/p/np","不详"]
["https://oschina.net/p/lang","不详"]
["https://oschina.net/p/kanboard","不详"]
["https://oschina.net/p/goQuality-dev-contents","不详"]
["https://oschina.net/p/mac-setup","不详"]
["https://oschina.net/p/dsa.js-data-structures-algorithms-javascript","不详"]
["https://oschina.net/p/MMDrawerController","不详"]
["https://oschina.net/p/git-crypt","不详"]
["https://oschina.net/p/FitText.js","不详"]
["https://oschina.net/p/viewerjs","不详"]
["https://oschina.net/p/csslayout","不详"]
["https://oschina.net/p/react-map-gl","不详"]
["https://oschina.net/p/LiteDB","不详"]
["https://oschina.net/p/yowsup","不详"]
["https://oschina.net/p/qemu","不详"]
["https://oschina.net/p/cowboy","不详"]
["https://oschina.net/p/jwt","不详"]
["https://oschina.net/p/fiddle","不详"]
["https://oschina.net/p/FE-interview","不详"]
["https://oschina.net/p/SlickGrid","不详"]
["https://oschina.net/p/easytrader","不详"]
["https://oschina.net/p/loadCSS","不详"]
["https://oschina.net/p/doccano","不详"]
["https://oschina.net/p/rockstar","不详"]
["https://oschina.net/p/frontend-case-studies","不详"]
["https://oschina.net/p/hamburgers","不详"]
["https://oschina.net/p/PrestaShop","不详"]
["https://oschina.net/p/Notepads","不详"]
["https://oschina.net/p/elasticsearch-sql","国产"]
["https://oschina.net/p/retdec","不详"]
["https://oschina.net/p/Timber","不详"]
["https://oschina.net/p/mRemoteNG","不详"]
["https://oschina.net/p/juicefs","国产"]
["https://oschina.net/p/DroidPlugin","不详"]
["https://oschina.net/p/flyway","不详"]
["https://oschina.net/p/resty","不详"]
["https://oschina.net/p/xmall","不详"]
["https://oschina.net/p/enquirer","不详"]
["https://oschina.net/p/scientist","不详"]
["https://oschina.net/p/must-watch-javascript","不详"]
["https://oschina.net/p/lab","不详"]
["https://oschina.net/p/roadrunner","不详"]
["https://oschina.net/p/lemmy","不详"]
["https://oschina.net/p/abstreet","不详"]
["https://oschina.net/p/catboost","不详"]
["https://oschina.net/p/bottlerocket","不详"]
["https://oschina.net/p/dockercraft","不详"]
["https://oschina.net/p/janus-gateway","不详"]
["https://oschina.net/p/volta","不详"]
["https://oschina.net/p/turn.js","不详"]
["https://oschina.net/p/renderdoc","不详"]
["https://oschina.net/p/vim-easymotion","不详"]
["https://oschina.net/p/transactional-email-templates","不详"]
["https://oschina.net/p/Scanners-Box","不详"]
["https://oschina.net/p/NodeOS","不详"]
["https://oschina.net/p/client-go","不详"]
["https://oschina.net/p/noty","不详"]
["https://oschina.net/p/CYLTabBarController","不详"]
["https://oschina.net/p/Paper","不详"]
["https://oschina.net/p/wowchemy-hugo-themes","不详"]
["https://oschina.net/p/awesome-nestjs","不详"]
["https://oschina.net/p/blender","不详"]
["https://oschina.net/p/CS-Xmind-Note","不详"]
["https://oschina.net/p/choo","不详"]
["https://oschina.net/p/gping","不详"]
["https://oschina.net/p/zephyr","不详"]
["https://oschina.net/p/quiche","不详"]
["https://oschina.net/p/VBlog","国产"]
["https://oschina.net/p/ciencia-da-computacao","不详"]
["https://oschina.net/p/Xposed","不详"]
["https://oschina.net/p/starter-workflows","不详"]
["https://oschina.net/p/url-to-pdf-api","不详"]
["https://oschina.net/p/pywal","不详"]
["https://oschina.net/p/python-machine-learning-book-2nd-edition","不详"]
["https://oschina.net/p/aws-shell","不详"]
["https://oschina.net/p/acme-companion","不详"]
["https://oschina.net/p/dotfiles","不详"]
["https://oschina.net/p/cskaoyan","不详"]
["https://oschina.net/p/material-shell","不详"]
["https://oschina.net/p/jsoncpp","不详"]
["https://oschina.net/p/runner-images","不详"]
["https://oschina.net/p/EASTL","不详"]
["https://oschina.net/p/AndroidAutoLayout","不详"]
["https://oschina.net/p/standard-version","不详"]
["https://oschina.net/p/gm","不详"]
["https://oschina.net/p/MVision","不详"]
["https://oschina.net/p/XPopup","不详"]
["https://oschina.net/p/sourcegraph","不详"]
["https://oschina.net/p/blog","不详"]
["https://oschina.net/p/awesome-cpp-cn","不详"]
["https://oschina.net/p/QMUI_iOS","不详"]
["https://oschina.net/p/duckdb","不详"]
["https://oschina.net/p/v-charts","国产"]
["https://oschina.net/p/polacode","不详"]
["https://oschina.net/p/Radarr","不详"]
["https://oschina.net/p/leetcode_101","不详"]
["https://oschina.net/p/apex","不详"]
["https://oschina.net/p/parity-ethereum","不详"]
["https://oschina.net/p/Empire","不详"]
["https://oschina.net/p/L-ink_Card","不详"]
["https://oschina.net/p/javascript-in-one-pic","不详"]
["https://oschina.net/p/sourcerer-app","不详"]
["https://oschina.net/p/SwiftMessages","不详"]
["https://oschina.net/p/om","不详"]
["https://oschina.net/p/aima-python","不详"]
["https://oschina.net/p/windows-kernel-exploits","不详"]
["https://oschina.net/p/winapps","不详"]
["https://oschina.net/p/milkdown","国产"]
["https://oschina.net/p/thc-hydra","不详"]
["https://oschina.net/p/tsfresh","不详"]
["https://oschina.net/p/shadowsocks-go","不详"]
["https://oschina.net/p/invoiceninja","不详"]
["https://oschina.net/p/fkill-cli","不详"]
["https://oschina.net/p/comparator","不详"]
["https://oschina.net/p/asuswrt-merlin","不详"]
["https://oschina.net/p/go-datastructures","不详"]
["https://oschina.net/p/Undecimus","不详"]
["https://oschina.net/p/yudao-cloud","不详"]
["https://oschina.net/p/android-open-project-analysis","不详"]
["https://oschina.net/p/hug","不详"]
["https://oschina.net/p/MHDDoS","不详"]
["https://oschina.net/p/vue-admin","不详"]
["https://oschina.net/p/bullet","不详"]
["https://oschina.net/p/mitosis","不详"]
["https://oschina.net/p/howmanypeoplearearound","不详"]
["https://oschina.net/p/Red-Teaming-Toolkit","不详"]
["https://oschina.net/p/ejs","不详"]
["https://oschina.net/p/models","不详"]
["https://oschina.net/p/getting-a-gig","不详"]
["https://oschina.net/p/screenfull","不详"]
["https://oschina.net/p/OpenCC","国产"]
["https://oschina.net/p/crawlee","不详"]
["https://oschina.net/p/hospitalrun-frontend","不详"]
["https://oschina.net/p/data-science-interviews","不详"]
["https://oschina.net/p/zeroclipboard","不详"]
["https://oschina.net/p/DVWA","不详"]
["https://oschina.net/p/mosquitto","不详"]
["https://oschina.net/p/xxHash","不详"]
["https://oschina.net/p/Hospital","不详"]
["https://oschina.net/p/beaker","不详"]
["https://oschina.net/p/pyo3","不详"]
["https://oschina.net/p/prowler","不详"]
["https://oschina.net/p/closure-compiler","不详"]
["https://oschina.net/p/rellax","不详"]
["https://oschina.net/p/lite","不详"]
["https://oschina.net/p/glide","不详"]
["https://oschina.net/p/TheRemoteFreelancer","不详"]
["https://oschina.net/p/pghero","不详"]
["https://oschina.net/p/pulse","不详"]
["https://oschina.net/p/go-clean-arch","不详"]
["https://oschina.net/p/conventional-changelog","不详"]
["https://oschina.net/p/TTS","不详"]
["https://oschina.net/p/http-message","不详"]
["https://oschina.net/p/gobuster","不详"]
["https://oschina.net/p/source-han-serif","不详"]
["https://oschina.net/p/you-dont-know-js-ru","不详"]
["https://oschina.net/p/nodejs-learning-guide","不详"]
["https://oschina.net/p/everyone-can-use-english","不详"]
["https://oschina.net/p/esprima","不详"]
["https://oschina.net/p/Lean","不详"]
["https://oschina.net/p/clean-code-typescript","不详"]
["https://oschina.net/p/Compressor","不详"]
["https://oschina.net/p/Machine-Learning","不详"]
["https://oschina.net/p/githug","不详"]
["https://oschina.net/p/angel","不详"]
["https://oschina.net/p/Shadow","国产"]
["https://oschina.net/p/vpncn.github.io","不详"]
["https://oschina.net/p/wtv","不详"]
["https://oschina.net/p/jsdiff","不详"]
["https://oschina.net/p/gorush","国产"]
["https://oschina.net/p/FrameworkBenchmarks","不详"]
["https://oschina.net/p/CenterNet","不详"]
["https://oschina.net/p/onedrive","不详"]
["https://oschina.net/p/ipwndfu","不详"]
["https://oschina.net/p/pinyin","国产"]
["https://oschina.net/p/all-contributors","不详"]
["https://oschina.net/p/FSPagerView","不详"]
["https://oschina.net/p/opencart","不详"]
["https://oschina.net/p/node.bcrypt.js","不详"]
["https://oschina.net/p/pytorch3d","不详"]
["https://oschina.net/p/atomic-red-team","不详"]
["https://oschina.net/p/conference","不详"]
["https://oschina.net/p/sentry-javascript","不详"]
["https://oschina.net/p/easings.net","不详"]
["https://oschina.net/p/30-days-of-react-native","不详"]
["https://oschina.net/p/freebsd-src","不详"]
["https://oschina.net/p/CasaOS","不详"]
["https://oschina.net/p/AndPermission","不详"]
["https://oschina.net/p/redux-actions","不详"]
["https://oschina.net/p/Exposed","不详"]
["https://oschina.net/p/flight","不详"]
["https://oschina.net/p/jquery.adaptive-backgrounds.js","不详"]
["https://oschina.net/p/goim","国产"]
["https://oschina.net/p/Dozer","不详"]
["https://oschina.net/p/github-markdown-css","不详"]
["https://oschina.net/p/React-Native-Apps","不详"]
["https://oschina.net/p/bpmn-js","不详"]
["https://oschina.net/p/v2ray-agent","不详"]
["https://oschina.net/p/overreacted.io","不详"]
["https://oschina.net/p/mobx-state-tree","不详"]
["https://oschina.net/p/node-fluent-ffmpeg","不详"]
["https://oschina.net/p/elevator.js","不详"]
["https://oschina.net/p/awesome-project-ideas","不详"]
["https://oschina.net/p/dns","不详"]
["https://oschina.net/p/wysihtml5","不详"]
["https://oschina.net/p/genact","不详"]
["https://oschina.net/p/gb-studio","不详"]
["https://oschina.net/p/rough-notation","不详"]
["https://oschina.net/p/react-rails","不详"]
["https://oschina.net/p/node-telegram-bot-api","不详"]
["https://oschina.net/p/rickshaw","不详"]
["https://oschina.net/p/js-code-to-svg-flowchart","不详"]
["https://oschina.net/p/Bob","不详"]
["https://oschina.net/p/madge","不详"]
["https://oschina.net/p/Airtest","国产"]
["https://oschina.net/p/fastdom","不详"]
["https://oschina.net/p/cheatsheets","不详"]
["https://oschina.net/p/go-cache","不详"]
["https://oschina.net/p/vitest","国产"]
["https://oschina.net/p/react-native-reanimated","不详"]
["https://oschina.net/p/eve","不详"]
["https://oschina.net/p/academicpages.github.io","不详"]
["https://oschina.net/p/css","不详"]
["https://oschina.net/p/nginx-book","国产"]
["https://oschina.net/p/yq","不详"]
["https://oschina.net/p/shiori","不详"]
["https://oschina.net/p/bypy","不详"]
["https://oschina.net/p/annotations","不详"]
["https://oschina.net/p/machinery","不详"]
["https://oschina.net/p/datasette","不详"]
["https://oschina.net/p/auto-sklearn","不详"]
["https://oschina.net/p/pry","不详"]
["https://oschina.net/p/bspwm","不详"]
["https://oschina.net/p/machine","不详"]
["https://oschina.net/p/injectionforxcode","不详"]
["https://oschina.net/p/logoly","国产"]
["https://oschina.net/p/imgproxy","不详"]
["https://oschina.net/p/craco","不详"]
["https://oschina.net/p/gitextensions","不详"]
["https://oschina.net/p/Onboard","不详"]
["https://oschina.net/p/speech_recognition","不详"]
["https://oschina.net/p/refit","不详"]
["https://oschina.net/p/php-token-stream","不详"]
["https://oschina.net/p/isomorphic-git","不详"]
["https://oschina.net/p/slackin","不详"]
["https://oschina.net/p/posh-git","不详"]
["https://oschina.net/p/go-app","不详"]
["https://oschina.net/p/brakeman","不详"]
["https://oschina.net/p/keymaster","不详"]
["https://oschina.net/p/Ultra-Light-Fast-Generic-Face-Detector-1MB","不详"]
["https://oschina.net/p/xorm","不详"]
["https://oschina.net/p/pyroscope","不详"]
["https://oschina.net/p/weather-icons","不详"]
["https://oschina.net/p/Squirrel.Windows","不详"]
["https://oschina.net/p/walle","不详"]
["https://oschina.net/p/awesome-fenix","不详"]
["https://oschina.net/p/examples","不详"]
["https://oschina.net/p/elasticsearch-dump","不详"]
["https://oschina.net/p/flutter_deer","不详"]
["https://oschina.net/p/vlmcsd","不详"]
["https://oschina.net/p/win11React","不详"]
["https://oschina.net/p/360Controller","不详"]
["https://oschina.net/p/listen1_desktop","不详"]
["https://oschina.net/p/awesome-cold-showers","不详"]
["https://oschina.net/p/s3fs-fuse","不详"]
["https://oschina.net/p/ArnoldC","不详"]
["https://oschina.net/p/react-native-push-notification","不详"]
["https://oschina.net/p/react-move","不详"]
["https://oschina.net/p/boto","不详"]
["https://oschina.net/p/Specs","不详"]
["https://oschina.net/p/nimbus","不详"]
["https://oschina.net/p/VVVVVV","不详"]
["https://oschina.net/p/apprise","不详"]
["https://oschina.net/p/web-frameworks","不详"]
["https://oschina.net/p/vuelidate","不详"]
["https://oschina.net/p/LearnPython","不详"]
["https://oschina.net/p/gcn","不详"]
["https://oschina.net/p/simple-peer","不详"]
["https://oschina.net/p/mac-precision-touchpad","不详"]
["https://oschina.net/p/GoJS","国产"]
["https://oschina.net/p/CrackMapExec","不详"]
["https://oschina.net/p/idiomatic-css","不详"]
["https://oschina.net/p/caprine","不详"]
["https://oschina.net/p/wavesurfer.js","不详"]
["https://oschina.net/p/flask-restful","不详"]
["https://oschina.net/p/clarity","不详"]
["https://oschina.net/p/x-editable","不详"]
["https://oschina.net/p/olive","不详"]
["https://oschina.net/p/commit-messages-guide","不详"]
["https://oschina.net/p/owncast","不详"]
["https://oschina.net/p/Bili.Uwp","不详"]
["https://oschina.net/p/jspaint","不详"]
["https://oschina.net/p/AlphaPose","国产"]
["https://oschina.net/p/fbctf","不详"]
["https://oschina.net/p/unleash","不详"]
["https://oschina.net/p/JazzHands","不详"]
["https://oschina.net/p/albert","不详"]
["https://oschina.net/p/YTKNetwork","不详"]
["https://oschina.net/p/ChezScheme","不详"]
["https://oschina.net/p/dat.gui","不详"]
["https://oschina.net/p/exporter","不详"]
["https://oschina.net/p/engineeringladders","不详"]
["https://oschina.net/p/gpt-neo","不详"]
["https://oschina.net/p/php-pm","不详"]
["https://oschina.net/p/Electron.NET","不详"]
["https://oschina.net/p/AndroidPerformanceMonitor","不详"]
["https://oschina.net/p/centrifugo","不详"]
["https://oschina.net/p/intl-tel-input","不详"]
["https://oschina.net/p/mxgraph","不详"]
["https://oschina.net/p/gopl.io","不详"]
["https://oschina.net/p/Dropbox-Uploader","不详"]
["https://oschina.net/p/IconPark","国产"]
["https://oschina.net/p/anypixel","不详"]
["https://oschina.net/p/sqlc","不详"]
["https://oschina.net/p/fauxpilot","不详"]
["https://oschina.net/p/The-Open-Book","不详"]
["https://oschina.net/p/notes-python","不详"]
["https://oschina.net/p/proposal-pipeline-operator","不详"]
["https://oschina.net/p/vim-colors-solarized","不详"]
["https://oschina.net/p/bacon.js","不详"]
["https://oschina.net/p/crater","不详"]
["https://oschina.net/p/paip-lisp","不详"]
["https://oschina.net/p/tools","国产"]
["https://oschina.net/p/PostgresApp","不详"]
["https://oschina.net/p/spotifyd","不详"]
["https://oschina.net/p/nanohttpd","不详"]
["https://oschina.net/p/p1xt-guides","不详"]
["https://oschina.net/p/DeepCTR","不详"]
["https://oschina.net/p/raft","不详"]
["https://oschina.net/p/pydub","不详"]
["https://oschina.net/p/ginkgo","不详"]
["https://oschina.net/p/i18next","不详"]
["https://oschina.net/p/clmtrackr","不详"]
["https://oschina.net/p/content","不详"]
["https://oschina.net/p/cli","不详"]
["https://oschina.net/p/hyperopt","不详"]
["https://oschina.net/p/ios_rule_script","不详"]
["https://oschina.net/p/environment","不详"]
["https://oschina.net/p/translations","不详"]
["https://oschina.net/p/jid","不详"]
["https://oschina.net/p/awesome-c","不详"]
["https://oschina.net/p/anomaly-detection-resources","不详"]
["https://oschina.net/p/turndown","不详"]
["https://oschina.net/p/Toasty","不详"]
["https://oschina.net/p/shipyard","不详"]
["https://oschina.net/p/poco","不详"]
["https://oschina.net/p/hashlips_art_engine","不详"]
["https://oschina.net/p/datahub","不详"]
["https://oschina.net/p/PHPWord","不详"]
["https://oschina.net/p/whoogle-search","不详"]
["https://oschina.net/p/android-security-awesome","不详"]
["https://oschina.net/p/emoji-cheat-sheet.com","不详"]
["https://oschina.net/p/os","不详"]
["https://oschina.net/p/sh","不详"]
["https://oschina.net/p/maybe","不详"]
["https://oschina.net/p/react-responsive","不详"]
["https://oschina.net/p/ivy","不详"]
["https://oschina.net/p/structured-text-tools","不详"]
["https://oschina.net/p/terratest","不详"]
["https://oschina.net/p/icons","不详"]
["https://oschina.net/p/php-xdg-base-dir","不详"]
["https://oschina.net/p/EarTrumpet","不详"]
["https://oschina.net/p/android-floating-action-button","不详"]
["https://oschina.net/p/testcontainers-java","不详"]
["https://oschina.net/p/CKAD-exercises","不详"]
["https://oschina.net/p/awesome-math","不详"]
["https://oschina.net/p/awesome-honeypots","不详"]
["https://oschina.net/p/AdversarialNetsPapers","不详"]
["https://oschina.net/p/paper_trail","不详"]
["https://oschina.net/p/tutorials","不详"]
["https://oschina.net/p/jerryscript","不详"]
["https://oschina.net/p/formidable","不详"]
["https://oschina.net/p/engine-sim","不详"]
["https://oschina.net/p/public-pentesting-reports","不详"]
["https://oschina.net/p/MacPass","不详"]
["https://oschina.net/p/cupy","不详"]
["https://oschina.net/p/sm64","不详"]
["https://oschina.net/p/Python-Core-50-Courses","不详"]
["https://oschina.net/p/hydra","不详"]
["https://oschina.net/p/beginners-typescript-tutorial","不详"]
["https://oschina.net/p/express-graphql","不详"]
["https://oschina.net/p/gosec","不详"]
["https://oschina.net/p/autocannon","不详"]
["https://oschina.net/p/awesome-tunneling","不详"]
["https://oschina.net/p/ckeditor5","不详"]
["https://oschina.net/p/colima","不详"]
["https://oschina.net/p/covid19","不详"]
["https://oschina.net/p/karate","不详"]
["https://oschina.net/p/pycaret","不详"]
["https://oschina.net/p/testssl.sh","不详"]
["https://oschina.net/p/sorry","不详"]
["https://oschina.net/p/RoundedImageView","不详"]
["https://oschina.net/p/axum","不详"]
["https://oschina.net/p/vanilla-extract","不详"]
["https://oschina.net/p/introduction_to_ml_with_python","不详"]
["https://oschina.net/p/training-data-analyst","不详"]
["https://oschina.net/p/featuretools","不详"]
["https://oschina.net/p/degoogle","不详"]
["https://oschina.net/p/xonsh","不详"]
["https://oschina.net/p/pytext","不详"]
["https://oschina.net/p/SerpentAI","不详"]
["https://oschina.net/p/DeepLearningFlappyBird","不详"]
["https://oschina.net/p/kafka-docker","不详"]
["https://oschina.net/p/go-admin","不详"]
["https://oschina.net/p/code-unit-reverse-lookup","不详"]
["https://oschina.net/p/css-blocks","不详"]
["https://oschina.net/p/Clipy","不详"]
["https://oschina.net/p/rust-by-practice","不详"]
["https://oschina.net/p/gow","不详"]
["https://oschina.net/p/ngxtop","不详"]
["https://oschina.net/p/emacs.d","不详"]
["https://oschina.net/p/translation","不详"]
["https://oschina.net/p/blackbox","国产"]
["https://oschina.net/p/About-SwiftUI","不详"]
["https://oschina.net/p/community-edition","不详"]
["https://oschina.net/p/gitalk","不详"]
["https://oschina.net/p/data-engineering-zoomcamp","不详"]
["https://oschina.net/p/nakama","不详"]
["https://oschina.net/p/awful-ai","不详"]
["https://oschina.net/p/xhyve","不详"]
["https://oschina.net/p/famous","不详"]
["https://oschina.net/p/annyang","不详"]
["https://oschina.net/p/lightline.vim","不详"]
["https://oschina.net/p/faust","不详"]
["https://oschina.net/p/x-ui","不详"]
["https://oschina.net/p/stitches","不详"]
["https://oschina.net/p/mybatis-generator-gui","国产"]
["https://oschina.net/p/DensePose","不详"]
["https://oschina.net/p/huxpro.github.io","不详"]
["https://oschina.net/p/simpread","国产"]
["https://oschina.net/p/roughViz","不详"]
["https://oschina.net/p/react-native-svg","不详"]
["https://oschina.net/p/react-native-video","不详"]
["https://oschina.net/p/APlayer","不详"]
["https://oschina.net/p/statping","不详"]
["https://oschina.net/p/stanza","不详"]
["https://oschina.net/p/json-tutorial","不详"]
["https://oschina.net/p/lnd","不详"]
["https://oschina.net/p/cancan","不详"]
["https://oschina.net/p/PDFPatcher","不详"]
["https://oschina.net/p/bash-git-prompt","不详"]
["https://oschina.net/p/Script","不详"]
["https://oschina.net/p/user.js","不详"]
["https://oschina.net/p/LokiJS","不详"]
["https://oschina.net/p/terminal-mac-cheatsheet","不详"]
["https://oschina.net/p/ion","不详"]
["https://oschina.net/p/semver","不详"]
["https://oschina.net/p/chibicc","不详"]
["https://oschina.net/p/Gifski","不详"]
["https://oschina.net/p/reqwest","不详"]
["https://oschina.net/p/nupic","不详"]
["https://oschina.net/p/industry-machine-learning","不详"]
["https://oschina.net/p/autoware","不详"]
["https://oschina.net/p/BayesianOptimization","不详"]
["https://oschina.net/p/react-pdf","不详"]
["https://oschina.net/p/freeboard","不详"]
["https://oschina.net/p/librealsense","不详"]
["https://oschina.net/p/bookshelf","不详"]
["https://oschina.net/p/zfile","不详"]
["https://oschina.net/p/awesome-cheatsheet","不详"]
["https://oschina.net/p/polkadot","不详"]
["https://oschina.net/p/sled","不详"]
["https://oschina.net/p/cppbestpractices","不详"]
["https://oschina.net/p/useful-scripts","不详"]
["https://oschina.net/p/twin.macro","不详"]
["https://oschina.net/p/AndroidAssetStudio","不详"]
["https://oschina.net/p/rails-style-guide","不详"]
["https://oschina.net/p/kutt","不详"]
["https://oschina.net/p/lawnchair","不详"]
["https://oschina.net/p/deepo","不详"]
["https://oschina.net/p/docker-selenium","不详"]
["https://oschina.net/p/pip-tools","不详"]
["https://oschina.net/p/Bogus","不详"]
["https://oschina.net/p/BetterDisplay","不详"]
["https://oschina.net/p/Machine-learning-learning-notes","不详"]
["https://oschina.net/p/menubar","不详"]
["https://oschina.net/p/prestissimo","不详"]
["https://oschina.net/p/SDE-Interview-Questions","不详"]
["https://oschina.net/p/TTS","不详"]
["https://oschina.net/p/node-crawler","不详"]
["https://oschina.net/p/stern","不详"]
["https://oschina.net/p/InfoSpider","不详"]
["https://oschina.net/p/mapscii","不详"]
["https://oschina.net/p/graylog2-server","不详"]
["https://oschina.net/p/marshmallow","不详"]
["https://oschina.net/p/blockchain_guide","不详"]
["https://oschina.net/p/iview-weapp","国产"]
["https://oschina.net/p/commerce","不详"]
["https://oschina.net/p/semi-design","国产"]
["https://oschina.net/p/fenix","不详"]
["https://oschina.net/p/subfinder","不详"]
["https://oschina.net/p/leetcode_company_wise_questions","不详"]
["https://oschina.net/p/npm-check","国产"]
["https://oschina.net/p/processing","不详"]
["https://oschina.net/p/ET","不详"]
["https://oschina.net/p/npkill","不详"]
["https://oschina.net/p/winfile","不详"]
["https://oschina.net/p/1loc","不详"]
["https://oschina.net/p/PHP-Console-Highlighter","不详"]
["https://oschina.net/p/TensorFlow-2.x-Tutorials","不详"]
["https://oschina.net/p/FanControl.Releases","不详"]
["https://oschina.net/p/GameNetworkingSockets","不详"]
["https://oschina.net/p/Win32-OpenSSH","不详"]
["https://oschina.net/p/live2d-widget","不详"]
["https://oschina.net/p/pyod","不详"]
["https://oschina.net/p/uswds","不详"]
["https://oschina.net/p/librdkafka","不详"]
["https://oschina.net/p/global-state","不详"]
["https://oschina.net/p/haven","不详"]
["https://oschina.net/p/beeswithmachineguns","不详"]
["https://oschina.net/p/hypothesis","不详"]
["https://oschina.net/p/msgpack","不详"]
["https://oschina.net/p/athens","不详"]
["https://oschina.net/p/tensorpack","不详"]
["https://oschina.net/p/InterviewThis","不详"]
["https://oschina.net/p/kubernetes-failure-stories","不详"]
["https://oschina.net/p/gorse","不详"]
["https://oschina.net/p/DTCoreText","不详"]
["https://oschina.net/p/bounce.js","不详"]
["https://oschina.net/p/notie","不详"]
["https://oschina.net/p/react-admin","国产"]
["https://oschina.net/p/ueditor","国产"]
["https://oschina.net/p/PHP-Console-Color","不详"]
["https://oschina.net/p/QGIS","不详"]
["https://oschina.net/p/oocss","不详"]
["https://oschina.net/p/version","不详"]
["https://oschina.net/p/PythonPark","不详"]
["https://oschina.net/p/node-in-debugging","不详"]
["https://oschina.net/p/Paddle-Lite","国产"]
["https://oschina.net/p/GCDWebServer","不详"]
["https://oschina.net/p/kphp-kdb","不详"]
["https://oschina.net/p/snowplow","不详"]
["https://oschina.net/p/ariakit","不详"]
["https://oschina.net/p/recursion-context","不详"]
["https://oschina.net/p/patterns","不详"]
["https://oschina.net/p/ffsend","不详"]
["https://oschina.net/p/crossfilter","不详"]
["https://oschina.net/p/NWPusher","不详"]
["https://oschina.net/p/zphisher","不详"]
["https://oschina.net/p/beanstalkd","不详"]
["https://oschina.net/p/vue-multiselect","不详"]
["https://oschina.net/p/laravel-mongodb","不详"]
["https://oschina.net/p/terragrunt","不详"]
["https://oschina.net/p/machine-learning-for-trading","不详"]
["https://oschina.net/p/cnn-explainer","不详"]
["https://oschina.net/p/phpmyadmin","不详"]
["https://oschina.net/p/JSONKit","不详"]
["https://oschina.net/p/es6-features","不详"]
["https://oschina.net/p/walk","不详"]
["https://oschina.net/p/ansj_seg","国产"]
["https://oschina.net/p/conan","不详"]
["https://oschina.net/p/BOOTSTRA.386","不详"]
["https://oschina.net/p/interpy-zh","不详"]
["https://oschina.net/p/sentencepiece","不详"]
["https://oschina.net/p/ansible-for-devops","不详"]
["https://oschina.net/p/devicon","不详"]
["https://oschina.net/p/javacv","不详"]
["https://oschina.net/p/geckodriver","不详"]
["https://oschina.net/p/how-to-exit-vim","不详"]
["https://oschina.net/p/flutter_boost","不详"]
["https://oschina.net/p/fantasque-sans","不详"]
["https://oschina.net/p/HistoryOfEverything","不详"]
["https://oschina.net/p/icecream","不详"]
["https://oschina.net/p/cartographer","不详"]
["https://oschina.net/p/WinObjC","不详"]
["https://oschina.net/p/sizzle","不详"]
["https://oschina.net/p/datasharing","不详"]
["https://oschina.net/p/awesome-leading-and-managing","不详"]
["https://oschina.net/p/BackstopJS","不详"]
["https://oschina.net/p/haoel.github.io","不详"]
["https://oschina.net/p/flutter-examples","不详"]
["https://oschina.net/p/segmentation_models.pytorch","不详"]
["https://oschina.net/p/werkzeug","不详"]
["https://oschina.net/p/URI.js","不详"]
["https://oschina.net/p/BookReader","国产"]
["https://oschina.net/p/RobustVideoMatting","不详"]
["https://oschina.net/p/mapstructure","不详"]
["https://oschina.net/p/httpstat","不详"]
["https://oschina.net/p/evilginx2","不详"]
["https://oschina.net/p/U-2-Net","不详"]
["https://oschina.net/p/dotenv","不详"]
["https://oschina.net/p/Android-Image-Cropper","不详"]
["https://oschina.net/p/homelab","不详"]
["https://oschina.net/p/mame","不详"]
["https://oschina.net/p/AndroidSdkSourceAnalysis","不详"]
["https://oschina.net/p/blockchain","不详"]
["https://oschina.net/p/aeron","不详"]
["https://oschina.net/p/prerender","不详"]
["https://oschina.net/p/ce","不详"]
["https://oschina.net/p/oauth2-server","不详"]
["https://oschina.net/p/USB-Rubber-Ducky","不详"]
["https://oschina.net/p/web-skills","不详"]
["https://oschina.net/p/OrchardCore","不详"]
["https://oschina.net/p/engine","不详"]
["https://oschina.net/p/SmsForwarder","国产"]
["https://oschina.net/p/superstruct","不详"]
["https://oschina.net/p/trump2cash","不详"]
["https://oschina.net/p/KIF","不详"]
["https://oschina.net/p/SUI-Mobile","国产"]
["https://oschina.net/p/SwipeBackLayout","国产"]
["https://oschina.net/p/platformio-core","不详"]
["https://oschina.net/p/entrust","不详"]
["https://oschina.net/p/BossSensor","不详"]
["https://oschina.net/p/laravel-cors","不详"]
["https://oschina.net/p/lmms","不详"]
["https://oschina.net/p/FinRL","不详"]
["https://oschina.net/p/GateOne","不详"]
["https://oschina.net/p/guard","不详"]
["https://oschina.net/p/PaddleGAN","不详"]
["https://oschina.net/p/Quake-III-Arena","不详"]
["https://oschina.net/p/SDCycleScrollView","不详"]
["https://oschina.net/p/README","不详"]
["https://oschina.net/p/TypeScript","不详"]
["https://oschina.net/p/xenia","不详"]
["https://oschina.net/p/MovieSwiftUI","不详"]
["https://oschina.net/p/generator-angular-fullstack","不详"]
["https://oschina.net/p/edx-platform","不详"]
["https://oschina.net/p/typedoc","不详"]
["https://oschina.net/p/ts-jest","不详"]
["https://oschina.net/p/primitives","不详"]
["https://oschina.net/p/betaflight","不详"]
["https://oschina.net/p/aws-doc-sdk-examples","不详"]
["https://oschina.net/p/autoscaler","不详"]
["https://oschina.net/p/UGATIT","不详"]
["https://oschina.net/p/angr","不详"]
["https://oschina.net/p/3d-photo-inpainting","不详"]
["https://oschina.net/p/moto","不详"]
["https://oschina.net/p/prosemirror","不详"]
["https://oschina.net/p/MaterialEditText","不详"]
["https://oschina.net/p/htmlq","不详"]
["https://oschina.net/p/wav2letter","不详"]
["https://oschina.net/p/serde","不详"]
["https://oschina.net/p/ctf-wiki","不详"]
["https://oschina.net/p/nikto","不详"]
["https://oschina.net/p/lua","不详"]
["https://oschina.net/p/smart-contract-best-practices","不详"]
["https://oschina.net/p/fisher","不详"]
["https://oschina.net/p/error-prone","不详"]
["https://oschina.net/p/slack-term","不详"]
["https://oschina.net/p/sandstorm","不详"]
["https://oschina.net/p/cookiecutter-data-science","不详"]
["https://oschina.net/p/Lychee","国产"]
["https://oschina.net/p/weiboSpider","不详"]
["https://oschina.net/p/object-enumerator","不详"]
["https://oschina.net/p/imbalanced-learn","不详"]
["https://oschina.net/p/twirp","不详"]
["https://oschina.net/p/OS.js","不详"]
["https://oschina.net/p/kingshard","不详"]
["https://oschina.net/p/NewsBlur","不详"]
["https://oschina.net/p/slides","不详"]
["https://oschina.net/p/gspread","不详"]
["https://oschina.net/p/aws-sam-cli","不详"]
["https://oschina.net/p/pyTelegramBotAPI","不详"]
["https://oschina.net/p/berty","不详"]
["https://oschina.net/p/SwiftFormat","不详"]
["https://oschina.net/p/vuido","不详"]
["https://oschina.net/p/http-parser","不详"]
["https://oschina.net/p/redux-offline","不详"]
["https://oschina.net/p/collect.js","不详"]
["https://oschina.net/p/Nuklear","不详"]
["https://oschina.net/p/pentaho-kettle","不详"]
["https://oschina.net/p/geocoder","不详"]
["https://oschina.net/p/udacity-nanodegrees","不详"]
["https://oschina.net/p/100-days-of-code","不详"]
["https://oschina.net/p/midway","国产"]
["https://oschina.net/p/wuhan2020","国产"]
["https://oschina.net/p/SwiftyStoreKit","不详"]
["https://oschina.net/p/slap","不详"]
["https://oschina.net/p/resume","不详"]
["https://oschina.net/p/deis","不详"]
["https://oschina.net/p/synx","不详"]
["https://oschina.net/p/nmt","不详"]
["https://oschina.net/p/awesome-django","不详"]
["https://oschina.net/p/qwerty-learner","国产"]
["https://oschina.net/p/gonum","不详"]
["https://oschina.net/p/html","不详"]
["https://oschina.net/p/deep-painterly-harmonization","不详"]
["https://oschina.net/p/newman","不详"]
["https://oschina.net/p/query-string","不详"]
["https://oschina.net/p/Sparkle","不详"]
["https://oschina.net/p/gridster.js","不详"]
["https://oschina.net/p/openproject","不详"]
["https://oschina.net/p/git-cheat-sheet","不详"]
["https://oschina.net/p/winget-pkgs","不详"]
["https://oschina.net/p/emmet-vim","不详"]
["https://oschina.net/p/AMScrollingNavbar","不详"]
["https://oschina.net/p/awesome-system-design","不详"]
["https://oschina.net/p/riot","不详"]
["https://oschina.net/p/goproxy.cn","不详"]
["https://oschina.net/p/handbook","不详"]
["https://oschina.net/p/Prince-of-Persia-Apple-II","不详"]
["https://oschina.net/p/telegraf","不详"]
["https://oschina.net/p/swift","不详"]
["https://oschina.net/p/webiny-js","不详"]
["https://oschina.net/p/iron","不详"]
["https://oschina.net/p/pyre-check","不详"]
["https://oschina.net/p/tensorflow_practice","不详"]
["https://oschina.net/p/charts","不详"]
["https://oschina.net/p/clash-rules","不详"]
["https://oschina.net/p/vitesse","不详"]
["https://oschina.net/p/neutralinojs","不详"]
["https://oschina.net/p/pgx","不详"]
["https://oschina.net/p/vscode-extension-samples","不详"]
["https://oschina.net/p/react-nodegui","不详"]
["https://oschina.net/p/UniRx","不详"]
["https://oschina.net/p/go-sqlite3","不详"]
["https://oschina.net/p/sqlalchemy","不详"]
["https://oschina.net/p/react-big-calendar","不详"]
["https://oschina.net/p/tensorflow_cookbook","不详"]
["https://oschina.net/p/node-qrcode","不详"]
["https://oschina.net/p/fluentui-emoji","不详"]
["https://oschina.net/p/chancejs","不详"]
["https://oschina.net/p/moon","不详"]
["https://oschina.net/p/rest-assured","不详"]
["https://oschina.net/p/GloVe","不详"]
["https://oschina.net/p/yara","不详"]
["https://oschina.net/p/material","不详"]
["https://oschina.net/p/devilutionX","不详"]
["https://oschina.net/p/chartkick","不详"]
["https://oschina.net/p/angularjs-styleguide","不详"]
["https://oschina.net/p/EffectiveAndroidUI","不详"]
["https://oschina.net/p/CloudflareSpeedTest","不详"]
["https://oschina.net/p/NetNewsWire","不详"]
["https://oschina.net/p/echarts-for-weixin","不详"]
["https://oschina.net/p/remusic","不详"]
["https://oschina.net/p/ShadowsocksR-Windows","不详"]
["https://oschina.net/p/bigcache","不详"]
["https://oschina.net/p/physical-web","不详"]
["https://oschina.net/p/kodluyoruz-frontend-101-egitimi","不详"]
["https://oschina.net/p/pytorch-Deep-Learning","不详"]
["https://oschina.net/p/magic-of-css","不详"]
["https://oschina.net/p/rabbitmq-tutorials","不详"]
["https://oschina.net/p/perkeep","不详"]
["https://oschina.net/p/Snap.js","不详"]
["https://oschina.net/p/git-stats","不详"]
["https://oschina.net/p/adarkroom","不详"]
["https://oschina.net/p/scalene","不详"]
["https://oschina.net/p/nlp-recipes","不详"]
["https://oschina.net/p/vimr","不详"]
["https://oschina.net/p/WantWords","不详"]
["https://oschina.net/p/HackBrowserData","国产"]
["https://oschina.net/p/metaflow","不详"]
["https://oschina.net/p/NumberProgressBar","不详"]
["https://oschina.net/p/picojs","不详"]
["https://oschina.net/p/searchkick","不详"]
["https://oschina.net/p/TensorRT","不详"]
["https://oschina.net/p/deepin-wine-ubuntu","不详"]
["https://oschina.net/p/lazy.js","不详"]
["https://oschina.net/p/darkflow","不详"]
["https://oschina.net/p/Pokedex","不详"]
["https://oschina.net/p/deep-residual-networks","不详"]
["https://oschina.net/p/changedetection.io","不详"]
["https://oschina.net/p/ideas","不详"]
["https://oschina.net/p/rector","不详"]
["https://oschina.net/p/visidata","不详"]
["https://oschina.net/p/WSL2-Linux-Kernel","不详"]
["https://oschina.net/p/wren","不详"]
["https://oschina.net/p/cash","不详"]
["https://oschina.net/p/SwiftEntryKit","不详"]
["https://oschina.net/p/resource-operations","不详"]
["https://oschina.net/p/async-http-client","不详"]
["https://oschina.net/p/dagger","国产"]
["https://oschina.net/p/h2o-3","不详"]
["https://oschina.net/p/upspin","不详"]
["https://oschina.net/p/design_patterns","不详"]
["https://oschina.net/p/curriculum","不详"]

{"sheet":"Sheet2","index":1,"n_rows":5394,"n_cols":2,"rows_kept":5394,"cut":false,"hidden":false,"merged":[]}
["ZY-Player",{"$f":"A1=A2","v":false}]
["zxing",{"$f":"A2=A3","v":false}]
["zxcvbn",false]
["zx",false]
["zvt",false]
["zuul",false]
["zustand",false]
["zulip",false]
["zstd",false]
["zstack",false]
["zsh-syntax-highlighting",false]
["zsh-autosuggestions",false]
["zphisher",false]
["zoxide",false]
["zookeeper",false]
["zola",false]
["ZLMediaKit",false]
["zju-icicles",false]
["zipline",false]
["zipkin",false]
["zinx",false]
["zigbee2mqtt",false]
["zig",false]
["zheng",false]
["zhao",false]
["zh.javascript.info",false]
["zfs",false]
["ZFPlayer",false]
["zfile",false]
["Zettlr",false]
["ZeroTierOne",false]
["ZeroNet",false]
["zerolog",false]
["zeroclipboard",false]
["zepto",false]
["zeppelin",false]
["zephyr",false]
["zenbot",false]
["zellij",false]
["zeal",false]
["zdog",false]
["zbus-server",false]
["zaproxy",false]
["Zappa",false]
["zap",false]
["zadig",false]
["zabbix",false]
["z3",false]
["z",false]
["YYText",false]
["YYKit",false]
["YYeTsBot",false]
["yuzu",false]
["yup",false]
["yugabyte-db",false]
["yudao-cloud",false]
["YubiKey-Guide",false]
["YTKNetwork",false]
["yt-dlp",false]
["yq",false]
["yowsup",false]
["youtube-dl-gui",false]
["youtube-dl",false]
["YOURLS",false]
["youmightnotneedjquery",false]
["you-get",{"$f":"A66=A67","v":false}]
["You-Dont-Need-Lodash-Underscore",false]
["You-Dont-Need-jQuery",false]
["You-Dont-Need-JavaScript",false]
["you-dont-know-js-ru",false]
["You-Dont-Know-JS",false]
["YouCompleteMe",false]
["yomo",false]
["YOLOX",false]
["yolov5",false]
["yolov3",false]
["yoga",false]
["yjs",false]
["yii2",false]
["yfinance",false]
["yew",false]
["YesPlayMusic",false]
["yeoman",false]
["Yearning",false]
["yay",false]
["yarn",false]
["yargs",false]
["yara",false]
["yapi",false]
["yabai",false]
["xzs",false]
["XX-Net",false]
["xxl-sso",false]
["xxl-job",false]
["xxHash",false]
["x-ui",false]
["xterm.js",false]
["xtdb",false]
["xsv",false]
["xstate",false]
["XSStrike",false]
["Xray-core",false]
["Xray_onekey",false]
["xray",true]
["xray",false]
["Xposed",false]
["XPopup",false]
["xournalpp",false]
["xorm",false]
["xonsh",false]
["xo",false]
["xmrig",false]
["xmall",false]
["xmake",false]
["xLua",false]
["XLPagerTabStrip",false]
["Xin-Yue",false]
["xi-editor",false]
["Xiaomi_Kernel_OpenSource",false]
["xhyve",false]
["xgboost",false]
["xg2xg",false]
["xenia",false]
["x-editable",false]
["xctool",false]
["xbmc",false]
["xbar",false]
["x64dbg",false]
["wysihtml5",false]
["wxpy",{"$f":"A130=A131","v":false}]
["wxParse",false]
["WWDC",false]
["wuzz",false]
["wuhan2020",false]
["wtv",false]
["wttr.in",false]
["wtfpython",false]
["wtfjs",false]
["wtf",false]
["wslg",false]
["WSL2-Linux-Kernel",false]
["WSL",false]
["ws",false]
["wrk",false]
["wren",false]
["wpscan",false]
["Wox",false]
["wowchemy-hugo-themes",false]
["WOW",false]
["workflow",false]
["workerman",false]
["workbox",false]
["WordPress-Plugin-Boilerplate",false]
["WordPress",false]
["word_cloud",false]
["wookteam",false]
["woodpecker",false]
["woocommerce",false]
["WLED",false]
["wired-elements",false]
["wire",false]
["winsw",false]
["winston",false]
["WinObjC",false]
["winget-pkgs",false]
["winget-cli",false]
["winfile",false]
["WindTerm",false]
["Winds",false]
["Windows-universal-samples",false]
["windows-rs",false]
["windows-kernel-exploits",false]
["windows95",false]
["Windows10Debloater",false]
["winapps",false]
["Win32-OpenSSH",false]
["win11React",false]
["wiki",true]
["wiki",true]
["wiki",false]
["wifiphisher",false]
["wifi-cracking",false]
["why-did-you-render",false]
["whoogle-search",false]
["whistle",false]
["whisper",false]
["whenever",false]
["whatsapp-web.js",false]
["what-happens-when-zh_CN",false]
["what-happens-when",false]
["wg-serverless",false]
["weui-wxss",false]
["weui",false]
["werkzeug",{"$f":"A194=A195","v":false}]
["werf",false]
["wepy",false]
["WePush",false]
["wenyan",false]
["wekan",false]
["WeiXinMPSDK",false]
["weixin-java-tools",false]
["WeixinBot",false]
["weiboSpider",false]
["wego",false]
["weex",false]
["weekly",true]
["weekly",false]
["wechaty",false]
["WeChatTweak-macOS",false]
["WeChatPlugin-MacOS",false]
["WeChatLuckyMoney",false]
["WeChatExtension-ForMac",false]
["WeChatDeveloper",false]
["wechat-app-mall",false]
["wechat_jump_game",false]
["WebViewJavascriptBridge",false]
["webview",false]
["webuploader",false]
["webui-aria2",false]
["webtorrent-desktop",false]
["webtorrent",false]
["web-starter-kit",false]
["websocketd",false]
["websocket",false]
["web-skills",false]
["webshell",false]
["WebRTC-Experiment",false]
["webrtc",false]
["webpack-howto",false]
["webpack-dev-server",false]
["webpack-demos",false]
["webpack-dashboard",false]
["webpack-bundle-analyzer",false]
["webpack",true]
["webpack",false]
["webogram",false]
["webmagic",false]
["webiny-js",false]
["webhook",false]
["WebFundamentals",false]
["web-frameworks",false]
["webfontloader",false]
["webdriverio",false]
["Web-Dev-For-Beginners",false]
["webamp",false]
["web3.js",false]
["Web",false]
["weaviate",false]
["weave",false]
["weather-icons",false]
["wcdb",false]
["waypoints",false]
["wavesurfer.js",false]
["WaveFunctionCollapse",false]
["wav2letter",false]
["WatermelonDB",false]
["water.css",false]
["watchtower",{"$f":"A258=A259","v":false}]
["watchman",false]
["wasmtime",false]
["wasmer",false]
["WasmEdge",false]
["warriorjs",false]
["Warp",true]
["warp",false]
["wappalyzer",false]
["WantWords",false]
["wangEditor",false]
["walle-web",false]
["walle",false]
["wallabag",false]
["walk",false]
["Waking-Up",false]
["wait-for-it",false]
["wails",false]
["Waifu2x-Extension-GUI",false]
["waifu2x-caffe",false]
["waifu2x",false]
["w5",false]
["w3-goto-world",false]
["vxe-table",false]
["VVVVVV",false]
["VVDocumenter-Xcode",false]
["vux",false]
["Vundle.vim",false]
["vuls",false]
["Vulkan",false]
["Vulcan",false]
["vuido",false]
["vuex",false]
["vue-virtual-scroller",false]
["vue-vben-admin",false]
["vuetify",false]
["vue-storefront",false]
["vuestic-admin",false]
["vue-router",false]
["vue-resource",false]
["vue-quill-editor",false]
["vuepress",false]
["vue-native-core",false]
["vue-multiselect",false]
["vue-material",false]
["vue-manage-system",false]
["vuelidate",false]
["vue-lazyload",false]
["vue-i18n",false]
["vue-hackernews-2.0",false]
["vue-enterprise-boilerplate",false]
["vue-element-admin",false]
["vue-echarts",false]
["vue-cli",false]
["vue-analysis",false]
["vue-admin-template",false]
["vue-admin",true]
["vue-admin",false]
["vue2-happyfri",false]
["vue2-elm",false]
["Vue.Draggable",false]
["vue",false]
["vscodium",false]
["vscode-tips-and-tricks",false]
["vscode-leetcode",{"$f":"A322=A323","v":false}]
["vscode-gitlens",false]
["vscode-extension-samples",false]
["vscode-drawio",false]
["vscode-debug-visualizer",false]
["vscode",false]
["vpncn.github.io",false]
["voyager",false]
["vowpal_wabbit",false]
["voltdb",false]
["volta",false]
["volcano",false]
["vnpy",false]
["vnote",false]
["vlmcsd",false]
["vlc",false]
["vlayout",false]
["vjtools",false]
["vivus",false]
["vit-pytorch",false]
["vitest",false]
["vitesse",false]
["vitess",false]
["vite",false]
["visx",false]
["visidata",false]
["visdom",false]
["vis",false]
["VirtualXposed",false]
["virtual-dom",false]
["VirtualApp",false]
["VirtualAPK",false]
["Virgilio",false]
["viper",false]
["vimwiki",false]
["vim-surround",false]
["vimrc",false]
["vimr",false]
["vim-plug",false]
["vim-pathogen",false]
["vim-multiple-cursors",false]
["vimium",false]
["vim-go",false]
["vim-gitgutter",false]
["vim-galore-zh_cn",false]
["vim-galore",false]
["vim-fugitive",false]
["vim-easymotion",false]
["vim-colors-solarized",false]
["vim-airline",false]
["vim",true]
["Vim",false]
["ViewUI",false]
["ViewPagerIndicator",false]
["viewerjs",false]
["ViewAnimator",false]
["video.js",false]
["vid2vid",false]
["victory",false]
["VictoriaMetrics",false]
["vhr",false]
["vex",false]
["vert.x",false]
["version",true]
["version",{"$f":"A386=A387","v":false}]
["verdaccio",false]
["vercel",false]
["Ventoy",false]
["velocity",false]
["velero",false]
["vegeta",false]
["vega",false]
["vee-validate",false]
["vector",false]
["vcpkg",false]
["vConsole",false]
["vcluster",false]
["v-charts",false]
["VBlog",false]
["vaultwarden",false]
["vault",false]
["VasSonic",false]
["varlet",false]
["var-dumper",false]
["vapor",false]
["vant-weapp",false]
["vant",false]
["vanillawebprojects",false]
["vanilla-lazyload",false]
["vanilla-extract",false]
["VancedManager",false]
["validator.js",false]
["validator",false]
["vagrant",false]
["vagas",false]
["vaex",false]
["v86",false]
["v8",false]
["V2RayX",false]
["V2rayU",false]
["v2ray-rules-dat",false]
["v2rayNG",false]
["v2rayN",false]
["v2ray-core",true]
["v2ray-core",false]
["v2ray-agent",false]
["v2ray",false]
["v",false]
["uWebSockets",false]
["uvloop",false]
["uView",false]
["uuid",false]
["utterances",false]
["UTM",false]
["uswds",false]
["usql",false]
["user.js",false]
["use-gesture",false]
["useful-scripts",false]
["use_vim_as_ide",false]
["USB-Rubber-Ducky",false]
["urql",false]
["url-to-pdf-api",false]
["URI.js",false]
["urh",false]
["upx",false]
["uptime-kuma",false]
["upterm",false]
["upspin",{"$f":"A450=A451","v":false}]
["uppy",false]
["upptime",false]
["uPlot",false]
["up",true]
["up",false]
["unstated",false]
["unocss",false]
["uno",false]
["unmaintainable-code",false]
["unlock-music",false]
["unleash",false]
["universe",false]
["uni-ui",false]
["UnityCsReference",false]
["UniRx",false]
["unilm",false]
["uni-app",false]
["ungoogled-chromium",false]
["ungit",false]
["underscore",false]
["Undecimus",false]
["uncss",false]
["UnblockNeteaseMusic",false]
["umi",false]
["umd",false]
["umami",false]
["Ultra-Light-Fast-Generic-Face-Detector-1MB",false]
["ultisnips",false]
["UltimateRecyclerView",false]
["ultimate-go",false]
["UltimateAndroidReference",false]
["UITableView-FDTemplateLayoutCell",false]
["ui-router",false]
["uikit",false]
["ui",false]
["UglifyJS-old",false]
["UGATIT",false]
["ueditor",false]
["udacity-nanodegrees",false]
["uCrop",false]
["uBlock",true]
["uBlock",false]
["ua-parser-js",false]
["U-2-Net",false]
["TZImagePickerController",false]
["typhoon",false]
["typesense",false]
["typescript-tutorial",false]
["TypeScript-React-Starter",false]
["TypeScript-Node-Starter",false]
["typescript-book",false]
["TypeScript",true]
["TypeScript",false]
["TypeResolver",false]
["typer",false]
["typeorm",false]
["type-graphql",false]
["type-fest",false]
["typedoc",false]
["typecho",false]
["type-challenges",false]
["typeahead.js",false]
["tyk",false]
["two.js",{"$f":"A514=A515","v":false}]
["twirp",false]
["twint",false]
["twin.macro",false]
["Twig",false]
["twemproxy",false]
["twemoji",false]
["tweepy",false]
["tween.js",false]
["tvm",false]
["tview",false]
["tutorials",true]
["tutorials",true]
["tutorials",false]
["tushare",false]
["turndown",false]
["turn.js",false]
["turicreate",false]
["turf",false]
["turborepo",false]
["tui-rs",false]
["tui.editor",false]
["tui.calendar",false]
["TTTAttributedLabel",false]
["TTS",true]
["TTS",false]
["tsuru",false]
["tsunami-security-scanner",false]
["ts-node",false]
["ts-jest",false]
["tsfresh",false]
["tsdx",false]
["TrustedProxy",false]
["TrumpScript",false]
["trump2cash",false]
["trufflehog",false]
["truffle",false]
["trpc",false]
["trojan",false]
["trix",false]
["trivy",false]
["trip-to-iOS",false]
["trino",false]
["TrinityCore",false]
["trilium",false]
["trickster",false]
["trianglify",false]
["tree-sitter",false]
["trax",false]
["travis-ci",false]
["trape",false]
["transmission",false]
["TranslucentTB",false]
["translations",false]
["TranslationPlugin",false]
["translation",false]
["transformers",false]
["transferlearning",false]
["transfer.sh",false]
["transactional-email-templates",false]
["training-data-analyst",false]
["trafficserver",false]
["TrafficMonitor",false]
["traefik",false]
["tracking.js",{"$f":"A578=A579","v":false}]
["TrackersListCollection",false]
["trackerslist",false]
["traceur-compiler",false]
["tqdm",false]
["tpot",false]
["tpm",false]
["tpflow",false]
["toxiproxy",false]
["toxcore",false]
["TouchSocket",false]
["tornado",false]
["torch7",false]
["ToolsOfTheTrade",false]
["tools",true]
["tools",false]
["ToolJet",false]
["Tone.js",false]
["tomorrow-theme",false]
["toml",false]
["tomcat",false]
["tokio",false]
["tokei",false]
["togetherjs",false]
["todomvc",false]
["toc",false]
["toBeTopJavaer",false]
["Toasty",false]
["toastr",false]
["tmux-resurrect",false]
["tmuxinator",false]
["tmux",false]
["tms",false]
["TLog",false]
["tldraw",false]
["tldr",false]
["tiptap",false]
["tips",false]
["tippyjs",false]
["TinyWebServer",false]
["tinyrenderer",false]
["tinymce",false]
["Tinyhttpd",false]
["tinygrad",false]
["tinygo",false]
["tinkerpop",false]
["tinker",true]
["tinker",false]
["tini",false]
["tinacms",false]
["TimLiu-iOS",false]
["timesheet.js",false]
["timescaledb",false]
["TimelineJS",false]
["timber",true]
["Timber",false]
["tilt",false]
["tiled",false]
["tile38",false]
["til",false]
["tikv",false]
["tika",false]
["tig",false]
["TiddlyWiki5",false]
["tidb",{"$f":"A642=A643","v":false}]
["thumbor",false]
["thrift",false]
["three20",false]
["three.js",false]
["ThreatMapper",false]
["thinkphp",false]
["thinkcmf",false]
["ThinkAdmin",false]
["think",false]
["thinglinks",false]
["theZoo",false]
["the-way-to-go_ZH_CN",false]
["the-swift-programming-language-in-chinese",false]
["the-super-tiny-compiler",false]
["TheRemoteFreelancer",false]
["the-practical-linux-hardening-guide",false]
["The-Open-Book",false]
["thejsway",false]
["the-incredible-pytorch",false]
["theia",false]
["theHarvester",false]
["The-Golang-Standard-Library-by-Example",false]
["thefuck",false]
["TheFatRat",false]
["the-craft-of-selfteaching",false]
["The-Complete-FAANG-Preparation",false]
["the-book-of-secret-knowledge",false]
["theatre",false]
["The-Art-Of-Programming-By-July",false]
["the-art-of-command-line",false]
["Theano",false]
["the_silver_searcher",false]
["thc-hydra",false]
["thanos",false]
["thanks",false]
["tflearn",false]
["tfjs-models",false]
["tfjs-core",false]
["tfjs",false]
["Texture",false]
["textual",false]
["textql",false]
["textmate",false]
["text-mask",false]
["TextBlob",false]
["text_classification",false]
["tether",false]
["test-your-sysadmin-skills",false]
["testssl.sh",false]
["testing-samples",false]
["testify",false]
["testcontainers-java",false]
["testcafe",false]
["tesseract.js",false]
["tesseract",false]
["terser",false]
["terratest",false]
["terrascan",false]
["terragrunt",false]
["terraform-provider-aws",false]
["terraformer",false]
["terraform",false]
["termux-packages",false]
["termux-app",{"$f":"A706=A707","v":false}]
["termtosvg",false]
["termshark",false]
["terminals-are-sexy",false]
["terminal-mac-cheatsheet",false]
["Terminal.Gui",false]
["terminal",false]
["TensorRT",false]
["tensorpack",false]
["TensorLayer",false]
["TensorFlow-Tutorials",false]
["TensorFlow-Examples",false]
["TensorFlow-Course",false]
["tensorflow2_tutorials_chinese",false]
["TensorFlow-2.x-Tutorials",false]
["tensorflow_practice",false]
["tensorflow_cookbook",false]
["tensorflow",false]
["tensorboardX",false]
["tengine",false]
["TencentOS-tiny",false]
["tenacity",false]
["tempus-dominus",false]
["tempo",false]
["Telethon",false]
["telescope.nvim",false]
["telepresence",false]
["teleport",false]
["Telegram",false]
["telegraf",false]
["tech-interview-handbook",false]
["tech-interview-for-developer",false]
["TeachYourselfCS-CN",false]
["tdesktop",false]
["TDengine",false]
["tbox",false]
["tauri",false]
["Tasmota",false]
["taskflow",false]
["taskbook",false]
["TaskbarX",false]
["Tars",false]
["taro",false]
["tantivy",false]
["tanka",false]
["talos",false]
["ta-lib",false]
["talent-plan",false]
["TakePhoto",false]
["takeover.sh",false]
["Tailwind-Elements",false]
["tailwindcss",false]
["tailscale",false]
["tailblocks",false]
["taichi",false]
["tag-security",false]
["tachyons",false]
["tachiyomi",false]
["TabNine",false]
["tabler",false]
["table",false]
["tabby",false]
["systeminformer",false]
["system-design-resources",false]
["system-design-primer",{"$f":"A770=A771","v":false}]
["system-design-interview",false]
["systemd",false]
["system_design",false]
["sysdig",false]
["sysbox",false]
["synx",false]
["syntastic",false]
["synergy-core",false]
["syncthing",false]
["synaptic",false]
["synapse",false]
["sympy",false]
["symfony",false]
["Sylius",false]
["SWTableViewCell",false]
["swr",false]
["swoole-src",false]
["swoft",false]
["SwitchyOmega",false]
["SwitchHosts",false]
["swiper",false]
["SwipeBackLayout",false]
["Swipe",false]
["Swin-Transformer",false]
["SwiftyStoreKit",false]
["SwiftyJSON",false]
["swift-package-manager",false]
["swift-nio",false]
["SwiftMessages",false]
["swiftmailer",false]
["SwiftLint",false]
["SwiftGuide",false]
["SwiftGen",false]
["SwiftFormat",false]
["swift-evolution",false]
["SwifterSwift",false]
["SwiftEntryKit",false]
["SwiftDate",false]
["swift-composable-architecture",false]
["swift-algorithm-club",false]
["Swift-30-Projects",false]
["swift",true]
["swift",true]
["swift",false]
["sweet-alert-dialog",false]
["sweetalert2",false]
["sweetalert",false]
["swc",false]
["sway",false]
["swarmkit",false]
["swagger-ui",false]
["swagger-editor",false]
["swagger-core",false]
["swagger-codegen",false]
["swagger-bootstrap-ui",false]
["swag",false]
["svgr",false]
["svgo",false]
["svg.js",false]
["svelte",false]
["support.996.ICU",false]
["supervisor",false]
["supertokens-core",false]
["SuperTinyIcons",{"$f":"A834=A835","v":false}]
["superstruct",false]
["superset",false]
["super-linter",false]
["superagent",false]
["supabase",false]
["SunnyUI",false]
["sunflower",false]
["summernote",false]
["Summer2023-Internships",false]
["SummaryOfLoanSuspension",false]
["sumatrapdf",false]
["SUI-Mobile",false]
["substrate",false]
["subsampling-scale-image-view",false]
["submariner",false]
["Sublist3r",false]
["subfinder",false]
["subconverter",false]
["stylus",false]
["stylelint",false]
["styleguide",false]
["stylegan2",false]
["styled-system",false]
["styled-jsx",false]
["styled-components",false]
["style2paints",false]
["struts",false]
["structured-text-tools",false]
["strimzi-kafka-operator",false]
["streisand",false]
["streamlit",false]
["streamlink",false]
["streama",false]
["strapi",false]
["storybook",false]
["storm",true]
["storm",false]
["store.js",false]
["stolon",false]
["Stockfish",false]
["STL",false]
["stitches",false]
["stimulus",false]
["stern",false]
["stencil",false]
["SteamTools",false]
["stb",false]
["StatusBarUtil",false]
["statsmodels",false]
["statsd",false]
["stats.js",false]
["statping",false]
["Statistical-Learning-Method_Code",false]
["static-analysis",false]
["state-of-the-art-result-for-machine-learning-problems",false]
["starter-workflows",false]
["startbootstrap-sb-admin-2",false]
["startbootstrap",false]
["starship",false]
["Starscream",false]
["starlette",false]
["stanza",false]
["stanford-tensorflow-tutorials",false]
["stanford-cs-229-machine-learning",{"$f":"A898=A899","v":false}]
["standard-version",false]
["standard",false]
["stack-on-a-budget",false]
["stackedit",false]
["Stacer",false]
["stable-diffusion",false]
["st2",false]
["sst",false]
["SS-Rule-Snippet",false]
["SSPanel-Uim",false]
["sso",false]
["sshuttle",true]
["sshuttle",false]
["ssdb",false]
["srs",false]
["squoosh",false]
["Squirrel.Windows",false]
["squash",false]
["sqlx",false]
["SqlSugar",false]
["sql-server-samples",false]
["sqlmodel",false]
["sqlmap",false]
["sqlitebrowser",false]
["SQLite.swift",false]
["sqlc",false]
["sqlalchemy",false]
["sql.js",false]
["spyder",false]
["spy-debugger",false]
["spug",false]
["spring-security",false]
["springrain",false]
["spring-framework",false]
["spring-cloud-sleuth",false]
["Spring-Cloud-Platform",false]
["SpringCloud-Learning",false]
["SpringCloudLearning",false]
["spring-cloud-alibaba",false]
["SpringCloud",false]
["spring-boot-seckill",false]
["springboot-learning-example",false]
["SpringBoot-Learning",false]
["SpringBoot-Labs",false]
["spring-boot-examples",false]
["spring-boot-demo",false]
["spring-boot-api-project-seed",false]
["spring-boot-admin",false]
["spring-boot",false]
["SpringBlade",false]
["SpringAll",false]
["Spring",false]
["spree",false]
["spotify-tui",false]
["spotify-downloader",false]
["spotifyd",false]
["Spoon-Knife",false]
["spleeter",false]
["spire",false]
["spinningup",false]
["spinnaker",false]
["SpinKit",false]
["spin.js",false]
["spiffe",{"$f":"A962=A963","v":false}]
["spiderfoot",false]
["spider-flow",false]
["spf13-vim",false]
["spellbook-of-modern-webdev",false]
["speedtest",false]
["speech_recognition",false]
["spectrum",false]
["spectre",false]
["spectacle",true]
["spectacle",false]
["Specs",false]
["spec",true]
["spec",true]
["spec",false]
["spdlog",false]
["Sparkle",false]
["spark-joy",false]
["spark",true]
["spark",false]
["SPADE",false]
["spaCy",false]
["SpaceX-API",false]
["SpaceVim",false]
["spaceship-prompt",false]
["SpaceshipGenerator",false]
["spacemacs",false]
["Spacegray",false]
["spacedrive",false]
["sovereign",false]
["Sourcery",false]
["sourcerer-app",false]
["source-han-serif",false]
["source-han-sans",false]
["sourcegraph",false]
["source-code-pro",false]
["source-code-hunter",false]
["Sortable",false]
["sorry",false]
["sops",false]
["sonobuoy",false]
["sonnet",false]
["sonic-pi",false]
["sonic",false]
["Sonarr",false]
["sonarqube",false]
["solidity",false]
["solid",true]
["solid",false]
["solarized",false]
["solana",false]
["software-architecture-books",false]
["SoftwareArchitect",false]
["SoftEtherVPN",false]
["sofa-tracer",false]
["sofa-rpc",false]
["sofa-boot",false]
["sofa-bolt",false]
["sockjs-client",false]
["SocketRocket",false]
["socket.io-client",false]
["socket.io",false]
["social-engineer-toolkit",false]
["social-analyzer",false]
["soar",{"$f":"A1026=A1027","v":false}]
["snowplow",false]
["snowpack",false]
["snowflake",false]
["snipe-it",false]
["SnapKit",false]
["snapdrop",false]
["Snap.svg",false]
["Snap.js",false]
["snabbdom",false]
["SmsForwarder",false]
["SMSBoom",false]
["SMProxy",false]
["SmartTubeNext",false]
["SmartTabLayout",true]
["SmartTabLayout",false]
["smart-socket",false]
["SmartRefreshLayout",false]
["smartos-live",false]
["smartknob",false]
["SmarterStreaming",false]
["smart-contract-best-practices",false]
["sm64",false]
["Slim",false]
["SlidingMenu",false]
["slidev",false]
["slides",false]
["slideout",false]
["SlickGrid",false]
["slick",false]
["sled",false]
["slate",true]
["slate",true]
["slate",false]
["slap",false]
["SlackTextViewController",false]
["slack-term",false]
["slackin",false]
["skywalking",false]
["skynet",false]
["skyline",false]
["skrollr",false]
["skipper",false]
["skill-map",false]
["skia",false]
["sketch-measure",false]
["SkeletonView",false]
["Skeleton",false]
["skaffold",false]
["SJTU-Courses",false]
["sjcl",false]
["sizzle",false]
["siyuan",false]
["sinon",false]
["singularity",false]
["single-spa",false]
["SingleFile",false]
["single_file_libs",false]
["singa",false]
["sinatra",false]
["simpread",false]
["simple-peer",false]
["simplemde-markdown-editor",false]
["simple-icons",false]
["simplefolio",{"$f":"A1090=A1091","v":false}]
["SimpleDocker",false]
["simple-cache",false]
["simple_form",false]
["SimianArmy",false]
["simdjson",false]
["signoz",false]
["signature_pad",false]
["Signal-Server",false]
["SignalR",false]
["Signal-iOS",false]
["signale",false]
["Signal-Android",false]
["sigma.js",false]
["siddhi",false]
["showdoc",false]
["shotcut",false]
["ShortcutBadger",false]
["shopxo",false]
["shoelace",false]
["shiro",false]
["shipyard",false]
["shiori",false]
["Shimmer",false]
["shields",false]
["sherlock",false]
["shepherd",false]
["shenyu",false]
["shelljs",false]
["shellcheck",false]
["sheetjs",false]
["sharp",false]
["ShareX",false]
["Share-SSR-V2ray",false]
["shardingsphere-elasticjob",false]
["shardingsphere",false]
["shap",false]
["ShadowsocksX-NG",false]
["shadowsocks-windows",false]
["ShadowsocksR-Windows",false]
["shadowsocks-qt5",false]
["shadowsocks-iOS",false]
["shadowsocks-go",false]
["shadowsocks-android",false]
["shadowsocks_install",false]
["shadowsocks",false]
["Shadowrocket-ADBlock-Rules",false]
["Shadow",false]
["sh",false]
["SFML",false]
["setup-ipsec-vpn",false]
["setup",false]
["servo",false]
["service-fabric",false]
["servicecomb-service-center",false]
["servicecomb-pack",false]
["servicecomb-java-chassis",false]
["servicebroker",false]
["serverless-application-model",false]
["serverless",false]
["server-configs-nginx",false]
["server",true]
["server",true]
["server",true]
["Server",{"$f":"A1154=A1155","v":true}]
["server",false]
["serve",false]
["SerpentAI",false]
["serenity",false]
["serde",false]
["sequelpro",false]
["sequelize",false]
["sentry-javascript",false]
["sentry",false]
["Sentinel",false]
["sentence-transformers",false]
["sentencepiece",false]
["Senta",false]
["send",false]
["semver",false]
["semi-design",false]
["semgrep",false]
["Semantic-UI",false]
["semantic-release",false]
["semantic",false]
["selenium",false]
["select2",false]
["segmentation_models.pytorch",false]
["security-guide-for-developers",false]
["SecLists",false]
["secguide",false]
["seaweedfs",false]
["seata",false]
["seastar",false]
["SeasLog",false]
["searx",false]
["searchkick",false]
["sealos",false]
["seajs",false]
["seafile",false]
["seaborn",false]
["SDWebImage",false]
["sdk",false]
["SDE-Interview-Questions",false]
["SDCycleScrollView",false]
["scylladb",false]
["scrollreveal",false]
["ScrollMagic",false]
["Script",false]
["ScreenToGif",false]
["Screenshot-to-code",false]
["screenity",false]
["screenfull",false]
["scrcpy",false]
["scrapy",false]
["scope",false]
["Scoop",false]
["scipy",false]
["scikit-learn",false]
["scientist",false]
["scientific-visualization-book",false]
["schedule",false]
["scapy",false]
["Scanners-Box",false]
["scalene",false]
["scala",false]
["scaffold-eth",false]
["Sa-Token",false]
["satellizer",{"$f":"A1218=A1219","v":false}]
["sass",false]
["Sarasa-Gothic",false]
["sarama",false]
["sapper",false]
["sanitizers",false]
["sanic",false]
["sandstorm",false]
["Sandboxie",false]
["samples",false]
["sampler",false]
["salt",false]
["saleor",false]
["sails",false]
["sage",false]
["s3fs-fuse",false]
["RxTool",false]
["RxSwift",false]
["RxPermissions",false]
["RxLifecycle",false]
["RxKotlin",false]
["rxjs",true]
["RxJS",false]
["RxJava-Android-Samples",false]
["RxJava",false]
["rxdb",false]
["RxBinding",false]
["RxAndroid",false]
["RustScan",false]
["rust-raspberrypi-OS-tutorials",false]
["rustlings",false]
["rust-learning",false]
["rustdesk",false]
["rust-course",false]
["rust-clippy",false]
["rust-by-practice",false]
["rust-analyzer",false]
["rust",true]
["Rust",false]
["ruoyi-vue-pro",true]
["ruoyi-vue-pro",false]
["RuoYi",false]
["runtime",true]
["runtime",false]
["runner-images",false]
["rundeck",false]
["runc",false]
["run",false]
["rufus",false]
["ruffle",false]
["ruby-style-guide",false]
["ruby",false]
["rubocop",false]
["rtty",false]
["rt-thread",false]
["rsuite",false]
["RSSHub",false]
["rsschool-app",false]
["rr",false]
["rqlite",false]
["rq",false]
["rpcx",false]
["rpcs3",false]
["routing",false]
["routersploit",{"$f":"A1282=A1283","v":false}]
["router",false]
["RoundedImageView",false]
["roughViz",false]
["rough-notation",false]
["rough",false]
["roslyn",false]
["Roses",false]
["rook",false]
["roncoo-pay",false]
["roncoo-education",false]
["rollup",false]
["rofi",false]
["rocky",false]
["rockstar",false]
["rocksdb",false]
["rocketmq-spring",false]
["rocketmq-externals",false]
["rocketmq",false]
["Rocket.Chat",false]
["Rocket",false]
["RobustVideoMatting",false]
["robotjs",false]
["robotgo",false]
["robotframework",false]
["robomongo",false]
["roadrunner",false]
["roadmap",false]
["rkt",false]
["rke",false]
["ripgrep",false]
["riot",true]
["riot",false]
["rio",false]
["rickshaw",false]
["rich",false]
["RIBs",false]
["RevokeMsgPatcher",false]
["revery",false]
["reverse-interview-zh",false]
["reverse-interview",false]
["Reverse-Engineering",true]
["reverse-engineering",false]
["reveal.js",false]
["return-youtube-dislike",false]
["RetroPie-Setup",false]
["retrofit",false]
["RetroArch",false]
["rethinkdb",false]
["rete",false]
["retdec",false]
["ReSwift",false]
["ResumeSample",false]
["resume.github.com",false]
["resume",false]
["resty",false]
["RestSharp",false]
["RestKit",false]
["restic",false]
["rest-assured",false]
["restangular",false]
["resque",false]
["responsively-app",false]
["responsive-html-email-template",false]
["Respond",{"$f":"A1346=A1347","v":false}]
["Resources-for-Beginner-Bug-Bounty-Hunters",false]
["resource-operations",false]
["resilience4j",false]
["RESideMenu",false]
["reselect",false]
["reqwest",false]
["requests",false]
["request",false]
["report",false]
["RePlugin",false]
["renren-security",false]
["renovate",false]
["renderdoc",false]
["remusic",false]
["remotion",false]
["remote-working",false]
["remote-jobs",false]
["remix",false]
["rematch",false]
["rellax",false]
["relay",false]
["ReLaXed",false]
["relax",false]
["REKCARC-TSC-UHT",false]
["Reinforcement-learning-with-tensorflow",false]
["reinforcement-learning-an-introduction",false]
["reinforcement-learning",false]
["regexr",false]
["ReflectionDocBlock",false]
["ReflectionCommon",false]
["refit",false]
["refined-github",false]
["redwood",false]
["redux-toolkit",false]
["redux-thunk",false]
["redux-saga",false]
["redux-offline",false]
["redux-observable",false]
["redux-devtools-extension",false]
["redux-devtools",false]
["redux-actions",false]
["redux",false]
["Red-Teaming-Toolkit",false]
["redox",false]
["redoc",false]
["redisson",false]
["redis-py",false]
["RedisDesktopManager",false]
["redis-3.0-annotated",false]
["redis",true]
["redis",false]
["redigo",false]
["reddit",false]
["redash",false]
["recyclerview-animators",false]
["recursion-context",false]
["rector",false]
["Rectangle",false]
["records",false]
["recompose",false]
["recommenders",false]
["Recoil",false]
["recharts",false]
["rebass",{"$f":"A1410=A1411","v":false}]
["reason",false]
["realworld",false]
["Real-Time-Voice-Cloning",false]
["realm-swift",false]
["realm-java",false]
["Real-ESRGAN",false]
["readthedocs.org",false]
["readme-md-generator",false]
["README",false]
["reactxp",false]
["react-window",false]
["react-vis",false]
["react-virtualized",false]
["react-use",false]
["react-transition-group",false]
["react-toolbox",false]
["react-toastify",false]
["react-three-fiber",false]
["react-tetris",false]
["react-testing-library",false]
["react-styleguidist",false]
["reactstrap",false]
["react-static",false]
["react-starter-kit",false]
["react-spring",false]
["react-spectrum",false]
["react-sortable-hoc",false]
["react-slingshot",false]
["react-slick",false]
["react-sketchapp",false]
["react-select",false]
["react-router-redux",false]
["react-router",false]
["react-responsive",false]
["react-redux-starter-kit",false]
["react-redux-links",false]
["react-redux",false]
["react-rails",false]
["react-pxq",false]
["react-player",false]
["reactphp",false]
["react-pdf",true]
["react-pdf",false]
["react-page",false]
["reactotron",false]
["reactos",false]
["react-nodegui",false]
["react-navigation",false]
["react-native-windows",false]
["react-native-web",false]
["react-native-video",false]
["react-native-vector-icons",false]
["react-native-ui-kitten",false]
["react-native-swiper",false]
["react-native-svg",false]
["react-native-snap-carousel",false]
["react-native-scrollable-tab-view",false]
["react-native-router-flux",false]
["react-native-reanimated",false]
["react-native-push-notification",false]
["react-native-paper",false]
["react-native-maps",false]
["react-native-macos",false]
["react-native-image-picker",{"$f":"A1474=A1475","v":false}]
["react-native-guide",false]
["react-native-gifted-chat",false]
["react-native-firebase",false]
["react-native-fast-image",false]
["react-native-elements",false]
["react-native-debugger",false]
["react-native-code-push",false]
["react-native-camera",false]
["react-native-calendars",false]
["React-Native-Apps",false]
["react-native-animatable",false]
["react-native",false]
["react-move",false]
["react-motion",false]
["react-modal",false]
["react-markdown",false]
["react-map-gl",false]
["react-loadable",false]
["react-jsonschema-form",false]
["reactjs-interview-questions",false]
["reactjs.org",false]
["ReactiveUI",false]
["Reactive-Resume",false]
["ReactiveCocoa",false]
["reaction",false]
["react-in-patterns",false]
["reactide",false]
["react-icons",false]
["react-i18next",false]
["react-howto",false]
["react-hook-form",false]
["react-helmet",false]
["react-grid-layout",false]
["react-final-form",false]
["react-fiber-architecture",false]
["react-dropzone",false]
["react-draggable",false]
["react-dnd",false]
["react-diagrams",false]
["react-devtools",false]
["react-developer-roadmap",false]
["react-desktop",false]
["react-demos",false]
["react-dates",false]
["react-datepicker",false]
["react-cosmos",false]
["react-color",false]
["react-bootstrap",false]
["react-boilerplate",false]
["react-big-calendar",false]
["react-beautiful-dnd",false]
["react-app-rewired",false]
["react-apollo",false]
["react-admin",true]
["react-admin",false]
["react-360",false]
["react",true]
["react",false]
["Reachability.swift",false]
["Reachability",false]
["re2",false]
["rdpwrap",false]
["rclone",false]
["rbenv",{"$f":"A1538=A1539","v":false}]
["rbac-manager",false]
["razzle",false]
["rayon",false]
["raylib",false]
["ray",false]
["rax",false]
["rawgraphs-app",false]
["ratchet",false]
["raspberry-pi-os",false]
["rasa",false]
["raphael",false]
["rap2-delos",false]
["RAP",false]
["random_compat",false]
["rancher",false]
["ramda",false]
["raincat",false]
["rainbond",false]
["rails-style-guide",false]
["rails_admin",false]
["rails",false]
["raft",false]
["radium",false]
["Radarr",false]
["radare2",false]
["rabbitmq-tutorials",false]
["rabbitmq-server",false]
["R.swift",false]
["qwik",false]
["qwerty-learner",false]
["Qv2ray",false]
["qutebrowser",false]
["quill",false]
["quicktype",false]
["quickstart-android",false]
["quick-look-plugins",false]
["quicklink",false]
["Quick",false]
["quiche",false]
["quic-go",false]
["questdb",false]
["query-string",false]
["query",false]
["quay",false]
["quasar",false]
["quarkus",false]
["QUANTAXIS",false]
["Quake-III-Arena",false]
["QtScrcpy",false]
["qt",false]
["qs",false]
["qrcp",false]
["qrcodejs",false]
["QMUI_iOS",false]
["QMUI_Android",false]
["qmk_firmware",false]
["qlib",false]
["Qix",false]
["qinglong",false]
["qiankun",false]
["QGIS",false]
["qemu",false]
["qBittorrent",false]
["q",{"$f":"A1602=A1603","v":true}]
["q",false]
["pyxel",false]
["pywal",false]
["pytudes",false]
["pytube",false]
["PyTorch-YOLOv3",false]
["pytorch-tutorial",true]
["PyTorch-Tutorial",false]
["pytorch-image-models",false]
["pytorch-handbook",false]
["pytorch-Deep-Learning",false]
["pytorch-CycleGAN-and-pix2pix",false]
["pytorch-cnn-visualizations",false]
["pytorch-book",false]
["pytorch3d",false]
["pytorch_geometric",false]
["pytorch",false]
["python-tuf",false]
["python-telegram-bot",false]
["python-spider",false]
["python-small-examples",false]
["PythonRobotics",false]
["python-prompt-toolkit",false]
["Python-programming-exercises",false]
["python-patterns",false]
["PythonPark",false]
["python-mini-projects",false]
["python-machine-learning-book-2nd-edition",false]
["python-machine-learning-book",false]
["python-guide",false]
["python-for-android",false]
["python-fire",false]
["PythonDataScienceHandbook",false]
["Python-Core-50-Courses",false]
["python-cheatsheet",false]
["python3-cookbook",false]
["Python-100-Days",false]
["Python",true]
["Python",true]
["Python",true]
["Python",false]
["pytext",false]
["pytest",false]
["pyTelegramBotAPI",false]
["PySyft",false]
["py-spy",false]
["pyspider",false]
["PySnooper",false]
["PySimpleGUI",false]
["pysheeet",false]
["pyscript",false]
["pysc2",false]
["pyroscope",false]
["pyro",false]
["pyright",false]
["pyre-check",false]
["pyodide",false]
["pyod",false]
["pyo3",false]
["PyMySQL",false]
["pymc",false]
["pyinstaller",false]
["py-faster-rcnn",false]
["pyenv",{"$f":"A1666=A1667","v":false}]
["pydub",false]
["pydata-book",false]
["pydantic",false]
["pycaret",false]
["pybind11",false]
["pyautogui",false]
["py12306",false]
["pwntools",false]
["pwc",false]
["push.js",false]
["purifycss",false]
["purgecss",false]
["purescript",false]
["PureLayout",false]
["purecss-francine",false]
["pure-bash-bible",false]
["pure",true]
["pure",false]
["pupy",false]
["puppeteer",false]
["puppet",false]
["pup",false]
["pundit",false]
["pumpkin-book",false]
["puma",false]
["pulumi",false]
["pulse",false]
["pulsar",false]
["pug",false]
["public-pentesting-reports",false]
["public-apis",true]
["Public-APIs",false]
["psysh",false]
["psutil",false]
["psst",false]
["psr7",false]
["pry",false]
["proxygen",false]
["proxyee-down",false]
["proxychains-ng",false]
["proxy_pool",false]
["prowler",false]
["protractor",false]
["proton-native",false]
["Proton",false]
["protobuf.js",false]
["protobuf",true]
["protobuf",false]
["prosemirror",false]
["proposals",false]
["proposal-pipeline-operator",false]
["prophet",false]
["prophecy",false]
["prompts",false]
["promises",false]
["PromiseKit",false]
["prometheus-operator",false]
["prometheus",false]
["Projects",false]
["project-layout",false]
["project-guidelines",false]
["project-based-learning",false]
["progressbar.js",false]
["programming-talks",{"$f":"A1730=A1731","v":false}]
["programmer-job-blacklist",false]
["profile-summary-for-github",false]
["professional-programming",false]
["processing",false]
["process",false]
["probot",false]
["Probable-Wordlists",false]
["Probabilistic-Programming-and-Bayesian-Methods-for-Hackers",false]
["PRML",false]
["prisma1",false]
["prisma",false]
["prism",false]
["Prince-of-Persia-Apple-II",false]
["primitives",false]
["primeng",false]
["prezto",false]
["prettymaps",false]
["prettier",false]
["pretrained-models.pytorch",false]
["presto",false]
["prestissimo",false]
["PrestaShop",false]
["prerender-spa-plugin",false]
["prerender",false]
["prepack",false]
["prefect",false]
["predis",false]
["predictionio",false]
["pre-commit",false]
["preact",false]
["pravega",false]
["practical-python",false]
["practical-aspnetcore",false]
["pq",false]
["ppsspp",false]
["PowerToys",false]
["PowerSploit",false]
["PowerShell",false]
["powerline",false]
["powerlevel9k",false]
["powerlevel10k",false]
["PowerJob",false]
["powerfulseal",false]
["pouchdb",false]
["post-mortems",false]
["posthog",false]
["postgrest",false]
["postgres-operator",false]
["PostgresApp",false]
["postgres",false]
["postgraphile",false]
["postcss",false]
["posh-git",false]
["pose-animator",false]
["Portus",false]
["portia",false]
["portainer",false]
["popmotion",false]
["popcorn-desktop",false]
["pop",false]
["pomerium",false]
["pomelo",false]
["polymer",false]
["polyfill-mbstring",{"$f":"A1794=A1795","v":false}]
["polybar",false]
["pollyjs",false]
["Polly",false]
["polkadot",false]
["polished",false]
["polars",false]
["polaris",false]
["polacode",false]
["PokemonGo-Map",false]
["Pokedex",false]
["poi",false]
["poetry",false]
["podman",false]
["poco",false]
["PocketHub",false]
["pocketbase",false]
["pock",false]
["pnpm",false]
["PNChart",false]
["pm2",false]
["plyr",false]
["pluto",false]
["plumelog",false]
["plugins",false]
["PlotNeuralNet",false]
["plotly.js",false]
["plex",false]
["playwright-python",false]
["playwright",false]
["playground",false]
["platform-wxshop",false]
["platformio-core",false]
["platform_frameworks_base",false]
["platform",false]
["plantuml",false]
["plaid",false]
["pkg",false]
["pixijs",false]
["pixie",false]
["pix2pix",false]
["pix2code",false]
["piskel",false]
["pip-tools",false]
["pipenv",false]
["pipeline",false]
["pip",false]
["pinyin",false]
["pinpoint",false]
["pinot",false]
["pino",false]
["pinia",false]
["Pillow",false]
["Pikaday",false]
["pi-hole",false]
["piggymetrics",false]
["pig",false]
["pifuhd",false]
["PictureSelector",false]
["picturefill",false]
["picojs",false]
["pickadate.js",false]
["PicGo",false]
["picasso",false]
["physical-web",{"$f":"A1858=A1859","v":false}]
["php-xdg-base-dir",false]
["PHPWord",false]
["phpunit",false]
["php-token-stream",false]
["php-timer",false]
["php-the-right-way",false]
["php-text-template",false]
["phpstan",false]
["php-src",false]
["PhpSpreadsheet",false]
["phpredis",false]
["php-pm",false]
["PHP-Parser",false]
["phpmyadmin",false]
["PHPMailer",false]
["php-file-iterator",false]
["php-ext-xlswriter",false]
["PHPExcel",false]
["PHP-CS-Fixer",false]
["PHP-Console-Highlighter",false]
["PHP-Console-Color",false]
["php-code-coverage",false]
["PHP_CodeSniffer",false]
["PhotoView",false]
["PhotoSwipe",false]
["photoprism",false]
["photon",true]
["Photon",false]
["phoneinfoga",false]
["pholcus",false]
["phoenix",false]
["phaser",false]
["phantomjs",false]
["phalapi",false]
["pgx",false]
["pgweb",false]
["pghero",false]
["pgcli",false]
["petite-vue",false]
["personal-website",false]
["personal-security-checklist",false]
["PermissionsDispatcher",false]
["perkeep",false]
["perf-tools",false]
["Perfect",false]
["PENTESTING-BIBLE",false]
["pentaho-kettle",false]
["penpot",false]
["pencil",false]
["pell",false]
["pelican",false]
["peewee",false]
["PeerTube",false]
["peerjs",false]
["peek",false]
["peco",false]
["PEASS-ng",false]
["PDFPatcher",false]
["pdfmake",false]
["pdfkit",false]
["pdfbox",false]
["pdf2htmlEX",false]
["pdf.js",false]
["pdf",{"$f":"A1922=A1923","v":false}]
["pcsx2",false]
["pcl",false]
["PayloadsAllTheThings",false]
["payload",false]
["pay",false]
["patterns",false]
["pattern",false]
["path-to-regexp",false]
["PathFinding.js",false]
["patch-package",false]
["passport",false]
["partytown",false]
["particles.js",false]
["Parsley.js",false]
["parse-server",false]
["parsedown",false]
["parquet-mr",false]
["parquet-format",false]
["ParlAI",false]
["parity-ethereum",false]
["parcel",false]
["paramiko",false]
["parallax",false]
["paperwork",false]
["papers-we-love",false]
["paper-reading",false]
["paperless",false]
["paperclip",false]
["paper_trail",false]
["paper.js",false]
["Paper",false]
["PapaParse",false]
["pan-light",false]
["pandoc",false]
["pandas-profiling",false]
["pandas_exercises",false]
["pandas",false]
["paip-lisp",false]
["pageres",false]
["page.js",false]
["PaddleOCR",false]
["Paddle-Lite",false]
["PaddleHub",false]
["PaddleGAN",false]
["PaddleDetection",false]
["Paddle",false]
["packer",false]
["pack",false]
["pace",false]
["paasta",false]
["paascloud-master",false]
["p5.js",false]
["p3c",false]
["p1xt-guides",false]
["owncast",false]
["OwlCarousel2",false]
["owasp-mastg",false]
["ovs",false]
["overreacted.io",false]
["overleaf",false]
["outline-client",false]
["outline",false]
["otto",false]
["otter",{"$f":"A1986=A1987","v":false}]
["otp",false]
["OSX-KVM",false]
["osxfuse",false]
["osu",false]
["os-tutorial",false]
["oss-fuzz",false]
["osquery",false]
["osm",false]
["os01",false]
["OS.js",false]
["os",false]
["or-tools",false]
["orm",false]
["orleans",false]
["origin",false]
["orientdb",false]
["OrchardCore",false]
["orbit-db",false]
["ORB_SLAM2",false]
["ora",false]
["optuna",false]
["opstrace",false]
["operator-sdk",false]
["openzeppelin-contracts",false]
["openyurt",false]
["openwhisk",false]
["openvpn-install",true]
["openvpn-install",false]
["openvpn",false]
["opentsdb",false]
["opentracing-go",false]
["openstack",false]
["openssl",false]
["open-source-rover",false]
["open-source-mac-os-apps",false]
["open-source-ios-apps",false]
["open-source-flash",false]
["open-source-cs",false]
["open-source-android-apps",false]
["opensource.guide",false]
["opensnitch",false]
["openresty",false]
["OpenRefine",false]
["OpenRCT2",false]
["OpenRA",false]
["openproject",false]
["openpose",false]
["openpilot",false]
["opennlp",false]
["OpenMLDB",false]
["OpenMetrics",false]
["openmct",false]
["openlayers",false]
["Open-IM-Server",false]
["openFrameworks",false]
["openface",false]
["OpenEmu",false]
["openelb",false]
["openebs",false]
["opendrop",false]
["OpenDiablo2",false]
["opencv_contrib",false]
["opencv",false]
["OpenCorePkg",{"$f":"A2050=A2051","v":false}]
["OpenClash",false]
["OpenCC",false]
["opencart",false]
["open-capacity-platform",false]
["OpenBBTerminal",false]
["OpenAuth.Net",false]
["OpenAuth.Cor",false]
["openarkcompiler",false]
["OpenAPI-Specification",false]
["openapi-generator",false]
["openalpr",false]
["openage",false]
["Open3D",false]
["opa",false]
["oocss",false]
["OnsenUI",false]
["onnxruntime",false]
["onnx",false]
["OnJava8",false]
["oni2",false]
["oni",false]
["onepage-scroll",false]
["one-key-hidpi",false]
["onedrive",false]
["onedev",false]
["Onboard",false]
["omniauth",false]
["om",false]
["olive",false]
["okteto",false]
["okio",false]
["okhttputils",false]
["okhttp-OkGo",false]
["okhttp",false]
["OI-wiki",false]
["ohmyzsh",false]
["oh-my-posh",false]
["oh-my-fish",false]
["og-equity-compensation",false]
["og-aws",false]
["offline",false]
["odoo",false]
["odometer",false]
["octotree",false]
["OctoPrint",false]
["octopress",false]
["october",false]
["octicons",false]
["octant",false]
["OCRmyPDF",false]
["oclif",false]
["Ocelot",false]
["oceanbase",false]
["obs-studio",false]
["ObjectMapper",false]
["objection.js",false]
["object-enumerator",false]
["oauth2-server",false]
["oauth2-proxy",false]
["oasys",false]
["o2oa",false]
["nyxt",false]
["nylas-mail",false]
["nx",{"$f":"A2114=A2115","v":false}]
["NWPusher",false]
["nw.js",false]
["nvm-windows",false]
["nvm",false]
["nvidia-docker",false]
["nvd3",false]
["NVActivityIndicatorView",false]
["nuxt.js",false]
["nutz",false]
["nutui",false]
["nutch",false]
["nushell",false]
["nupic",false]
["nunjucks",false]
["numpy-ml",false]
["numpy-100",false]
["numpy",false]
["numerical-linear-algebra",false]
["Numeral-js",false]
["NumberProgressBar",false]
["numba",false]
["nuklear",true]
["Nuklear",false]
["Nuke",false]
["Nuitka",false]
["nuclide",false]
["nuclei",false]
["nuclear",false]
["nsq",false]
["nsfw_data_scraper",false]
["nps",false]
["nprogress",false]
["npm-check-updates",false]
["npm-check",false]
["npm",false]
["npkill",false]
["np",false]
["nowinandroid",false]
["novu",false]
["noVNC",false]
["noty",false]
["not-paid",false]
["notie",false]
["notes-python",false]
["Notepads",false]
["notepad-plus-plus",false]
["notebook",false]
["notary",false]
["notable",false]
["normalizr",false]
["normalize.css",false]
["nopCommerce",false]
["noms",false]
["nomad",false]
["nom",false]
["NoiseTorch",false]
["node-v0.x-archive",false]
["node-telegram-bot-api",false]
["node-schedule",false]
["node-sass",false]
["node-restify",false]
["node-redis",false]
["node-red",false]
["node-qrcode",{"$f":"A2178=A2179","v":false}]
["nodeppt",false]
["node-postgres",false]
["NodeOS",false]
["node-mongodb-native",false]
["nodemon",false]
["nodemcu-firmware",false]
["nodemailer",false]
["node-lessons",false]
["node-jsonwebtoken",false]
["nodejs-learning-guide",false]
["node-interview",false]
["node-in-debugging",false]
["node-gyp",false]
["nodegui",false]
["node-glob",false]
["node-fs-extra",false]
["node-fluent-ffmpeg",false]
["node-fetch",false]
["node-elm",false]
["node-cron",false]
["node-crawler",false]
["nodeclub",false]
["node-canvas",false]
["node-bunyan",false]
["nodebestpractices",false]
["node_exporter",false]
["node.bcrypt.js",false]
["node",false]
["nocode",false]
["nocodb",false]
["nocobase",false]
["nock",false]
["nocalhost",false]
["nnn",false]
["nndl.github.io",false]
["nmt",false]
["nmap",false]
["nltk",false]
["nlp-tutorial",false]
["nlp-recipes",false]
["NLP-progress",false]
["nlp_course",false]
["nlp_chinese_corpus",false]
["nixpkgs",false]
["nix",false]
["nivo",false]
["nishang",false]
["ninja",false]
["nimbus",false]
["Nim",false]
["nikto",false]
["nightwatch",false]
["nightmare",false]
["nightingale",false]
["night",false]
["nifi",false]
["nideshop-mini-program",false]
["NiceFish",false]
["ng-zorro-antd",false]
["ngxtop",false]
["ngx-admin",false]
["ngrok",false]
["nginxWebUI",false]
["nginx-proxy-manager",{"$f":"A2242=A2243","v":false}]
["nginx-proxy",false]
["nginx-http-flv-module",false]
["nginxconfig.io",false]
["nginx-book",false]
["nginx",false]
["ng-file-upload",false]
["ng-bootstrap",false]
["nextui",false]
["next-auth",false]
["next.js",false]
["nexe",false]
["Newtonsoft.Json",false]
["NewsBlur",false]
["NewPipe",false]
["new-pac",false]
["newman",false]
["newbee-mall",false]
["neutralinojs",false]
["neural-style",false]
["neural-networks-and-deep-learning",false]
["neural-enhance",false]
["neural-doodle",false]
["neural",false]
["networkx",false]
["netty",false]
["netron",false]
["NetNewsWire",false]
["netlify-cms",false]
["NeteaseCloudMusicApi",false]
["netdata",false]
["netbox",false]
["netbeans",false]
["nest",false]
["NES.css",false]
["nerdtree",false]
["nerd-fonts",false]
["neovim",false]
["neovide",false]
["neon",false]
["neofetch",false]
["neo4j",false]
["negroni",false]
["neditor",false]
["nedb",false]
["nebular",false]
["nebula",true]
["nebula",false]
["ndk-samples",false]
["ndb",false]
["ncnn",false]
["ncc",false]
["N-blog",false]
["navi",false]
["natural",false]
["nats-server",false]
["NativeScript",false]
["nativefier",false]
["NativeBase",false]
["napajs",false]
["NanUI",false]
["nanoid",false]
["nanohttpd",false]
["nano",false]
["Nancy",{"$f":"A2306=A2307","v":false}]
["naming-cheatsheet",false]
["nakama",false]
["naive-ui",false]
["nagioscore",false]
["nacos",false]
["n8n",false]
["N_m3u8DL-CLI",false]
["n",false]
["MyTinySTL",false]
["MySQLTuner-perl",false]
["mysql-server",false]
["mysql",false]
["mypy",false]
["my-mac-os",false]
["my-git",false]
["mycli",false]
["Mycat-Server",false]
["Mycat2",false]
["MyBookshelf",false]
["My-blog",false]
["mybatis-plus",false]
["Mybatis-PageHelper",false]
["mybatis-generator-gui",false]
["mybatis-3",false]
["my-arsenal-of-aws-security-tools",false]
["mxgraph",false]
["MWPhotoBrowser",false]
["MVVMHabit",false]
["mvt",false]
["MVPArms",false]
["MVision",false]
["mux",false]
["muuri",false]
["must-watch-javascript",false]
["mustache.js",false]
["musicbox",false]
["muse-ui",false]
["MuseScore",false]
["multus-cni",false]
["multer",false]
["mui",false]
["msw",false]
["msgpack",false]
["MS-DOS",false]
["mRemoteNG",false]
["MrDoc",false]
["MQTT.js",false]
["mpvue",false]
["mpv",false]
["mps-youtube",false]
["MPAndroidChart",false]
["Moya",false]
["MovieSwiftUI",false]
["movies-for-hackers",false]
["moviepy",false]
["moveable",false]
["mousetrap",false]
["Motrix",false]
["moto",false]
["motioneyeos",false]
["motion",false]
["mostly-adequate-guide",false]
["mosquitto",false]
["mosn",{"$f":"A2370=A2371","v":false}]
["moshi",false]
["mosh",false]
["Mos",false]
["morris.js",false]
["morgan",false]
["mopidy",false]
["moosefs",false]
["moon",false]
["monolog",false]
["monoid",false]
["MonoGame",false]
["mono",false]
["monkeytype",false]
["MonitorControl",false]
["monica",false]
["mongoose",true]
["mongoose",false]
["mongo-go-driver",false]
["mongo",false]
["monero",false]
["monaco-editor",false]
["moment",false]
["mold",false]
["mojs",false]
["modular-monolith-with-ddd",false]
["modin",false]
["modern-unix",false]
["modern-js-cheatsheet",false]
["Modernizr",false]
["modern-cpp-tutorial",false]
["modern-cpp-features",false]
["models",true]
["models",false]
["mockito",false]
["MockingBird",false]
["mockery",false]
["Mock",true]
["mock",false]
["mocha",false]
["moby",false]
["mobx-state-tree",false]
["mobx",false]
["Mobile-Detect",false]
["MNN",false]
["mml-book.github.io",false]
["MMKV",false]
["MMDrawerController",false]
["mmdetection",false]
["ML-YouTube-Courses",false]
["ml-visuals",false]
["ML-From-Scratch",false]
["ML-For-Beginners",false]
["mlcourse.ai",false]
["MLAlgorithms",false]
["ml-agents",false]
["mkdocs-material",false]
["mkdocs",false]
["mkcert",false]
["MJRefresh",false]
["mjml",false]
["MJExtension",false]
["mix",false]
["mitt",false]
["mitosis",{"$f":"A2434=A2435","v":false}]
["mitmproxy",false]
["mithril.js",false]
["mit-deep-learning-book-pdf",false]
["mit-deep-learning",false]
["mist-ce",false]
["mist",false]
["misbrands",false]
["Mirai-Source-Code",false]
["mirai",false]
["mint-ui",false]
["mini-vue",false]
["minio",false]
["minimal-mistakes",false]
["minikube",false]
["MiniExcel",false]
["minGPT",false]
["minetest",false]
["Mindustry",false]
["mindsdb",false]
["Mind-Expanding-Books",false]
["mimikatz",false]
["mimalloc",false]
["milvus",false]
["milligram",false]
["milkdown",false]
["milewski-ctfp-pdf",false]
["migrate",false]
["midway",false]
["middleman",false]
["Microsoft-Activation-Scripts",false]
["micropython",false]
["microk8s",false]
["MicroCommunity",false]
["microbundle",false]
["Micro8",false]
["micro",true]
["micro",true]
["micro",false]
["miaosha",false]
["MHDDoS",false]
["MGSwipeTableCell",false]
["Metro-UI-CSS",false]
["metrics-graphics",false]
["metrics",true]
["metrics",false]
["metersphere",false]
["meteor",false]
["metasploit-framework",false]
["metamask-extension",false]
["metalsmith",false]
["metallb",false]
["metaflow",false]
["metabase",false]
["mesos",false]
["Meshroom",false]
["meshery",false]
["mesh",false]
["mermaid",false]
["menubar",false]
["mentoring",false]
["mendmix",false]
["memray",false]
["meilisearch",false]
["medusa",{"$f":"A2498=A2499","v":false}]
["medium-editor",false]
["medis",false]
["MediatR",false]
["mediapipe",false]
["mediaelement",false]
["mdx-deck",false]
["mdx",false]
["mdui",false]
["mdb-ui-kit",false]
["mdBook",false]
["md_blockchain",false]
["md",false]
["mcms",false]
["m-cli",false]
["MBProgressHUD",false]
["maybe",false]
["MaxKey",false]
["maven-mvnd",false]
["maven",false]
["maui",false]
["mattermost-server",false]
["matter-js",false]
["matrix",false]
["matplotlib",false]
["matomo",false]
["MathJax",false]
["math-as-code",false]
["MaterialViewPager",false]
["material-ui",false]
["material-theme-jetbrains",false]
["material-theme",false]
["material-shell",false]
["materialize",false]
["MaterialEditText",false]
["MaterialDrawer",false]
["material-dialogs",false]
["material-design-lite",false]
["MaterialDesignLibrary",false]
["material-design-icons",false]
["material-design-for-bootstrap",false]
["MaterialDesign",false]
["material-dashboard",false]
["material-components-web",false]
["material-components-android",false]
["Material-Animations",false]
["material",true]
["Material",true]
["material",false]
["mastodon",false]
["masscan",false]
["Masonry",true]
["masonry",false]
["maskrcnn-benchmark",false]
["Mask_RCNN",false]
["mas",false]
["martini",false]
["marshmallow",false]
["mars",true]
["Mars",false]
["marp",false]
["Marlin",false]
["marktext",false]
["marko",false]
["marked",{"$f":"A2562=A2563","v":false}]
["markdown-js",false]
["markdown-it",false]
["markdown-here",false]
["mapstructure",false]
["mapscii",false]
["Mapper",false]
["mapbox-gl-js",false]
["Mantle",false]
["mantine",false]
["manim",true]
["manim",false]
["manifest",false]
["manageiq",false]
["mame",false]
["MalwareSourceCode",false]
["mall-swarm",false]
["mall-learning",false]
["mall-admin-web",false]
["mall",false]
["mal",false]
["majestic",false]
["Mailspring",false]
["Mailpile",false]
["mailinabox",false]
["MailHog",false]
["mailcheck",false]
["mahout",false]
["MahApps.Metro",false]
["Magnific-Popup",false]
["Magisk",false]
["magic-wormhole",false]
["magictools",false]
["magic-of-css",false]
["MagicMirror",false]
["MagicIndicator",false]
["MagicalRecord",false]
["magic",false]
["magento2",false]
["magenta",false]
["madge",false]
["Made-With-ML",false]
["macvim",false]
["mactype",false]
["mac-setup",false]
["mac-precision-touchpad",false]
["MacPass",false]
["macOS-Security-and-Privacy-Guide",false]
["macintosh.js",false]
["machinery",false]
["machine-learning-yearning-cn",false]
["machine-learning-systems-design",false]
["machine-learning-notes",false]
["Machine-learning-learning-notes",false]
["machine-learning-for-trading",false]
["machine-learning-for-software-engineers",false]
["machine-learning-course",false]
["Machine-Learning",false]
["machinelearning",true]
["machinelearning",false]
["machine_learning_examples",false]
["machine",false]
["macdown",false]
["Mac-CLI",false]
["m3",{"$f":"A2626=A2627","v":false}]
["lz4",false]
["lynis",false]
["Lychee",false]
["lx-music-desktop",false]
["LxgwWenKai",false]
["lxd",false]
["lvgl",false]
["luxon",false]
["lux",false]
["lura",false]
["lunr.js",false]
["LunarVim",false]
["lumen",false]
["LuLu",false]
["luigi",false]
["ludwig",false]
["Luckysheet",false]
["LuckyFrameWeb",false]
["LuckyFrameClient",false]
["lucene-solr",false]
["lucenenet",false]
["lucene",false]
["Luban",false]
["LuatOS",false]
["lua-nginx-module",false]
["lua",false]
["LTMorphingLabel",false]
["LSPosed",false]
["lsd",false]
["lozad.js",false]
["lowlevelprogramming-university",false]
["lowdb",false]
["lowcode-engine",false]
["lovefield",false]
["lottie-web",false]
["lottie-react-native",false]
["lottie-ios",false]
["lottie-android",false]
["lorca",false]
["loopback",false]
["longhorn",false]
["Lona",false]
["lombok",false]
["LokiJS",false]
["loki",false]
["loguru",false]
["logstash",false]
["logseq",false]
["logrus",false]
["logoly",false]
["logging-log4j2",false]
["logger",false]
["log",false]
["lodash",false]
["locust",false]
["localtunnel",false]
["localstack",false]
["localForage",false]
["Locale-Emulator",false]
["loaders.css",false]
["loadCSS",false]
["loadable-components",false]
["lo",false]
["lnd",{"$f":"A2690=A2691","v":false}]
["lmms",false]
["llvm-project",false]
["livewire",false]
["lively",false]
["livego",false]
["live2d-widget",false]
["litmus",false]
["litho",false]
["litestream",false]
["LitePal",false]
["LiteOS",false]
["litemall",false]
["liteide",false]
["liteFlow",false]
["LiteDB",false]
["lite",false]
["lists",false]
["listmonk",false]
["listen1_desktop",false]
["listen1_chrome_extension",false]
["list.js",false]
["liquid",false]
["Linux-Tutorial",false]
["linux-lab",false]
["linuxkit",false]
["linux-insides",false]
["linux-dash",false]
["linux-command",false]
["linux",true]
["linux",false]
["lin-ui",false]
["lint-staged",false]
["link-wechat",false]
["linkerd2",false]
["linkedin-skill-assessments-quizzes",false]
["L-ink_Card",false]
["linguist",false]
["linaria",false]
["lime",true]
["lime",false]
["lima",false]
["lihang-code",false]
["LightTable",false]
["lightning",false]
["lightline.vim",false]
["lighthouse",false]
["LightGBM",false]
["lifeRestart",false]
["libzmq",false]
["libvips",false]
["libuv",false]
["libui",false]
["libsodium",false]
["librealsense",false]
["librdkafka",false]
["libpku",false]
["libphonenumber",false]
["libhv",false]
["libgit2",false]
["libgdx",false]
["libfacedetection",false]
["libevent",false]
["libco",false]
["libcloud",{"$f":"A2754=A2755","v":false}]
["lexical",false]
["lexer",false]
["leveldb",false]
["lets-chat",false]
["less.js",false]
["lerna",false]
["lepus",false]
["Lepton",false]
["leonsans",false]
["leon",false]
["lens",false]
["lenosp",false]
["lemonade-stand",false]
["lemmy",false]
["leiningen",false]
["legado",false]
["legacy-homebrew",false]
["LeetcodeTop",false]
["leetcode-patterns",false]
["leetcode-master",false]
["LeetCode-Go",false]
["LeetCodeAnimation",false]
["leetcode_company_wise_questions",false]
["leetcode_101",false]
["leetcode",true]
["leetcode",true]
["leetcode",true]
["leetcode",true]
["LeetCode",false]
["leeml-notes",false]
["ledge",false]
["lede",false]
["lectures",false]
["learnyounode",false]
["learnxinyminutes-docs",false]
["learnVue",false]
["Learn-Vim",false]
["learn-regex",false]
["learn-python",false]
["LearnPython",false]
["LearnOpenGL",false]
["learnopencv",false]
["Learning-SICP",false]
["learnhaskell",false]
["learn-go-with-tests",false]
["learngo",false]
["learnGitBranching",false]
["learn-anything",false]
["Learn-Algorithms",false]
["learn_python3_spider",false]
["Learn_Machine_Learning_in_3_Months",false]
["leanote",false]
["Lean",false]
["leakcanary",false]
["Leaflet",false]
["LCUI",false]
["lbry-sdk",false]
["lazysizes",false]
["lazyload",false]
["lazygit",false]
["lazydocker",false]
["lazy.js",false]
["LaZagne",false]
["LayX",{"$f":"A2818=A2819","v":false}]
["layui",false]
["layer",false]
["lax.js",false]
["lawnchair",false]
["laverna",false]
["LaTeX-Workshop",false]
["LarkMidTable",false]
["laravel-permission",false]
["laravel-mongodb",false]
["Laravel-Excel",false]
["laravel-debugbar",false]
["laravel-cors",false]
["laravel-best-practices",false]
["laravel-admin",false]
["laravel",false]
["laradock",false]
["laptop",false]
["lapce",false]
["lantern",false]
["languagetool",false]
["language-server-protocol",false]
["lang",false]
["landscape",false]
["Ladda",false]
["labs",false]
["label-studio",false]
["labelme",false]
["labelImg",false]
["lab",false]
["L7",false]
["kyverno",false]
["kylin",false]
["ky",false]
["KVOController",false]
["kutt",false]
["kustomize",false]
["kuma",false]
["kui",false]
["kue",false]
["kudu",false]
["kudo",false]
["kuboard-press",false]
["kubo",false]
["kubevirt",false]
["kubevela",false]
["kubespray",false]
["kubesphere",false]
["kubescape",false]
["kube-router",false]
["kubernetes-the-hard-way",false]
["kubernetes-handbook",false]
["kubernetes-failure-stories",false]
["kubernetes",false]
["kuberhealthy",false]
["kube-ovn",false]
["KubeOperator",false]
["kubeone",false]
["kubeless",false]
["kubekey",false]
["kube-hunter",false]
["kubeflow",false]
["kubeedge",false]
["kubectx",false]
["kube-bench",{"$f":"A2882=A2883","v":false}]
["kubeasz",false]
["ktor",false]
["kruise",false]
["kratos",true]
["kratos",false]
["kraken",false]
["kphp-kdb",false]
["kotlinx.coroutines",false]
["kotlin-native",false]
["kotlin",false]
["kornia",false]
["koreader",false]
["kops",false]
["koodo-reader",false]
["kooder",false]
["konva",false]
["kong",false]
["kompose",false]
["koin",false]
["koel",false]
["kodluyoruz-frontend-101-egitimi",false]
["kodbox",false]
["koalas-rpc",false]
["koa",false]
["knockout",false]
["knex",false]
["kkndme_tianya",false]
["kkFileView",false]
["kivy",false]
["Kitura",false]
["kitty",false]
["kittenTricks",false]
["kitex",false]
["kit",true]
["kit",false]
["kisso",false]
["kingshard",false]
["Kingfisher",false]
["kind",false]
["kilo",false]
["KIF",false]
["kibana",false]
["kiali",false]
["keywhiz",false]
["keystone-classic",false]
["keystone",false]
["keymaster",false]
["keycloak",false]
["KeychainAccess",false]
["keycastr",false]
["keras-yolo3",false]
["Keras-GAN",false]
["keras",false]
["keptn",false]
["kepler.gl",false]
["keeweb",false]
["keepassxc",false]
["kedro",false]
["kcptun",false]
["kcp",false]
["KaTeX",false]
["karmada",false]
["karma",false]
["karate",{"$f":"A2946=A2947","v":false}]
["Karabiner-Elements",false]
["Kap",false]
["kaniko",false]
["kanboard",false]
["kaminari",false]
["kaldi",false]
["kakoune",false]
["kafka-docker",false]
["kafka",false]
["k9s",false]
["k-9",false]
["k6",false]
["k3s",false]
["jx",false]
["jwt-go",false]
["jwt-auth",false]
["jwt",false]
["jvm",false]
["JVFloatLabeledTextField",false]
["JustAuth",false]
["just",false]
["jupyter-themes",false]
["jupyterhub",false]
["jupyter",false]
["junit4",false]
["junior-recruit-scheduler",false]
["jumpserver",false]
["julia",false]
["juju",false]
["juice-shop",false]
["juicefs",false]
["JTAppleCalendar",false]
["jszip",false]
["jstraining",false]
["js-the-right-way",false]
["js-stack-from-scratch",false]
["js-sequence-diagrams",false]
["jss",false]
["JSQMessagesViewController",false]
["jsproxy",false]
["jsplumb",false]
["jsPDF",false]
["JSPatch",false]
["jspaint",false]
["jsoup",false]
["json-tutorial",false]
["json-server",false]
["JsonPath",false]
["jsonmodel",false]
["JSONKit",false]
["JSON-js",false]
["jsoneditor",false]
["jsoncrack.com",false]
["jsoncpp",false]
["json-api",false]
["json",false]
["js-ipfs",false]
["jshint",false]
["jshERP",false]
["jsfuck",false]
["jsdom",false]
["jsdoc",false]
["jsdiff",false]
["js-cookie",{"$f":"A3010=A3011","v":false}]
["js-code-to-svg-flowchart",false]
["jscodeshift",false]
["JsBridge",false]
["js-beautify",false]
["jquery-validation",false]
["jquery-ui",false]
["jquery-pjax",false]
["jquery-mobile",false]
["jQuery-menu-aim",false]
["jQuery-File-Upload",false]
["jquery-cookie",false]
["jquery.transit",false]
["jquery.adaptive-backgrounds.js",false]
["jquery",false]
["jq",false]
["jpress",false]
["Jpom",false]
["jotai",false]
["joplin",false]
["joi",false]
["john",false]
["jna",false]
["jmeter",false]
["jjwt",false]
["jitsi-meet",false]
["jira_clone",false]
["jinja",false]
["jina",false]
["jieba",false]
["jid",false]
["JiaoZiVideoPlayer",false]
["jfinal",false]
["Jetpack-MVVM-Best-Practice",false]
["jetlinks-community",false]
["JetBrainsMono",false]
["jest",false]
["jerryscript",false]
["jenkins",false]
["jemalloc",false]
["jellyfin",false]
["jekyll-now",false]
["jekyll",false]
["JeeSpringCloudV3.2",false]
["jeesite",false]
["jeepay",false]
["jeecg-boot",false]
["jedis",false]
["jdk",false]
["jd-gui",false]
["JCSprout",false]
["jcseg",false]
["jboot",false]
["jazzy",false]
["JazzHands",false]
["jax",false]
["Java-WebSocket",false]
["javascript-testing-best-practices",false]
["javascript-state-machine",false]
["javascript-questions",false]
["javascript-patterns",false]
["javascript-obfuscator",false]
["javascript-in-one-pic",false]
["javascript-algorithms",true]
["javascript-algorithms",{"$f":"A3074=A3075","v":false}]
["JavaScript30",false]
["javascript",true]
["JavaScript",false]
["javapoet",false]
["JavaGuide",false]
["JavaFamily",false]
["java-design-patterns",false]
["javacv",false]
["java8-tutorial",false]
["Java",true]
["Java",false]
["jasmine",false]
["japronto",false]
["jap",false]
["janus-gateway",false]
["janus",false]
["jaeger",false]
["jadx",false]
["jackson",false]
["Jackett",false]
["J2Cache",false]
["ivy",false]
["iview-weapp",false]
["iview-admin",false]
["iview",false]
["ivideo",false]
["itsy-bitsy-data-structures",false]
["iTerm2-Color-Schemes",false]
["ItChat",false]
["IT_book",false]
["istio",false]
["istanbul",false]
["isotope",false]
["isomorphic-git",false]
["isomorphic-fetch",false]
["is.js",false]
["iron",false]
["iris",false]
["IQKeyboardManager",false]
["ipython",false]
["ipwndfu",false]
["iptv",false]
["ipfs",false]
["ip2region",false]
["IoTSharp",false]
["IOTGate",false]
["IoT-For-Beginners",false]
["iot-dc3",false]
["iotdb",false]
["iOS-Runtime-Headers",false]
["ios-oss",false]
["iOSInterviewQuestions",false]
["ios-good-practices",false]
["Iosevka",false]
["iOS-DeviceSupport",false]
["iosched",false]
["ios_rule_script",false]
["ioredis",false]
["ionicons",false]
["ionic-framework",false]
["ion",false]
["invoiceninja",false]
["invidious",false]
["InversifyJS",{"$f":"A3138=A3139","v":false}]
["introduction_to_ml_with_python",false]
["intro.js",false]
["intl-tel-input",false]
["InterviewThis",false]
["interviews",false]
["Interview_Question_for_Beginner",false]
["interview_python",false]
["interview_internal_reference",false]
["interview",true]
["interview",true]
["interview",true]
["Interview",false]
["interpy-zh",false]
["interactive-coding-challenges",false]
["interact.js",false]
["inter",false]
["IntelliJ-IDEA-Tutorial",false]
["intellij-community",false]
["InstaPy",false]
["instant-ngp",false]
["instantiator",false]
["instagram-scraper",false]
["inspec",false]
["insomnia",false]
["Inquirer.js",false]
["ink",false]
["injectionforxcode",false]
["ingress-nginx",false]
["infracost",false]
["InfoSpider",false]
["influxdb",false]
["inflector",false]
["infinite-scroll",false]
["infinispan",false]
["inferno",false]
["infer",false]
["industry-machine-learning",false]
["incubator-weex-ui",false]
["incubator-weex",false]
["incubator-teaclave-sgx-sdk",false]
["incubator-streampark",false]
["incubator-sedona",false]
["incubator-seatunnel",false]
["incubator-pegasus",false]
["incubator-pagespeed-ngx",false]
["incubator-nuttx",false]
["incubator-mxnet",false]
["incubator-linkis",false]
["incubator-kyuubi",false]
["incubator-kvrocks",false]
["incubator-hugegraph",false]
["incubator-heron",false]
["incubator-eventmesh",false]
["incubator-devlake",false]
["incubator-brpc",false]
["im-server",false]
["impress.js",false]
["impacket",false]
["immutable-js",false]
["immudb",false]
["ImmersionBar",false]
["immer",false]
["ImHex",false]
["imgui",{"$f":"A3202=A3203","v":false}]
["imgproxy",false]
["imbalanced-learn",false]
["imagesloaded",false]
["ImageOptim",false]
["ImageMagick",false]
["ImageAI",false]
["ILSpy",false]
["IJPay",false]
["ijkplayer",false]
["iina",false]
["ignite",true]
["ignite",false]
["ievms",false]
["ieaseMusic",false]
["idiomatic-css",false]
["idiomatic.js",false]
["IdentityServer4",false]
["ideavim",false]
["ideas",false]
["iCSS",false]
["icons",false]
["IconPark",false]
["icinga2",false]
["icheck",false]
["iced",false]
["icecream",false]
["iceberg",false]
["ice",false]
["iCarousel",false]
["IBAnimatable",false]
["i3",false]
["i18next",false]
["Hystrix",false]
["hypothesis",false]
["hyperopt",false]
["HyperLPR",false]
["hyperf",false]
["hyperblog",false]
["hyperapp",false]
["hyper",true]
["hyper",false]
["hydra",true]
["hydra",false]
["huxpro.github.io",false]
["hutool",false]
["husky",false]
["HumanSystemOptimization",false]
["Humanizer",false]
["hugo",true]
["hugo",false]
["huginn",false]
["hug",false]
["hudi",false]
["hubot",false]
["hub",true]
["hub",false]
["httpx",false]
["httpstat",false]
["httprouter",false]
["http-proxy-middleware",false]
["http-prompt",false]
["http-parser",false]
["http-message",false]
["http-kernel",{"$f":"A3266=A3267","v":false}]
["httpie",false]
["http-foundation",false]
["httpd",false]
["httpcomponents-client",false]
["httpbin",false]
["http-api-design",false]
["htmx",false]
["html-webpack-plugin",false]
["htmlq",false]
["html-css",false]
["html5shiv",false]
["html5-boilerplate",false]
["html2canvas",false]
["html",false]
["htm",false]
["hsweb-framework",false]
["HQChart",false]
["HP-Socket",false]
["how-web-works",false]
["how-to-secure-anything",false]
["How-To-Secure-A-Linux-Server",false]
["howto-make-more-money",false]
["How-to-Make-a-Computer-Operating-System",false]
["HowToLiveLonger",false]
["howtographql",false]
["how-to-exit-vim",false]
["HowToCook",false]
["how-to-contribute-to-open-source",false]
["HowToBeAProgrammer",false]
["How-To-Ask-Questions-The-Smart-Way",false]
["howtheysre",false]
["howmanypeoplearearound",false]
["howler.js",false]
["howdoi",false]
["Hover",false]
["hotel",false]
["hosts",true]
["hosts",true]
["hosts",false]
["hospitalrun-frontend",false]
["Hospital",false]
["horizon",false]
["hoppscotch",false]
["hooks",false]
["HomeMirror",false]
["homemade-machine-learning",false]
["homelab",false]
["homebridge",false]
["homebrew-core",false]
["homebrew-cask",false]
["hmily",false]
["hls.js",false]
["hive",false]
["Hitomi-Downloader",false]
["HistoryOfEverything",false]
["history.js",false]
["history",false]
["hiring-without-whiteboards",false]
["Hippy",false]
["hippo4j",false]
["hint.css",false]
["hikyuu",false]
["HikariCP",false]
["high-speed-downloader",{"$f":"A3330=A3331","v":false}]
["highlight.js",false]
["highcharts",false]
["hidden",false]
["hhvm",false]
["HFish",false]
["hey",false]
["hexyl",false]
["hexo-theme-yilia",false]
["hexo-theme-next",true]
["hexo-theme-next",false]
["hexo",false]
["HEU_KMS_Activator",false]
["hertzbeat",false]
["heroicons",false]
["Hero",false]
["hermes",false]
["helmet",false]
["helm",false]
["hello-world",false]
["HelloGitHub",false]
["hellocharts-android",false]
["hello-algorithm",false]
["helix",false]
["headscale",false]
["headroom.js",false]
["headlessui",false]
["headless-recorder",false]
["HEAD",false]
["hbase",false]
["Hazel",false]
["haven",false]
["hashlips_art_engine",false]
["hashcat",false]
["HarmonyOS",false]
["hardseed",false]
["harbor",false]
["haproxy",false]
["hapi",false]
["haoel.github.io",false]
["HanLP",false]
["hangzhou_house_knowledge",false]
["Hangfire",false]
["HandyControl",false]
["handsontable",false]
["handson-ml2",false]
["handson-ml",false]
["handlebars.js",false]
["HandBrake",false]
["handbook",false]
["hammerspoon",false]
["hammer.js",false]
["hamcrest-php",false]
["hamburgers",false]
["halo",false]
["Halfrost-Field",false]
["hadoop",false]
["hadolint",false]
["HackMyResume",false]
["Hackintosh",false]
["hackingtool",false]
["hacker-scripts",false]
["hacker-roadmap",false]
["hacker-laws-zh",false]
["hacker-laws",{"$f":"A3394=A3395","v":false}]
["HackBrowserData",false]
["hackathon-starter",false]
["Hack",false]
["habitica",false]
["habitat",false]
["h5-Dooring",false]
["h2o-3",false]
["h2o",false]
["gym",false]
["gvm",false]
["gvisor",false]
["guzzle",false]
["gutenberg",false]
["Guns",false]
["gunicorn",false]
["gun",false]
["gum",false]
["gulp",false]
["GuiLite",false]
["guides",false]
["guice",false]
["guiadevbrasil",false]
["guess",false]
["guava",false]
["guard",false]
["guacamole-server",false]
["guacamole-client",false]
["gtop",false]
["GTFOBins.github.io",false]
["GSYVideoPlayer",false]
["gsy_github_app_flutter",false]
["gspread",false]
["gson",false]
["GSAP",false]
["gruvbox",false]
["grumpy",false]
["grpc-web",false]
["grpcurl",false]
["grpc-java",false]
["grpc-go",false]
["grpc-gateway",false]
["grpc",false]
["growth-ebook",false]
["groupcache",false]
["groovy",false]
["gron",false]
["grommet",false]
["grokking_algorithms",false]
["gridstudio",false]
["gridster.js",false]
["gridsome",false]
["gridea",false]
["gremlins.js",false]
["GreaterWMS",false]
["great_expectations",false]
["graylog2-server",false]
["gravitee-api-management",false]
["grav",false]
["Grasscutter",false]
["GraphScope",false]
["graphql-yoga",false]
["graphql-voyager",false]
["graphql-spec",false]
["graphql-playground",{"$f":"A3458=A3459","v":false}]
["graphql-js",false]
["graphql-engine",false]
["graphql-code-generator",false]
["graphql",false]
["graphite-web",false]
["graphiql",false]
["graphene",false]
["grapesjs",false]
["grape",false]
["grammars-v4",false]
["grafeas",false]
["grafana",false]
["gradle",false]
["gradio",false]
["graal",false]
["gqlgen",false]
["GPUImage",false]
["gpu.js",false]
["gpt-neo",false]
["gpt-3",false]
["gpt-2",false]
["gping",false]
["gperftools",false]
["go-zero",false]
["gow",false]
["go-view",false]
["Goutte",false]
["Gource",false]
["gotty",false]
["gotraining",false]
["gotop",false]
["go-swagger",false]
["gost",false]
["go-sqlite3",false]
["gosec",false]
["gorush",false]
["gorse",false]
["gorm",false]
["goreplay",false]
["goreleaser",false]
["goquery",false]
["goQuality-dev-contents",false]
["gopsutil",false]
["goproxy.cn",false]
["goproxy",false]
["gopl.io",false]
["gophish",false]
["gopher-reading-list",false]
["gopherjs",false]
["go-perfbook",false]
["go-patterns",false]
["gop",false]
["google-webfonts-helper",false]
["googletest",false]
["google-research",false]
["Google-Play-Music-Desktop-Player-UNOFFICIAL-",false]
["google-images-download",false]
["google-cloud-4-words",false]
["Google-Chinese-Results-Blocklist",false]
["google-api-php-client",false]
["google-api-nodejs-client",false]
["Gooey",false]
["GoodbyeDPI",false]
["gonum",{"$f":"A3522=A3523","v":false}]
["go-micro",false]
["golearn",false]
["gold-miner",false]
["goldilocks",false]
["GolangTraining",false]
["golang-open-source-projects",false]
["golang-developer-roadmap",false]
["golang-design-pattern",false]
["golangci-lint",false]
["golang-cheat-sheet",false]
["GoJS",false]
["go-internals",false]
["goim",false]
["go-ibax",false]
["gogs",false]
["go-github",false]
["Gogh",false]
["go-fundamental-programming",false]
["go-fastdfs",false]
["go-ethereum",false]
["godot",false]
["God-Of-BigData",false]
["go-datastructures",false]
["gocui",false]
["goconvey",false]
["go-cloud",false]
["go-clean-arch",false]
["gocd",false]
["go-cache",false]
["gobuster",false]
["gobot",false]
["GoBooks",false]
["gobblin",false]
["go-app",false]
["go-admin",true]
["go-admin",false]
["goaccess",false]
["go",true]
["go",true]
["go",true]
["Go",false]
["GNNPapers",false]
["gnet",false]
["gmaps",false]
["gm",false]
["glusterfs",false]
["glow",false]
["GloVe",false]
["gloo",false]
["global-state",false]
["glide-transformations",false]
["glide",true]
["glide",true]
["glide",false]
["glfw",false]
["glances",false]
["gjson",false]
["gixy",false]
["GitUp",false]
["gitui",false]
["git-tips",false]
["git-stats",false]
["git-standup",false]
["gitsome",{"$f":"A3586=A3587","v":false}]
["git-secrets",false]
["git-recipes",false]
["gitpod",false]
["gitolite",false]
["git-lfs",false]
["gitleaks",false]
["gitlabhq",false]
["gitignore.io",false]
["gitignore",false]
["githug",false]
["github-readme-stats",false]
["github-markdown-css",false]
["github-do-not-ban-us",false]
["GitHub-Dark",false]
["GitHubDaily",false]
["GitHub-Chinese-Top-Charts",false]
["github-cheat-sheet",false]
["github-changelog-generator",false]
["github1s",false]
["github",false]
["git-history",false]
["gitflow",false]
["git-flight-rules",false]
["gitfiti",false]
["git-extras",false]
["gitextensions",false]
["gitea",false]
["git-crypt",false]
["git-cheat-sheet",false]
["gitbucket",false]
["gitbook",false]
["git-blame-someone-else",false]
["gitalk",false]
["git",false]
["gin-vue-admin",false]
["ginkgo",false]
["gin",false]
["Gifski",false]
["gh-ost",false]
["Ghost",false]
["ghidra",false]
["gfwlist",false]
["GFPGAN",false]
["gf",false]
["getx",false]
["getting-a-gig",false]
["geode",false]
["geocoder",false]
["gentelella",false]
["gensim",false]
["generator-jhipster",false]
["generator-angular-fullstack",false]
["generative-models",false]
["genact",false]
["gekko",false]
["geckodriver",false]
["gear-lib",false]
["gdrive",false]
["gdbgui",false]
["gdb-dashboard",false]
["gcn",false]
["GCDWebServer",false]
["gcc",false]
["gb-studio",{"$f":"A3650=A3651","v":false}]
["gatsby",false]
["GateOne",false]
["gardener",false]
["ganhacks",false]
["games",false]
["Game-Programmer-Study-Notes",false]
["game-programmer",false]
["GameNetworkingSockets",false]
["GAAS",false]
["G6",false]
["G2",false]
["fzf.vim",false]
["fzf",false]
["fyne",false]
["fx",false]
["fuzzywuzzy",false]
["fuzzdb",false]
["Fuse",false]
["Furion",false]
["funNLP",false]
["functions-samples",false]
["functional-programming-jargon",false]
["Functional-Light-JS",false]
["fullstack-tutorial",false]
["full-stack-fastapi-postgresql",false]
["fullstack-course4",false]
["fullPage.js",false]
["fullcalendar",false]
["full-blockchain-solidity-course-py",false]
["Fuck-XueXiQiangGuo",false]
["fucking-algorithm",false]
["FSPagerView",false]
["fsociety",false]
["fsnotify",false]
["FSCalendar",false]
["frp",false]
["frontend-stuff",false]
["Front-End-Performance-Checklist",false]
["front-end-interview-handbook",false]
["frontend-guidelines",false]
["front-end-guide",false]
["Front-end-Developer-Interview-Questions",false]
["frontend-dev-bookmarks",false]
["Front-End-Checklist",false]
["frontend-challenges",false]
["frontend-case-studies",false]
["frontend-bootcamp",false]
["from_coder_to_expert",false]
["frida",false]
["fresh",false]
["fresco",false]
["freqtrade",false]
["FreeRDP",false]
["free-programming-books-zh_CN",false]
["free-for-dev",false]
["freecodecamp.cn",false]
["freebsd-src",false]
["freeboard",false]
["free",false]
["FrameworkBenchmarks",false]
["framework7",false]
["framework",true]
["framework",true]
["framework",{"$f":"A3714=A3715","v":false}]
["Fragmentation",false]
["fp-ts",false]
["fprime",false]
["fpm",false]
["foundation-sites",false]
["foundation-emails",false]
["foundationdb",false]
["fossa-cli",false]
["formily",false]
["formik",false]
["formidable",false]
["form-generator",false]
["formatjs",false]
["forever",false]
["foreman",false]
["forem",false]
["fonts",true]
["fonts",false]
["fontello",false]
["Font-Awesome",false]
["folly",false]
["follow-me-install-kubernetes-cluster",false]
["folding-cell",false]
["fnm",false]
["fmt",false]
["fmdb",false]
["flyway",false]
["flynn",false]
["FlycoTabLayout",false]
["flv.js",false]
["flux2",false]
["flux",true]
["flux",false]
["Flutter-Notebook",false]
["flutter-in-action",false]
["flutter-go",false]
["flutterfire",false]
["flutter-examples",false]
["FlutterExampleApps",false]
["FlutterDouBan",false]
["flutter-desktop-embedding",false]
["Flutter-Course-Resources",false]
["flutter_deer",false]
["flutter_boost",false]
["flutter_architecture_samples",false]
["flutter",false]
["flume",false]
["fluid",false]
["FluentValidation",false]
["fluentui-emoji",false]
["fluentui",false]
["FluentTerminal",false]
["fluentd",false]
["flowy",false]
["flowchart.js",false]
["flow",false]
["floating-ui",false]
["flink",false]
["flight",false]
["flickity",false]
["flexsearch",false]
["flexbugs",false]
["flexbox-layout",false]
["flexboxgrid",{"$f":"A3778=A3779","v":false}]
["FLEX",false]
["FlatUIKit",false]
["Flat-UI",false]
["flatpickr",false]
["flatbuffers",false]
["flasky",false]
["flask-restful",false]
["flask",false]
["flash-linux0.11-talk",false]
["flarum",false]
["FlappySwift",false]
["flannel",false]
["FLAnimatedImage",false]
["flameshot",false]
["FlameGraph",false]
["flame",false]
["flag-icons",false]
["flagger",false]
["fks",false]
["fkill-cli",false]
["FizzBuzzEnterpriseEdition",false]
["FitText.js",false]
["fission",false]
["fish-shell",false]
["fish-redux",false]
["fisher",false]
["first-contributions",false]
["firefox-ios",false]
["firefly-iii",false]
["firecracker",false]
["FiraCode",false]
["FinRL",false]
["fingerprintjs",false]
["fine-uploader",false]
["finder",false]
["finagle",false]
["filestash",false]
["FileSaver.js",false]
["Files",false]
["FileDownloader",false]
["filebrowser",false]
["filament",false]
["fiddle",false]
["fiber",false]
["ffuf",false]
["ffsend",false]
["ffmpeg-python",false]
["ffmpeg-libav-tutorial",false]
["ffmpeg.wasm",false]
["FFmpeg",false]
["fetch",false]
["fes.js",false]
["fenix",false]
["fe-interview",true]
["FE-interview",false]
["feign",false]
["featuretools",false]
["featurebase",false]
["feathers",false]
["feather",false]
["fd",false]
["fbctf",false]
["favicon-cheat-sheet",false]
["favico.js",{"$f":"A3842=A3843","v":false}]
["fauxpilot",false]
["faust",false]
["fathom",false]
["FastTunnel",false]
["fastText",false]
["fast-style-transfer",false]
["FastPhotoStyle",false]
["fastNLP",false]
["fastlane",false]
["fastjson",false]
["FastImageCache",false]
["fastify",false]
["fasthttp",false]
["FastGithub",false]
["faster-rcnn.pytorch",false]
["fastdom",false]
["fastdfs",false]
["fastclick",false]
["fastbook",false]
["fastapi",false]
["fastai",false]
["fastadmin",false]
["fast",false]
["fashion-mnist",false]
["fantasy-land",false]
["fantasque-sans",false]
["fanqiang",false]
["fancyss_history_package",false]
["fancyss",false]
["fancybox",false]
["FanControl.Releases",false]
["famous",false]
["falcor",false]
["falcon-plus",false]
["falcon",false]
["falco",false]
["Faker",true]
["faker",true]
["faker",true]
["faker",false]
["faiss",false]
["fairseq",false]
["fail2ban",false]
["factory_bot",false]
["facets",false]
["faceswap",false]
["facebook-ios-sdk",false]
["face-api.js",false]
["faceai",false]
["face_recognition",false]
["fabric.js",false]
["fabric",true]
["fabric",false]
["fabio",false]
["faas",false]
["f8app",false]
["F2",false]
["EZFN-Lobbybot",false]
["ext-saladict",false]
["External-Attention-pytorch",false]
["express-graphql",false]
["express",false]
["Exposed",false]
["exporter",{"$f":"A3906=A3907","v":false}]
["expo",false]
["ExplorerPatcher",false]
["exploitdb",false]
["explainshell",false]
["ExoPlayer",false]
["exercism",false]
["exceljs",false]
["excelize",false]
["excalidraw",false]
["examples-of-web-crawlers",false]
["examples",true]
["examples",true]
["examples",false]
["exa",false]
["evil-huawei",false]
["evilginx2",false]
["every-programmer-should-know",false]
["everyone-can-use-english",false]
["EverydayWechat",false]
["evergreen",false]
["event-dispatcher",false]
["EventBus",false]
["Eve",true]
["eve",false]
["eva-icons",false]
["eureka",true]
["Eureka",false]
["eul",false]
["etherpad-lite",false]
["ethereumbook",false]
["etcher",false]
["etcd",false]
["ET",false]
["esprima",false]
["esp-idf",false]
["esp8266_deauther",false]
["eslint-plugin-react",false]
["eslint",false]
["eShopOnWeb",false]
["eShopOnContainers",false]
["esbuild",false]
["es6tutorial",false]
["es6-promise",false]
["es6-features",false]
["es6features",false]
["es5-shim",false]
["errors",false]
["error-prone",false]
["erpnext",false]
["epoxy",false]
["eova",false]
["eos",false]
["enzyme",false]
["envoy",false]
["environment",false]
["entt",false]
["entrust",false]
["ent",false]
["enquirer",false]
["eng-practices",false]
["english-words",false]
["English-level-up-tips",false]
["engine-sim",false]
["engineer-manager",{"$f":"A3970=A3971","v":false}]
["engineeringladders",false]
["engineering-blogs",false]
["engine",true]
["engine",false]
["en.javascript.info",false]
["emscripten",false]
["emqx",false]
["Empire",false]
["emotion",false]
["emoji-cheat-sheet.com",false]
["emoji-cheat-sheet",false]
["emmet-vim",false]
["emissary",false]
["ember.js",false]
["EmailValidator",false]
["email-blueprints",false]
["emacs.d",false]
["elixir",false]
["elevator.js",false]
["element-web",false]
["element-plus",false]
["element",false]
["electron-vue",false]
["electron-react-boilerplate",false]
["electron-quick-start",false]
["electron-packager",false]
["electronic-wechat",false]
["electron-egg",false]
["electron-api-demos",false]
["Electron.NET",false]
["electron",false]
["electerm",false]
["elasticsearch-sql",false]
["elasticsearch-head",false]
["elasticsearch-dump",false]
["elasticsearch-analysis-ik",false]
["elasticsearch",false]
["elastic",false]
["elastalert",false]
["eladmin",false]
["eks-anywhere",false]
["ejs",false]
["EIPs",false]
["EhViewer",false]
["egui",false]
["egg",false]
["EfficientNet-PyTorch",false]
["EffectiveTensorflow",false]
["EffectiveAndroidUI",false]
["Effeckt.css",false]
["efcore",false]
["eeeeeeeeeeeeeeeeeeeeeeeeeeeeeeeeeeeeeeeeeeeeeeeeeeeeeeeeeeeeeeeeeeeeeeeeeeeeeeeeeeeeeeeeeeeeeeeeeeee",false]
["edx-platform",false]
["editor.js",false]
["edgedb",false]
["edex-ui",false]
["ECommerceCrawlers",false]
["ecma262",false]
["echo",false]
["echarts-for-weixin",false]
["echarts",false]
["ebiten",false]
["eat_tensorflow2_in_30_days",false]
["easywechat",{"$f":"A4034=A4035","v":false}]
["easytrader",false]
["EasyPR",false]
["easypermissions",false]
["EasyOCR",false]
["easy-mock",false]
["EasyFlash",false]
["easyexcel",false]
["easy-application",false]
["easy_rust",false]
["EASTL",false]
["easings.net",false]
["EaselJS",false]
["easegress",false]
["EarTrumpet",false]
["earthly",false]
["dynamics.js",false]
["dxvk",false]
["DWSurvey",false]
["DVWA",false]
["dvc",false]
["dva",false]
["duplicati",false]
["Dummy-Robot",false]
["DuiLib_Ultimate",false]
["duf",false]
["ducks-modular-redux",false]
["duckdb",false]
["dubbo-spring-boot-project",false]
["dubbo-samples",false]
["dubbo-go",false]
["dubbo-admin",false]
["dubbo",false]
["dtm",false]
["DTCoreText",false]
["ds-cheatsheets",false]
["DSA-Bootcamp-Java",false]
["dsa.js-data-structures-algorithms-javascript",false]
["druid",true]
["druid",true]
["druid",false]
["dropzone",false]
["dropwizard",false]
["Dropbox-Uploader",false]
["dronesploit",false]
["drone",false]
["DroidPlugin",false]
["drogon",false]
["driver.js",false]
["drill",false]
["Dress",false]
["drawio-desktop",false]
["drawio",false]
["dragula",false]
["draggable",false]
["draft-js",false]
["dracula-theme",false]
["DPlayer",false]
["Dozer",false]
["downshift",false]
["download",false]
["downkyi",false]
["Douyin-Bot",false]
["dotnet",false]
["dotfiles",{"$f":"A4098=A4099","v":true}]
["dotfiles",true]
["dotfiles",true]
["dotfiles",true]
["dotfiles",false]
["dotenv",true]
["dotenv",false]
["doris",false]
["DoraCMS",false]
["dopamine",false]
["doomemacs",false]
["DOOM",false]
["dom-to-image",false]
["DOMPurify",false]
["dompdf",false]
["domain-driven-hexagon",false]
["dolt",false]
["dolphinscheduler",false]
["dolphin",false]
["dokku",false]
["DoKit",false]
["dogehouse",false]
["dogecoin",false]
["docz",false]
["docusaurus",false]
["document-style-guide",false]
["docsify",false]
["docs",false]
["docopt",false]
["docker-stacks",false]
["docker-slim",false]
["docker-selenium",false]
["Docker-OSX",false]
["docker-openvpn",false]
["docker-node",false]
["docker-mailserver",false]
["docker-gitlab",false]
["docker-elk",false]
["dockercraft",false]
["docker-cheat-sheet",false]
["docker-bench-security",false]
["docker_practice",false]
["doccano",false]
["dnSpy",false]
["dnscrypt-proxy",false]
["dns",false]
["dlink",false]
["dlib",false]
["django-rest-framework",false]
["django-debug-toolbar",false]
["django-cms",false]
["django-allauth",false]
["django",false]
["dive-into-machine-learning",false]
["Dive-into-DL-PyTorch",false]
["dive",false]
["distsys-class",false]
["distroless",false]
["distributions",false]
["distribution",false]
["disruptor",false]
["disque",false]
["Dism-Multi-language",false]
["Discovery",false]
["discourse",{"$f":"A4162=A4163","v":false}]
["discord.py",false]
["discord.js",false]
["dirsearch",false]
["direnv",false]
["directus",false]
["dio",false]
["dillinger",false]
["digital_video_introduction",false]
["difftastic",false]
["diff-so-fancy",false]
["diff",false]
["diesel",false]
["diem",false]
["diboot",false]
["diaspora",false]
["diagrams",false]
["dgraph",false]
["dgl",false]
["dgiot",false]
["Dexie.js",false]
["dex2jar",false]
["dex",false]
["DevToys",false]
["devtools",false]
["devspace",false]
["dev-sidecar",false]
["devops-exercises",false]
["devise",false]
["devilutionX",false]
["devilution",false]
["devicon",false]
["devhub",false]
["devdocs",false]
["detr",false]
["Detox",false]
["detectron2",false]
["Detectron",false]
["desktop",false]
["deskreen",false]
["design-resources-for-developers",false]
["DesignPatternsPHP",false]
["Design-Patterns-In-Swift",false]
["design-patterns-for-humans",false]
["design-blocks",false]
["design_patterns",false]
["design",false]
["deployer",false]
["Depix",false]
["dep",false]
["DeOldify",false]
["DensePose",false]
["deno",false]
["delve",false]
["delta",false]
["dejavu",false]
["deis",false]
["degoogle",false]
["DefinitelyTyped",false]
["DeFi-Developer-Road-Map",false]
["deepstream.io",false]
["DeepSpeed",false]
["DeepSpeech",false]
["deep-residual-networks",false]
["deep-photo-styletransfer",{"$f":"A4226=A4227","v":false}]
["deep-painterly-harmonization",false]
["deepo",false]
["deepmind-research",false]
["deep-learning-with-python-notebooks",false]
["Deep-Learning-Papers-Reading-Roadmap",false]
["deep-learning-models",false]
["deeplearning-models",false]
["deep-learning-for-image-processing",false]
["DeepLearningFlappyBird",false]
["DeepLearningExamples",false]
["deep-learning-drizzle",false]
["deep-learning-coursera",false]
["deeplearningbook-chinese",false]
["DeepLearning-500-questions",false]
["deeplearning_ai_books",false]
["DeepLearning",false]
["deepin-wine-ubuntu",false]
["deep-image-prior",false]
["DeepFaceLive",false]
["DeepFaceLab",false]
["deepdream",false]
["DeepCTR",false]
["DeepCopy",false]
["deep_learning_object_detection",false]
["deck.gl",false]
["debug",true]
["debug",false]
["debezium",false]
["DearPyGui",false]
["DDMQ",false]
["ddia",false]
["DCGAN-tensorflow",false]
["dc.js",false]
["db-readings",false]
["dbeaver",false]
["dbal",false]
["db_tutorial",false]
["dayjs",false]
["DateTools",false]
["daterangepicker",false]
["date-fns",false]
["DataV",false]
["DataTables",false]
["DataSphereStudio",false]
["datasharing",false]
["datasette",false]
["datasets",false]
["Data-Science-Notes",false]
["data-science-ipython-notebooks",false]
["data-science-interviews",false]
["data-science-from-scratch",false]
["Data-Science-For-Beginners",false]
["data-science",false]
["datart",false]
["dataloader",false]
["datahub",false]
["datagear",false]
["data-engineer-roadmap",false]
["data-engineering-zoomcamp",false]
["dataease",false]
["data",false]
["dat.gui",false]
["dat",false]
["dask",{"$f":"A4290=A4291","v":false}]
["dashy",false]
["Dash-iOS",false]
["dashing",false]
["dashboards",false]
["dashboard",false]
["dash",false]
["darwin-xnu",false]
["darling",false]
["darktable",false]
["darkreader",false]
["darknet",false]
["darkflow",false]
["dapr",false]
["Dapper",false]
["DanmakuFlameMaster",false]
["DALLE2-pytorch",false]
["DALL-E",false]
["daisyui",false]
["DAIN",false]
["Daily-Interview-Question",false]
["daily",false]
["dagger",true]
["dagger",false]
["d3",false]
["d2l-zh",false]
["d2l-en",false]
["d2-admin",false]
["czkawka",false]
["cz-cli",false]
["cytoscape.js",false]
["cython",false]
["cypress",false]
["CYLTabBarController",false]
["cyclejs",false]
["CycleGAN",false]
["CyberChef",false]
["CVPR2022-Papers-with-Code",false]
["CVPR2022-Paper-Code-Interpretation",false]
["cvat",false]
["curve",false]
["curriculum",true]
["curriculum",false]
["curl",false]
["curator",false]
["cupy",false]
["cubic",false]
["cube-ui",false]
["cubefs",false]
["cube.js",false]
["ctrlp.vim",false]
["ctop",false]
["ctf-wiki",false]
["ctf-tools",false]
["CtCI-6th-Edition",false]
["CS-Xmind-Note",false]
["cs-video-courses",false]
["css-selector",false]
["css-protips",false]
["css-modules",false]
["css-loaders",false]
["csslayout",false]
["CSS-Inspiration",false]
["css-blocks",false]
["css.gg",{"$f":"A4354=A4355","v":false}]
["css",true]
["css",false]
["CS-Notes",false]
["cskefu",false]
["cskaoyan",false]
["CS-Interview-Knowledge-Map",false]
["csharplang",false]
["CS-Books",false]
["CS-Book",false]
["cs231n.github.io",false]
["crystal",false]
["CryptoSwift",false]
["cryptomator",false]
["crypto-js",false]
["crow",false]
["crouton",false]
["crossplane",false]
["crossfilter",false]
["cropperjs",false]
["cropper",false]
["cron",false]
["croc",false]
["CRMEB",false]
["critical",false]
["cri-o",false]
["create-t3-app",false]
["create-react-native-app",false]
["create-react-app",false]
["crawlee",false]
["crawlab",false]
["crater",false]
["crate",false]
["Crash-Course-Computer-Science-Chinese",false]
["Craft",false]
["craco",false]
["CrackMapExec",false]
["cpython",false]
["CppTemplateTutorial",false]
["cpprestsdk",false]
["Cpp-Primer",false]
["cpp-httplib",false]
["CppCoreGuidelines",false]
["cppbestpractices",false]
["CPlusPlusThings",false]
["C-Plus-Plus",false]
["cphalcon",false]
["cowboy",false]
["cow",false]
["covid19india-react",false]
["covid-19-data",false]
["COVID-19",false]
["covid19",false]
["Coursera-ML-AndrewNg-Notes",false]
["coursera-dl",false]
["countUp.js",false]
["couchdb",false]
["coturn",false]
["cosmos",false]
["cosmopolitan",false]
["cortex",true]
["cortex",false]
["cors-anywhere",false]
["coreui-free-bootstrap-admin-template",false]
["CoreNLP",{"$f":"A4418=A4419","v":false}]
["core-js",false]
["corefx",false]
["coredns",false]
["core",true]
["core",true]
["core",true]
["core",true]
["core",true]
["core",false]
["cordova-plugin-inappbrowser",false]
["cordova-ios",false]
["cordova-android",false]
["CopyTranslator",false]
["copilot-docs",false]
["cool-retro-term",false]
["cookiecutter-django",false]
["cookiecutter-data-science",false]
["cookiecutter",false]
["Cookbook",false]
["convnetjs",false]
["conventional-changelog",false]
["contour",false]
["content",false]
["containerd",false]
["container",false]
["consul",false]
["console",false]
["connect",false]
["conference",false]
["confd",false]
["ConEmu",false]
["concurrentqueue",false]
["concourse",false]
["conan",false]
["computervision-recipes",false]
["computer-science-in-javascript",false]
["computer-science-flash-cards",false]
["computer-science",false]
["compromise",false]
["Compressor",false]
["compose-samples",false]
["composer",false]
["compose-jb",false]
["compose",false]
["components",false]
["Complete-Python-3-Bootcamp",false]
["complete-javascript-course",false]
["compiler-explorer",false]
["compiler",false]
["compass",false]
["comparator",false]
["community-edition",true]
["community-edition",false]
["community",false]
["commons-lang",false]
["commit-messages-guide",false]
["commerce",false]
["Command-line-text-processing",false]
["commander.js",false]
["comlink",false]
["comcast",false]
["colour-schemes",false]
["ColorUI",false]
["color-thief",{"$f":"A4482=A4483","v":false}]
["colors",false]
["colly",false]
["collect.js",false]
["colima",false]
["COLA",false]
["coil",false]
["coffeescript",false]
["codimd",false]
["code-unit-reverse-lookup",false]
["code-server",false]
["codesandbox-client",false]
["coder2gwy",false]
["codemirror5",false]
["codelf",false]
["CodeIgniter",false]
["CodeHub",false]
["code-guide",false]
["CodeGuide",false]
["CodeEdit",false]
["codecombat",false]
["code_snippets",false]
["cocos2d-x",false]
["CocoaPods",false]
["cockroach",false]
["cockpit",false]
["coc.nvim",false]
["cobra",false]
["co",false]
["CNTK",false]
["cnn-explainer",false]
["cni",false]
["CnC_Remastered_Collection",false]
["CMWTAT_Digital_Edition",false]
["cmder",false]
["cmake-examples",false]
["CMAK",false]
["Clusterize.js",false]
["CLRS",false]
["cloudstack",false]
["Cloudreve",false]
["CloudflareSpeedTest",false]
["cloud-custodian",false]
["closure-compiler",false]
["Clone-Wars",false]
["clojurescript",false]
["clojure",false]
["cloc",false]
["clmtrackr",false]
["Clipy",false]
["clipboard.js",false]
["clip-as-service",false]
["CLIP",false]
["client-go",false]
["client",false]
["ClickHouse",false]
["click",false]
["cli",true]
["cli",true]
["cli",true]
["cli",false]
["cleave.js",false]
["clean-code-typescript",false]
["clean-code-php",false]
["clean-code-javascript",{"$f":"A4546=A4547","v":false}]
["CleanArchitecture",true]
["CleanArchitecture",false]
["class-validator",false]
["classnames",false]
["clashX",false]
["clash-rules",false]
["ClashForAndroid",false]
["clash_for_windows_pkg",false]
["Clash_Chinese_Patch",false]
["clash",false]
["clarity",false]
["clap",false]
["clair",false]
["ckeditor5",false]
["CKAD-exercises",false]
["cJSON",false]
["citybound",false]
["citus",false]
["citra",false]
["CircleImageView",false]
["Ciphey",false]
["cim",true]
["cim",false]
["cilium",false]
["ciencia-da-computacao",false]
["chromium",false]
["chrome-plugin-demo",false]
["chromeos-apk",false]
["chromeless",false]
["chrome-extensions-samples",false]
["chromedp",false]
["ChromeAppHeroes",false]
["chroma.js",false]
["chosen",false]
["choo",false]
["chokidar",false]
["choco",false]
["chisel",true]
["chisel",false]
["chinese-xinhua",false]
["Chinese-Word-Vectors",false]
["chinese-programmer-wrong-pronunciation",false]
["chinese-poetry",false]
["chineseocr_lite",false]
["chinese-independent-developer",false]
["chinese-independent-blogs",false]
["chinese-dos-games",false]
["ChineseBQB",false]
["Chinese-BERT-wwm",false]
["chibicc",false]
["chia-blockchain",false]
["ChezScheme",false]
["chezmoi",false]
["chemex",false]
["chef",false]
["cheesesquare",false]
["cheerio",false]
["checkstyle",false]
["checkov",false]
["CheatSheetSeries",false]
["cheatsheets-ai",false]
["cheatsheets",false]
["cheat-engine",false]
["cheat.sh",{"$f":"A4610=A4611","v":false}]
["cheat",false]
["che",false]
["chatwoot",false]
["chat",false]
["Charts",true]
["charts",true]
["charts",true]
["charts",false]
["chartkick",false]
["chart.xkcd",false]
["Chart.js",false]
["char-rnn",false]
["chaostoolkit",false]
["chaos-mesh",false]
["chaoskube",false]
["chaosblade",false]
["changedetection.io",false]
["chancejs",false]
["chameleon",false]
["chalk",false]
["chalice",false]
["chakra-ui",false]
["ChakraCore",false]
["chai",false]
["cfssl",false]
["cetus",false]
["cesium",false]
["cert-manager",false]
["certbot",false]
["cerebro",false]
["ceph",false]
["centrifugo",false]
["CenterNet",false]
["celery",false]
["CefSharp",false]
["ce",false]
["cdnjs",false]
["cdk8s",false]
["ccxt",false]
["ccv",false]
["CCFlow",false]
["CBoard",false]
["cayley",false]
["Catch2",false]
["catboost",false]
["Cataclysm-DDA",false]
["cat",false]
["cassandra",false]
["casperjs",false]
["cash",true]
["cash",false]
["cascadia-code",false]
["CasaOS",false]
["cas",false]
["carvel-ytt",false]
["Cartography",false]
["cartographer",false]
["Carthage",false]
["carrierwave",false]
["carlo",false]
["carla",false]
["cargo",false]
["card",false]
["carbon-lang",{"$f":"A4674=A4675","v":false}]
["carbondata",false]
["carbon",true]
["Carbon",false]
["capybara",false]
["Captura",false]
["captcha",false]
["caprover",false]
["caprine",false]
["capnproto",false]
["capacitor",false]
["cancan",false]
["canal",false]
["camel",false]
["Calligraphy",false]
["calico",false]
["calibre-web",false]
["calibre",false]
["CalendarView",false]
["calculator",false]
["calcite",false]
["cal.com",false]
["cakephp",false]
["caire",false]
["caffe2",false]
["caffe",false]
["cadvisor",false]
["cadence",false]
["caddy",false]
["cachecloud",false]
["cache",false]
["c9-python-getting-started",false]
["c4",false]
["c3",false]
["C",false]
["bytecode-viewer",false]
["bypy",false]
["bypass-paywalls-chrome",false]
["byob",false]
["butterknife",false]
["bup",false]
["bundlephobia",false]
["bun",false]
["bulma",false]
["BullshitGenerator",false]
["bulletproof-react",false]
["bullet3",false]
["bullet",false]
["bull",false]
["build-your-own-x",false]
["build-web-application-with-golang",false]
["buffalo",false]
["buefy",false]
["budwk",false]
["budibase",false]
["buck",false]
["bubbletea",false]
["btop",false]
["bspwm",false]
["brunch",false]
["browsh",false]
["browser-sync",false]
["browserslist",false]
["BrowserQuest",false]
["browser-laptop",{"$f":"A4738=A4739","v":false}]
["browserify",false]
["browser-2020",false]
["brotli",false]
["broot",false]
["brook",false]
["Bringing-Old-Photos-Back-to-Life",false]
["brigade",false]
["brew",false]
["brave-browser",false]
["brakeman",false]
["brain.js",false]
["brain",false]
["brackets",false]
["bpytop",false]
["bpmn-js",false]
["bower",false]
["bourbon",false]
["bounce.js",false]
["BottomBar",false]
["bottlerocket",false]
["bottle",false]
["botpress",false]
["boto3",false]
["boto",false]
["botkit",false]
["botframework-sdk",false]
["BossSensor",false]
["bosh",false]
["borg",false]
["bootswatch",false]
["bootstrap-vue",false]
["bootstrap-table",false]
["bootstrap-select",false]
["BootstrapBlazor",false]
["BootstrapAdmin",false]
["bootstrap",true]
["bootstrap",false]
["BOOTSTRA.386",false]
["bootshiro",false]
["bootdo",false]
["boot2docker",false]
["BoostNote-Legacy",false]
["BookStack",true]
["BookStack",false]
["bookshelf",false]
["books",false]
["BookReader",false]
["bookkeeper",false]
["book",false]
["bolt",false]
["bokeh",false]
["Bogus",false]
["bocker",false]
["Bob",false]
["boardgame.io",false]
["blurhash",false]
["blur-admin",false]
["blueprint",false]
["bluebird",false]
["bloomrpc",false]
["BloodHound",false]
["blog_os",false]
["Blog",true]
["blog",{"$f":"A4802=A4803","v":true}]
["blog",true]
["blog",true]
["Blog",true]
["blog",true]
["blog",false]
["BlocksKit",false]
["blockly",false]
["blockchain_guide",false]
["blockchain",true]
["blockchain",false]
["bloc",false]
["bleve",false]
["blessed-contrib",false]
["blessed",false]
["blender",false]
["blazor",false]
["BlackHole",false]
["blackbox",false]
["black",false]
["bk-ci",false]
["bitcoinbook",false]
["bitcoin",false]
["bit",false]
["bips",false]
["binwalk",false]
["binance-trade-bot",false]
["Bilibili-Evolved",false]
["bilibili-API-collect",false]
["Bili.Uwp",false]
["big-list-of-naughty-strings",false]
["bigchaindb",false]
["bigcache",false]
["bigbluebutton",false]
["BGAQRCode-Android",false]
["bfg-repo-cleaner",false]
["bfe",false]
["bevy",false]
["better-scroll",false]
["BetterDisplay",false]
["bettercap",false]
["better_errors",false]
["betaflight",false]
["Best-websites-a-programmer-should-visit-zh",false]
["Best-websites-a-programmer-should-visit",false]
["best-resume-ever",false]
["Best-README-Template",false]
["best-of-ml-python",false]
["Best-Flutter-UI-Templates",false]
["Best-App",false]
["berty",false]
["bert",false]
["BenchmarkDotNet",false]
["benchmark",false]
["beginners-typescript-tutorial",false]
["beets",false]
["beeswithmachineguns",false]
["beekeeper-studio",false]
["beego",false]
["beef",false]
["Become-A-Full-Stack-Web-Developer",false]
["beautify-github-profile",false]
["beautiful-web-type",false]
["beautiful-docs",false]
["beats",{"$f":"A4866=A4867","v":false}]
["be-a-professional-programmer",false]
["beanstalkd",false]
["beam",false]
["beaker",false]
["bcc",false]
["bbs-go",false]
["bazel",false]
["BayesianOptimization",false]
["bats",false]
["bat",false]
["basic-computer-games",false]
["bashtop",false]
["Bash-Snippets",false]
["Bash-Oneliner",false]
["bash-it",false]
["bash-guide",false]
["bash-git-prompt",false]
["baseweb",false]
["BaseRecyclerViewAdapterHelper",false]
["baseimage-docker",false]
["barba",false]
["bandwhich",false]
["BaiduNetdiskPlugin-macOS",false]
["badger",false]
["bacon.js",false]
["backtrader",false]
["BackstopJS",false]
["backstage",false]
["Back-End-Developer-Interview-Questions",false]
["backbone-fundamentals",false]
["backbone.marionette",false]
["backbone",false]
["Babylon.js",false]
["babun",false]
["babel-handbook",false]
["babel",false]
["azure-docs",false]
["azuredatastudio",false]
["axum",false]
["axios",false]
["awx",false]
["awtk",false]
["aws-vault",false]
["aws-shell",false]
["aws-sdk-js",false]
["aws-sdk-go",false]
["aws-sam-cli",false]
["Awsome-Front-End-learning-resource",false]
["aws-doc-sdk-examples",false]
["aws-cdk",false]
["awful-ai",false]
["awesomplete",false]
["awesomo",false]
["awesome-zsh-plugins",false]
["awesome-wpo",false]
["awesome-wechat-weapp",false]
["awesome-web-security",false]
["awesome-wasm",false]
["awesome-vue",false]
["awesome-vscode",false]
["awesome-vite",false]
["awesome-tunneling",false]
["awesome-tensorflow",false]
["awesome-tailwindcss",{"$f":"A4930=A4931","v":false}]
["awesome-system-design",false]
["awesome-sysadmin",false]
["awesome-swift",false]
["awesome-stock-resources",false]
["awesome-sre",false]
["awesome-spider",false]
["awesome-shell",false]
["awesome-serverless",false]
["awesome-semantic-segmentation",false]
["awesome-selfhosted",false]
["awesome-security",false]
["awesome-scalability",false]
["awesome-scala",false]
["awesome-rust",false]
["awesome-rl",false]
["awesome-remote-job",false]
["awesome-react-native",false]
["awesome-react-hooks",false]
["awesome-react-components",false]
["awesome-react",false]
["awesome-raspberry-pi",false]
["awesome-quant",false]
["Awesome-pytorch-list",false]
["awesome-python-login-model",false]
["awesome-python-cn",false]
["awesome-python-applications",false]
["awesome-python",false]
["awesome-public-datasets",false]
["awesome-project-ideas",false]
["awesome-programming-books",false]
["Awesome-Profile-README-templates",false]
["awesome-privacy",false]
["awesome-postgres",false]
["awesome-podcasts",false]
["awesome-piracy",false]
["awesome-php",false]
["awesome-pentest",false]
["awesome-osint",false]
["awesome-object-detection",false]
["awesome-nodejs",false]
["awesome-nlp",false]
["awesome-nextjs",false]
["awesome-nestjs",false]
["awesome-neovim",false]
["awesome-modern-cpp",false]
["awesome-mlops",false]
["awesome-microservices",false]
["awesome-math",false]
["awesome-malware-analysis",false]
["awesome-macos-command-line",false]
["awesome-macOS",false]
["awesome-machine-learning",false]
["awesome-mac",false]
["awesome-lowcode",false]
["Awesome-Linux-Software",false]
["awesome-leading-and-managing",false]
["awesome-laravel",false]
["awesome-kubernetes",false]
["awesome-kotlin",false]
["awesome-javascript-cn",false]
["awesome-javascript",false]
["awesome-java-leetcode",false]
["awesome-java-cn",false]
["awesome-java",{"$f":"A4994=A4995","v":true}]
["awesome-java",false]
["awesome-ios-ui",false]
["awesome-ios",false]
["awesome-interview-questions",false]
["awesome-indie",false]
["awesome-hyper",false]
["awesome-honeypots",false]
["Awesome-Hacking",true]
["awesome-hacking",false]
["awesome-guidelines",false]
["awesome-graphql",false]
["awesome-go",false]
["awesome-github-wechat-weapp",false]
["awesome-github-vue",false]
["Awesome-GitHub-Repo",false]
["awesome-github-profile-readme",false]
["awesome-for-beginners",false]
["awesome-flutter",false]
["awesome-flask",false]
["awesome-fenix",false]
["awesome-falsehood",false]
["awesome-emacs",false]
["awesome-elixir",false]
["awesome-electron",false]
["awesome-dotnet-core",false]
["awesome-dotnet",false]
["awesome-dotfiles",false]
["awesome-docker",false]
["awesome-django",false]
["awesome-distributed-systems",false]
["awesome-developer-streams",false]
["Awesome-Design-Tools",false]
["awesome-design-systems",false]
["awesome-design-patterns",false]
["awesome-design",false]
["awesome-deep-vision",false]
["awesome-deep-learning-papers",false]
["awesome-deep-learning",false]
["awesome-ddd",false]
["awesome-datascience",false]
["Awesome-CV",false]
["awesome-ctf",false]
["awesome-cs-books",false]
["awesome-creative-coding",false]
["awesome-cpp-cn",false]
["awesome-cpp",false]
["awesome-courses",false]
["awesome-computer-vision",false]
["awesome-compose",false]
["awesome-compilers",false]
["awesome-competitive-programming",false]
["awesome-cold-showers",false]
["awesome-cli-apps",false]
["Awesome-Chinese-NLP",false]
["awesome-cheatsheets",true]
["awesome-cheatsheets",false]
["awesome-cheatsheet",false]
["awesome-c",false]
["awesome-blockchain-cn",false]
["awesome-blazor",false]
["awesome-bigdata",false]
["awesome-aws",false]
["awesome-awesomeness",false]
["awesome-artificial-intelligence",{"$f":"A5058=A5059","v":false}]
["Awesome-ARKit",false]
["awesome-architecture",false]
["awesome-angular",false]
["awesome-android-ui",false]
["awesome-android",false]
["awesome-adb",false]
["awesome-actions",false]
["Awesome_APIs",false]
["Awesome",false]
["avue",false]
["avro",false]
["AVLoadingIndicatorView",false]
["avbook",false]
["avatarify-python",false]
["Avalonia",false]
["ava",false]
["autoware",false]
["auto-sklearn",false]
["autoscaler",false]
["autoprefixer",false]
["automerge",false]
["AutoMapper",false]
["AutoLoadCache",false]
["autokeras",false]
["autojump",false]
["AutoEq",false]
["autocomplete",false]
["autocannon",false]
["Auto.js",false]
["auto",false]
["authelia",false]
["AudioKit",false]
["audacity",false]
["attention-is-all-you-need-pytorch",false]
["A-to-Z-Resources-for-Students",false]
["atomic-red-team",false]
["atom",false]
["Atmosphere",false]
["atlas",true]
["atlas",false]
["athens",false]
["athena",false]
["async-validator",false]
["asyncTool",false]
["async-http-client",false]
["AsyncDisplayKit",false]
["async",false]
["asuswrt-merlin",false]
["astro",false]
["assimp",false]
["AssetStudio",false]
["assert",false]
["assemblyscript",false]
["AspNetCore.Docs",false]
["aspnetcore",false]
["aspnetboilerplate",false]
["Aspects",false]
["aseprite",false]
["asdf",false]
["asciinema",false]
["art-template",false]
["art-of-readme",false]
["art-of-node",false]
["article",{"$f":"A5122=A5123","v":false}]
["arthas",false]
["arrow-rs",false]
["arrow-datafusion",false]
["arrow",true]
["arrow",false]
["ARouter",false]
["ArnoldC",false]
["AriaNg",false]
["ariakit",false]
["aria2gui",false]
["aria2",false]
["argo-workflows",false]
["argo-cd",false]
["ardupilot",false]
["arduino-esp32",false]
["Arduino",true]
["Arduino",false]
["ar-cutpaste",false]
["arc-theme",false]
["ArchiveBox",false]
["architecture-samples",false]
["architecture-decision-record",false]
["architecture-components-samples",false]
["architecture.of.internet-product",false]
["architect-awesome",false]
["ArchiSteamFarm",false]
["Archery",false]
["arangodb",false]
["AR.js",false]
["A-Programmers-Guide-to-English",false]
["appwrite",false]
["appsmith",false]
["apprise",false]
["applied-ml",false]
["appium",false]
["AppIntro",false]
["AppImageKit",false]
["app-ideas",false]
["AppFlowy",false]
["apollo-client",false]
["Apollo-11",false]
["apollo",true]
["apollo",false]
["apm-server",false]
["APlayer",false]
["Apktool",false]
["apisix",false]
["API-Security-Checklist",false]
["api-platform",false]
["ApiManager",false]
["APIJSON",false]
["api-guidelines",false]
["apidoc",false]
["a-picture-is-worth-a-1000-words",false]
["api-blueprint",false]
["ApiAdmin",false]
["API",true]
["api",false]
["apexcharts.js",false]
["apex",false]
["apachecn-algo-zh",false]
["aos",false]
["any-rule",false]
["anyproxy",{"$f":"A5186=A5187","v":false}]
["anypixel",false]
["ants",false]
["antrea",false]
["antlr4",false]
["antigen",false]
["Anti-Anti-Spider",false]
["ant-design-vue-pro",false]
["ant-design-vue",false]
["ant-design-pro",false]
["ant-design-mobile",false]
["ant-design-blazor",false]
["ant-design",false]
["antd-admin",false]
["ansj_seg",false]
["ansible-for-devops",false]
["ansible-examples",false]
["ansible",false]
["AnotherRedisDesktopManager",false]
["anomaly-detection-resources",false]
["annyang",false]
["annoy",false]
["annotations",false]
["annotated_deep_learning_paper_implementations",false]
["anko",false]
["Anime-Girls-Holding-Programming-Books",false]
["Anime4K",false]
["anime",false]
["animated-tab-bar",false]
["animate.css",false]
["angular-styleguide",false]
["angular-starter",false]
["angular-seed",false]
["angularjs-styleguide",false]
["AngularJS-Learning",false]
["angularfire",false]
["angular-cli",false]
["angular.js",false]
["angular",false]
["angr",false]
["angel",false]
["AndroidUtilCode",false]
["Android-Universal-Image-Loader",false]
["android-Ultra-Pull-To-Refresh",false]
["android-training-course-in-chinese",false]
["android-tech-frontier",false]
["Android-SpinKit",false]
["AndroidSlidingUpPanel",false]
["android-security-awesome",false]
["AndroidSdkSourceAnalysis",false]
["Android-PullToRefresh",false]
["Android-PickerView",false]
["AndroidPerformanceMonitor",false]
["AndroidPdfViewer",false]
["android-open-project-analysis",false]
["android-open-project",false]
["Android-ObservableScrollView",false]
["AndroidNote",false]
["AndroidLibs",false]
["android-ktx",false]
["android-interview-questions",false]
["AndroidInterview-Q-A",false]
["Android-Image-Cropper",false]
["android-gpuimage",false]
["android-gif-drawable",{"$f":"A5250=A5251","v":false}]
["android-floating-action-button",false]
["AndroidDevTools",false]
["Android-Debug-Database",false]
["Android-CleanArchitecture",false]
["android-classyshark",false]
["Android-Bootstrap",false]
["android-best-practices",false]
["AndroidAutoLayout",false]
["android-async-http",false]
["AndroidAsync",false]
["AndroidAssetStudio",false]
["androidannotations",false]
["android_guides",false]
["Android_Data",false]
["AndResGuard",false]
["AndPermission",false]
["AndFix",false]
["anchore-engine",false]
["anbox",false]
["analyze",false]
["AMScrollingNavbar",false]
["amplify-js",false]
["amplication",false]
["amphtml",false]
["amis",false]
["Amethyst",true]
["amethyst",false]
["ambari",false]
["amazon-sagemaker-examples",false]
["amazing-qr",false]
["amazeui",false]
["Amass",false]
["AltStore",false]
["altair",false]
["alpine",false]
["AlphaPose",false]
["alphafold",false]
["alluxio",false]
["allennlp",false]
["all-contributors",false]
["aliyunpan",false]
["alist",false]
["algs4",false]
["algorithm-visualizer",false]
["algorithms",true]
["Algorithms",true]
["algorithms",false]
["algorithm-pattern",false]
["algorithm-base",false]
["algo",true]
["algo",false]
["Alcatraz",false]
["albumentations",false]
["albert",false]
["Alamofire",false]
["alacritty",false]
["akka",false]
["ajv",false]
["ajenti",false]
["Airtest",false]
["AirSim",false]
["airflow",false]
["airbyte",false]
["air",{"$f":"A5314=A5315","v":false}]
["aima-python",false]
["ailearning",false]
["ailab",false]
["AI-Expert-Roadmap",false]
["ai-edu",false]
["agola",false]
["agile-bpm-basic",false]
["ag-grid",false]
["agera",false]
["AgentWeb",false]
["agenda",false]
["age",false]
["aframe",false]
["AFNetworking",false]
["AFFiNE",false]
["aeron",false]
["Aerial",false]
["AdversarialNetsPapers",false]
["advanced-java",false]
["advanced-go-programming-book",false]
["AdminLTE",false]
["Administrative-divisions-of-China",false]
["AdGuardHome",false]
["adarkroom",false]
["acwj",false]
["actix-web",false]
["actix",false]
["activitywatch",false]
["Activiti",false]
["activemq",false]
["activeadmin",false]
["actionview",false]
["ActionBarSherlock",false]
["act",false]
["acorn",false]
["acme-companion",false]
["acme.sh",false]
["ACL4SSR",false]
["acl",false]
["ace",false]
["academicpages.github.io",false]
["abu",false]
["abstreet",false]
["abseil-cpp",false]
["abp",false]
["About-SwiftUI",false]
["98.css",false]
["955.WLB",false]
["90DaysOfDevOps",false]
["7days-golang",false]
["52-technologies-in-2016",false]
["50projects50days",false]
["500lines",false]
["500-AI-Machine-learning-Deep-learning-Computer-vision-NLP-Projects-with-code",false]
["3d-photo-inpainting",false]
["3D-Machine-Learning",false]
["3d-game-shaders-for-beginners",false]
["360Controller",false]
["33-js-concepts",true]
["33-js-concepts",false]
["30-seconds-of-python",false]
["30-seconds-of-interviews",false]
["30-seconds-of-css",false]
["30-seconds-of-code",{"$f":"A5378=A5379","v":false}]
["30min_guides",false]
["30DaysofSwift",false]
["30-days-of-react-native",false]
["30-Days-Of-React",false]
["30-Days-Of-Python",false]
["30-Days-Of-JavaScript",false]
["1on1-questions",false]
["1loc",false]
["100-Days-Of-ML-Code",true]
["100-Days-Of-ML-Code",false]
["100-days-of-code",false]
["100days",false]
["_s",false]
[".tmux",false]
[12306,false]
[2048,false]